Workbook

Sheet Cover Page
C3: =Name_Project -> AusNet Property (Depot) Investment Strategy - Phase 1
C4: (EDPR 2027-31)
C8: Cost Benefit Analysis
C12: ="11 December 2024" -> 11 December 2024
C15: Stage | D15: Draft CBA

Sheet Legend
A1: =MID(CELL("filename",A1),FIND("]",CELL("filename",A1))+1,256) -> Legend
A2: =Name_Project&" | "&Name_Model -> AusNet Property (Depot) Investment Strategy - Phase 1 | CBA Model
A3: ="Version "&Model_Version -> Version 1.0
B7: =MAX($B$1:B6)+1 -> 1 | C7: Model setup
E9: Description | G9: Value | I9: Range name
E10: Model name | G10: CBA Model | I10: Name_Model
E11: Project name | G11: AusNet Property (Depot) Investment Strategy - Phase 1 | I11: Name_Project
E12: Last updated | G12: 2024-12-11 | I12: Last_Updated
E13: Model status | G13: DRAFT | I13: Model_Status
E14: Model version | G14: 1.0 | I14: Model_Version
B16: =MAX($B$1:B15)+1 -> 2 | C16: Model constants
E18: Description | G18: Value | I18: Range name
E19: Days in a year | G19: 365 | I19: Days_yr
E20: Months per quarter | G20: 3 | I20: Months_qtr
E21: Months per haf year | G21: 6 | I21: Months_hyr
E22: Quarters per year | G22: 4 | I22: Quarters_yr
E23: Months per year | G23: 12 | I23: Months_yr
E24: Million | G24: 1000000 | I24: M
E25: Thousands | G25: 1000 | I25: k
E26: Very small number | G26: 1e-10 | I26: VerySmallNumber
B30: =MAX($B$1:B28)+1 -> 3 | C30: Individual cell styles
E32: Style | G32: Description
E34: Table_Heading | G34: Table heading with automatic cross section adjustment
E36: Technical_Input | G36: Hard coded number used in calculations - this number should not be changed in any circumstances
E38: Unique formula | G38: Indicates a unqiue calculation different to other cells in this row
E40: Option switch | G40: This cell contains an assumption which can be changed by the user
E42: Assumptions | G42: This cell contains an assumption which can be changed by the user
E44: Overide | G44: This cell contains an overiding assumption
E46: OffSheet | G46: Link to an assumptions cell from another sheet
E48: Switch | G48: Switch
E50: InSheet | G50: In sheet calculation
E52: Empty_Cell | G52: This cell has been left empty intentionally and is used in a neighbouring calculation
E54: 1 | G54: Indicates the use of a binary flag [0,1] to indicate a particular stage/phase in the project
E56: Comment | G56: Comments for users regarding the adjacent cell.
E58: Number formats
E60: $ | G60: Unit - indicates the unit such as AUD, AUD '000, AUD M, MWh, etc.
E62: 5.55 | G62: Comma - standard number displaying two decimal places
E64: 100000 | G64: Comma [0] - standard number displaying zero decimal places
E66: 0.0555 | G66: Percent - standard percentage display showing two decimal places
E68: 1 | G68: Percent [0] - standard percentage display showing zero decimal places
E70: 1.888 | G70: Index_FX - standard number display showing four decimal places
A73: End of sheet

Sheet Control Panel
A1: =MID(CELL("filename",A1),FIND("]",CELL("filename",A1))+1,256) -> Control Panel
A2: =Name_Project&" | "&Name_Model -> AusNet Property (Depot) Investment Strategy - Phase 1 | CBA Model | L2: Period | M2: =M19 -> 1 | N2: =N19 -> 2 | O2: 3 | P2: 4 | Q2: 5 | R2: 6 | S2: 7 | T2: =T19 -> 8 | U2: 9 | V2: 10 | W2: 11 | X2: 12 | Y2: 13 | Z2: 14 | AA2: =AA19 -> 15 | AB2: 16 | AC2: 17 | AD2: 18 | AE2: 19 | AF2: 20 | AG2: 21 | AH2: 22 | AI2: 23 | AJ2: 24 | AK2: 25 | AL2: 26 | AM2: 27 | AN2: 28 | AO2: 29 | AP2: 30 | AQ2: 31 | AR2: 32 | AS2: 33 | AT2: 34 | AU2: 35 | AV2: 36 | AW2: 37 | AX2: 38 | AY2: 39 | AZ2: 40 | BA2: 41
A3: ="Version "&Model_Version -> Version 1.0 | L3: Start date | M3: =M20 -> 2025-07-01 | N3: 2026-07-01 | O3: 2027-07-01 | P3: 2028-07-01 | Q3: 2029-07-01 | R3: 2030-07-01 | S3: 2031-07-01 | T3: =T20 -> 2032-07-01 | U3: 2033-07-01 | V3: 2034-07-01 | W3: 2035-07-01 | X3: 2036-07-01 | Y3: 2037-07-01 | Z3: 2038-07-01 | AA3: =AA20 -> 2039-07-01 | AB3: 2040-07-01 | AC3: 2041-07-01 | AD3: 2042-07-01 | AE3: 2043-07-01 | AF3: 2044-07-01 | AG3: 2045-07-01 | AH3: 2046-07-01 | AI3: 2047-07-01 | AJ3: 2048-07-01 | AK3: 2049-07-01 | AL3: 2050-07-01 | AM3: 2051-07-01 | AN3: 2052-07-01 | AO3: 2053-07-01 | AP3: 2054-07-01 | AQ3: 2055-07-01 | AR3: 2056-07-01 | AS3: 2057-07-01 | AT3: 2058-07-01 | AU3: 2059-07-01 | AV3: 2060-07-01 | AW3: 2061-07-01 | AX3: 2062-07-01 | AY3: 2063-07-01 | AZ3: 2064-07-01 | BA3: 2065-07-01
A4: ="Scenario: "&SelectedScenario ->  | L4: End date | M4: 2026-06-30 | N4: 2027-06-30 | O4: 2028-06-30 | P4: 2029-06-30 | Q4: 2030-06-30 | R4: 2031-06-30 | S4: 2032-06-30 | T4: =T21 -> 2033-06-30 | U4: 2034-06-30 | V4: 2035-06-30 | W4: 2036-06-30 | X4: 2037-06-30 | Y4: 2038-06-30 | Z4: 2039-06-30 | AA4: =AA21 -> 2040-06-30 | AB4: 2041-06-30 | AC4: 2042-06-30 | AD4: 2043-06-30 | AE4: 2044-06-30 | AF4: 2045-06-30 | AG4: 2046-06-30 | AH4: 2047-06-30 | AI4: 2048-06-30 | AJ4: 2049-06-30 | AK4: 2050-06-30 | AL4: 2051-06-30 | AM4: 2052-06-30 | AN4: 2053-06-30 | AO4: 2054-06-30 | AP4: 2055-06-30 | AQ4: 2056-06-30 | AR4: 2057-06-30 | AS4: 2058-06-30 | AT4: 2059-06-30 | AU4: 2060-06-30 | AV4: 2061-06-30 | AW4: 2062-06-30 | AX4: 2063-06-30 | AY4: 2064-06-30 | AZ4: 2065-06-30 | BA4: 2066-06-30
A5: ="Base: "&SelectedBase ->  | L5: Financial Year | M5: =M22 -> 2026 | N5: 2027 | O5: 2028 | P5: 2029 | Q5: 2030 | R5: 2031 | S5: 2032 | T5: =T22 -> 2033 | U5: 2034 | V5: 2035 | W5: 2036 | X5: 2037 | Y5: 2038 | Z5: 2039 | AA5: =AA22 -> 2040 | AB5: 2041 | AC5: 2042 | AD5: 2043 | AE5: 2044 | AF5: 2045 | AG5: 2046 | AH5: 2047 | AI5: 2048 | AJ5: 2049 | AK5: 2050 | AL5: 2051 | AM5: 2052 | AN5: 2053 | AO5: 2054 | AP5: 2055 | AQ5: 2056 | AR5: 2057 | AS5: 2058 | AT5: 2059 | AU5: 2060 | AV5: 2061 | AW5: 2062 | AX5: 2063 | AY5: 2064 | AZ5: 2065 | BA5: 2066
B7: =MAX($B$1:B6)+1 -> 1 | C7: Model setup
C9: =MAX($B$1:C8)+0.01 -> 1.01 | D9: Call ups
E11: Model Timing
E12: First period start | F12: date | G12: 2025-07-01 | H12: Input - Allows user to change the date
E13: Duration | F13: years | G13: 30 | H13: Input - Allows user to input the number of years required
E14: Final model period | F14: date | G14: =EOMONTH(G12,G13*Months_yr) -> 2055-07-31
C16: =MAX($B$1:C15)+0.01 -> 1.02 | D16: Timeline
E18: Master timeline for header
E19: Period | F19: count | M19: =L19+1 -> 1 | N19: =M19+1 -> 2 | O19: 3 | P19: 4 | Q19: 5 | R19: 6 | S19: 7 | T19: =S19+1 -> 8 | U19: =T19+1 -> 9 | V19: =U19+1 -> 10 | W19: =V19+1 -> 11 | X19: =W19+1 -> 12 | Y19: =X19+1 -> 13 | Z19: =Y19+1 -> 14 | AA19: =Z19+1 -> 15 | AB19: =AA19+1 -> 16 | AC19: =AB19+1 -> 17 | AD19: =AC19+1 -> 18 | AE19: =AD19+1 -> 19 | AF19: =AE19+1 -> 20 | AG19: =AF19+1 -> 21 | AH19: =AG19+1 -> 22 | AI19: =AH19+1 -> 23 | AJ19: =AI19+1 -> 24 | AK19: =AJ19+1 -> 25 | AL19: =AK19+1 -> 26 | AM19: =AL19+1 -> 27 | AN19: =AM19+1 -> 28 | AO19: =AN19+1 -> 29 | AP19: =AO19+1 -> 30 | AQ19: =AP19+1 -> 31 | AR19: =AQ19+1 -> 32 | AS19: =AR19+1 -> 33 | AT19: =AS19+1 -> 34 | AU19: =AT19+1 -> 35 | AV19: =AU19+1 -> 36 | AW19: =AV19+1 -> 37 | AX19: =AW19+1 -> 38 | AY19: =AX19+1 -> 39 | AZ19: =AY19+1 -> 40 | BA19: =AZ19+1 -> 41
E20: Sart date | F20: date | M20: =IF(M19=1,$G$12,L21+1) -> 2025-07-01 | N20: =IF(N19=1,$G$12,M21+1) -> 2026-07-01 | O20: 2027-07-01 | P20: 2028-07-01 | Q20: 2029-07-01 | R20: 2030-07-01 | S20: 2031-07-01 | T20: =IF(T19=1,$G$12,S21+1) -> 2032-07-01 | U20: =IF(U19=1,$G$12,T21+1) -> 2033-07-01 | V20: =IF(V19=1,$G$12,U21+1) -> 2034-07-01 | W20: =IF(W19=1,$G$12,V21+1) -> 2035-07-01 | X20: =IF(X19=1,$G$12,W21+1) -> 2036-07-01 | Y20: =IF(Y19=1,$G$12,X21+1) -> 2037-07-01 | Z20: =IF(Z19=1,$G$12,Y21+1) -> 2038-07-01 | AA20: =IF(AA19=1,$G$12,Z21+1) -> 2039-07-01 | AB20: =IF(AB19=1,$G$12,AA21+1) -> 2040-07-01 | AC20: =IF(AC19=1,$G$12,AB21+1) -> 2041-07-01 | AD20: =IF(AD19=1,$G$12,AC21+1) -> 2042-07-01 | AE20: =IF(AE19=1,$G$12,AD21+1) -> 2043-07-01 | AF20: =IF(AF19=1,$G$12,AE21+1) -> 2044-07-01 | AG20: =IF(AG19=1,$G$12,AF21+1) -> 2045-07-01 | AH20: =IF(AH19=1,$G$12,AG21+1) -> 2046-07-01 | AI20: =IF(AI19=1,$G$12,AH21+1) -> 2047-07-01 | AJ20: =IF(AJ19=1,$G$12,AI21+1) -> 2048-07-01 | AK20: =IF(AK19=1,$G$12,AJ21+1) -> 2049-07-01 | AL20: =IF(AL19=1,$G$12,AK21+1) -> 2050-07-01 | AM20: =IF(AM19=1,$G$12,AL21+1) -> 2051-07-01 | AN20: =IF(AN19=1,$G$12,AM21+1) -> 2052-07-01 | AO20: =IF(AO19=1,$G$12,AN21+1) -> 2053-07-01 | AP20: =IF(AP19=1,$G$12,AO21+1) -> 2054-07-01 | AQ20: =IF(AQ19=1,$G$12,AP21+1) -> 2055-07-01 | AR20: =IF(AR19=1,$G$12,AQ21+1) -> 2056-07-01 | AS20: =IF(AS19=1,$G$12,AR21+1) -> 2057-07-01 | AT20: =IF(AT19=1,$G$12,AS21+1) -> 2058-07-01 | AU20: =IF(AU19=1,$G$12,AT21+1) -> 2059-07-01 | AV20: =IF(AV19=1,$G$12,AU21+1) -> 2060-07-01 | AW20: =IF(AW19=1,$G$12,AV21+1) -> 2061-07-01 | AX20: =IF(AX19=1,$G$12,AW21+1) -> 2062-07-01 | AY20: =IF(AY19=1,$G$12,AX21+1) -> 2063-07-01 | AZ20: =IF(AZ19=1,$G$12,AY21+1) -> 2064-07-01 | BA20: =IF(BA19=1,$G$12,AZ21+1) -> 2065-07-01
E21: End date | F21: date | M21: =EOMONTH(M20,Months_yr-1) -> 2026-06-30 | N21: 2027-06-30 | O21: 2028-06-30 | P21: 2029-06-30 | Q21: 2030-06-30 | R21: 2031-06-30 | S21: 2032-06-30 | T21: =EOMONTH(T20,Months_yr-1) -> 2033-06-30 | U21: 2034-06-30 | V21: 2035-06-30 | W21: 2036-06-30 | X21: 2037-06-30 | Y21: 2038-06-30 | Z21: 2039-06-30 | AA21: =EOMONTH(AA20,Months_yr-1) -> 2040-06-30 | AB21: 2041-06-30 | AC21: 2042-06-30 | AD21: 2043-06-30 | AE21: 2044-06-30 | AF21: 2045-06-30 | AG21: 2046-06-30 | AH21: 2047-06-30 | AI21: 2048-06-30 | AJ21: 2049-06-30 | AK21: 2050-06-30 | AL21: 2051-06-30 | AM21: 2052-06-30 | AN21: 2053-06-30 | AO21: 2054-06-30 | AP21: 2055-06-30 | AQ21: 2056-06-30 | AR21: 2057-06-30 | AS21: 2058-06-30 | AT21: 2059-06-30 | AU21: 2060-06-30 | AV21: 2061-06-30 | AW21: 2062-06-30 | AX21: 2063-06-30 | AY21: 2064-06-30 | AZ21: 2065-06-30 | BA21: 2066-06-30
E22: Financial Year | F22: year | M22: =IF((MONTH(M20)<=6),YEAR(M20), YEAR(M20)+1) -> 2026 | N22: =IF((MONTH(N20)<=6),YEAR(N20), YEAR(N20)+1) -> 2027 | O22: 2028 | P22: 2029 | Q22: 2030 | R22: 2031 | S22: 2032 | T22: 2033 | U22: 2034 | V22: 2035 | W22: 2036 | X22: 2037 | Y22: 2038 | Z22: 2039 | AA22: 2040 | AB22: 2041 | AC22: 2042 | AD22: 2043 | AE22: 2044 | AF22: 2045 | AG22: 2046 | AH22: 2047 | AI22: 2048 | AJ22: 2049 | AK22: 2050 | AL22: 2051 | AM22: 2052 | AN22: 2053 | AO22: 2054 | AP22: 2055 | AQ22: 2056 | AR22: 2057 | AS22: 2058 | AT22: 2059 | AU22: 2060 | AV22: 2061 | AW22: 2062 | AX22: 2063 | AY22: 2064 | AZ22: 2065 | BA22: 2066
E23: Days in period | F23: days | M23: =M21-M20+1 -> 365 | N23: 365 | O23: 366 | P23: 365 | Q23: 365 | R23: 365 | S23: 366 | T23: 365 | U23: 365 | V23: 365 | W23: 366 | X23: 365 | Y23: 365 | Z23: 365 | AA23: 366 | AB23: 365 | AC23: 365 | AD23: 365 | AE23: 366 | AF23: 365 | AG23: 365 | AH23: 365 | AI23: 366 | AJ23: 365 | AK23: 365 | AL23: 365 | AM23: 366 | AN23: 365 | AO23: 365 | AP23: 365 | AQ23: 366 | AR23: 365 | AS23: 365 | AT23: 365 | AU23: 366 | AV23: 365 | AW23: 365 | AX23: 365 | AY23: 366 | AZ23: 365 | BA23: 365
C25: =MAX($B$1:C23)+0.01 -> 1.03 | D25: Options
E27: Base Case | F27: text | G27: opt_1 | H27: Defined names of options used in model - do not change
E28: Option 2: Depot Refurbishment | F28: text | G28: Scen2 | H28: Defined names of options used in model - do not change
E29: Option 3: Strategic Depot reset | F29: text | G29: Scen3 | H29: Defined names of options used in model - do not change
B31: =MAX($B$1:B30)+1 -> 2 | C31: Project timing
C33: =MAX($B$1:C32)+0.01 -> 2.01 | D33: Location Controls
E36: Warragul | G36: site1 | H36: Defined names of sies used in model - do not change
E37: Beaconsfield | G37: site2 | H37: Defined names of sies used in model - do not change
E38: Pakenham | G38: site3 | H38: Defined names of sies used in model - do not change
E39: Traralgon | G39: site4 | H39: Defined names of sies used in model - do not change
E40: Benalla | G40: site5 | H40: Defined names of sies used in model - do not change
E41: Seymour | G41: site6 | H41: Defined names of sies used in model - do not change
B43: =MAX($B$1:B42)+1 -> 3 | C43: Discounting
C45: =MAX($B$1:C44)+0.01 -> 3.01 | D45: NPV - Real discount factors
E47: Discount rates
E48: Low | F48: % | G48: 0.03 | H48: User to change discount rates if required
E49: Mid-low | F49: % | G49: 0.035 | H49: User to change discount rates if required
E50: Central | F50: % | G50: 0.04 | H50: User to change discount rates if required
E51: Mid-high | F51: % | G51: 0.045 | H51: User to change discount rates if required
E52: High | F52: % | G52: 0.05 | H52: User to change discount rates if required
E54: Base date for NPV | F54: date | G54: 2024-07-01 | H54: NPV base date is set to reflect current FY
E55: Price year | F55: date | G55: =IF(MONTH(G54)>6,YEAR(G54)+1,YEAR(G54)) -> 2025
E57: Discount factors
E58: Low | F58: index | G58: =G48 -> 0.03 | K58: These show the discounting rate that will be applied depending on the active discount rate cell | L58: =1/((1+$G48)^($G$55-$G$55)) -> 1 | M58: =1/((1+$G48)^(M$5-$G$55)) -> 0.9708737864 | N58: 0.9425959091 | O58: 0.9151416594 | P58: 0.8884870479 | Q58: 0.8626087844 | R58: 0.8374842567 | S58: 0.8130915113 | T58: 0.7894092343 | U58: 0.7664167323 | V58: 0.7440939149 | W58: 0.7224212766 | X58: 0.7013798802 | Y58: 0.68095134 | Z58: 0.6611178058 | AA58: 0.6418619474 | AB58: 0.6231669392 | AC58: 0.6050164458 | AD58: 0.5873946076 | AE58: 0.5702860268 | AF58: 0.5536757542 | AG58: 0.5375492759 | AH58: 0.5218925009 | AI58: 0.5066917484 | AJ58: 0.4919337363 | AK58: 0.4776055693 | AL58: 0.4636947274 | AM58: 0.4501890558 | AN58: 0.4370767532 | AO58: 0.4243463623 | AP58: 0.4119867595 | AQ58: 0.3999871452 | AR58: 0.3883370341 | AS58: 0.3770262467 | AT58: 0.3660448997 | AU58: 0.3553833978 | AV58: 0.3450324251 | AW58: 0.3349829369 | AX58: 0.3252261524 | AY58: 0.315753546 | AZ58: 0.3065568408 | BA58: 0.2976280008
E59: Mid-low | F59: index | G59: =G49 -> 0.035 | K59: These show the discounting rate that will be applied depending on the active discount rate cell | L59: =1/((1+$G49)^($G$55-$G$55)) -> 1 | M59: =1/((1+$G49)^(M$5-$G$55)) -> 0.9661835749 | N59: 0.9335107004 | O59: 0.9019427057 | P59: 0.8714422277 | Q59: 0.8419731669 | R59: 0.8135006443 | S59: 0.7859909607 | T59: 0.7594115562 | U59: 0.7337309722 | V59: 0.7089188137 | W59: 0.6849457137 | X59: 0.6617832983 | Y59: 0.6394041529 | Z59: 0.6177817903 | AA59: 0.5968906186 | AB59: 0.5767059117 | AC59: 0.5572037794 | AD59: 0.5383611396 | AE59: 0.5201556904 | AF59: 0.5025658844 | AG59: 0.4855709028 | AH59: 0.4691506308 | AI59: 0.4532856336 | AJ59: 0.4379571339 | AK59: 0.4231469893 | AL59: 0.4088376708 | AM59: 0.3950122423 | AN59: 0.3816543404 | AO59: 0.368748155 | AP59: 0.3562784106 | AQ59: 0.3442303484 | AR59: 0.3325897086 | AS59: 0.3213427136 | AT59: 0.3104760518 | AU59: 0.2999768617 | AV59: 0.2898327166 | AW59: 0.2800316102 | AX59: 0.2705619422 | AY59: 0.2614125046 | AZ59: 0.2525724682 | BA59: 0.2440313702
E60: Central | F60: index | G60: 0.04 | K60: These show the discounting rate that will be applied depending on the active discount rate cell | L60: =1/((1+$G50)^($G$55-$G$55)) -> 1 | M60: =1/((1+$G50)^(M$5-$G$55)) -> 0.9615384615 | N60: 0.924556213 | O60: 0.8889963587 | P60: 0.854804191 | Q60: 0.8219271068 | R60: 0.7903145257 | S60: 0.7599178132 | T60: 0.730690205 | U60: 0.7025867356 | V60: 0.6755641688 | W60: 0.6495809316 | X60: 0.6245970496 | Y60: 0.6005740861 | Z60: 0.5774750828 | AA60: 0.5552645027 | AB60: 0.5339081757 | AC60: 0.5133732459 | AD60: 0.493628121 | AE60: 0.474642424 | AF60: 0.4563869462 | AG60: 0.4388336021 | AH60: 0.4219553867 | AI60: 0.4057263333 | AJ60: 0.3901214743 | AK60: 0.3751168023 | AL60: 0.3606892329 | AM60: 0.3468165701 | AN60: 0.3334774713 | AO60: 0.3206514147 | AP60: 0.308318668 | AQ60: 0.2964602577 | AR60: 0.2850579401 | AS60: 0.2740941731 | AT60: 0.2635520896 | AU60: 0.2534154707 | AV60: 0.2436687219 | AW60: 0.2342968479 | AX60: 0.2252854307 | AY60: 0.2166206064 | AZ60: 0.2082890447 | BA60: 0.2002779276
E61: Mid-high | F61: index | G61: 0.045 | K61: These show the discounting rate that will be applied depending on the active discount rate cell | L61: =1/((1+$G51)^($G$55-$G$55)) -> 1 | M61: =1/((1+$G51)^(M$5-$G$55)) -> 0.956937799 | N61: 0.9157299512 | O61: 0.8762966041 | P61: 0.8385613436 | Q61: 0.8024510465 | R61: 0.7678957383 | S61: 0.7348284577 | T61: 0.703185127 | U61: 0.6729044277 | V61: 0.643927682 | W61: 0.6161987388 | X61: 0.5896638649 | Y61: 0.564271641 | Z61: 0.5399728622 | AA61: 0.5167204423 | AB61: 0.4944693228 | AC61: 0.4731763854 | AD61: 0.4528003688 | AE61: 0.4333017884 | AF61: 0.4146428597 | AG61: 0.3967874255 | AH61: 0.3797008857 | AI61: 0.3633501298 | AJ61: 0.3477034735 | AK61: 0.3327305967 | AL61: 0.3184024849 | AM61: 0.3046913731 | AN61: 0.2915706919 | AO61: 0.2790150162 | AP61: 0.2670000155 | AQ61: 0.2555024072 | AR61: 0.2444999112 | AS61: 0.2339712069 | AT61: 0.2238958917 | AU61: 0.2142544419 | AV61: 0.205028174 | AW61: 0.1961992096 | AX61: 0.1877504398 | AY61: 0.1796654926 | AZ61: 0.1719287011 | BA61: 0.1645250728
E62: High | F62: index | G62: 0.05 | K62: These show the discounting rate that will be applied depending on the active discount rate cell | L62: =1/((1+$G52)^($G$55-$G$55)) -> 1 | M62: =1/((1+$G52)^(M$5-$G$55)) -> 0.9523809524 | N62: 0.9070294785 | O62: 0.8638375985 | P62: 0.8227024748 | Q62: 0.7835261665 | R62: 0.7462153966 | S62: 0.7106813301 | T62: 0.676839362 | U62: 0.6446089162 | V62: 0.6139132535 | W62: 0.5846792891 | X62: 0.5568374182 | Y62: 0.5303213506 | Z62: 0.505067953 | AA62: 0.4810170981 | AB62: 0.458111522 | AC62: 0.4362966876 | AD62: 0.4155206549 | AE62: 0.395733957 | AF62: 0.3768894829 | AG62: 0.3589423646 | AH62: 0.3418498711 | AI62: 0.3255713058 | AJ62: 0.3100679103 | AK62: 0.2953027717 | AL62: 0.281240735 | AM62: 0.267848319 | AN62: 0.2550936371 | AO62: 0.2429463211 | AP62: 0.2313774487 | AQ62: 0.2203594749 | AR62: 0.2098661666 | AS62: 0.1998725396 | AT62: 0.1903547996 | AU62: 0.1812902854 | AV62: 0.1726574146 | AW62: 0.164435633 | AX62: 0.1566053647 | AY62: 0.1491479664 | AZ62: 0.1420456823 | BA62: 0.1352816022
E64: Active Discount Rate | F64: % | G64: Central | H64: =INDEX($G$58:$G$62,MATCH($G64,$E$58:$E$62,0)) -> 0.04 | I64: Cell G64 is a dropdown box to select the active discount rate
B66: =MAX($B$1:B65)+1 -> 4 | C66: Hourly wage
E69: Weekly wage 2023 | F69: FY23 | G69: 2350.7 | H69: ABS Employee Earnings and Hours, Australia, May 2023
E70: Weekly wage 2024 | F70: FY25 | G70: =G69*'CPI Indexing'!BJ322 -> 2440.367689 | H70: indexed
E71: Hour worked in a week | G71: 37.5
E72: Hourly wage | G72: =G70/G71 -> 65.0764717
B74: =MAX($B$1:B73)+1 -> 5 | C74: Time saving Manager
C76: =MAX(B1:C75)+0.01 -> 5.01 | D76: Manager
E78: Scenario | G78: Travel time saving | H78: Site layout saving
E79: Low | F79: minutes | G79: 3 | H79: 3 | I79: User is able to change the assumed minutes associated with travel time saved from relocating depots
E80: Central | F80: minutes | G80: 5 | H80: 5 | I80: User is able to change the assumed minutes associated with travel time saved from relocating depots
E81: High | F81: minutes | G81: 7 | H81: 7 | I81: User is able to change the assumed minutes associated with travel time saved from relocating depots
H83: Travel time saving | I83: Site layout saving | J83: Total response time saving
E84: Warragul | F84: list | G84: Central | H84: =INDEX($G$79:$G$81,MATCH($G84,$E$79:$E$81,0)) -> 5 | I84: =INDEX($H$79:$H$81,MATCH($G84,$E$79:$E$81,0)) -> 5 | J84: =SUM(H84:I84) -> 10 | K84: Cells G84:G88 allows the user to switch to the scenario that fits the relocated site best
E85: Beaconsfield | F85: list | G85: Central | H85: 5 | I85: =INDEX($H$79:$H$81,MATCH($G85,$E$79:$E$81,0)) -> 5 | J85: =SUM(H85:I85) -> 10 | K85: Cells G84:G88 allows the user to switch to the scenario that fits the relocated site best
E86: Traralgon | F86: list | G86: Central | H86: 5 | I86: 5 | J86: 10 | K86: Cells G84:G88 allows the user to switch to the scenario that fits the relocated site best
E87: Benalla | F87: list | G87: Central | H87: 5 | I87: 5 | J87: 10 | K87: Cells G84:G88 allows the user to switch to the scenario that fits the relocated site best
E88: Seymour | F88: list | G88: Central | H88: 5 | I88: 5 | J88: 10 | K88: Cells G84:G88 allows the user to switch to the scenario that fits the relocated site best
C90: =MAX(B23:C89)+0.01 -> 5.02 | D90: Conversion
E91: speed | F91: km/h | G91: 60
G92: Hour | H92: km
E93: Warragul | G93: =H84/60 -> 0.08333333333 | H93: =G93*$G$91 -> 5
E94: Beaconsfield | G94: =H85/60 -> 0.08333333333 | H94: 5
E95: Traralgon | G95: =H86/60 -> 0.08333333333 | H95: 5
E96: Benalla | G96: =H87/60 -> 0.08333333333 | H96: 5
E97: Seymour | G97: =H88/60 -> 0.08333333333 | H97: 5
B99: =MAX($B$1:B98)+1 -> 6 | C99: Disproportionality factor manager
C101: =MAX(B42:C100)+0.01 -> 6.01 | D101: Manager
G102: Central | H102: Low
E103: Single Fatality | F103: factor | G103: 6 | H103: 3 | I103: This is the disproportionality factor switch that could be used to value "improved public safety"if applicable
E104: Single serious injury | F104: factor | G104: 3 | H104: 1 | I104: This is the disproportionality factor switch that could be used to value "improved public safety"if applicable
E106: Single Fatality | F106: list | G106: Central
E107: Single serious injury | F107: list | G107: Central
B109: =MAX($B$1:B108)+1 -> 7 | C109: Realisation of benefits - site relocation (Option 3)
M110: =M5 -> 2026 | N110: 2027 | O110: 2028 | P110: 2029 | Q110: 2030 | R110: 2031 | S110: 2032 | T110: 2033 | U110: 2034 | V110: 2035 | W110: 2036 | X110: 2037 | Y110: 2038 | Z110: 2039 | AA110: 2040 | AB110: 2041 | AC110: 2042 | AD110: 2043 | AE110: 2044 | AF110: 2045 | AG110: 2046 | AH110: 2047 | AI110: 2048 | AJ110: 2049 | AK110: 2050 | AL110: 2051 | AM110: 2052 | AN110: 2053 | AO110: 2054 | AP110: 2055 | AQ110: 2056 | AR110: 2057 | AS110: 2058 | AT110: 2059 | AU110: 2060 | AV110: 2061 | AW110: 2062 | AX110: 2063 | AY110: 2064 | AZ110: 2065 | BA110: 2066 | BB110: 0 | BC110: 0 | BD110: 0 | BE110: 0 | BF110: 0 | BG110: 0 | BH110: 0 | BI110: 0 | BJ110: 0 | BK110: 0 | BL110: 0 | BM110: 0 | BN110: 0 | BO110: 0 | BP110: 0 | BQ110: 0 | BR110: 0 | BS110: 0 | BT110: 0 | BU110: 0 | BV110: 0 | BW110: 0 | BX110: 0 | BY110: =BY5 -> 0 | BZ110: 0 | CA110: 0 | CB110: 0 | CC110: 0 | CD110: 0 | CE110: 0 | CF110: 0 | CG110: 0 | CH110: 0 | CI110: 0 | CJ110: 0 | CK110: 0 | CL110: 0 | CM110: 0 | CN110: 0 | CO110: 0 | CP110: 0 | CQ110: 0 | CR110: 0 | CS110: 0 | CT110: 0 | CU110: 0 | CV110: 0 | CW110: 0 | CX110: 0 | CY110: 0 | CZ110: 0 | DA110: 0 | DB110: 0 | DC110: 0 | DD110: 0 | DE110: 0 | DF110: 0 | DG110: 0 | DH110: 0 | DI110: 0 | DJ110: 0 | DK110: 0 | DL110: 0 | DM110: 0 | DN110: 0 | DO110: 0 | DP110: 0 | DQ110: 0 | DR110: 0 | DS110: 0 | DT110: 0 | DU110: 0 | DV110: 0 | DW110: 0 | DX110: 0 | DY110: 0 | DZ110: 0 | EA110: 0 | EB110: 0 | EC110: 0 | ED110: 0 | EE110: 0 | EF110: 0 | EG110: 0 | EH110: 0 | EI110: 0 | EJ110: 0 | EK110: =EK5 -> 0 | EL110: 0 | EM110: 0 | EN110: 0 | EO110: 0 | EP110: 0 | EQ110: 0 | ER110: 0 | ES110: 0 | ET110: 0 | EU110: 0 | EV110: 0 | EW110: 0 | EX110: 0 | EY110: 0 | EZ110: 0 | FA110: 0 | FB110: 0 | FC110: 0 | FD110: 0 | FE110: 0 | FF110: 0 | FG110: 0 | FH110: 0 | FI110: 0 | FJ110: 0 | FK110: 0 | FL110: 0 | FM110: 0 | FN110: 0 | FO110: 0 | FP110: 0 | FQ110: 0 | FR110: 0 | FS110: 0 | FT110: 0 | FU110: 0 | FV110: 0 | FW110: 0 | FX110: 0 | FY110: 0 | FZ110: 0 | GA110: 0 | GB110: 0 | GC110: 0 | GD110: 0 | GE110: 0 | GF110: 0 | GG110: 0 | GH110: 0 | GI110: 0 | GJ110: 0 | GK110: 0 | GL110: 0 | GM110: 0 | GN110: 0 | GO110: 0 | GP110: 0 | GQ110: 0 | GR110: 0 | GS110: 0 | GT110: 0 | GU110: 0 | GV110: 0 | GW110: =GW5 -> 0 | GX110: 0 | GY110: 0 | GZ110: 0 | HA110: 0 | HB110: 0 | HC110: 0 | HD110: 0 | HE110: 0 | HF110: 0 | HG110: 0 | HH110: 0 | HI110: 0 | HJ110: 0 | HK110: 0 | HL110: 0 | HM110: 0 | HN110: 0 | HO110: 0 | HP110: 0 | HQ110: 0 | HR110: 0 | HS110: 0 | HT110: 0 | HU110: 0 | HV110: 0 | HW110: 0 | HX110: 0 | HY110: 0 | HZ110: 0 | IA110: 0 | IB110: 0 | IC110: 0 | ID110: 0 | IE110: 0 | IF110: 0 | IG110: 0 | IH110: 0 | II110: 0 | IJ110: 0 | IK110: 0 | IL110: 0 | IM110: 0 | IN110: 0 | IO110: 0 | IP110: 0 | IQ110: 0 | IR110: 0 | IS110: 0 | IT110: 0 | IU110: 0 | IV110: 0 | IW110: 0 | IX110: 0 | IY110: 0 | IZ110: 0 | JA110: 0 | JB110: 0 | JC110: 0 | JD110: 0 | JE110: 0 | JF110: 0 | JG110: 0 | JH110: 0 | JI110: =JI5 -> 0 | JJ110: 0 | JK110: 0 | JL110: 0 | JM110: 0 | JN110: 0 | JO110: 0 | JP110: 0 | JQ110: 0 | JR110: 0 | JS110: 0 | JT110: 0 | JU110: 0 | JV110: 0 | JW110: 0 | JX110: 0 | JY110: 0 | JZ110: 0 | KA110: 0 | KB110: 0 | KC110: 0 | KD110: 0 | KE110: 0 | KF110: 0 | KG110: 0 | KH110: 0 | KI110: 0 | KJ110: 0 | KK110: 0 | KL110: 0 | KM110: 0 | KN110: 0 | KO110: 0 | KP110: 0 | KQ110: 0 | KR110: 0 | KS110: 0 | KT110: 0 | KU110: 0 | KV110: 0 | KW110: 0 | KX110: 0 | KY110: 0 | KZ110: 0 | LA110: 0 | LB110: 0 | LC110: 0 | LD110: 0 | LE110: 0 | LF110: 0 | LG110: 0 | LH110: 0 | LI110: 0 | LJ110: 0 | LK110: 0 | LL110: 0 | LM110: 0 | LN110: 0 | LO110: 0 | LP110: 0 | LQ110: 0 | LR110: 0 | LS110: 0 | LT110: 0 | LU110: =LU5 -> 0 | LV110: 0 | LW110: 0 | LX110: 0 | LY110: 0 | LZ110: 0 | MA110: 0 | MB110: 0 | MC110: 0 | MD110: 0 | ME110: 0 | MF110: 0 | MG110: 0 | MH110: 0 | MI110: 0 | MJ110: 0 | MK110: 0 | ML110: 0 | MM110: 0 | MN110: 0 | MO110: 0 | MP110: 0 | MQ110: 0 | MR110: 0 | MS110: 0 | MT110: 0 | MU110: 0 | MV110: 0 | MW110: 0 | MX110: 0 | MY110: 0 | MZ110: 0 | NA110: 0 | NB110: 0 | NC110: 0 | ND110: 0 | NE110: 0 | NF110: 0 | NG110: 0 | NH110: 0 | NI110: 0 | NJ110: 0 | NK110: 0 | NL110: 0 | NM110: 0 | NN110: 0 | NO110: 0 | NP110: 0 | NQ110: 0 | NR110: 0 | NS110: 0 | NT110: 0 | NU110: 0 | NV110: 0 | NW110: 0 | NX110: 0 | NY110: 0 | NZ110: 0 | OA110: 0 | OB110: 0 | OC110: 0 | OD110: 0 | OE110: 0 | OF110: 0 | OG110: =OG5 -> 0 | OH110: 0 | OI110: 0 | OJ110: 0 | OK110: 0 | OL110: 0 | OM110: 0 | ON110: 0 | OO110: 0 | OP110: 0 | OQ110: 0 | OR110: 0 | OS110: 0 | OT110: 0 | OU110: 0 | OV110: 0 | OW110: 0 | OX110: 0 | OY110: 0 | OZ110: 0 | PA110: 0 | PB110: 0 | PC110: 0 | PD110: 0 | PE110: 0 | PF110: 0 | PG110: 0 | PH110: 0 | PI110: 0 | PJ110: 0 | PK110: 0 | PL110: 0 | PM110: 0 | PN110: 0 | PO110: 0 | PP110: 0 | PQ110: 0 | PR110: 0 | PS110: 0 | PT110: 0 | PU110: 0 | PV110: 0 | PW110: 0 | PX110: 0 | PY110: 0 | PZ110: 0 | QA110: 0 | QB110: 0 | QC110: 0 | QD110: 0 | QE110: 0 | QF110: 0 | QG110: 0 | QH110: 0 | QI110: 0 | QJ110: 0 | QK110: 0 | QL110: 0 | QM110: 0 | QN110: 0 | QO110: 0 | QP110: 0 | QQ110: 0 | QR110: 0 | QS110: =QS5 -> 0 | QT110: 0 | QU110: 0 | QV110: 0 | QW110: 0 | QX110: 0 | QY110: 0 | QZ110: 0 | RA110: 0 | RB110: 0 | RC110: 0 | RD110: 0 | RE110: 0 | RF110: 0 | RG110: 0 | RH110: 0 | RI110: 0 | RJ110: 0 | RK110: 0 | RL110: 0 | RM110: 0 | RN110: 0 | RO110: 0 | RP110: 0 | RQ110: 0 | RR110: 0 | RS110: 0 | RT110: 0 | RU110: 0 | RV110: 0 | RW110: 0 | RX110: 0 | RY110: 0 | RZ110: 0 | SA110: 0 | SB110: 0 | SC110: 0 | SD110: 0 | SE110: 0 | SF110: 0 | SG110: 0 | SH110: 0 | SI110: 0 | SJ110: 0 | SK110: 0 | SL110: 0 | SM110: 0 | SN110: 0 | SO110: 0 | SP110: 0 | SQ110: 0 | SR110: 0 | SS110: 0 | ST110: 0 | SU110: 0 | SV110: 0 | SW110: 0 | SX110: 0 | SY110: 0 | SZ110: 0 | TA110: 0 | TB110: 0 | TC110: 0 | TD110: 0 | TE110: =TE5 -> 0 | TF110: 0 | TG110: 0 | TH110: 0 | TI110: 0 | TJ110: 0 | TK110: 0 | TL110: 0 | TM110: 0 | TN110: 0 | TO110: 0 | TP110: 0 | TQ110: 0 | TR110: 0 | TS110: 0 | TT110: 0 | TU110: 0 | TV110: 0 | TW110: 0 | TX110: 0 | TY110: 0 | TZ110: 0 | UA110: 0 | UB110: 0 | UC110: 0 | UD110: 0 | UE110: 0 | UF110: 0 | UG110: 0 | UH110: 0 | UI110: 0 | UJ110: 0 | UK110: 0 | UL110: 0 | UM110: 0 | UN110: 0 | UO110: 0 | UP110: 0 | UQ110: 0 | UR110: 0 | US110: 0 | UT110: 0 | UU110: 0 | UV110: 0 | UW110: 0 | UX110: 0 | UY110: 0 | UZ110: 0 | VA110: 0 | VB110: 0 | VC110: 0 | VD110: 0 | VE110: 0 | VF110: 0 | VG110: 0 | VH110: 0 | VI110: 0 | VJ110: 0 | VK110: 0 | VL110: 0 | VM110: 0 | VN110: 0 | VO110: 0 | VP110: 0 | VQ110: =VQ5 -> 0 | VR110: 0 | VS110: 0 | VT110: 0 | VU110: 0 | VV110: 0 | VW110: 0 | VX110: 0 | VY110: 0 | VZ110: 0 | WA110: 0 | WB110: 0 | WC110: 0 | WD110: 0 | WE110: 0 | WF110: 0 | WG110: 0 | WH110: 0 | WI110: 0 | WJ110: 0 | WK110: 0 | WL110: 0 | WM110: 0 | WN110: 0 | WO110: 0 | WP110: 0 | WQ110: 0 | WR110: 0 | WS110: 0 | WT110: 0 | WU110: 0 | WV110: 0 | WW110: 0 | WX110: 0 | WY110: 0 | WZ110: 0 | XA110: 0 | XB110: 0 | XC110: 0 | XD110: 0 | XE110: 0 | XF110: 0 | XG110: 0 | XH110: 0 | XI110: 0 | XJ110: 0 | XK110: 0 | XL110: 0 | XM110: 0 | XN110: 0 | XO110: 0 | XP110: 0 | XQ110: 0 | XR110: 0 | XS110: 0 | XT110: 0 | XU110: 0 | XV110: 0 | XW110: 0 | XX110: 0 | XY110: 0 | XZ110: 0 | YA110: 0 | YB110: 0 | YC110: =YC5 -> 0 | YD110: 0 | YE110: 0 | YF110: 0 | YG110: 0 | YH110: 0 | YI110: 0 | YJ110: 0 | YK110: 0 | YL110: 0 | YM110: 0 | YN110: 0 | YO110: 0 | YP110: 0 | YQ110: 0 | YR110: 0 | YS110: 0 | YT110: 0 | YU110: 0 | YV110: 0 | YW110: 0 | YX110: 0 | YY110: 0 | YZ110: 0 | ZA110: 0 | ZB110: 0 | ZC110: 0 | ZD110: 0 | ZE110: 0 | ZF110: 0 | ZG110: 0 | ZH110: 0 | ZI110: 0 | ZJ110: 0 | ZK110: 0 | ZL110: 0 | ZM110: 0 | ZN110: 0 | ZO110: 0 | ZP110: 0 | ZQ110: 0 | ZR110: 0 | ZS110: 0 | ZT110: 0 | ZU110: 0 | ZV110: 0 | ZW110: 0 | ZX110: 0 | ZY110: 0 | ZZ110: 0 | AAA110: 0 | AAB110: 0 | AAC110: 0 | AAD110: 0 | AAE110: 0 | AAF110: 0 | AAG110: 0 | AAH110: 0 | AAI110: 0 | AAJ110: 0 | AAK110: 0 | AAL110: 0 | AAM110: 0 | AAN110: 0 | AAO110: =AAO5 -> 0 | AAP110: 0 | AAQ110: 0 | AAR110: 0 | AAS110: 0 | AAT110: 0 | AAU110: 0 | AAV110: 0 | AAW110: 0 | AAX110: 0 | AAY110: 0 | AAZ110: 0 | ABA110: 0 | ABB110: 0 | ABC110: 0 | ABD110: 0 | ABE110: 0 | ABF110: 0 | ABG110: 0 | ABH110: 0 | ABI110: 0 | ABJ110: 0 | ABK110: 0 | ABL110: 0 | ABM110: 0 | ABN110: 0 | ABO110: 0 | ABP110: 0 | ABQ110: 0 | ABR110: 0 | ABS110: 0 | ABT110: 0 | ABU110: 0 | ABV110: 0 | ABW110: 0 | ABX110: 0 | ABY110: 0 | ABZ110: 0 | ACA110: 0 | ACB110: 0 | ACC110: 0 | ACD110: 0 | ACE110: 0 | ACF110: 0 | ACG110: 0 | ACH110: 0 | ACI110: 0 | ACJ110: 0 | ACK110: 0 | ACL110: 0 | ACM110: 0 | ACN110: 0 | ACO110: 0 | ACP110: 0 | ACQ110: 0 | ACR110: 0 | ACS110: 0 | ACT110: 0 | ACU110: 0 | ACV110: 0 | ACW110: 0 | ACX110: 0 | ACY110: 0 | ACZ110: 0 | ADA110: =ADA5 -> 0 | ADB110: 0 | ADC110: 0 | ADD110: 0 | ADE110: 0 | ADF110: 0 | ADG110: 0 | ADH110: 0 | ADI110: 0 | ADJ110: 0 | ADK110: 0 | ADL110: 0 | ADM110: 0 | ADN110: 0 | ADO110: 0 | ADP110: 0 | ADQ110: 0 | ADR110: 0 | ADS110: 0 | ADT110: 0 | ADU110: 0 | ADV110: 0 | ADW110: 0 | ADX110: 0 | ADY110: 0 | ADZ110: 0 | AEA110: 0 | AEB110: 0 | AEC110: 0 | AED110: 0 | AEE110: 0 | AEF110: 0 | AEG110: 0 | AEH110: 0 | AEI110: 0 | AEJ110: 0 | AEK110: 0 | AEL110: 0 | AEM110: 0 | AEN110: 0 | AEO110: 0 | AEP110: 0 | AEQ110: 0 | AER110: 0 | AES110: 0 | AET110: 0 | AEU110: 0 | AEV110: 0 | AEW110: 0 | AEX110: 0 | AEY110: 0 | AEZ110: 0 | AFA110: 0 | AFB110: 0 | AFC110: 0 | AFD110: 0 | AFE110: 0 | AFF110: 0 | AFG110: 0 | AFH110: 0 | AFI110: 0 | AFJ110: 0 | AFK110: 0 | AFL110: 0 | AFM110: =AFM5 -> 0 | AFN110: 0 | AFO110: 0 | AFP110: 0 | AFQ110: 0 | AFR110: 0 | AFS110: 0 | AFT110: 0 | AFU110: 0 | AFV110: 0 | AFW110: 0 | AFX110: 0 | AFY110: 0 | AFZ110: 0 | AGA110: 0 | AGB110: 0 | AGC110: 0 | AGD110: 0 | AGE110: 0 | AGF110: 0 | AGG110: 0 | AGH110: 0 | AGI110: 0 | AGJ110: 0 | AGK110: 0 | AGL110: 0 | AGM110: 0 | AGN110: 0 | AGO110: 0 | AGP110: 0 | AGQ110: 0 | AGR110: 0 | AGS110: 0 | AGT110: 0 | AGU110: 0 | AGV110: 0 | AGW110: 0 | AGX110: 0 | AGY110: 0 | AGZ110: 0 | AHA110: 0 | AHB110: 0 | AHC110: 0 | AHD110: 0 | AHE110: 0 | AHF110: 0 | AHG110: 0 | AHH110: 0 | AHI110: 0 | AHJ110: 0 | AHK110: 0 | AHL110: 0 | AHM110: 0 | AHN110: 0 | AHO110: 0 | AHP110: 0 | AHQ110: 0 | AHR110: 0 | AHS110: 0 | AHT110: 0 | AHU110: 0 | AHV110: 0 | AHW110: 0 | AHX110: 0 | AHY110: =AHY5 -> 0 | AHZ110: 0 | AIA110: 0 | AIB110: 0 | AIC110: 0 | AID110: 0 | AIE110: 0 | AIF110: 0 | AIG110: 0 | AIH110: 0 | AII110: 0 | AIJ110: 0 | AIK110: 0 | AIL110: 0 | AIM110: 0 | AIN110: 0 | AIO110: 0 | AIP110: 0 | AIQ110: 0 | AIR110: 0 | AIS110: 0 | AIT110: 0 | AIU110: 0 | AIV110: 0 | AIW110: 0 | AIX110: 0 | AIY110: 0 | AIZ110: 0 | AJA110: 0 | AJB110: 0 | AJC110: 0 | AJD110: 0 | AJE110: 0 | AJF110: 0 | AJG110: 0 | AJH110: 0 | AJI110: 0 | AJJ110: 0 | AJK110: 0 | AJL110: 0 | AJM110: 0 | AJN110: 0 | AJO110: 0 | AJP110: 0 | AJQ110: 0 | AJR110: 0 | AJS110: 0 | AJT110: 0 | AJU110: 0 | AJV110: 0 | AJW110: 0 | AJX110: 0 | AJY110: 0 | AJZ110: 0 | AKA110: 0 | AKB110: 0 | AKC110: 0 | AKD110: 0 | AKE110: 0 | AKF110: 0 | AKG110: 0 | AKH110: 0 | AKI110: 0 | AKJ110: 0 | AKK110: =AKK5 -> 0 | AKL110: 0 | AKM110: 0 | AKN110: 0 | AKO110: 0 | AKP110: 0 | AKQ110: 0 | AKR110: 0 | AKS110: 0 | AKT110: 0 | AKU110: 0 | AKV110: 0 | AKW110: 0 | AKX110: 0 | AKY110: 0 | AKZ110: 0 | ALA110: 0 | ALB110: 0 | ALC110: 0 | ALD110: 0 | ALE110: 0 | ALF110: 0 | ALG110: 0 | ALH110: 0 | ALI110: 0 | ALJ110: 0 | ALK110: 0 | ALL110: 0 | ALM110: 0 | ALN110: 0 | ALO110: 0 | ALP110: 0 | ALQ110: 0 | ALR110: 0 | ALS110: 0 | ALT110: 0 | ALU110: 0 | ALV110: 0 | ALW110: 0 | ALX110: 0 | ALY110: 0 | ALZ110: 0 | AMA110: 0 | AMB110: 0 | AMC110: 0 | AMD110: 0 | AME110: 0 | AMF110: 0 | AMG110: 0 | AMH110: 0 | AMI110: 0 | AMJ110: 0 | AMK110: 0 | AML110: 0 | AMM110: 0 | AMN110: 0 | AMO110: 0 | AMP110: 0 | AMQ110: 0 | AMR110: 0 | AMS110: 0 | AMT110: 0 | AMU110: 0 | AMV110: 0 | AMW110: =AMW5 -> 0 | AMX110: 0 | AMY110: 0 | AMZ110: 0 | ANA110: 0 | ANB110: 0 | ANC110: 0 | AND110: 0 | ANE110: 0 | ANF110: 0 | ANG110: 0 | ANH110: 0 | ANI110: 0 | ANJ110: 0 | ANK110: 0 | ANL110: 0 | ANM110: 0 | ANN110: 0 | ANO110: 0 | ANP110: 0 | ANQ110: 0 | ANR110: 0 | ANS110: 0 | ANT110: 0 | ANU110: 0 | ANV110: 0 | ANW110: 0 | ANX110: 0 | ANY110: 0 | ANZ110: 0 | AOA110: 0 | AOB110: 0 | AOC110: 0 | AOD110: 0 | AOE110: 0 | AOF110: 0 | AOG110: 0 | AOH110: 0 | AOI110: 0 | AOJ110: 0 | AOK110: 0 | AOL110: 0 | AOM110: 0 | AON110: 0 | AOO110: 0 | AOP110: 0 | AOQ110: 0 | AOR110: 0 | AOS110: 0 | AOT110: 0 | AOU110: 0 | AOV110: 0 | AOW110: 0 | AOX110: 0 | AOY110: 0 | AOZ110: 0 | APA110: 0 | APB110: 0 | APC110: 0 | APD110: 0 | APE110: 0 | APF110: 0 | APG110: 0 | APH110: 0 | API110: =API5 -> 0 | APJ110: 0 | APK110: 0 | APL110: 0 | APM110: 0 | APN110: 0 | APO110: 0 | APP110: 0 | APQ110: 0 | APR110: 0 | APS110: 0 | APT110: 0 | APU110: 0 | APV110: 0 | APW110: 0 | APX110: 0 | APY110: 0 | APZ110: 0 | AQA110: 0 | AQB110: 0 | AQC110: 0 | AQD110: 0 | AQE110: 0 | AQF110: 0 | AQG110: 0 | AQH110: 0 | AQI110: 0 | AQJ110: 0 | AQK110: 0 | AQL110: 0 | AQM110: 0 | AQN110: 0 | AQO110: 0 | AQP110: 0 | AQQ110: 0 | AQR110: 0 | AQS110: 0 | AQT110: 0 | AQU110: 0 | AQV110: 0 | AQW110: 0 | AQX110: 0 | AQY110: 0 | AQZ110: 0 | ARA110: 0 | ARB110: 0 | ARC110: 0 | ARD110: 0 | ARE110: 0 | ARF110: 0 | ARG110: 0 | ARH110: 0 | ARI110: 0 | ARJ110: 0 | ARK110: 0 | ARL110: 0 | ARM110: 0 | ARN110: 0 | ARO110: 0 | ARP110: 0 | ARQ110: 0 | ARR110: 0 | ARS110: 0 | ART110: 0 | ARU110: =ARU5 -> 0 | ARV110: 0 | ARW110: 0 | ARX110: 0 | ARY110: 0 | ARZ110: 0 | ASA110: 0 | ASB110: 0 | ASC110: 0 | ASD110: 0 | ASE110: 0 | ASF110: 0 | ASG110: 0 | ASH110: 0 | ASI110: 0 | ASJ110: 0 | ASK110: 0 | ASL110: 0 | ASM110: 0 | ASN110: 0 | ASO110: 0 | ASP110: 0 | ASQ110: 0 | ASR110: 0 | ASS110: 0 | AST110: 0 | ASU110: 0 | ASV110: 0 | ASW110: 0 | ASX110: 0 | ASY110: 0 | ASZ110: 0 | ATA110: 0 | ATB110: 0 | ATC110: 0 | ATD110: 0 | ATE110: 0 | ATF110: 0 | ATG110: 0 | ATH110: 0 | ATI110: 0 | ATJ110: 0 | ATK110: 0 | ATL110: 0 | ATM110: 0 | ATN110: 0 | ATO110: 0 | ATP110: 0 | ATQ110: 0 | ATR110: 0 | ATS110: 0 | ATT110: 0 | ATU110: 0 | ATV110: 0 | ATW110: 0 | ATX110: 0 | ATY110: 0 | ATZ110: 0 | AUA110: 0 | AUB110: 0 | AUC110: 0 | AUD110: 0 | AUE110: 0 | AUF110: 0 | AUG110: =AUG5 -> 0 | AUH110: 0 | AUI110: 0 | AUJ110: 0 | AUK110: 0 | AUL110: 0 | AUM110: 0 | AUN110: 0 | AUO110: 0 | AUP110: 0 | AUQ110: 0 | AUR110: 0 | AUS110: 0 | AUT110: 0 | AUU110: 0 | AUV110: 0 | AUW110: 0 | AUX110: 0 | AUY110: 0 | AUZ110: 0 | AVA110: 0 | AVB110: 0 | AVC110: 0 | AVD110: 0 | AVE110: 0 | AVF110: 0 | AVG110: 0 | AVH110: 0 | AVI110: 0 | AVJ110: 0 | AVK110: 0 | AVL110: 0 | AVM110: 0 | AVN110: 0 | AVO110: 0 | AVP110: 0 | AVQ110: 0 | AVR110: 0 | AVS110: 0 | AVT110: 0 | AVU110: 0 | AVV110: 0 | AVW110: 0 | AVX110: 0 | AVY110: 0 | AVZ110: 0 | AWA110: 0 | AWB110: 0 | AWC110: 0 | AWD110: 0 | AWE110: 0 | AWF110: 0 | AWG110: 0 | AWH110: 0 | AWI110: 0 | AWJ110: 0 | AWK110: 0 | AWL110: 0 | AWM110: 0 | AWN110: 0 | AWO110: 0 | AWP110: 0 | AWQ110: 0 | AWR110: 0 | AWS110: =AWS5 -> 0 | AWT110: 0 | AWU110: 0 | AWV110: 0 | AWW110: 0 | AWX110: 0 | AWY110: 0 | AWZ110: 0 | AXA110: 0 | AXB110: 0 | AXC110: 0 | AXD110: 0 | AXE110: 0 | AXF110: 0 | AXG110: 0 | AXH110: 0 | AXI110: 0 | AXJ110: 0 | AXK110: 0 | AXL110: 0 | AXM110: 0 | AXN110: 0 | AXO110: 0 | AXP110: 0 | AXQ110: 0 | AXR110: 0 | AXS110: 0 | AXT110: 0 | AXU110: 0 | AXV110: 0 | AXW110: 0 | AXX110: 0 | AXY110: 0 | AXZ110: 0 | AYA110: 0 | AYB110: 0 | AYC110: 0 | AYD110: 0 | AYE110: 0 | AYF110: 0 | AYG110: 0 | AYH110: 0 | AYI110: 0 | AYJ110: 0 | AYK110: 0 | AYL110: 0 | AYM110: 0 | AYN110: 0 | AYO110: 0 | AYP110: 0 | AYQ110: 0 | AYR110: 0 | AYS110: 0 | AYT110: 0 | AYU110: 0 | AYV110: 0 | AYW110: 0 | AYX110: 0 | AYY110: 0 | AYZ110: 0 | AZA110: 0 | AZB110: 0 | AZC110: 0 | AZD110: 0 | AZE110: =AZE5 -> 0 | AZF110: 0 | AZG110: 0 | AZH110: 0 | AZI110: 0 | AZJ110: 0 | AZK110: 0 | AZL110: 0 | AZM110: 0 | AZN110: 0 | AZO110: 0 | AZP110: 0 | AZQ110: 0 | AZR110: 0 | AZS110: 0 | AZT110: 0 | AZU110: 0 | AZV110: 0 | AZW110: 0 | AZX110: 0 | AZY110: 0 | AZZ110: 0 | BAA110: 0 | BAB110: 0 | BAC110: 0 | BAD110: 0 | BAE110: 0 | BAF110: 0 | BAG110: 0 | BAH110: 0 | BAI110: 0 | BAJ110: 0 | BAK110: 0 | BAL110: 0 | BAM110: 0 | BAN110: 0 | BAO110: 0 | BAP110: 0 | BAQ110: 0 | BAR110: 0 | BAS110: 0 | BAT110: 0 | BAU110: 0 | BAV110: 0 | BAW110: 0 | BAX110: 0 | BAY110: 0 | BAZ110: 0 | BBA110: 0 | BBB110: 0 | BBC110: 0 | BBD110: 0 | BBE110: 0 | BBF110: 0 | BBG110: 0 | BBH110: 0 | BBI110: 0 | BBJ110: 0 | BBK110: 0 | BBL110: 0 | BBM110: 0 | BBN110: 0 | BBO110: 0 | BBP110: 0 | BBQ110: =BBQ5 -> 0 | BBR110: 0 | BBS110: 0 | BBT110: 0 | BBU110: 0 | BBV110: 0 | BBW110: 0 | BBX110: 0 | BBY110: 0 | BBZ110: 0 | BCA110: 0 | BCB110: 0 | BCC110: 0 | BCD110: 0 | BCE110: 0 | BCF110: 0 | BCG110: 0 | BCH110: 0 | BCI110: 0 | BCJ110: 0 | BCK110: 0 | BCL110: 0 | BCM110: 0 | BCN110: 0 | BCO110: 0 | BCP110: 0 | BCQ110: 0 | BCR110: 0 | BCS110: 0 | BCT110: 0 | BCU110: 0 | BCV110: 0 | BCW110: 0 | BCX110: 0 | BCY110: 0 | BCZ110: 0 | BDA110: 0 | BDB110: 0 | BDC110: 0 | BDD110: 0 | BDE110: 0 | BDF110: 0 | BDG110: 0 | BDH110: 0 | BDI110: 0 | BDJ110: 0 | BDK110: 0 | BDL110: 0 | BDM110: 0 | BDN110: 0 | BDO110: 0 | BDP110: 0 | BDQ110: 0 | BDR110: 0 | BDS110: 0 | BDT110: 0 | BDU110: 0 | BDV110: 0 | BDW110: 0 | BDX110: 0 | BDY110: 0 | BDZ110: 0 | BEA110: 0 | BEB110: 0 | BEC110: =BEC5 -> 0 | BED110: 0 | BEE110: 0 | BEF110: 0 | BEG110: 0 | BEH110: 0 | BEI110: 0 | BEJ110: 0 | BEK110: 0 | BEL110: 0 | BEM110: 0 | BEN110: 0 | BEO110: 0 | BEP110: 0 | BEQ110: 0 | BER110: 0 | BES110: 0 | BET110: 0 | BEU110: 0 | BEV110: 0 | BEW110: 0 | BEX110: 0 | BEY110: 0 | BEZ110: 0 | BFA110: 0 | BFB110: 0 | BFC110: 0 | BFD110: 0 | BFE110: 0 | BFF110: 0 | BFG110: 0 | BFH110: 0 | BFI110: 0 | BFJ110: 0 | BFK110: 0 | BFL110: 0 | BFM110: 0 | BFN110: 0 | BFO110: 0 | BFP110: 0 | BFQ110: 0 | BFR110: 0 | BFS110: 0 | BFT110: 0 | BFU110: 0 | BFV110: 0 | BFW110: 0 | BFX110: 0 | BFY110: 0 | BFZ110: 0 | BGA110: 0 | BGB110: 0 | BGC110: 0 | BGD110: 0 | BGE110: 0 | BGF110: 0 | BGG110: 0 | BGH110: 0 | BGI110: 0 | BGJ110: 0 | BGK110: 0 | BGL110: 0 | BGM110: 0 | BGN110: 0 | BGO110: =BGO5 -> 0 | BGP110: 0 | BGQ110: 0 | BGR110: 0 | BGS110: 0 | BGT110: 0 | BGU110: 0 | BGV110: 0 | BGW110: 0 | BGX110: 0 | BGY110: 0 | BGZ110: 0 | BHA110: 0 | BHB110: 0 | BHC110: 0 | BHD110: 0 | BHE110: 0 | BHF110: 0 | BHG110: 0 | BHH110: 0 | BHI110: 0 | BHJ110: 0 | BHK110: 0 | BHL110: 0 | BHM110: 0 | BHN110: 0 | BHO110: 0 | BHP110: 0 | BHQ110: 0 | BHR110: 0 | BHS110: 0 | BHT110: 0 | BHU110: 0 | BHV110: 0 | BHW110: 0 | BHX110: 0 | BHY110: 0 | BHZ110: 0 | BIA110: 0 | BIB110: 0 | BIC110: 0 | BID110: 0 | BIE110: 0 | BIF110: 0 | BIG110: 0 | BIH110: 0 | BII110: 0 | BIJ110: 0 | BIK110: 0 | BIL110: 0 | BIM110: 0 | BIN110: 0 | BIO110: 0 | BIP110: 0 | BIQ110: 0 | BIR110: 0 | BIS110: 0 | BIT110: 0 | BIU110: 0 | BIV110: 0 | BIW110: 0 | BIX110: 0 | BIY110: 0 | BIZ110: 0 | BJA110: =BJA5 -> 0 | BJB110: 0 | BJC110: 0 | BJD110: 0 | BJE110: 0 | BJF110: 0 | BJG110: 0 | BJH110: 0 | BJI110: 0 | BJJ110: 0 | BJK110: 0 | BJL110: 0 | BJM110: 0 | BJN110: 0 | BJO110: 0 | BJP110: 0 | BJQ110: 0 | BJR110: 0 | BJS110: 0 | BJT110: 0 | BJU110: 0 | BJV110: 0 | BJW110: 0 | BJX110: 0 | BJY110: 0 | BJZ110: 0 | BKA110: 0 | BKB110: 0 | BKC110: 0 | BKD110: 0 | BKE110: 0 | BKF110: 0 | BKG110: 0 | BKH110: 0 | BKI110: 0 | BKJ110: 0 | BKK110: 0 | BKL110: 0 | BKM110: 0 | BKN110: 0 | BKO110: 0 | BKP110: 0 | BKQ110: 0 | BKR110: 0 | BKS110: 0 | BKT110: 0 | BKU110: 0 | BKV110: 0 | BKW110: 0 | BKX110: 0 | BKY110: 0 | BKZ110: 0 | BLA110: 0 | BLB110: 0 | BLC110: 0 | BLD110: 0 | BLE110: 0 | BLF110: 0 | BLG110: 0 | BLH110: 0 | BLI110: 0 | BLJ110: 0 | BLK110: 0 | BLL110: 0 | BLM110: =BLM5 -> 0 | BLN110: 0 | BLO110: 0 | BLP110: 0 | BLQ110: 0 | BLR110: 0 | BLS110: 0 | BLT110: 0 | BLU110: 0 | BLV110: 0 | BLW110: 0 | BLX110: 0 | BLY110: 0 | BLZ110: 0 | BMA110: 0 | BMB110: 0 | BMC110: 0 | BMD110: 0 | BME110: 0 | BMF110: 0 | BMG110: 0 | BMH110: 0 | BMI110: 0 | BMJ110: 0 | BMK110: 0 | BML110: 0 | BMM110: 0 | BMN110: 0 | BMO110: 0 | BMP110: 0 | BMQ110: 0 | BMR110: 0 | BMS110: 0 | BMT110: 0 | BMU110: 0 | BMV110: 0 | BMW110: 0 | BMX110: 0 | BMY110: 0 | BMZ110: 0 | BNA110: 0 | BNB110: 0 | BNC110: 0 | BND110: 0 | BNE110: 0 | BNF110: 0 | BNG110: 0 | BNH110: 0 | BNI110: 0 | BNJ110: 0 | BNK110: 0 | BNL110: 0 | BNM110: 0 | BNN110: 0 | BNO110: 0 | BNP110: 0 | BNQ110: 0 | BNR110: 0 | BNS110: 0 | BNT110: 0 | BNU110: 0 | BNV110: 0 | BNW110: 0 | BNX110: 0 | BNY110: =BNY5 -> 0 | BNZ110: 0 | BOA110: 0 | BOB110: 0 | BOC110: 0 | BOD110: 0 | BOE110: 0 | BOF110: 0 | BOG110: 0 | BOH110: 0 | BOI110: 0 | BOJ110: 0 | BOK110: 0 | BOL110: 0 | BOM110: 0 | BON110: 0 | BOO110: 0 | BOP110: 0 | BOQ110: 0 | BOR110: 0 | BOS110: 0 | BOT110: 0 | BOU110: 0 | BOV110: 0 | BOW110: 0 | BOX110: 0 | BOY110: 0 | BOZ110: 0 | BPA110: 0 | BPB110: 0 | BPC110: 0 | BPD110: 0 | BPE110: 0 | BPF110: 0 | BPG110: 0 | BPH110: 0 | BPI110: 0 | BPJ110: 0 | BPK110: 0 | BPL110: 0 | BPM110: 0 | BPN110: 0 | BPO110: 0 | BPP110: 0 | BPQ110: 0 | BPR110: 0 | BPS110: 0 | BPT110: 0 | BPU110: 0 | BPV110: 0 | BPW110: 0 | BPX110: 0 | BPY110: 0 | BPZ110: 0 | BQA110: 0 | BQB110: 0 | BQC110: 0 | BQD110: 0 | BQE110: 0 | BQF110: 0 | BQG110: 0 | BQH110: 0 | BQI110: 0 | BQJ110: 0 | BQK110: =BQK5 -> 0 | BQL110: 0 | BQM110: 0 | BQN110: 0 | BQO110: 0 | BQP110: 0 | BQQ110: 0 | BQR110: 0 | BQS110: 0 | BQT110: 0 | BQU110: 0 | BQV110: 0 | BQW110: 0 | BQX110: 0 | BQY110: 0 | BQZ110: 0 | BRA110: 0 | BRB110: 0 | BRC110: 0 | BRD110: 0 | BRE110: 0 | BRF110: 0 | BRG110: 0 | BRH110: 0 | BRI110: 0 | BRJ110: 0 | BRK110: 0 | BRL110: 0 | BRM110: 0 | BRN110: 0 | BRO110: 0 | BRP110: 0 | BRQ110: 0 | BRR110: 0 | BRS110: 0 | BRT110: 0 | BRU110: 0 | BRV110: 0 | BRW110: 0 | BRX110: 0 | BRY110: 0 | BRZ110: 0 | BSA110: 0 | BSB110: 0 | BSC110: 0 | BSD110: 0 | BSE110: 0 | BSF110: 0 | BSG110: 0 | BSH110: 0 | BSI110: 0 | BSJ110: 0 | BSK110: 0 | BSL110: 0 | BSM110: 0 | BSN110: 0 | BSO110: 0 | BSP110: 0 | BSQ110: 0 | BSR110: 0 | BSS110: 0 | BST110: 0 | BSU110: 0 | BSV110: 0 | BSW110: =BSW5 -> 0 | BSX110: 0 | BSY110: 0 | BSZ110: 0 | BTA110: 0 | BTB110: 0 | BTC110: 0 | BTD110: 0 | BTE110: 0 | BTF110: 0 | BTG110: 0 | BTH110: 0 | BTI110: 0 | BTJ110: 0 | BTK110: 0 | BTL110: 0 | BTM110: 0 | BTN110: 0 | BTO110: 0 | BTP110: 0 | BTQ110: 0 | BTR110: 0 | BTS110: 0 | BTT110: 0 | BTU110: 0 | BTV110: 0 | BTW110: 0 | BTX110: 0 | BTY110: 0 | BTZ110: 0 | BUA110: 0 | BUB110: 0 | BUC110: 0 | BUD110: 0 | BUE110: 0 | BUF110: 0 | BUG110: 0 | BUH110: 0 | BUI110: 0 | BUJ110: 0 | BUK110: 0 | BUL110: 0 | BUM110: 0 | BUN110: 0 | BUO110: 0 | BUP110: 0 | BUQ110: 0 | BUR110: 0 | BUS110: 0 | BUT110: 0 | BUU110: 0 | BUV110: 0 | BUW110: 0 | BUX110: 0 | BUY110: 0 | BUZ110: 0 | BVA110: 0 | BVB110: 0 | BVC110: 0 | BVD110: 0 | BVE110: 0 | BVF110: 0 | BVG110: 0 | BVH110: 0 | BVI110: =BVI5 -> 0 | BVJ110: 0 | BVK110: 0 | BVL110: 0 | BVM110: 0 | BVN110: 0 | BVO110: 0 | BVP110: 0 | BVQ110: 0 | BVR110: 0 | BVS110: 0 | BVT110: 0 | BVU110: 0 | BVV110: 0 | BVW110: 0 | BVX110: 0 | BVY110: 0 | BVZ110: 0 | BWA110: 0 | BWB110: 0 | BWC110: 0 | BWD110: 0 | BWE110: 0 | BWF110: 0 | BWG110: 0 | BWH110: 0 | BWI110: 0 | BWJ110: 0 | BWK110: 0 | BWL110: 0 | BWM110: 0 | BWN110: 0 | BWO110: 0 | BWP110: 0 | BWQ110: 0 | BWR110: 0 | BWS110: 0 | BWT110: 0 | BWU110: 0 | BWV110: 0 | BWW110: 0 | BWX110: 0 | BWY110: 0 | BWZ110: 0 | BXA110: 0 | BXB110: 0 | BXC110: 0 | BXD110: 0 | BXE110: 0 | BXF110: 0 | BXG110: 0 | BXH110: 0 | BXI110: 0 | BXJ110: 0 | BXK110: 0 | BXL110: 0 | BXM110: 0 | BXN110: 0 | BXO110: 0 | BXP110: 0 | BXQ110: 0 | BXR110: 0 | BXS110: 0 | BXT110: 0 | BXU110: =BXU5 -> 0 | BXV110: 0 | BXW110: 0 | BXX110: 0 | BXY110: 0 | BXZ110: 0 | BYA110: 0 | BYB110: 0 | BYC110: 0 | BYD110: 0 | BYE110: 0 | BYF110: 0 | BYG110: 0 | BYH110: 0 | BYI110: 0 | BYJ110: 0 | BYK110: 0 | BYL110: 0 | BYM110: 0 | BYN110: 0 | BYO110: 0 | BYP110: 0 | BYQ110: 0 | BYR110: 0 | BYS110: 0 | BYT110: 0 | BYU110: 0 | BYV110: 0 | BYW110: 0 | BYX110: 0 | BYY110: 0 | BYZ110: 0 | BZA110: 0 | BZB110: 0 | BZC110: 0 | BZD110: 0 | BZE110: 0 | BZF110: 0 | BZG110: 0 | BZH110: 0 | BZI110: 0 | BZJ110: 0 | BZK110: 0 | BZL110: 0 | BZM110: 0 | BZN110: 0 | BZO110: 0 | BZP110: 0 | BZQ110: 0 | BZR110: 0 | BZS110: 0 | BZT110: 0 | BZU110: 0 | BZV110: 0 | BZW110: 0 | BZX110: 0 | BZY110: 0 | BZZ110: 0 | CAA110: 0 | CAB110: 0 | CAC110: 0 | CAD110: 0 | CAE110: 0 | CAF110: 0 | CAG110: =CAG5 -> 0 | CAH110: 0 | CAI110: 0 | CAJ110: 0 | CAK110: 0 | CAL110: 0 | CAM110: 0 | CAN110: 0 | CAO110: 0 | CAP110: 0 | CAQ110: 0 | CAR110: 0 | CAS110: 0 | CAT110: 0 | CAU110: 0 | CAV110: 0 | CAW110: 0 | CAX110: 0 | CAY110: 0 | CAZ110: 0 | CBA110: 0 | CBB110: 0 | CBC110: 0 | CBD110: 0 | CBE110: 0 | CBF110: 0 | CBG110: 0 | CBH110: 0 | CBI110: 0 | CBJ110: 0 | CBK110: 0 | CBL110: 0 | CBM110: 0 | CBN110: 0 | CBO110: 0 | CBP110: 0 | CBQ110: 0 | CBR110: 0 | CBS110: 0 | CBT110: 0 | CBU110: 0 | CBV110: 0 | CBW110: 0 | CBX110: 0 | CBY110: 0 | CBZ110: 0 | CCA110: 0 | CCB110: 0 | CCC110: 0 | CCD110: 0 | CCE110: 0 | CCF110: 0 | CCG110: 0 | CCH110: 0 | CCI110: 0 | CCJ110: 0 | CCK110: 0 | CCL110: 0 | CCM110: 0 | CCN110: 0 | CCO110: 0 | CCP110: 0 | CCQ110: 0 | CCR110: 0 | CCS110: =CCS5 -> 0 | CCT110: 0 | CCU110: 0 | CCV110: 0 | CCW110: 0 | CCX110: 0 | CCY110: 0 | CCZ110: 0 | CDA110: 0 | CDB110: 0 | CDC110: 0 | CDD110: 0 | CDE110: 0 | CDF110: 0 | CDG110: 0 | CDH110: 0 | CDI110: 0 | CDJ110: 0 | CDK110: 0 | CDL110: 0 | CDM110: 0 | CDN110: 0 | CDO110: 0 | CDP110: 0 | CDQ110: 0 | CDR110: 0 | CDS110: 0 | CDT110: 0 | CDU110: 0 | CDV110: 0 | CDW110: 0 | CDX110: 0 | CDY110: 0 | CDZ110: 0 | CEA110: 0 | CEB110: 0 | CEC110: 0 | CED110: 0 | CEE110: 0 | CEF110: 0 | CEG110: 0 | CEH110: 0 | CEI110: 0 | CEJ110: 0 | CEK110: 0 | CEL110: 0 | CEM110: 0 | CEN110: 0 | CEO110: 0 | CEP110: 0 | CEQ110: 0 | CER110: 0 | CES110: 0 | CET110: 0 | CEU110: 0 | CEV110: 0 | CEW110: 0 | CEX110: 0 | CEY110: 0 | CEZ110: 0 | CFA110: 0 | CFB110: 0 | CFC110: 0 | CFD110: 0 | CFE110: =CFE5 -> 0 | CFF110: 0 | CFG110: 0 | CFH110: 0 | CFI110: 0 | CFJ110: 0 | CFK110: 0 | CFL110: 0 | CFM110: 0 | CFN110: 0 | CFO110: 0 | CFP110: 0 | CFQ110: 0 | CFR110: 0 | CFS110: 0 | CFT110: 0 | CFU110: 0 | CFV110: 0 | CFW110: 0 | CFX110: 0 | CFY110: 0 | CFZ110: 0 | CGA110: 0 | CGB110: 0 | CGC110: 0 | CGD110: 0 | CGE110: 0 | CGF110: 0 | CGG110: 0 | CGH110: 0 | CGI110: 0 | CGJ110: 0 | CGK110: 0 | CGL110: 0 | CGM110: 0 | CGN110: 0 | CGO110: 0 | CGP110: 0 | CGQ110: 0 | CGR110: 0 | CGS110: 0 | CGT110: 0 | CGU110: 0 | CGV110: 0 | CGW110: 0 | CGX110: 0 | CGY110: 0 | CGZ110: 0 | CHA110: 0 | CHB110: 0 | CHC110: 0 | CHD110: 0 | CHE110: 0 | CHF110: 0 | CHG110: 0 | CHH110: 0 | CHI110: 0 | CHJ110: 0 | CHK110: 0 | CHL110: 0 | CHM110: 0 | CHN110: 0 | CHO110: 0 | CHP110: 0 | CHQ110: =CHQ5 -> 0 | CHR110: 0 | CHS110: 0 | CHT110: 0 | CHU110: 0 | CHV110: 0 | CHW110: 0 | CHX110: 0 | CHY110: 0 | CHZ110: 0 | CIA110: 0 | CIB110: 0 | CIC110: 0 | CID110: 0 | CIE110: 0 | CIF110: 0 | CIG110: 0 | CIH110: 0 | CII110: 0 | CIJ110: 0 | CIK110: 0 | CIL110: 0 | CIM110: 0 | CIN110: 0 | CIO110: 0 | CIP110: 0 | CIQ110: 0 | CIR110: 0 | CIS110: 0 | CIT110: 0 | CIU110: 0 | CIV110: 0 | CIW110: 0 | CIX110: 0 | CIY110: 0 | CIZ110: 0 | CJA110: 0 | CJB110: 0 | CJC110: 0 | CJD110: 0 | CJE110: 0 | CJF110: 0 | CJG110: 0 | CJH110: 0 | CJI110: 0 | CJJ110: 0 | CJK110: 0 | CJL110: 0 | CJM110: 0 | CJN110: 0 | CJO110: 0 | CJP110: 0 | CJQ110: 0 | CJR110: 0 | CJS110: 0 | CJT110: 0 | CJU110: 0 | CJV110: 0 | CJW110: 0 | CJX110: 0 | CJY110: 0 | CJZ110: 0 | CKA110: 0 | CKB110: 0 | CKC110: =CKC5 -> 0 | CKD110: 0 | CKE110: 0 | CKF110: 0 | CKG110: 0 | CKH110: 0 | CKI110: 0 | CKJ110: 0 | CKK110: 0 | CKL110: 0 | CKM110: 0 | CKN110: 0 | CKO110: 0 | CKP110: 0 | CKQ110: 0 | CKR110: 0 | CKS110: 0 | CKT110: 0 | CKU110: 0 | CKV110: 0 | CKW110: 0 | CKX110: 0 | CKY110: 0 | CKZ110: 0 | CLA110: 0 | CLB110: 0 | CLC110: 0 | CLD110: 0 | CLE110: 0 | CLF110: 0 | CLG110: 0 | CLH110: 0 | CLI110: 0 | CLJ110: 0 | CLK110: 0 | CLL110: 0 | CLM110: 0 | CLN110: 0 | CLO110: 0 | CLP110: 0 | CLQ110: 0 | CLR110: 0 | CLS110: 0 | CLT110: 0 | CLU110: 0 | CLV110: 0 | CLW110: 0 | CLX110: 0 | CLY110: 0 | CLZ110: 0 | CMA110: 0 | CMB110: 0 | CMC110: 0 | CMD110: 0 | CME110: 0 | CMF110: 0 | CMG110: 0 | CMH110: 0 | CMI110: 0 | CMJ110: 0 | CMK110: 0 | CML110: 0 | CMM110: 0 | CMN110: 0 | CMO110: =CMO5 -> 0 | CMP110: 0 | CMQ110: 0 | CMR110: 0 | CMS110: 0 | CMT110: 0 | CMU110: 0 | CMV110: 0 | CMW110: 0 | CMX110: 0 | CMY110: 0 | CMZ110: 0 | CNA110: 0 | CNB110: 0 | CNC110: 0 | CND110: 0 | CNE110: 0 | CNF110: 0 | CNG110: 0 | CNH110: 0 | CNI110: 0 | CNJ110: 0 | CNK110: 0 | CNL110: 0 | CNM110: 0 | CNN110: 0 | CNO110: 0 | CNP110: 0 | CNQ110: 0 | CNR110: 0 | CNS110: 0 | CNT110: 0 | CNU110: 0 | CNV110: 0 | CNW110: 0 | CNX110: 0 | CNY110: 0 | CNZ110: 0 | COA110: 0 | COB110: 0 | COC110: 0 | COD110: 0 | COE110: 0 | COF110: 0 | COG110: 0 | COH110: 0 | COI110: 0 | COJ110: 0 | COK110: 0 | COL110: 0 | COM110: 0 | CON110: 0 | COO110: 0 | COP110: 0 | COQ110: 0 | COR110: 0 | COS110: 0 | COT110: 0 | COU110: 0 | COV110: 0 | COW110: 0 | COX110: 0 | COY110: 0 | COZ110: 0 | CPA110: =CPA5 -> 0 | CPB110: 0 | CPC110: 0 | CPD110: 0 | CPE110: 0 | CPF110: 0 | CPG110: 0 | CPH110: 0 | CPI110: 0 | CPJ110: 0 | CPK110: 0 | CPL110: 0 | CPM110: 0 | CPN110: 0 | CPO110: 0 | CPP110: 0 | CPQ110: 0 | CPR110: 0 | CPS110: 0 | CPT110: 0 | CPU110: 0 | CPV110: 0 | CPW110: 0 | CPX110: 0 | CPY110: 0 | CPZ110: 0 | CQA110: 0 | CQB110: 0 | CQC110: 0 | CQD110: 0 | CQE110: 0 | CQF110: 0 | CQG110: 0 | CQH110: 0 | CQI110: 0 | CQJ110: 0 | CQK110: 0 | CQL110: 0 | CQM110: 0 | CQN110: 0 | CQO110: 0 | CQP110: 0 | CQQ110: 0 | CQR110: 0 | CQS110: 0 | CQT110: 0 | CQU110: 0 | CQV110: 0 | CQW110: 0 | CQX110: 0 | CQY110: 0 | CQZ110: 0 | CRA110: 0 | CRB110: 0 | CRC110: 0 | CRD110: 0 | CRE110: 0 | CRF110: 0 | CRG110: 0 | CRH110: 0 | CRI110: 0 | CRJ110: 0 | CRK110: 0 | CRL110: 0 | CRM110: =CRM5 -> 0 | CRN110: 0 | CRO110: 0 | CRP110: 0 | CRQ110: 0 | CRR110: 0 | CRS110: 0 | CRT110: 0 | CRU110: 0 | CRV110: 0 | CRW110: 0 | CRX110: 0 | CRY110: 0 | CRZ110: 0 | CSA110: 0 | CSB110: 0 | CSC110: 0 | CSD110: 0 | CSE110: 0 | CSF110: 0 | CSG110: 0 | CSH110: 0 | CSI110: 0 | CSJ110: 0 | CSK110: 0 | CSL110: 0 | CSM110: 0 | CSN110: 0 | CSO110: 0 | CSP110: 0 | CSQ110: 0 | CSR110: 0 | CSS110: 0 | CST110: 0 | CSU110: 0 | CSV110: 0 | CSW110: 0 | CSX110: 0 | CSY110: 0 | CSZ110: 0 | CTA110: 0 | CTB110: 0 | CTC110: 0 | CTD110: 0 | CTE110: 0 | CTF110: 0 | CTG110: 0 | CTH110: 0 | CTI110: 0 | CTJ110: 0 | CTK110: 0 | CTL110: 0 | CTM110: 0 | CTN110: 0 | CTO110: 0 | CTP110: 0 | CTQ110: 0 | CTR110: 0 | CTS110: 0 | CTT110: 0 | CTU110: 0 | CTV110: 0 | CTW110: 0 | CTX110: 0 | CTY110: =CTY5 -> 0 | CTZ110: 0 | CUA110: 0 | CUB110: 0 | CUC110: 0 | CUD110: 0 | CUE110: 0 | CUF110: 0 | CUG110: 0 | CUH110: 0 | CUI110: 0 | CUJ110: 0 | CUK110: 0 | CUL110: 0 | CUM110: 0 | CUN110: 0 | CUO110: 0 | CUP110: 0 | CUQ110: 0 | CUR110: 0 | CUS110: 0 | CUT110: 0 | CUU110: 0 | CUV110: 0 | CUW110: 0 | CUX110: 0 | CUY110: 0 | CUZ110: 0 | CVA110: 0 | CVB110: 0 | CVC110: 0 | CVD110: 0 | CVE110: 0 | CVF110: 0 | CVG110: 0 | CVH110: 0 | CVI110: 0 | CVJ110: 0 | CVK110: 0 | CVL110: 0 | CVM110: 0 | CVN110: 0 | CVO110: 0 | CVP110: 0 | CVQ110: 0 | CVR110: 0 | CVS110: 0 | CVT110: 0 | CVU110: 0 | CVV110: 0 | CVW110: 0 | CVX110: 0 | CVY110: 0 | CVZ110: 0 | CWA110: 0 | CWB110: 0 | CWC110: 0 | CWD110: 0 | CWE110: 0 | CWF110: 0 | CWG110: 0 | CWH110: 0 | CWI110: 0 | CWJ110: 0 | CWK110: =CWK5 -> 0 | CWL110: 0 | CWM110: 0 | CWN110: 0 | CWO110: 0 | CWP110: 0 | CWQ110: 0 | CWR110: 0 | CWS110: 0 | CWT110: 0 | CWU110: 0 | CWV110: 0 | CWW110: 0 | CWX110: 0 | CWY110: 0 | CWZ110: 0 | CXA110: 0 | CXB110: 0 | CXC110: 0 | CXD110: 0 | CXE110: 0 | CXF110: 0 | CXG110: 0 | CXH110: 0 | CXI110: 0 | CXJ110: 0 | CXK110: 0 | CXL110: 0 | CXM110: 0 | CXN110: 0 | CXO110: 0 | CXP110: 0 | CXQ110: 0 | CXR110: 0 | CXS110: 0 | CXT110: 0 | CXU110: 0 | CXV110: 0 | CXW110: 0 | CXX110: 0 | CXY110: 0 | CXZ110: 0 | CYA110: 0 | CYB110: 0 | CYC110: 0 | CYD110: 0 | CYE110: 0 | CYF110: 0 | CYG110: 0 | CYH110: 0 | CYI110: 0 | CYJ110: 0 | CYK110: 0 | CYL110: 0 | CYM110: 0 | CYN110: 0 | CYO110: 0 | CYP110: 0 | CYQ110: 0 | CYR110: 0 | CYS110: 0 | CYT110: 0 | CYU110: 0 | CYV110: 0 | CYW110: =CYW5 -> 0 | CYX110: 0 | CYY110: 0 | CYZ110: 0 | CZA110: 0 | CZB110: 0 | CZC110: 0 | CZD110: 0 | CZE110: 0 | CZF110: 0 | CZG110: 0 | CZH110: 0 | CZI110: 0 | CZJ110: 0 | CZK110: 0 | CZL110: 0 | CZM110: 0 | CZN110: 0 | CZO110: 0 | CZP110: 0 | CZQ110: 0 | CZR110: 0 | CZS110: 0 | CZT110: 0 | CZU110: 0 | CZV110: 0 | CZW110: 0 | CZX110: 0 | CZY110: 0 | CZZ110: 0 | DAA110: 0 | DAB110: 0 | DAC110: 0 | DAD110: 0 | DAE110: 0 | DAF110: 0 | DAG110: 0 | DAH110: 0 | DAI110: 0 | DAJ110: 0 | DAK110: 0 | DAL110: 0 | DAM110: 0 | DAN110: 0 | DAO110: 0 | DAP110: 0 | DAQ110: 0 | DAR110: 0 | DAS110: 0 | DAT110: 0 | DAU110: 0 | DAV110: 0 | DAW110: 0 | DAX110: 0 | DAY110: 0 | DAZ110: 0 | DBA110: 0 | DBB110: 0 | DBC110: 0 | DBD110: 0 | DBE110: 0 | DBF110: 0 | DBG110: 0 | DBH110: 0 | DBI110: =DBI5 -> 0 | DBJ110: 0 | DBK110: 0 | DBL110: 0 | DBM110: 0 | DBN110: 0 | DBO110: 0 | DBP110: 0 | DBQ110: 0 | DBR110: 0 | DBS110: 0 | DBT110: 0 | DBU110: 0 | DBV110: 0 | DBW110: 0 | DBX110: 0 | DBY110: 0 | DBZ110: 0 | DCA110: 0 | DCB110: 0 | DCC110: 0 | DCD110: 0 | DCE110: 0 | DCF110: 0 | DCG110: 0 | DCH110: 0 | DCI110: 0 | DCJ110: 0 | DCK110: 0 | DCL110: 0 | DCM110: 0 | DCN110: 0 | DCO110: 0 | DCP110: 0 | DCQ110: 0 | DCR110: 0 | DCS110: 0 | DCT110: 0 | DCU110: 0 | DCV110: 0 | DCW110: 0 | DCX110: 0 | DCY110: 0 | DCZ110: 0 | DDA110: 0 | DDB110: 0 | DDC110: 0 | DDD110: 0 | DDE110: 0 | DDF110: 0 | DDG110: 0 | DDH110: 0 | DDI110: 0 | DDJ110: 0 | DDK110: 0 | DDL110: 0 | DDM110: 0 | DDN110: 0 | DDO110: 0 | DDP110: 0 | DDQ110: 0 | DDR110: 0 | DDS110: 0 | DDT110: 0 | DDU110: =DDU5 -> 0 | DDV110: 0 | DDW110: 0 | DDX110: 0 | DDY110: 0 | DDZ110: 0 | DEA110: 0 | DEB110: 0 | DEC110: 0 | DED110: 0 | DEE110: 0 | DEF110: 0 | DEG110: 0 | DEH110: 0 | DEI110: 0 | DEJ110: 0 | DEK110: 0 | DEL110: 0 | DEM110: 0 | DEN110: 0 | DEO110: 0 | DEP110: 0 | DEQ110: 0 | DER110: 0 | DES110: 0 | DET110: 0 | DEU110: 0 | DEV110: 0 | DEW110: 0 | DEX110: 0 | DEY110: 0 | DEZ110: 0 | DFA110: 0 | DFB110: 0 | DFC110: 0 | DFD110: 0 | DFE110: 0 | DFF110: 0 | DFG110: 0 | DFH110: 0 | DFI110: 0 | DFJ110: 0 | DFK110: 0 | DFL110: 0 | DFM110: 0 | DFN110: 0 | DFO110: 0 | DFP110: 0 | DFQ110: 0 | DFR110: 0 | DFS110: 0 | DFT110: 0 | DFU110: 0 | DFV110: 0 | DFW110: 0 | DFX110: 0 | DFY110: 0 | DFZ110: 0 | DGA110: 0 | DGB110: 0 | DGC110: 0 | DGD110: 0 | DGE110: 0 | DGF110: 0 | DGG110: =DGG5 -> 0 | DGH110: 0 | DGI110: 0 | DGJ110: 0 | DGK110: 0 | DGL110: 0 | DGM110: 0 | DGN110: 0 | DGO110: 0 | DGP110: 0 | DGQ110: 0 | DGR110: 0 | DGS110: 0 | DGT110: 0 | DGU110: 0 | DGV110: 0 | DGW110: 0 | DGX110: 0 | DGY110: 0 | DGZ110: 0 | DHA110: 0 | DHB110: 0 | DHC110: 0 | DHD110: 0 | DHE110: 0 | DHF110: 0 | DHG110: 0 | DHH110: 0 | DHI110: 0 | DHJ110: 0 | DHK110: 0 | DHL110: 0 | DHM110: 0 | DHN110: 0 | DHO110: 0 | DHP110: 0 | DHQ110: 0 | DHR110: 0 | DHS110: 0 | DHT110: 0 | DHU110: 0 | DHV110: 0 | DHW110: 0 | DHX110: 0 | DHY110: 0 | DHZ110: 0 | DIA110: 0 | DIB110: 0 | DIC110: 0 | DID110: 0 | DIE110: 0 | DIF110: 0 | DIG110: 0 | DIH110: 0 | DII110: 0 | DIJ110: 0 | DIK110: 0 | DIL110: 0 | DIM110: 0 | DIN110: 0 | DIO110: 0 | DIP110: 0 | DIQ110: 0 | DIR110: 0 | DIS110: =DIS5 -> 0 | DIT110: 0 | DIU110: 0 | DIV110: 0 | DIW110: 0 | DIX110: 0 | DIY110: 0 | DIZ110: 0 | DJA110: 0 | DJB110: 0 | DJC110: 0 | DJD110: 0 | DJE110: 0 | DJF110: 0 | DJG110: 0 | DJH110: 0 | DJI110: 0 | DJJ110: 0 | DJK110: 0 | DJL110: 0 | DJM110: 0 | DJN110: 0 | DJO110: 0 | DJP110: 0 | DJQ110: 0 | DJR110: 0 | DJS110: 0 | DJT110: 0 | DJU110: 0 | DJV110: 0 | DJW110: 0 | DJX110: 0 | DJY110: 0 | DJZ110: 0 | DKA110: 0 | DKB110: 0 | DKC110: 0 | DKD110: 0 | DKE110: 0 | DKF110: 0 | DKG110: 0 | DKH110: 0 | DKI110: 0 | DKJ110: 0 | DKK110: 0 | DKL110: 0 | DKM110: 0 | DKN110: 0 | DKO110: 0 | DKP110: 0 | DKQ110: 0 | DKR110: 0 | DKS110: 0 | DKT110: 0 | DKU110: 0 | DKV110: 0 | DKW110: 0 | DKX110: 0 | DKY110: 0 | DKZ110: 0 | DLA110: 0 | DLB110: 0 | DLC110: 0 | DLD110: 0 | DLE110: =DLE5 -> 0 | DLF110: 0 | DLG110: 0 | DLH110: 0 | DLI110: 0 | DLJ110: 0 | DLK110: 0 | DLL110: 0 | DLM110: 0 | DLN110: 0 | DLO110: 0 | DLP110: 0 | DLQ110: 0 | DLR110: 0 | DLS110: 0 | DLT110: 0 | DLU110: 0 | DLV110: 0 | DLW110: 0 | DLX110: 0 | DLY110: 0 | DLZ110: 0 | DMA110: 0 | DMB110: 0 | DMC110: 0 | DMD110: 0 | DME110: 0 | DMF110: 0 | DMG110: 0 | DMH110: 0 | DMI110: 0 | DMJ110: 0 | DMK110: 0 | DML110: 0 | DMM110: 0 | DMN110: 0 | DMO110: 0 | DMP110: 0 | DMQ110: 0 | DMR110: 0 | DMS110: 0 | DMT110: 0 | DMU110: 0 | DMV110: 0 | DMW110: 0 | DMX110: 0 | DMY110: 0 | DMZ110: 0 | DNA110: 0 | DNB110: 0 | DNC110: 0 | DND110: 0 | DNE110: 0 | DNF110: 0 | DNG110: 0 | DNH110: 0 | DNI110: 0 | DNJ110: 0 | DNK110: 0 | DNL110: 0 | DNM110: 0 | DNN110: 0 | DNO110: 0 | DNP110: 0 | DNQ110: =DNQ5 -> 0 | DNR110: 0 | DNS110: 0 | DNT110: 0 | DNU110: 0 | DNV110: 0 | DNW110: 0 | DNX110: 0 | DNY110: 0 | DNZ110: 0 | DOA110: 0 | DOB110: 0 | DOC110: 0 | DOD110: 0 | DOE110: 0 | DOF110: 0 | DOG110: 0 | DOH110: 0 | DOI110: 0 | DOJ110: 0 | DOK110: 0 | DOL110: 0 | DOM110: 0 | DON110: 0 | DOO110: 0 | DOP110: 0 | DOQ110: 0 | DOR110: 0 | DOS110: 0 | DOT110: 0 | DOU110: 0 | DOV110: 0 | DOW110: 0 | DOX110: 0 | DOY110: 0 | DOZ110: 0 | DPA110: 0 | DPB110: 0 | DPC110: 0 | DPD110: 0 | DPE110: 0 | DPF110: 0 | DPG110: 0 | DPH110: 0 | DPI110: 0 | DPJ110: 0 | DPK110: 0 | DPL110: 0 | DPM110: 0 | DPN110: 0 | DPO110: 0 | DPP110: 0 | DPQ110: 0 | DPR110: 0 | DPS110: 0 | DPT110: 0 | DPU110: 0 | DPV110: 0 | DPW110: 0 | DPX110: 0 | DPY110: 0 | DPZ110: 0 | DQA110: 0 | DQB110: 0 | DQC110: =DQC5 -> 0 | DQD110: 0 | DQE110: 0 | DQF110: 0 | DQG110: 0 | DQH110: 0 | DQI110: 0 | DQJ110: 0 | DQK110: 0 | DQL110: 0 | DQM110: 0 | DQN110: 0 | DQO110: 0 | DQP110: 0 | DQQ110: 0 | DQR110: 0 | DQS110: 0 | DQT110: 0 | DQU110: 0 | DQV110: 0 | DQW110: 0 | DQX110: 0 | DQY110: 0 | DQZ110: 0 | DRA110: 0 | DRB110: 0 | DRC110: 0 | DRD110: 0 | DRE110: 0 | DRF110: 0 | DRG110: 0 | DRH110: 0 | DRI110: 0 | DRJ110: 0 | DRK110: 0 | DRL110: 0 | DRM110: 0 | DRN110: 0 | DRO110: 0 | DRP110: 0 | DRQ110: 0 | DRR110: 0 | DRS110: 0 | DRT110: 0 | DRU110: 0 | DRV110: 0 | DRW110: 0 | DRX110: 0 | DRY110: 0 | DRZ110: 0 | DSA110: 0 | DSB110: 0 | DSC110: 0 | DSD110: 0 | DSE110: 0 | DSF110: 0 | DSG110: 0 | DSH110: 0 | DSI110: 0 | DSJ110: 0 | DSK110: 0 | DSL110: 0 | DSM110: 0 | DSN110: 0 | DSO110: =DSO5 -> 0 | DSP110: 0 | DSQ110: 0 | DSR110: 0 | DSS110: 0 | DST110: 0 | DSU110: 0 | DSV110: 0 | DSW110: 0 | DSX110: 0 | DSY110: 0 | DSZ110: 0 | DTA110: 0 | DTB110: 0 | DTC110: 0 | DTD110: 0 | DTE110: 0 | DTF110: 0 | DTG110: 0 | DTH110: 0 | DTI110: 0 | DTJ110: 0 | DTK110: 0 | DTL110: 0 | DTM110: 0 | DTN110: 0 | DTO110: 0 | DTP110: 0 | DTQ110: 0 | DTR110: 0 | DTS110: 0 | DTT110: 0 | DTU110: 0 | DTV110: 0 | DTW110: 0 | DTX110: 0 | DTY110: 0 | DTZ110: 0 | DUA110: 0 | DUB110: 0 | DUC110: 0 | DUD110: 0 | DUE110: 0 | DUF110: 0 | DUG110: 0 | DUH110: 0 | DUI110: 0 | DUJ110: 0 | DUK110: 0 | DUL110: 0 | DUM110: 0 | DUN110: 0 | DUO110: 0 | DUP110: 0 | DUQ110: 0 | DUR110: 0 | DUS110: 0 | DUT110: 0 | DUU110: 0 | DUV110: 0 | DUW110: 0 | DUX110: 0 | DUY110: 0 | DUZ110: 0 | DVA110: =DVA5 -> 0 | DVB110: 0 | DVC110: 0 | DVD110: 0 | DVE110: 0 | DVF110: 0 | DVG110: 0 | DVH110: 0 | DVI110: 0 | DVJ110: 0 | DVK110: 0 | DVL110: 0 | DVM110: 0 | DVN110: 0 | DVO110: 0 | DVP110: 0 | DVQ110: 0 | DVR110: 0 | DVS110: 0 | DVT110: 0 | DVU110: 0 | DVV110: 0 | DVW110: 0 | DVX110: 0 | DVY110: 0 | DVZ110: 0 | DWA110: 0 | DWB110: 0 | DWC110: 0 | DWD110: 0 | DWE110: 0 | DWF110: 0 | DWG110: 0 | DWH110: 0 | DWI110: 0 | DWJ110: 0 | DWK110: 0 | DWL110: 0 | DWM110: 0 | DWN110: 0 | DWO110: 0 | DWP110: 0 | DWQ110: 0 | DWR110: 0 | DWS110: 0 | DWT110: 0 | DWU110: 0 | DWV110: 0 | DWW110: 0 | DWX110: 0 | DWY110: 0 | DWZ110: 0 | DXA110: 0 | DXB110: 0 | DXC110: 0 | DXD110: 0 | DXE110: 0 | DXF110: 0 | DXG110: 0 | DXH110: 0 | DXI110: 0 | DXJ110: 0 | DXK110: 0 | DXL110: 0 | DXM110: =DXM5 -> 0 | DXN110: 0 | DXO110: 0 | DXP110: 0 | DXQ110: 0 | DXR110: 0 | DXS110: 0 | DXT110: 0 | DXU110: 0 | DXV110: 0 | DXW110: 0 | DXX110: 0 | DXY110: 0 | DXZ110: 0 | DYA110: 0 | DYB110: 0 | DYC110: 0 | DYD110: 0 | DYE110: 0 | DYF110: 0 | DYG110: 0 | DYH110: 0 | DYI110: 0 | DYJ110: 0 | DYK110: 0 | DYL110: 0 | DYM110: 0 | DYN110: 0 | DYO110: 0 | DYP110: 0 | DYQ110: 0 | DYR110: 0 | DYS110: 0 | DYT110: 0 | DYU110: 0 | DYV110: 0 | DYW110: 0 | DYX110: 0 | DYY110: 0 | DYZ110: 0 | DZA110: 0 | DZB110: 0 | DZC110: 0 | DZD110: 0 | DZE110: 0 | DZF110: 0 | DZG110: 0 | DZH110: 0 | DZI110: 0 | DZJ110: 0 | DZK110: 0 | DZL110: 0 | DZM110: 0 | DZN110: 0 | DZO110: 0 | DZP110: 0 | DZQ110: 0 | DZR110: 0 | DZS110: 0 | DZT110: 0 | DZU110: 0 | DZV110: 0 | DZW110: 0 | DZX110: 0 | DZY110: =DZY5 -> 0 | DZZ110: 0 | EAA110: 0 | EAB110: 0 | EAC110: 0 | EAD110: 0 | EAE110: 0 | EAF110: 0 | EAG110: 0 | EAH110: 0 | EAI110: 0 | EAJ110: 0 | EAK110: 0 | EAL110: 0 | EAM110: 0 | EAN110: 0 | EAO110: 0 | EAP110: 0 | EAQ110: 0 | EAR110: 0 | EAS110: 0 | EAT110: 0 | EAU110: 0 | EAV110: 0 | EAW110: 0 | EAX110: 0 | EAY110: 0 | EAZ110: 0 | EBA110: 0 | EBB110: 0 | EBC110: 0 | EBD110: 0 | EBE110: 0 | EBF110: 0 | EBG110: 0 | EBH110: 0 | EBI110: 0 | EBJ110: 0 | EBK110: 0 | EBL110: 0 | EBM110: 0 | EBN110: 0 | EBO110: 0 | EBP110: 0 | EBQ110: 0 | EBR110: 0 | EBS110: 0 | EBT110: 0 | EBU110: 0 | EBV110: 0 | EBW110: 0 | EBX110: 0 | EBY110: 0 | EBZ110: 0 | ECA110: 0 | ECB110: 0 | ECC110: 0 | ECD110: 0 | ECE110: 0 | ECF110: 0 | ECG110: 0 | ECH110: 0 | ECI110: 0 | ECJ110: 0 | ECK110: =ECK5 -> 0 | ECL110: 0 | ECM110: 0 | ECN110: 0 | ECO110: 0 | ECP110: 0 | ECQ110: 0 | ECR110: 0 | ECS110: 0 | ECT110: 0 | ECU110: 0 | ECV110: 0 | ECW110: 0 | ECX110: 0 | ECY110: 0 | ECZ110: 0 | EDA110: 0 | EDB110: 0 | EDC110: 0 | EDD110: 0 | EDE110: 0 | EDF110: 0 | EDG110: 0 | EDH110: 0 | EDI110: 0 | EDJ110: 0 | EDK110: 0 | EDL110: 0 | EDM110: 0 | EDN110: 0 | EDO110: 0 | EDP110: 0 | EDQ110: 0 | EDR110: 0 | EDS110: 0 | EDT110: 0 | EDU110: 0 | EDV110: 0 | EDW110: 0 | EDX110: 0 | EDY110: 0 | EDZ110: 0 | EEA110: 0 | EEB110: 0 | EEC110: 0 | EED110: 0 | EEE110: 0 | EEF110: 0 | EEG110: 0 | EEH110: 0 | EEI110: 0 | EEJ110: 0 | EEK110: 0 | EEL110: 0 | EEM110: 0 | EEN110: 0 | EEO110: 0 | EEP110: 0 | EEQ110: 0 | EER110: 0 | EES110: 0 | EET110: 0 | EEU110: 0 | EEV110: 0 | EEW110: =EEW5 -> 0 | EEX110: 0 | EEY110: 0 | EEZ110: 0 | EFA110: 0 | EFB110: 0 | EFC110: 0 | EFD110: 0 | EFE110: 0 | EFF110: 0 | EFG110: 0 | EFH110: 0 | EFI110: 0 | EFJ110: 0 | EFK110: 0 | EFL110: 0 | EFM110: 0 | EFN110: 0 | EFO110: 0 | EFP110: 0 | EFQ110: 0 | EFR110: 0 | EFS110: 0 | EFT110: 0 | EFU110: 0 | EFV110: 0 | EFW110: 0 | EFX110: 0 | EFY110: 0 | EFZ110: 0 | EGA110: 0 | EGB110: 0 | EGC110: 0 | EGD110: 0 | EGE110: 0 | EGF110: 0 | EGG110: 0 | EGH110: 0 | EGI110: 0 | EGJ110: 0 | EGK110: 0 | EGL110: 0 | EGM110: 0 | EGN110: 0 | EGO110: 0 | EGP110: 0 | EGQ110: 0 | EGR110: 0 | EGS110: 0 | EGT110: 0 | EGU110: 0 | EGV110: 0 | EGW110: 0 | EGX110: 0 | EGY110: 0 | EGZ110: 0 | EHA110: 0 | EHB110: 0 | EHC110: 0 | EHD110: 0 | EHE110: 0 | EHF110: 0 | EHG110: 0 | EHH110: 0 | EHI110: =EHI5 -> 0 | EHJ110: 0 | EHK110: 0 | EHL110: 0 | EHM110: 0 | EHN110: 0 | EHO110: 0 | EHP110: 0 | EHQ110: 0 | EHR110: 0 | EHS110: 0 | EHT110: 0 | EHU110: 0 | EHV110: 0 | EHW110: 0 | EHX110: 0 | EHY110: 0 | EHZ110: 0 | EIA110: 0 | EIB110: 0 | EIC110: 0 | EID110: 0 | EIE110: 0 | EIF110: 0 | EIG110: 0 | EIH110: 0 | EII110: 0 | EIJ110: 0 | EIK110: 0 | EIL110: 0 | EIM110: 0 | EIN110: 0 | EIO110: 0 | EIP110: 0 | EIQ110: 0 | EIR110: 0 | EIS110: 0 | EIT110: 0 | EIU110: 0 | EIV110: 0 | EIW110: 0 | EIX110: 0 | EIY110: 0 | EIZ110: 0 | EJA110: 0 | EJB110: 0 | EJC110: 0 | EJD110: 0 | EJE110: 0 | EJF110: 0 | EJG110: 0 | EJH110: 0 | EJI110: 0 | EJJ110: 0 | EJK110: 0 | EJL110: 0 | EJM110: 0 | EJN110: 0 | EJO110: 0 | EJP110: 0 | EJQ110: 0 | EJR110: 0 | EJS110: 0 | EJT110: 0 | EJU110: =EJU5 -> 0 | EJV110: 0 | EJW110: 0 | EJX110: 0 | EJY110: 0 | EJZ110: 0 | EKA110: 0 | EKB110: 0 | EKC110: 0 | EKD110: 0 | EKE110: 0 | EKF110: 0 | EKG110: 0 | EKH110: 0 | EKI110: 0 | EKJ110: 0 | EKK110: 0 | EKL110: 0 | EKM110: 0 | EKN110: 0 | EKO110: 0 | EKP110: 0 | EKQ110: 0 | EKR110: 0 | EKS110: 0 | EKT110: 0 | EKU110: 0 | EKV110: 0 | EKW110: 0 | EKX110: 0 | EKY110: 0 | EKZ110: 0 | ELA110: 0 | ELB110: 0 | ELC110: 0 | ELD110: 0 | ELE110: 0 | ELF110: 0 | ELG110: 0 | ELH110: 0 | ELI110: 0 | ELJ110: 0 | ELK110: 0 | ELL110: 0 | ELM110: 0 | ELN110: 0 | ELO110: 0 | ELP110: 0 | ELQ110: 0 | ELR110: 0 | ELS110: 0 | ELT110: 0 | ELU110: 0 | ELV110: 0 | ELW110: 0 | ELX110: 0 | ELY110: 0 | ELZ110: 0 | EMA110: 0 | EMB110: 0 | EMC110: 0 | EMD110: 0 | EME110: 0 | EMF110: 0 | EMG110: =EMG5 -> 0 | EMH110: 0 | EMI110: 0 | EMJ110: 0 | EMK110: 0 | EML110: 0 | EMM110: 0 | EMN110: 0 | EMO110: 0 | EMP110: 0 | EMQ110: 0 | EMR110: 0 | EMS110: 0 | EMT110: 0 | EMU110: 0 | EMV110: 0 | EMW110: 0 | EMX110: 0 | EMY110: 0 | EMZ110: 0 | ENA110: 0 | ENB110: 0 | ENC110: 0 | END110: 0 | ENE110: 0 | ENF110: 0 | ENG110: 0 | ENH110: 0 | ENI110: 0 | ENJ110: 0 | ENK110: 0 | ENL110: 0 | ENM110: 0 | ENN110: 0 | ENO110: 0 | ENP110: 0 | ENQ110: 0 | ENR110: 0 | ENS110: 0 | ENT110: 0 | ENU110: 0 | ENV110: 0 | ENW110: 0 | ENX110: 0 | ENY110: 0 | ENZ110: 0 | EOA110: 0 | EOB110: 0 | EOC110: 0 | EOD110: 0 | EOE110: 0 | EOF110: 0 | EOG110: 0 | EOH110: 0 | EOI110: 0 | EOJ110: 0 | EOK110: 0 | EOL110: 0 | EOM110: 0 | EON110: 0 | EOO110: 0 | EOP110: 0 | EOQ110: 0 | EOR110: 0 | EOS110: =EOS5 -> 0 | EOT110: 0 | EOU110: 0 | EOV110: 0 | EOW110: 0 | EOX110: 0 | EOY110: 0 | EOZ110: 0 | EPA110: 0 | EPB110: 0 | EPC110: 0 | EPD110: 0 | EPE110: 0 | EPF110: 0 | EPG110: 0 | EPH110: 0 | EPI110: 0 | EPJ110: 0 | EPK110: 0 | EPL110: 0 | EPM110: 0 | EPN110: 0 | EPO110: 0 | EPP110: 0 | EPQ110: 0 | EPR110: 0 | EPS110: 0 | EPT110: 0 | EPU110: 0 | EPV110: 0 | EPW110: 0 | EPX110: 0 | EPY110: 0 | EPZ110: 0 | EQA110: 0 | EQB110: 0 | EQC110: 0 | EQD110: 0 | EQE110: 0 | EQF110: 0 | EQG110: 0 | EQH110: 0 | EQI110: 0 | EQJ110: 0 | EQK110: 0 | EQL110: 0 | EQM110: 0 | EQN110: 0 | EQO110: 0 | EQP110: 0 | EQQ110: 0 | EQR110: 0 | EQS110: 0 | EQT110: 0 | EQU110: 0 | EQV110: 0 | EQW110: 0 | EQX110: 0 | EQY110: 0 | EQZ110: 0 | ERA110: 0 | ERB110: 0 | ERC110: 0 | ERD110: 0 | ERE110: =ERE5 -> 0 | ERF110: 0 | ERG110: 0 | ERH110: 0 | ERI110: 0 | ERJ110: 0 | ERK110: 0 | ERL110: 0 | ERM110: 0 | ERN110: 0 | ERO110: 0 | ERP110: 0 | ERQ110: 0 | ERR110: 0 | ERS110: 0 | ERT110: 0 | ERU110: 0 | ERV110: 0 | ERW110: 0 | ERX110: 0 | ERY110: 0 | ERZ110: 0 | ESA110: 0 | ESB110: 0 | ESC110: 0 | ESD110: 0 | ESE110: 0 | ESF110: 0 | ESG110: 0 | ESH110: 0 | ESI110: 0 | ESJ110: 0 | ESK110: 0 | ESL110: 0 | ESM110: 0 | ESN110: 0 | ESO110: 0 | ESP110: 0 | ESQ110: 0 | ESR110: 0 | ESS110: 0 | EST110: 0 | ESU110: 0 | ESV110: 0 | ESW110: 0 | ESX110: 0 | ESY110: 0 | ESZ110: 0 | ETA110: 0 | ETB110: 0 | ETC110: 0 | ETD110: 0 | ETE110: 0 | ETF110: 0 | ETG110: 0 | ETH110: 0 | ETI110: 0 | ETJ110: 0 | ETK110: 0 | ETL110: 0 | ETM110: 0 | ETN110: 0 | ETO110: 0 | ETP110: 0 | ETQ110: =ETQ5 -> 0 | ETR110: 0 | ETS110: 0 | ETT110: 0 | ETU110: 0 | ETV110: 0 | ETW110: 0 | ETX110: 0 | ETY110: 0 | ETZ110: 0 | EUA110: 0 | EUB110: 0 | EUC110: 0 | EUD110: 0 | EUE110: 0 | EUF110: 0 | EUG110: 0 | EUH110: 0 | EUI110: 0 | EUJ110: 0 | EUK110: 0 | EUL110: 0 | EUM110: 0 | EUN110: 0 | EUO110: 0 | EUP110: 0 | EUQ110: 0 | EUR110: 0 | EUS110: 0 | EUT110: 0 | EUU110: 0 | EUV110: 0 | EUW110: 0 | EUX110: 0 | EUY110: 0 | EUZ110: 0 | EVA110: 0 | EVB110: 0 | EVC110: 0 | EVD110: 0 | EVE110: 0 | EVF110: 0 | EVG110: 0 | EVH110: 0 | EVI110: 0 | EVJ110: 0 | EVK110: 0 | EVL110: 0 | EVM110: 0 | EVN110: 0 | EVO110: 0 | EVP110: 0 | EVQ110: 0 | EVR110: 0 | EVS110: 0 | EVT110: 0 | EVU110: 0 | EVV110: 0 | EVW110: 0 | EVX110: 0 | EVY110: 0 | EVZ110: 0 | EWA110: 0 | EWB110: 0 | EWC110: =EWC5 -> 0 | EWD110: 0 | EWE110: 0 | EWF110: 0 | EWG110: 0 | EWH110: 0 | EWI110: 0 | EWJ110: 0 | EWK110: 0 | EWL110: 0 | EWM110: 0 | EWN110: 0 | EWO110: 0 | EWP110: 0 | EWQ110: 0 | EWR110: 0 | EWS110: 0 | EWT110: 0 | EWU110: 0 | EWV110: 0 | EWW110: 0 | EWX110: 0 | EWY110: 0 | EWZ110: 0 | EXA110: 0 | EXB110: 0 | EXC110: 0 | EXD110: 0 | EXE110: 0 | EXF110: 0 | EXG110: 0 | EXH110: 0 | EXI110: 0 | EXJ110: 0 | EXK110: 0 | EXL110: 0 | EXM110: 0 | EXN110: 0 | EXO110: 0 | EXP110: 0 | EXQ110: 0 | EXR110: 0 | EXS110: 0 | EXT110: 0 | EXU110: 0 | EXV110: 0 | EXW110: 0 | EXX110: 0 | EXY110: 0 | EXZ110: 0 | EYA110: 0 | EYB110: 0 | EYC110: 0 | EYD110: 0 | EYE110: 0 | EYF110: 0 | EYG110: 0 | EYH110: 0 | EYI110: 0 | EYJ110: 0 | EYK110: 0 | EYL110: 0 | EYM110: 0 | EYN110: 0 | EYO110: =EYO5 -> 0 | EYP110: 0 | EYQ110: 0 | EYR110: 0 | EYS110: 0 | EYT110: 0 | EYU110: 0 | EYV110: 0 | EYW110: 0 | EYX110: 0 | EYY110: 0 | EYZ110: 0 | EZA110: 0 | EZB110: 0 | EZC110: 0 | EZD110: 0 | EZE110: 0 | EZF110: 0 | EZG110: 0 | EZH110: 0 | EZI110: 0 | EZJ110: 0 | EZK110: 0 | EZL110: 0 | EZM110: 0 | EZN110: 0 | EZO110: 0 | EZP110: 0 | EZQ110: 0 | EZR110: 0 | EZS110: 0 | EZT110: 0 | EZU110: 0 | EZV110: 0 | EZW110: 0 | EZX110: 0 | EZY110: 0 | EZZ110: 0 | FAA110: 0 | FAB110: 0 | FAC110: 0 | FAD110: 0 | FAE110: 0 | FAF110: 0 | FAG110: 0 | FAH110: 0 | FAI110: 0 | FAJ110: 0 | FAK110: 0 | FAL110: 0 | FAM110: 0 | FAN110: 0 | FAO110: 0 | FAP110: 0 | FAQ110: 0 | FAR110: 0 | FAS110: 0 | FAT110: 0 | FAU110: 0 | FAV110: 0 | FAW110: 0 | FAX110: 0 | FAY110: 0 | FAZ110: 0 | FBA110: =FBA5 -> 0 | FBB110: 0 | FBC110: 0 | FBD110: 0 | FBE110: 0 | FBF110: 0 | FBG110: 0 | FBH110: 0 | FBI110: 0 | FBJ110: 0 | FBK110: 0 | FBL110: 0 | FBM110: 0 | FBN110: 0 | FBO110: 0 | FBP110: 0 | FBQ110: 0 | FBR110: 0 | FBS110: 0 | FBT110: 0 | FBU110: 0 | FBV110: 0 | FBW110: 0 | FBX110: 0 | FBY110: 0 | FBZ110: 0 | FCA110: 0 | FCB110: 0 | FCC110: 0 | FCD110: 0 | FCE110: 0 | FCF110: 0 | FCG110: 0 | FCH110: 0 | FCI110: 0 | FCJ110: 0 | FCK110: 0 | FCL110: 0 | FCM110: 0 | FCN110: 0 | FCO110: 0 | FCP110: 0 | FCQ110: 0 | FCR110: 0 | FCS110: 0 | FCT110: 0 | FCU110: 0 | FCV110: 0 | FCW110: 0 | FCX110: 0 | FCY110: 0 | FCZ110: 0 | FDA110: 0 | FDB110: 0 | FDC110: 0 | FDD110: 0 | FDE110: 0 | FDF110: 0 | FDG110: 0 | FDH110: 0 | FDI110: 0 | FDJ110: 0 | FDK110: 0 | FDL110: 0 | FDM110: =FDM5 -> 0 | FDN110: 0 | FDO110: 0 | FDP110: 0 | FDQ110: 0 | FDR110: 0 | FDS110: 0 | FDT110: 0 | FDU110: 0 | FDV110: 0 | FDW110: 0 | FDX110: 0 | FDY110: 0 | FDZ110: 0 | FEA110: 0 | FEB110: 0 | FEC110: 0 | FED110: 0 | FEE110: 0 | FEF110: 0 | FEG110: 0 | FEH110: 0 | FEI110: 0 | FEJ110: 0 | FEK110: 0 | FEL110: 0 | FEM110: 0 | FEN110: 0 | FEO110: 0 | FEP110: 0 | FEQ110: 0 | FER110: 0 | FES110: 0 | FET110: 0 | FEU110: 0 | FEV110: 0 | FEW110: 0 | FEX110: 0 | FEY110: 0 | FEZ110: 0 | FFA110: 0 | FFB110: 0 | FFC110: 0 | FFD110: 0 | FFE110: 0 | FFF110: 0 | FFG110: 0 | FFH110: 0 | FFI110: 0 | FFJ110: 0 | FFK110: 0 | FFL110: 0 | FFM110: 0 | FFN110: 0 | FFO110: 0 | FFP110: 0 | FFQ110: 0 | FFR110: 0 | FFS110: 0 | FFT110: 0 | FFU110: 0 | FFV110: 0 | FFW110: 0 | FFX110: 0 | FFY110: =FFY5 -> 0 | FFZ110: 0 | FGA110: 0 | FGB110: 0 | FGC110: 0 | FGD110: 0 | FGE110: 0 | FGF110: 0 | FGG110: 0 | FGH110: 0 | FGI110: 0 | FGJ110: 0 | FGK110: 0 | FGL110: 0 | FGM110: 0 | FGN110: 0 | FGO110: 0 | FGP110: 0 | FGQ110: 0 | FGR110: 0 | FGS110: 0 | FGT110: 0 | FGU110: 0 | FGV110: 0 | FGW110: 0 | FGX110: 0 | FGY110: 0 | FGZ110: 0 | FHA110: 0 | FHB110: 0 | FHC110: 0 | FHD110: 0 | FHE110: 0 | FHF110: 0 | FHG110: 0 | FHH110: 0 | FHI110: 0 | FHJ110: 0 | FHK110: 0 | FHL110: 0 | FHM110: 0 | FHN110: 0 | FHO110: 0 | FHP110: 0 | FHQ110: 0 | FHR110: 0 | FHS110: 0 | FHT110: 0 | FHU110: 0 | FHV110: 0 | FHW110: 0 | FHX110: 0 | FHY110: 0 | FHZ110: 0 | FIA110: 0 | FIB110: 0 | FIC110: 0 | FID110: 0 | FIE110: 0 | FIF110: 0 | FIG110: 0 | FIH110: 0 | FII110: 0 | FIJ110: 0 | FIK110: =FIK5 -> 0 | FIL110: 0 | FIM110: 0 | FIN110: 0 | FIO110: 0 | FIP110: 0 | FIQ110: 0 | FIR110: 0 | FIS110: 0 | FIT110: 0 | FIU110: 0 | FIV110: 0 | FIW110: 0 | FIX110: 0 | FIY110: 0 | FIZ110: 0 | FJA110: 0 | FJB110: 0 | FJC110: 0 | FJD110: 0 | FJE110: 0 | FJF110: 0 | FJG110: 0 | FJH110: 0 | FJI110: 0 | FJJ110: 0 | FJK110: 0 | FJL110: 0 | FJM110: 0 | FJN110: 0 | FJO110: 0 | FJP110: 0 | FJQ110: 0 | FJR110: 0 | FJS110: 0 | FJT110: 0 | FJU110: 0 | FJV110: 0 | FJW110: 0 | FJX110: 0 | FJY110: 0 | FJZ110: 0 | FKA110: 0 | FKB110: 0 | FKC110: 0 | FKD110: 0 | FKE110: 0 | FKF110: 0 | FKG110: 0 | FKH110: 0 | FKI110: 0 | FKJ110: 0 | FKK110: 0 | FKL110: 0 | FKM110: 0 | FKN110: 0 | FKO110: 0 | FKP110: 0 | FKQ110: 0 | FKR110: 0 | FKS110: 0 | FKT110: 0 | FKU110: 0 | FKV110: 0 | FKW110: =FKW5 -> 0 | FKX110: 0 | FKY110: 0 | FKZ110: 0 | FLA110: 0 | FLB110: 0 | FLC110: 0 | FLD110: 0 | FLE110: 0 | FLF110: 0 | FLG110: 0 | FLH110: 0 | FLI110: 0 | FLJ110: 0 | FLK110: 0 | FLL110: 0 | FLM110: 0 | FLN110: 0 | FLO110: 0 | FLP110: 0 | FLQ110: 0 | FLR110: 0 | FLS110: 0 | FLT110: 0 | FLU110: 0 | FLV110: 0 | FLW110: 0 | FLX110: 0 | FLY110: 0 | FLZ110: 0 | FMA110: 0 | FMB110: 0 | FMC110: 0 | FMD110: 0 | FME110: 0 | FMF110: 0 | FMG110: 0 | FMH110: 0 | FMI110: 0 | FMJ110: 0 | FMK110: 0 | FML110: 0 | FMM110: 0 | FMN110: 0 | FMO110: 0 | FMP110: 0 | FMQ110: 0 | FMR110: 0 | FMS110: 0 | FMT110: 0 | FMU110: 0 | FMV110: 0 | FMW110: 0 | FMX110: 0 | FMY110: 0 | FMZ110: 0 | FNA110: 0 | FNB110: 0 | FNC110: 0 | FND110: 0 | FNE110: 0 | FNF110: 0 | FNG110: 0 | FNH110: 0 | FNI110: =FNI5 -> 0 | FNJ110: 0 | FNK110: 0 | FNL110: 0 | FNM110: 0 | FNN110: 0 | FNO110: 0 | FNP110: 0 | FNQ110: 0 | FNR110: 0 | FNS110: 0 | FNT110: 0 | FNU110: 0 | FNV110: 0 | FNW110: 0 | FNX110: 0 | FNY110: 0 | FNZ110: 0 | FOA110: 0 | FOB110: 0 | FOC110: 0 | FOD110: 0 | FOE110: 0 | FOF110: 0 | FOG110: 0 | FOH110: 0 | FOI110: 0 | FOJ110: 0 | FOK110: 0 | FOL110: 0 | FOM110: 0 | FON110: 0 | FOO110: 0 | FOP110: 0 | FOQ110: 0 | FOR110: 0 | FOS110: 0 | FOT110: 0 | FOU110: 0 | FOV110: 0 | FOW110: 0 | FOX110: 0 | FOY110: 0 | FOZ110: 0 | FPA110: 0 | FPB110: 0 | FPC110: 0 | FPD110: 0 | FPE110: 0 | FPF110: 0 | FPG110: 0 | FPH110: 0 | FPI110: 0 | FPJ110: 0 | FPK110: 0 | FPL110: 0 | FPM110: 0 | FPN110: 0 | FPO110: 0 | FPP110: 0 | FPQ110: 0 | FPR110: 0 | FPS110: 0 | FPT110: 0 | FPU110: =FPU5 -> 0 | FPV110: 0 | FPW110: 0 | FPX110: 0 | FPY110: 0 | FPZ110: 0 | FQA110: 0 | FQB110: 0 | FQC110: 0 | FQD110: 0 | FQE110: 0 | FQF110: 0 | FQG110: 0 | FQH110: 0 | FQI110: 0 | FQJ110: 0 | FQK110: 0 | FQL110: 0 | FQM110: 0 | FQN110: 0 | FQO110: 0 | FQP110: 0 | FQQ110: 0 | FQR110: 0 | FQS110: 0 | FQT110: 0 | FQU110: 0 | FQV110: 0 | FQW110: 0 | FQX110: 0 | FQY110: 0 | FQZ110: 0 | FRA110: 0 | FRB110: 0 | FRC110: 0 | FRD110: 0 | FRE110: 0 | FRF110: 0 | FRG110: 0 | FRH110: 0 | FRI110: 0 | FRJ110: 0 | FRK110: 0 | FRL110: 0 | FRM110: 0 | FRN110: 0 | FRO110: 0 | FRP110: 0 | FRQ110: 0 | FRR110: 0 | FRS110: 0 | FRT110: 0 | FRU110: 0 | FRV110: 0 | FRW110: 0 | FRX110: 0 | FRY110: 0 | FRZ110: 0 | FSA110: 0 | FSB110: 0 | FSC110: 0 | FSD110: 0 | FSE110: 0 | FSF110: 0 | FSG110: =FSG5 -> 0 | FSH110: 0 | FSI110: 0 | FSJ110: 0 | FSK110: 0 | FSL110: 0 | FSM110: 0 | FSN110: 0 | FSO110: 0 | FSP110: 0 | FSQ110: 0 | FSR110: 0 | FSS110: 0 | FST110: 0 | FSU110: 0 | FSV110: 0 | FSW110: 0 | FSX110: 0 | FSY110: 0 | FSZ110: 0 | FTA110: 0 | FTB110: 0 | FTC110: 0 | FTD110: 0 | FTE110: 0 | FTF110: 0 | FTG110: 0 | FTH110: 0 | FTI110: 0 | FTJ110: 0 | FTK110: 0 | FTL110: 0 | FTM110: 0 | FTN110: 0 | FTO110: 0 | FTP110: 0 | FTQ110: 0 | FTR110: 0 | FTS110: 0 | FTT110: 0 | FTU110: 0 | FTV110: 0 | FTW110: 0 | FTX110: 0 | FTY110: 0 | FTZ110: 0 | FUA110: 0 | FUB110: 0 | FUC110: 0 | FUD110: 0 | FUE110: 0 | FUF110: 0 | FUG110: 0 | FUH110: 0 | FUI110: 0 | FUJ110: 0 | FUK110: 0 | FUL110: 0 | FUM110: 0 | FUN110: 0 | FUO110: 0 | FUP110: 0 | FUQ110: 0 | FUR110: 0 | FUS110: =FUS5 -> 0 | FUT110: 0 | FUU110: 0 | FUV110: 0 | FUW110: 0 | FUX110: 0 | FUY110: 0 | FUZ110: 0 | FVA110: 0 | FVB110: 0 | FVC110: 0 | FVD110: 0 | FVE110: 0 | FVF110: 0 | FVG110: 0 | FVH110: 0 | FVI110: 0 | FVJ110: 0 | FVK110: 0 | FVL110: 0 | FVM110: 0 | FVN110: 0 | FVO110: 0 | FVP110: 0 | FVQ110: 0 | FVR110: 0 | FVS110: 0 | FVT110: 0 | FVU110: 0 | FVV110: 0 | FVW110: 0 | FVX110: 0 | FVY110: 0 | FVZ110: 0 | FWA110: 0 | FWB110: 0 | FWC110: 0 | FWD110: 0 | FWE110: 0 | FWF110: 0 | FWG110: 0 | FWH110: 0 | FWI110: 0 | FWJ110: 0 | FWK110: 0 | FWL110: 0 | FWM110: 0 | FWN110: 0 | FWO110: 0 | FWP110: 0 | FWQ110: 0 | FWR110: 0 | FWS110: 0 | FWT110: 0 | FWU110: 0 | FWV110: 0 | FWW110: 0 | FWX110: 0 | FWY110: 0 | FWZ110: 0 | FXA110: 0 | FXB110: 0 | FXC110: 0 | FXD110: 0 | FXE110: =FXE5 -> 0 | FXF110: 0 | FXG110: 0 | FXH110: 0 | FXI110: 0 | FXJ110: 0 | FXK110: 0 | FXL110: 0 | FXM110: 0 | FXN110: 0 | FXO110: 0 | FXP110: 0 | FXQ110: 0 | FXR110: 0 | FXS110: 0 | FXT110: 0 | FXU110: 0 | FXV110: 0 | FXW110: 0 | FXX110: 0 | FXY110: 0 | FXZ110: 0 | FYA110: 0 | FYB110: 0 | FYC110: 0 | FYD110: 0 | FYE110: 0 | FYF110: 0 | FYG110: 0 | FYH110: 0 | FYI110: 0 | FYJ110: 0 | FYK110: 0 | FYL110: 0 | FYM110: 0 | FYN110: 0 | FYO110: 0 | FYP110: 0 | FYQ110: 0 | FYR110: 0 | FYS110: 0 | FYT110: 0 | FYU110: 0 | FYV110: 0 | FYW110: 0 | FYX110: 0 | FYY110: 0 | FYZ110: 0 | FZA110: 0 | FZB110: 0 | FZC110: 0 | FZD110: 0 | FZE110: 0 | FZF110: 0 | FZG110: 0 | FZH110: 0 | FZI110: 0 | FZJ110: 0 | FZK110: 0 | FZL110: 0 | FZM110: 0 | FZN110: 0 | FZO110: 0 | FZP110: 0 | FZQ110: =FZQ5 -> 0 | FZR110: 0 | FZS110: 0 | FZT110: 0 | FZU110: 0 | FZV110: 0 | FZW110: 0 | FZX110: 0 | FZY110: 0 | FZZ110: 0 | GAA110: 0 | GAB110: 0 | GAC110: 0 | GAD110: 0 | GAE110: 0 | GAF110: 0 | GAG110: 0 | GAH110: 0 | GAI110: 0 | GAJ110: 0 | GAK110: 0 | GAL110: 0 | GAM110: 0 | GAN110: 0 | GAO110: 0 | GAP110: 0 | GAQ110: 0 | GAR110: 0 | GAS110: 0 | GAT110: 0 | GAU110: 0 | GAV110: 0 | GAW110: 0 | GAX110: 0 | GAY110: 0 | GAZ110: 0 | GBA110: 0 | GBB110: 0 | GBC110: 0 | GBD110: 0 | GBE110: 0 | GBF110: 0 | GBG110: 0 | GBH110: 0 | GBI110: 0 | GBJ110: 0 | GBK110: 0 | GBL110: 0 | GBM110: 0 | GBN110: 0 | GBO110: 0 | GBP110: 0 | GBQ110: 0 | GBR110: 0 | GBS110: 0 | GBT110: 0 | GBU110: 0 | GBV110: 0 | GBW110: 0 | GBX110: 0 | GBY110: 0 | GBZ110: 0 | GCA110: 0 | GCB110: 0 | GCC110: =GCC5 -> 0 | GCD110: 0 | GCE110: 0 | GCF110: 0 | GCG110: 0 | GCH110: 0 | GCI110: 0 | GCJ110: 0 | GCK110: 0 | GCL110: 0 | GCM110: 0 | GCN110: 0 | GCO110: 0 | GCP110: 0 | GCQ110: 0 | GCR110: 0 | GCS110: 0 | GCT110: 0 | GCU110: 0 | GCV110: 0 | GCW110: 0 | GCX110: 0 | GCY110: 0 | GCZ110: 0 | GDA110: 0 | GDB110: 0 | GDC110: 0 | GDD110: 0 | GDE110: 0 | GDF110: 0 | GDG110: 0 | GDH110: 0 | GDI110: 0 | GDJ110: 0 | GDK110: 0 | GDL110: 0 | GDM110: 0 | GDN110: 0 | GDO110: 0 | GDP110: 0 | GDQ110: 0 | GDR110: 0 | GDS110: 0 | GDT110: 0 | GDU110: 0 | GDV110: 0 | GDW110: 0 | GDX110: 0 | GDY110: 0 | GDZ110: 0 | GEA110: 0 | GEB110: 0 | GEC110: 0 | GED110: 0 | GEE110: 0 | GEF110: 0 | GEG110: 0 | GEH110: 0 | GEI110: 0 | GEJ110: 0 | GEK110: 0 | GEL110: 0 | GEM110: 0 | GEN110: 0 | GEO110: =GEO5 -> 0 | GEP110: 0 | GEQ110: 0 | GER110: 0 | GES110: 0 | GET110: 0 | GEU110: 0 | GEV110: 0 | GEW110: 0 | GEX110: 0 | GEY110: 0 | GEZ110: 0 | GFA110: 0 | GFB110: 0 | GFC110: 0 | GFD110: 0 | GFE110: 0 | GFF110: 0 | GFG110: 0 | GFH110: 0 | GFI110: 0 | GFJ110: 0 | GFK110: 0 | GFL110: 0 | GFM110: 0 | GFN110: 0 | GFO110: 0 | GFP110: 0 | GFQ110: 0 | GFR110: 0 | GFS110: 0 | GFT110: 0 | GFU110: 0 | GFV110: 0 | GFW110: 0 | GFX110: 0 | GFY110: 0 | GFZ110: 0 | GGA110: 0 | GGB110: 0 | GGC110: 0 | GGD110: 0 | GGE110: 0 | GGF110: 0 | GGG110: 0 | GGH110: 0 | GGI110: 0 | GGJ110: 0 | GGK110: 0 | GGL110: 0 | GGM110: 0 | GGN110: 0 | GGO110: 0 | GGP110: 0 | GGQ110: 0 | GGR110: 0 | GGS110: 0 | GGT110: 0 | GGU110: 0 | GGV110: 0 | GGW110: 0 | GGX110: 0 | GGY110: 0 | GGZ110: 0 | GHA110: =GHA5 -> 0 | GHB110: 0 | GHC110: 0 | GHD110: 0 | GHE110: 0 | GHF110: 0 | GHG110: 0 | GHH110: 0 | GHI110: 0 | GHJ110: 0 | GHK110: 0 | GHL110: 0 | GHM110: 0 | GHN110: 0 | GHO110: 0 | GHP110: 0 | GHQ110: 0 | GHR110: 0 | GHS110: 0 | GHT110: 0 | GHU110: 0 | GHV110: 0 | GHW110: 0 | GHX110: 0 | GHY110: 0 | GHZ110: 0 | GIA110: 0 | GIB110: 0 | GIC110: 0 | GID110: 0 | GIE110: 0 | GIF110: 0 | GIG110: 0 | GIH110: 0 | GII110: 0 | GIJ110: 0 | GIK110: 0 | GIL110: 0 | GIM110: 0 | GIN110: 0 | GIO110: 0 | GIP110: 0 | GIQ110: 0 | GIR110: 0 | GIS110: 0 | GIT110: 0 | GIU110: 0 | GIV110: 0 | GIW110: 0 | GIX110: 0 | GIY110: 0 | GIZ110: 0 | GJA110: 0 | GJB110: 0 | GJC110: 0 | GJD110: 0 | GJE110: 0 | GJF110: 0 | GJG110: 0 | GJH110: 0 | GJI110: 0 | GJJ110: 0 | GJK110: 0 | GJL110: 0 | GJM110: =GJM5 -> 0 | GJN110: 0 | GJO110: 0 | GJP110: 0 | GJQ110: 0 | GJR110: 0 | GJS110: 0 | GJT110: 0 | GJU110: 0 | GJV110: 0 | GJW110: 0 | GJX110: 0 | GJY110: 0 | GJZ110: 0 | GKA110: 0 | GKB110: 0 | GKC110: 0 | GKD110: 0 | GKE110: 0 | GKF110: 0 | GKG110: 0 | GKH110: 0 | GKI110: 0 | GKJ110: 0 | GKK110: 0 | GKL110: 0 | GKM110: 0 | GKN110: 0 | GKO110: 0 | GKP110: 0 | GKQ110: 0 | GKR110: 0 | GKS110: 0 | GKT110: 0 | GKU110: 0 | GKV110: 0 | GKW110: 0 | GKX110: 0 | GKY110: 0 | GKZ110: 0 | GLA110: 0 | GLB110: 0 | GLC110: 0 | GLD110: 0 | GLE110: 0 | GLF110: 0 | GLG110: 0 | GLH110: 0 | GLI110: 0 | GLJ110: 0 | GLK110: 0 | GLL110: 0 | GLM110: 0 | GLN110: 0 | GLO110: 0 | GLP110: 0 | GLQ110: 0 | GLR110: 0 | GLS110: 0 | GLT110: 0 | GLU110: 0 | GLV110: 0 | GLW110: 0 | GLX110: 0 | GLY110: =GLY5 -> 0 | GLZ110: 0 | GMA110: 0 | GMB110: 0 | GMC110: 0 | GMD110: 0 | GME110: 0 | GMF110: 0 | GMG110: 0 | GMH110: 0 | GMI110: 0 | GMJ110: 0 | GMK110: 0 | GML110: 0 | GMM110: 0 | GMN110: 0 | GMO110: 0 | GMP110: 0 | GMQ110: 0 | GMR110: 0 | GMS110: 0 | GMT110: 0 | GMU110: 0 | GMV110: 0 | GMW110: 0 | GMX110: 0 | GMY110: 0 | GMZ110: 0 | GNA110: 0 | GNB110: 0 | GNC110: 0 | GND110: 0 | GNE110: 0 | GNF110: 0 | GNG110: 0 | GNH110: 0 | GNI110: 0 | GNJ110: 0 | GNK110: 0 | GNL110: 0 | GNM110: 0 | GNN110: 0 | GNO110: 0 | GNP110: 0 | GNQ110: 0 | GNR110: 0 | GNS110: 0 | GNT110: 0 | GNU110: 0 | GNV110: 0 | GNW110: 0 | GNX110: 0 | GNY110: 0 | GNZ110: 0 | GOA110: 0 | GOB110: 0 | GOC110: 0 | GOD110: 0 | GOE110: 0 | GOF110: 0 | GOG110: 0 | GOH110: 0 | GOI110: 0 | GOJ110: 0 | GOK110: =GOK5 -> 0 | GOL110: 0 | GOM110: 0 | GON110: 0 | GOO110: 0 | GOP110: 0 | GOQ110: 0 | GOR110: 0 | GOS110: 0 | GOT110: 0 | GOU110: 0 | GOV110: 0 | GOW110: 0 | GOX110: 0 | GOY110: 0 | GOZ110: 0 | GPA110: 0 | GPB110: 0 | GPC110: 0 | GPD110: 0 | GPE110: 0 | GPF110: 0 | GPG110: 0 | GPH110: 0 | GPI110: 0 | GPJ110: 0 | GPK110: 0 | GPL110: 0 | GPM110: 0 | GPN110: 0 | GPO110: 0 | GPP110: 0 | GPQ110: 0 | GPR110: 0 | GPS110: 0 | GPT110: 0 | GPU110: 0 | GPV110: 0 | GPW110: 0 | GPX110: 0 | GPY110: 0 | GPZ110: 0 | GQA110: 0 | GQB110: 0 | GQC110: 0 | GQD110: 0 | GQE110: 0 | GQF110: 0 | GQG110: 0 | GQH110: 0 | GQI110: 0 | GQJ110: 0 | GQK110: 0 | GQL110: 0 | GQM110: 0 | GQN110: 0 | GQO110: 0 | GQP110: 0 | GQQ110: 0 | GQR110: 0 | GQS110: 0 | GQT110: 0 | GQU110: 0 | GQV110: 0 | GQW110: =GQW5 -> 0 | GQX110: 0 | GQY110: 0 | GQZ110: 0 | GRA110: 0 | GRB110: 0 | GRC110: 0 | GRD110: 0 | GRE110: 0 | GRF110: 0 | GRG110: 0 | GRH110: 0 | GRI110: 0 | GRJ110: 0 | GRK110: 0 | GRL110: 0 | GRM110: 0 | GRN110: 0 | GRO110: 0 | GRP110: 0 | GRQ110: 0 | GRR110: 0 | GRS110: 0 | GRT110: 0 | GRU110: 0 | GRV110: 0 | GRW110: 0 | GRX110: 0 | GRY110: 0 | GRZ110: 0 | GSA110: 0 | GSB110: 0 | GSC110: 0 | GSD110: 0 | GSE110: 0 | GSF110: 0 | GSG110: 0 | GSH110: 0 | GSI110: 0 | GSJ110: 0 | GSK110: 0 | GSL110: 0 | GSM110: 0 | GSN110: 0 | GSO110: 0 | GSP110: 0 | GSQ110: 0 | GSR110: 0 | GSS110: 0 | GST110: 0 | GSU110: 0 | GSV110: 0 | GSW110: 0 | GSX110: 0 | GSY110: 0 | GSZ110: 0 | GTA110: 0 | GTB110: 0 | GTC110: 0 | GTD110: 0 | GTE110: 0 | GTF110: 0 | GTG110: 0 | GTH110: 0 | GTI110: =GTI5 -> 0 | GTJ110: 0 | GTK110: 0 | GTL110: 0 | GTM110: 0 | GTN110: 0 | GTO110: 0 | GTP110: 0 | GTQ110: 0 | GTR110: 0 | GTS110: 0 | GTT110: 0 | GTU110: 0 | GTV110: 0 | GTW110: 0 | GTX110: 0 | GTY110: 0 | GTZ110: 0 | GUA110: 0 | GUB110: 0 | GUC110: 0 | GUD110: 0 | GUE110: 0 | GUF110: 0 | GUG110: 0 | GUH110: 0 | GUI110: 0 | GUJ110: 0 | GUK110: 0 | GUL110: 0 | GUM110: 0 | GUN110: 0 | GUO110: 0 | GUP110: 0 | GUQ110: 0 | GUR110: 0 | GUS110: 0 | GUT110: 0 | GUU110: 0 | GUV110: 0 | GUW110: 0 | GUX110: 0 | GUY110: 0 | GUZ110: 0 | GVA110: 0 | GVB110: 0 | GVC110: 0 | GVD110: 0 | GVE110: 0 | GVF110: 0 | GVG110: 0 | GVH110: 0 | GVI110: 0 | GVJ110: 0 | GVK110: 0 | GVL110: 0 | GVM110: 0 | GVN110: 0 | GVO110: 0 | GVP110: 0 | GVQ110: 0 | GVR110: 0 | GVS110: 0 | GVT110: 0 | GVU110: =GVU5 -> 0 | GVV110: 0 | GVW110: 0 | GVX110: 0 | GVY110: 0 | GVZ110: 0 | GWA110: 0 | GWB110: 0 | GWC110: 0 | GWD110: 0 | GWE110: 0 | GWF110: 0 | GWG110: 0 | GWH110: 0 | GWI110: 0 | GWJ110: 0 | GWK110: 0 | GWL110: 0 | GWM110: 0 | GWN110: 0 | GWO110: 0 | GWP110: 0 | GWQ110: 0 | GWR110: 0 | GWS110: 0 | GWT110: 0 | GWU110: 0 | GWV110: 0 | GWW110: 0 | GWX110: 0 | GWY110: 0 | GWZ110: 0 | GXA110: 0 | GXB110: 0 | GXC110: 0 | GXD110: 0 | GXE110: 0 | GXF110: 0 | GXG110: 0 | GXH110: 0 | GXI110: 0 | GXJ110: 0 | GXK110: 0 | GXL110: 0 | GXM110: 0 | GXN110: 0 | GXO110: 0 | GXP110: 0 | GXQ110: 0 | GXR110: 0 | GXS110: 0 | GXT110: 0 | GXU110: 0 | GXV110: 0 | GXW110: 0 | GXX110: 0 | GXY110: 0 | GXZ110: 0 | GYA110: 0 | GYB110: 0 | GYC110: 0 | GYD110: 0 | GYE110: 0 | GYF110: 0 | GYG110: =GYG5 -> 0 | GYH110: 0 | GYI110: 0 | GYJ110: 0 | GYK110: 0 | GYL110: 0 | GYM110: 0 | GYN110: 0 | GYO110: 0 | GYP110: 0 | GYQ110: 0 | GYR110: 0 | GYS110: 0 | GYT110: 0 | GYU110: 0 | GYV110: 0 | GYW110: 0 | GYX110: 0 | GYY110: 0 | GYZ110: 0 | GZA110: 0 | GZB110: 0 | GZC110: 0 | GZD110: 0 | GZE110: 0 | GZF110: 0 | GZG110: 0 | GZH110: 0 | GZI110: 0 | GZJ110: 0 | GZK110: 0 | GZL110: 0 | GZM110: 0 | GZN110: 0 | GZO110: 0 | GZP110: 0 | GZQ110: 0 | GZR110: 0 | GZS110: 0 | GZT110: 0 | GZU110: 0 | GZV110: 0 | GZW110: 0 | GZX110: 0 | GZY110: 0 | GZZ110: 0 | HAA110: 0 | HAB110: 0 | HAC110: 0 | HAD110: 0 | HAE110: 0 | HAF110: 0 | HAG110: 0 | HAH110: 0 | HAI110: 0 | HAJ110: 0 | HAK110: 0 | HAL110: 0 | HAM110: 0 | HAN110: 0 | HAO110: 0 | HAP110: 0 | HAQ110: 0 | HAR110: 0 | HAS110: =HAS5 -> 0 | HAT110: 0 | HAU110: 0 | HAV110: 0 | HAW110: 0 | HAX110: 0 | HAY110: 0 | HAZ110: 0 | HBA110: 0 | HBB110: 0 | HBC110: 0 | HBD110: 0 | HBE110: 0 | HBF110: 0 | HBG110: 0 | HBH110: 0 | HBI110: 0 | HBJ110: 0 | HBK110: 0 | HBL110: 0 | HBM110: 0 | HBN110: 0 | HBO110: 0 | HBP110: 0 | HBQ110: 0 | HBR110: 0 | HBS110: 0 | HBT110: 0 | HBU110: 0 | HBV110: 0 | HBW110: 0 | HBX110: 0 | HBY110: 0 | HBZ110: 0 | HCA110: 0 | HCB110: 0 | HCC110: 0 | HCD110: 0 | HCE110: 0 | HCF110: 0 | HCG110: 0 | HCH110: 0 | HCI110: 0 | HCJ110: 0 | HCK110: 0 | HCL110: 0 | HCM110: 0 | HCN110: 0 | HCO110: 0 | HCP110: 0 | HCQ110: 0 | HCR110: 0 | HCS110: 0 | HCT110: 0 | HCU110: 0 | HCV110: 0 | HCW110: 0 | HCX110: 0 | HCY110: 0 | HCZ110: 0 | HDA110: 0 | HDB110: 0 | HDC110: 0 | HDD110: 0 | HDE110: =HDE5 -> 0 | HDF110: 0 | HDG110: 0 | HDH110: 0 | HDI110: 0 | HDJ110: 0 | HDK110: 0 | HDL110: 0 | HDM110: 0 | HDN110: 0 | HDO110: 0 | HDP110: 0 | HDQ110: 0 | HDR110: 0 | HDS110: 0 | HDT110: 0 | HDU110: 0 | HDV110: 0 | HDW110: 0 | HDX110: 0 | HDY110: 0 | HDZ110: 0 | HEA110: 0 | HEB110: 0 | HEC110: 0 | HED110: 0 | HEE110: 0 | HEF110: 0 | HEG110: 0 | HEH110: 0 | HEI110: 0 | HEJ110: 0 | HEK110: 0 | HEL110: 0 | HEM110: 0 | HEN110: 0 | HEO110: 0 | HEP110: 0 | HEQ110: 0 | HER110: 0 | HES110: 0 | HET110: 0 | HEU110: 0 | HEV110: 0 | HEW110: 0 | HEX110: 0 | HEY110: 0 | HEZ110: 0 | HFA110: 0 | HFB110: 0 | HFC110: 0 | HFD110: 0 | HFE110: 0 | HFF110: 0 | HFG110: 0 | HFH110: 0 | HFI110: 0 | HFJ110: 0 | HFK110: 0 | HFL110: 0 | HFM110: 0 | HFN110: 0 | HFO110: 0 | HFP110: 0 | HFQ110: =HFQ5 -> 0 | HFR110: 0 | HFS110: 0 | HFT110: 0 | HFU110: 0 | HFV110: 0 | HFW110: 0 | HFX110: 0 | HFY110: 0 | HFZ110: 0 | HGA110: 0 | HGB110: 0 | HGC110: 0 | HGD110: 0 | HGE110: 0 | HGF110: 0 | HGG110: 0 | HGH110: 0 | HGI110: 0 | HGJ110: 0 | HGK110: 0 | HGL110: 0 | HGM110: 0 | HGN110: 0 | HGO110: 0 | HGP110: 0 | HGQ110: 0 | HGR110: 0 | HGS110: 0 | HGT110: 0 | HGU110: 0 | HGV110: 0 | HGW110: 0 | HGX110: 0 | HGY110: 0 | HGZ110: 0 | HHA110: 0 | HHB110: 0 | HHC110: 0 | HHD110: 0 | HHE110: 0 | HHF110: 0 | HHG110: 0 | HHH110: 0 | HHI110: 0 | HHJ110: 0 | HHK110: 0 | HHL110: 0 | HHM110: 0 | HHN110: 0 | HHO110: 0 | HHP110: 0 | HHQ110: 0 | HHR110: 0 | HHS110: 0 | HHT110: 0 | HHU110: 0 | HHV110: 0 | HHW110: 0 | HHX110: 0 | HHY110: 0 | HHZ110: 0 | HIA110: 0 | HIB110: 0 | HIC110: =HIC5 -> 0 | HID110: 0 | HIE110: 0 | HIF110: 0 | HIG110: 0 | HIH110: 0 | HII110: 0 | HIJ110: 0 | HIK110: 0 | HIL110: 0 | HIM110: 0 | HIN110: 0 | HIO110: 0 | HIP110: 0 | HIQ110: 0 | HIR110: 0 | HIS110: 0 | HIT110: 0 | HIU110: 0 | HIV110: 0 | HIW110: 0 | HIX110: 0 | HIY110: 0 | HIZ110: 0 | HJA110: 0 | HJB110: 0 | HJC110: 0 | HJD110: 0 | HJE110: 0 | HJF110: 0 | HJG110: 0 | HJH110: 0 | HJI110: 0 | HJJ110: 0 | HJK110: 0 | HJL110: 0 | HJM110: 0 | HJN110: 0 | HJO110: 0 | HJP110: 0 | HJQ110: 0 | HJR110: 0 | HJS110: 0 | HJT110: 0 | HJU110: 0 | HJV110: 0 | HJW110: 0 | HJX110: 0 | HJY110: 0 | HJZ110: 0 | HKA110: 0 | HKB110: 0 | HKC110: 0 | HKD110: 0 | HKE110: 0 | HKF110: 0 | HKG110: 0 | HKH110: 0 | HKI110: 0 | HKJ110: 0 | HKK110: 0 | HKL110: 0 | HKM110: 0 | HKN110: 0 | HKO110: =HKO5 -> 0 | HKP110: 0 | HKQ110: 0 | HKR110: 0 | HKS110: 0 | HKT110: 0 | HKU110: 0 | HKV110: 0 | HKW110: 0 | HKX110: 0 | HKY110: 0 | HKZ110: 0 | HLA110: 0 | HLB110: 0 | HLC110: 0 | HLD110: 0 | HLE110: 0 | HLF110: 0 | HLG110: 0 | HLH110: 0 | HLI110: 0 | HLJ110: 0 | HLK110: 0 | HLL110: 0 | HLM110: 0 | HLN110: 0 | HLO110: 0 | HLP110: 0 | HLQ110: 0 | HLR110: 0 | HLS110: 0 | HLT110: 0 | HLU110: 0 | HLV110: 0 | HLW110: 0 | HLX110: 0 | HLY110: 0 | HLZ110: 0 | HMA110: 0 | HMB110: 0 | HMC110: 0 | HMD110: 0 | HME110: 0 | HMF110: 0 | HMG110: 0 | HMH110: 0 | HMI110: 0 | HMJ110: 0 | HMK110: 0 | HML110: 0 | HMM110: 0 | HMN110: 0 | HMO110: 0 | HMP110: 0 | HMQ110: 0 | HMR110: 0 | HMS110: 0 | HMT110: 0 | HMU110: 0 | HMV110: 0 | HMW110: 0 | HMX110: 0 | HMY110: 0 | HMZ110: 0 | HNA110: =HNA5 -> 0 | HNB110: 0 | HNC110: 0 | HND110: 0 | HNE110: 0 | HNF110: 0 | HNG110: 0 | HNH110: 0 | HNI110: 0 | HNJ110: 0 | HNK110: 0 | HNL110: 0 | HNM110: 0 | HNN110: 0 | HNO110: 0 | HNP110: 0 | HNQ110: 0 | HNR110: 0 | HNS110: 0 | HNT110: 0 | HNU110: 0 | HNV110: 0 | HNW110: 0 | HNX110: 0 | HNY110: 0 | HNZ110: 0 | HOA110: 0 | HOB110: 0 | HOC110: 0 | HOD110: 0 | HOE110: 0 | HOF110: 0 | HOG110: 0 | HOH110: 0 | HOI110: 0 | HOJ110: 0 | HOK110: 0 | HOL110: 0 | HOM110: 0 | HON110: 0 | HOO110: 0 | HOP110: 0 | HOQ110: 0 | HOR110: 0 | HOS110: 0 | HOT110: 0 | HOU110: 0 | HOV110: 0 | HOW110: 0 | HOX110: 0 | HOY110: 0 | HOZ110: 0 | HPA110: 0 | HPB110: 0 | HPC110: 0 | HPD110: 0 | HPE110: 0 | HPF110: 0 | HPG110: 0 | HPH110: 0 | HPI110: 0 | HPJ110: 0 | HPK110: 0 | HPL110: 0 | HPM110: =HPM5 -> 0 | HPN110: 0 | HPO110: 0 | HPP110: 0 | HPQ110: 0 | HPR110: 0 | HPS110: 0 | HPT110: 0 | HPU110: 0 | HPV110: 0 | HPW110: 0 | HPX110: 0 | HPY110: 0 | HPZ110: 0 | HQA110: 0 | HQB110: 0 | HQC110: 0 | HQD110: 0 | HQE110: 0 | HQF110: 0 | HQG110: 0 | HQH110: 0 | HQI110: 0 | HQJ110: 0 | HQK110: 0 | HQL110: 0 | HQM110: 0 | HQN110: 0 | HQO110: 0 | HQP110: 0 | HQQ110: 0 | HQR110: 0 | HQS110: 0 | HQT110: 0 | HQU110: 0 | HQV110: 0 | HQW110: 0 | HQX110: 0 | HQY110: 0 | HQZ110: 0 | HRA110: 0 | HRB110: 0 | HRC110: 0 | HRD110: 0 | HRE110: 0 | HRF110: 0 | HRG110: 0 | HRH110: 0 | HRI110: 0 | HRJ110: 0 | HRK110: 0 | HRL110: 0 | HRM110: 0 | HRN110: 0 | HRO110: 0 | HRP110: 0 | HRQ110: 0 | HRR110: 0 | HRS110: 0 | HRT110: 0 | HRU110: 0 | HRV110: 0 | HRW110: 0 | HRX110: 0 | HRY110: =HRY5 -> 0 | HRZ110: 0 | HSA110: 0 | HSB110: 0 | HSC110: 0 | HSD110: 0 | HSE110: 0 | HSF110: 0 | HSG110: 0 | HSH110: 0 | HSI110: 0 | HSJ110: 0 | HSK110: 0 | HSL110: 0 | HSM110: 0 | HSN110: 0 | HSO110: 0 | HSP110: 0 | HSQ110: 0 | HSR110: 0 | HSS110: 0 | HST110: 0 | HSU110: 0 | HSV110: 0 | HSW110: 0 | HSX110: 0 | HSY110: 0 | HSZ110: 0 | HTA110: 0 | HTB110: 0 | HTC110: 0 | HTD110: 0 | HTE110: 0 | HTF110: 0 | HTG110: 0 | HTH110: 0 | HTI110: 0 | HTJ110: 0 | HTK110: 0 | HTL110: 0 | HTM110: 0 | HTN110: 0 | HTO110: 0 | HTP110: 0 | HTQ110: 0 | HTR110: 0 | HTS110: 0 | HTT110: 0 | HTU110: 0 | HTV110: 0 | HTW110: 0 | HTX110: 0 | HTY110: 0 | HTZ110: 0 | HUA110: 0 | HUB110: 0 | HUC110: 0 | HUD110: 0 | HUE110: 0 | HUF110: 0 | HUG110: 0 | HUH110: 0 | HUI110: 0 | HUJ110: 0 | HUK110: =HUK5 -> 0 | HUL110: 0 | HUM110: 0 | HUN110: 0 | HUO110: 0 | HUP110: 0 | HUQ110: 0 | HUR110: 0 | HUS110: 0 | HUT110: 0 | HUU110: 0 | HUV110: 0 | HUW110: 0 | HUX110: 0 | HUY110: 0 | HUZ110: 0 | HVA110: 0 | HVB110: 0 | HVC110: 0 | HVD110: 0 | HVE110: 0 | HVF110: 0 | HVG110: 0 | HVH110: 0 | HVI110: 0 | HVJ110: 0 | HVK110: 0 | HVL110: 0 | HVM110: 0 | HVN110: 0 | HVO110: 0 | HVP110: 0 | HVQ110: 0 | HVR110: 0 | HVS110: 0 | HVT110: 0 | HVU110: 0 | HVV110: 0 | HVW110: 0 | HVX110: 0 | HVY110: 0 | HVZ110: 0 | HWA110: 0 | HWB110: 0 | HWC110: 0 | HWD110: 0 | HWE110: 0 | HWF110: 0 | HWG110: 0 | HWH110: 0 | HWI110: 0 | HWJ110: 0 | HWK110: 0 | HWL110: 0 | HWM110: 0 | HWN110: 0 | HWO110: 0 | HWP110: 0 | HWQ110: 0 | HWR110: 0 | HWS110: 0 | HWT110: 0 | HWU110: 0 | HWV110: 0 | HWW110: =HWW5 -> 0 | HWX110: 0 | HWY110: 0 | HWZ110: 0 | HXA110: 0 | HXB110: 0 | HXC110: 0 | HXD110: 0 | HXE110: 0 | HXF110: 0 | HXG110: 0 | HXH110: 0 | HXI110: 0 | HXJ110: 0 | HXK110: 0 | HXL110: 0 | HXM110: 0 | HXN110: 0 | HXO110: 0 | HXP110: 0 | HXQ110: 0 | HXR110: 0 | HXS110: 0 | HXT110: 0 | HXU110: 0 | HXV110: 0 | HXW110: 0 | HXX110: 0 | HXY110: 0 | HXZ110: 0 | HYA110: 0 | HYB110: 0 | HYC110: 0 | HYD110: 0 | HYE110: 0 | HYF110: 0 | HYG110: 0 | HYH110: 0 | HYI110: 0 | HYJ110: 0 | HYK110: 0 | HYL110: 0 | HYM110: 0 | HYN110: 0 | HYO110: 0 | HYP110: 0 | HYQ110: 0 | HYR110: 0 | HYS110: 0 | HYT110: 0 | HYU110: 0 | HYV110: 0 | HYW110: 0 | HYX110: 0 | HYY110: 0 | HYZ110: 0 | HZA110: 0 | HZB110: 0 | HZC110: 0 | HZD110: 0 | HZE110: 0 | HZF110: 0 | HZG110: 0 | HZH110: 0 | HZI110: =HZI5 -> 0 | HZJ110: 0 | HZK110: 0 | HZL110: 0 | HZM110: 0 | HZN110: 0 | HZO110: 0 | HZP110: 0 | HZQ110: 0 | HZR110: 0 | HZS110: 0 | HZT110: 0 | HZU110: 0 | HZV110: 0 | HZW110: 0 | HZX110: 0 | HZY110: 0 | HZZ110: 0 | IAA110: 0 | IAB110: 0 | IAC110: 0 | IAD110: 0 | IAE110: 0 | IAF110: 0 | IAG110: 0 | IAH110: 0 | IAI110: 0 | IAJ110: 0 | IAK110: 0 | IAL110: 0 | IAM110: 0 | IAN110: 0 | IAO110: 0 | IAP110: 0 | IAQ110: 0 | IAR110: 0 | IAS110: 0 | IAT110: 0 | IAU110: 0 | IAV110: 0 | IAW110: 0 | IAX110: 0 | IAY110: 0 | IAZ110: 0 | IBA110: 0 | IBB110: 0 | IBC110: 0 | IBD110: 0 | IBE110: 0 | IBF110: 0 | IBG110: 0 | IBH110: 0 | IBI110: 0 | IBJ110: 0 | IBK110: 0 | IBL110: 0 | IBM110: 0 | IBN110: 0 | IBO110: 0 | IBP110: 0 | IBQ110: 0 | IBR110: 0 | IBS110: 0 | IBT110: 0 | IBU110: =IBU5 -> 0 | IBV110: 0 | IBW110: 0 | IBX110: 0 | IBY110: 0 | IBZ110: 0 | ICA110: 0 | ICB110: 0 | ICC110: 0 | ICD110: 0 | ICE110: 0 | ICF110: 0 | ICG110: 0 | ICH110: 0 | ICI110: 0 | ICJ110: 0 | ICK110: 0 | ICL110: 0 | ICM110: 0 | ICN110: 0 | ICO110: 0 | ICP110: 0 | ICQ110: 0 | ICR110: 0 | ICS110: 0 | ICT110: 0 | ICU110: 0 | ICV110: 0 | ICW110: 0 | ICX110: 0 | ICY110: 0 | ICZ110: 0 | IDA110: 0 | IDB110: 0 | IDC110: 0 | IDD110: 0 | IDE110: 0 | IDF110: 0 | IDG110: 0 | IDH110: 0 | IDI110: 0 | IDJ110: 0 | IDK110: 0 | IDL110: 0 | IDM110: 0 | IDN110: 0 | IDO110: 0 | IDP110: 0 | IDQ110: 0 | IDR110: 0 | IDS110: 0 | IDT110: 0 | IDU110: 0 | IDV110: 0 | IDW110: 0 | IDX110: 0 | IDY110: 0 | IDZ110: 0 | IEA110: 0 | IEB110: 0 | IEC110: 0 | IED110: 0 | IEE110: 0 | IEF110: 0 | IEG110: =IEG5 -> 0 | IEH110: 0 | IEI110: 0 | IEJ110: 0 | IEK110: 0 | IEL110: 0 | IEM110: 0 | IEN110: 0 | IEO110: 0 | IEP110: 0 | IEQ110: 0 | IER110: 0 | IES110: 0 | IET110: 0 | IEU110: 0 | IEV110: 0 | IEW110: 0 | IEX110: 0 | IEY110: 0 | IEZ110: 0 | IFA110: 0 | IFB110: 0 | IFC110: 0 | IFD110: 0 | IFE110: 0 | IFF110: 0 | IFG110: 0 | IFH110: 0 | IFI110: 0 | IFJ110: 0 | IFK110: 0 | IFL110: 0 | IFM110: 0 | IFN110: 0 | IFO110: 0 | IFP110: 0 | IFQ110: 0 | IFR110: 0 | IFS110: 0 | IFT110: 0 | IFU110: 0 | IFV110: 0 | IFW110: 0 | IFX110: 0 | IFY110: 0 | IFZ110: 0 | IGA110: 0 | IGB110: 0 | IGC110: 0 | IGD110: 0 | IGE110: 0 | IGF110: 0 | IGG110: 0 | IGH110: 0 | IGI110: 0 | IGJ110: 0 | IGK110: 0 | IGL110: 0 | IGM110: 0 | IGN110: 0 | IGO110: 0 | IGP110: 0 | IGQ110: 0 | IGR110: 0 | IGS110: =IGS5 -> 0 | IGT110: 0 | IGU110: 0 | IGV110: 0 | IGW110: 0 | IGX110: 0 | IGY110: 0 | IGZ110: 0 | IHA110: 0 | IHB110: 0 | IHC110: 0 | IHD110: 0 | IHE110: 0 | IHF110: 0 | IHG110: 0 | IHH110: 0 | IHI110: 0 | IHJ110: 0 | IHK110: 0 | IHL110: 0 | IHM110: 0 | IHN110: 0 | IHO110: 0 | IHP110: 0 | IHQ110: 0 | IHR110: 0 | IHS110: 0 | IHT110: 0 | IHU110: 0 | IHV110: 0 | IHW110: 0 | IHX110: 0 | IHY110: 0 | IHZ110: 0 | IIA110: 0 | IIB110: 0 | IIC110: 0 | IID110: 0 | IIE110: 0 | IIF110: 0 | IIG110: 0 | IIH110: 0 | III110: 0 | IIJ110: 0 | IIK110: 0 | IIL110: 0 | IIM110: 0 | IIN110: 0 | IIO110: 0 | IIP110: 0 | IIQ110: 0 | IIR110: 0 | IIS110: 0 | IIT110: 0 | IIU110: 0 | IIV110: 0 | IIW110: 0 | IIX110: 0 | IIY110: 0 | IIZ110: 0 | IJA110: 0 | IJB110: 0 | IJC110: 0 | IJD110: 0 | IJE110: =IJE5 -> 0 | IJF110: 0 | IJG110: 0 | IJH110: 0 | IJI110: 0 | IJJ110: 0 | IJK110: 0 | IJL110: 0 | IJM110: 0 | IJN110: 0 | IJO110: 0 | IJP110: 0 | IJQ110: 0 | IJR110: 0 | IJS110: 0 | IJT110: 0 | IJU110: 0 | IJV110: 0 | IJW110: 0 | IJX110: 0 | IJY110: 0 | IJZ110: 0 | IKA110: 0 | IKB110: 0 | IKC110: 0 | IKD110: 0 | IKE110: 0 | IKF110: 0 | IKG110: 0 | IKH110: 0 | IKI110: 0 | IKJ110: 0 | IKK110: 0 | IKL110: 0 | IKM110: 0 | IKN110: 0 | IKO110: 0 | IKP110: 0 | IKQ110: 0 | IKR110: 0 | IKS110: 0 | IKT110: 0 | IKU110: 0 | IKV110: 0 | IKW110: 0 | IKX110: 0 | IKY110: 0 | IKZ110: 0 | ILA110: 0 | ILB110: 0 | ILC110: 0 | ILD110: 0 | ILE110: 0 | ILF110: 0 | ILG110: 0 | ILH110: 0 | ILI110: 0 | ILJ110: 0 | ILK110: 0 | ILL110: 0 | ILM110: 0 | ILN110: 0 | ILO110: 0 | ILP110: 0 | ILQ110: =ILQ5 -> 0 | ILR110: 0 | ILS110: 0 | ILT110: 0 | ILU110: 0 | ILV110: 0 | ILW110: 0 | ILX110: 0 | ILY110: 0 | ILZ110: 0 | IMA110: 0 | IMB110: 0 | IMC110: 0 | IMD110: 0 | IME110: 0 | IMF110: 0 | IMG110: 0 | IMH110: 0 | IMI110: 0 | IMJ110: 0 | IMK110: 0 | IML110: 0 | IMM110: 0 | IMN110: 0 | IMO110: 0 | IMP110: 0 | IMQ110: 0 | IMR110: 0 | IMS110: 0 | IMT110: 0 | IMU110: 0 | IMV110: 0 | IMW110: 0 | IMX110: 0 | IMY110: 0 | IMZ110: 0 | INA110: 0 | INB110: 0 | INC110: 0 | IND110: 0 | INE110: 0 | INF110: 0 | ING110: 0 | INH110: 0 | INI110: 0 | INJ110: 0 | INK110: 0 | INL110: 0 | INM110: 0 | INN110: 0 | INO110: 0 | INP110: 0 | INQ110: 0 | INR110: 0 | INS110: 0 | INT110: 0 | INU110: 0 | INV110: 0 | INW110: 0 | INX110: 0 | INY110: 0 | INZ110: 0 | IOA110: 0 | IOB110: 0 | IOC110: =IOC5 -> 0 | IOD110: 0 | IOE110: 0 | IOF110: 0 | IOG110: 0 | IOH110: 0 | IOI110: 0 | IOJ110: 0 | IOK110: 0 | IOL110: 0 | IOM110: 0 | ION110: 0 | IOO110: 0 | IOP110: 0 | IOQ110: 0 | IOR110: 0 | IOS110: 0 | IOT110: 0 | IOU110: 0 | IOV110: 0 | IOW110: 0 | IOX110: 0 | IOY110: 0 | IOZ110: 0 | IPA110: 0 | IPB110: 0 | IPC110: 0 | IPD110: 0 | IPE110: 0 | IPF110: 0 | IPG110: 0 | IPH110: 0 | IPI110: 0 | IPJ110: 0 | IPK110: 0 | IPL110: 0 | IPM110: 0 | IPN110: 0 | IPO110: 0 | IPP110: 0 | IPQ110: 0 | IPR110: 0 | IPS110: 0 | IPT110: 0 | IPU110: 0 | IPV110: 0 | IPW110: 0 | IPX110: 0 | IPY110: 0 | IPZ110: 0 | IQA110: 0 | IQB110: 0 | IQC110: 0 | IQD110: 0 | IQE110: 0 | IQF110: 0 | IQG110: 0 | IQH110: 0 | IQI110: 0 | IQJ110: 0 | IQK110: 0 | IQL110: 0 | IQM110: 0 | IQN110: 0 | IQO110: =IQO5 -> 0 | IQP110: 0 | IQQ110: 0 | IQR110: 0 | IQS110: 0 | IQT110: 0 | IQU110: 0 | IQV110: 0 | IQW110: 0 | IQX110: 0 | IQY110: 0 | IQZ110: 0 | IRA110: 0 | IRB110: 0 | IRC110: 0 | IRD110: 0 | IRE110: 0 | IRF110: 0 | IRG110: 0 | IRH110: 0 | IRI110: 0 | IRJ110: 0 | IRK110: 0 | IRL110: 0 | IRM110: 0 | IRN110: 0 | IRO110: 0 | IRP110: 0 | IRQ110: 0 | IRR110: 0 | IRS110: 0 | IRT110: 0 | IRU110: 0 | IRV110: 0 | IRW110: 0 | IRX110: 0 | IRY110: 0 | IRZ110: 0 | ISA110: 0 | ISB110: 0 | ISC110: 0 | ISD110: 0 | ISE110: 0 | ISF110: 0 | ISG110: 0 | ISH110: 0 | ISI110: 0 | ISJ110: 0 | ISK110: 0 | ISL110: 0 | ISM110: 0 | ISN110: 0 | ISO110: 0 | ISP110: 0 | ISQ110: 0 | ISR110: 0 | ISS110: 0 | IST110: 0 | ISU110: 0 | ISV110: 0 | ISW110: 0 | ISX110: 0 | ISY110: 0 | ISZ110: 0 | ITA110: =ITA5 -> 0 | ITB110: 0 | ITC110: 0 | ITD110: 0 | ITE110: 0 | ITF110: 0 | ITG110: 0 | ITH110: 0 | ITI110: 0 | ITJ110: 0 | ITK110: 0 | ITL110: 0 | ITM110: 0 | ITN110: 0 | ITO110: 0 | ITP110: 0 | ITQ110: 0 | ITR110: 0 | ITS110: 0 | ITT110: 0 | ITU110: 0 | ITV110: 0 | ITW110: 0 | ITX110: 0 | ITY110: 0 | ITZ110: 0 | IUA110: 0 | IUB110: 0 | IUC110: 0 | IUD110: 0 | IUE110: 0 | IUF110: 0 | IUG110: 0 | IUH110: 0 | IUI110: 0 | IUJ110: 0 | IUK110: 0 | IUL110: 0 | IUM110: 0 | IUN110: 0 | IUO110: 0 | IUP110: 0 | IUQ110: 0 | IUR110: 0 | IUS110: 0 | IUT110: 0 | IUU110: 0 | IUV110: 0 | IUW110: 0 | IUX110: 0 | IUY110: 0 | IUZ110: 0 | IVA110: 0 | IVB110: 0 | IVC110: 0 | IVD110: 0 | IVE110: 0 | IVF110: 0 | IVG110: 0 | IVH110: 0 | IVI110: 0 | IVJ110: 0 | IVK110: 0 | IVL110: 0 | IVM110: =IVM5 -> 0 | IVN110: 0 | IVO110: 0 | IVP110: 0 | IVQ110: 0 | IVR110: 0 | IVS110: 0 | IVT110: 0 | IVU110: 0 | IVV110: 0 | IVW110: 0 | IVX110: 0 | IVY110: 0 | IVZ110: 0 | IWA110: 0 | IWB110: 0 | IWC110: 0 | IWD110: 0 | IWE110: 0 | IWF110: 0 | IWG110: 0 | IWH110: 0 | IWI110: 0 | IWJ110: 0 | IWK110: 0 | IWL110: 0 | IWM110: 0 | IWN110: 0 | IWO110: 0 | IWP110: 0 | IWQ110: 0 | IWR110: 0 | IWS110: 0 | IWT110: 0 | IWU110: 0 | IWV110: 0 | IWW110: 0 | IWX110: 0 | IWY110: 0 | IWZ110: 0 | IXA110: 0 | IXB110: 0 | IXC110: 0 | IXD110: 0 | IXE110: 0 | IXF110: 0 | IXG110: 0 | IXH110: 0 | IXI110: 0 | IXJ110: 0 | IXK110: 0 | IXL110: 0 | IXM110: 0 | IXN110: 0 | IXO110: 0 | IXP110: 0 | IXQ110: 0 | IXR110: 0 | IXS110: 0 | IXT110: 0 | IXU110: 0 | IXV110: 0 | IXW110: 0 | IXX110: 0 | IXY110: =IXY5 -> 0 | IXZ110: 0 | IYA110: 0 | IYB110: 0 | IYC110: 0 | IYD110: 0 | IYE110: 0 | IYF110: 0 | IYG110: 0 | IYH110: 0 | IYI110: 0 | IYJ110: 0 | IYK110: 0 | IYL110: 0 | IYM110: 0 | IYN110: 0 | IYO110: 0 | IYP110: 0 | IYQ110: 0 | IYR110: 0 | IYS110: 0 | IYT110: 0 | IYU110: 0 | IYV110: 0 | IYW110: 0 | IYX110: 0 | IYY110: 0 | IYZ110: 0 | IZA110: 0 | IZB110: 0 | IZC110: 0 | IZD110: 0 | IZE110: 0 | IZF110: 0 | IZG110: 0 | IZH110: 0 | IZI110: 0 | IZJ110: 0 | IZK110: 0 | IZL110: 0 | IZM110: 0 | IZN110: 0 | IZO110: 0 | IZP110: 0 | IZQ110: 0 | IZR110: 0 | IZS110: 0 | IZT110: 0 | IZU110: 0 | IZV110: 0 | IZW110: 0 | IZX110: 0 | IZY110: 0 | IZZ110: 0 | JAA110: 0 | JAB110: 0 | JAC110: 0 | JAD110: 0 | JAE110: 0 | JAF110: 0 | JAG110: 0 | JAH110: 0 | JAI110: 0 | JAJ110: 0 | JAK110: =JAK5 -> 0 | JAL110: 0 | JAM110: 0 | JAN110: 0 | JAO110: 0 | JAP110: 0 | JAQ110: 0 | JAR110: 0 | JAS110: 0 | JAT110: 0 | JAU110: 0 | JAV110: 0 | JAW110: 0 | JAX110: 0 | JAY110: 0 | JAZ110: 0 | JBA110: 0 | JBB110: 0 | JBC110: 0 | JBD110: 0 | JBE110: 0 | JBF110: 0 | JBG110: 0 | JBH110: 0 | JBI110: 0 | JBJ110: 0 | JBK110: 0 | JBL110: 0 | JBM110: 0 | JBN110: 0 | JBO110: 0 | JBP110: 0 | JBQ110: 0 | JBR110: 0 | JBS110: 0 | JBT110: 0 | JBU110: 0 | JBV110: 0 | JBW110: 0 | JBX110: 0 | JBY110: 0 | JBZ110: 0 | JCA110: 0 | JCB110: 0 | JCC110: 0 | JCD110: 0 | JCE110: 0 | JCF110: 0 | JCG110: 0 | JCH110: 0 | JCI110: 0 | JCJ110: 0 | JCK110: 0 | JCL110: 0 | JCM110: 0 | JCN110: 0 | JCO110: 0 | JCP110: 0 | JCQ110: 0 | JCR110: 0 | JCS110: 0 | JCT110: 0 | JCU110: 0 | JCV110: 0 | JCW110: =JCW5 -> 0 | JCX110: 0 | JCY110: 0 | JCZ110: 0 | JDA110: 0 | JDB110: 0 | JDC110: 0 | JDD110: 0 | JDE110: 0 | JDF110: 0 | JDG110: 0 | JDH110: 0 | JDI110: 0 | JDJ110: 0 | JDK110: 0 | JDL110: 0 | JDM110: 0 | JDN110: 0 | JDO110: 0 | JDP110: 0 | JDQ110: 0 | JDR110: 0 | JDS110: 0 | JDT110: 0 | JDU110: 0 | JDV110: 0 | JDW110: 0 | JDX110: 0 | JDY110: 0 | JDZ110: 0 | JEA110: 0 | JEB110: 0 | JEC110: 0 | JED110: 0 | JEE110: 0 | JEF110: 0 | JEG110: 0 | JEH110: 0 | JEI110: 0 | JEJ110: 0 | JEK110: 0 | JEL110: 0 | JEM110: 0 | JEN110: 0 | JEO110: 0 | JEP110: 0 | JEQ110: 0 | JER110: 0 | JES110: 0 | JET110: 0 | JEU110: 0 | JEV110: 0 | JEW110: 0 | JEX110: 0 | JEY110: 0 | JEZ110: 0 | JFA110: 0 | JFB110: 0 | JFC110: 0 | JFD110: 0 | JFE110: 0 | JFF110: 0 | JFG110: 0 | JFH110: 0 | JFI110: =JFI5 -> 0 | JFJ110: 0 | JFK110: 0 | JFL110: 0 | JFM110: 0 | JFN110: 0 | JFO110: 0 | JFP110: 0 | JFQ110: 0 | JFR110: 0 | JFS110: 0 | JFT110: 0 | JFU110: 0 | JFV110: 0 | JFW110: 0 | JFX110: 0 | JFY110: 0 | JFZ110: 0 | JGA110: 0 | JGB110: 0 | JGC110: 0 | JGD110: 0 | JGE110: 0 | JGF110: 0 | JGG110: 0 | JGH110: 0 | JGI110: 0 | JGJ110: 0 | JGK110: 0 | JGL110: 0 | JGM110: 0 | JGN110: 0 | JGO110: 0 | JGP110: 0 | JGQ110: 0 | JGR110: 0 | JGS110: 0 | JGT110: 0 | JGU110: 0 | JGV110: 0 | JGW110: 0 | JGX110: 0 | JGY110: 0 | JGZ110: 0 | JHA110: 0 | JHB110: 0 | JHC110: 0 | JHD110: 0 | JHE110: 0 | JHF110: 0 | JHG110: 0 | JHH110: 0 | JHI110: 0 | JHJ110: 0 | JHK110: 0 | JHL110: 0 | JHM110: 0 | JHN110: 0 | JHO110: 0 | JHP110: 0 | JHQ110: 0 | JHR110: 0 | JHS110: 0 | JHT110: 0 | JHU110: =JHU5 -> 0 | JHV110: 0 | JHW110: 0 | JHX110: 0 | JHY110: 0 | JHZ110: 0 | JIA110: 0 | JIB110: 0 | JIC110: 0 | JID110: 0 | JIE110: 0 | JIF110: 0 | JIG110: 0 | JIH110: 0 | JII110: 0 | JIJ110: 0 | JIK110: 0 | JIL110: 0 | JIM110: 0 | JIN110: 0 | JIO110: 0 | JIP110: 0 | JIQ110: 0 | JIR110: 0 | JIS110: 0 | JIT110: 0 | JIU110: 0 | JIV110: 0 | JIW110: 0 | JIX110: 0 | JIY110: 0 | JIZ110: 0 | JJA110: 0 | JJB110: 0 | JJC110: 0 | JJD110: 0 | JJE110: 0 | JJF110: 0 | JJG110: 0 | JJH110: 0 | JJI110: 0 | JJJ110: 0 | JJK110: 0 | JJL110: 0 | JJM110: 0 | JJN110: 0 | JJO110: 0 | JJP110: 0 | JJQ110: 0 | JJR110: 0 | JJS110: 0 | JJT110: 0 | JJU110: 0 | JJV110: 0 | JJW110: 0 | JJX110: 0 | JJY110: 0 | JJZ110: 0 | JKA110: 0 | JKB110: 0 | JKC110: 0 | JKD110: 0 | JKE110: 0 | JKF110: 0 | JKG110: =JKG5 -> 0 | JKH110: 0 | JKI110: 0 | JKJ110: 0 | JKK110: 0 | JKL110: 0 | JKM110: 0 | JKN110: 0 | JKO110: 0 | JKP110: 0 | JKQ110: 0 | JKR110: 0 | JKS110: 0 | JKT110: 0 | JKU110: 0 | JKV110: 0 | JKW110: 0 | JKX110: 0 | JKY110: 0 | JKZ110: 0 | JLA110: 0 | JLB110: 0 | JLC110: 0 | JLD110: 0 | JLE110: 0 | JLF110: 0 | JLG110: 0 | JLH110: 0 | JLI110: 0 | JLJ110: 0 | JLK110: 0 | JLL110: 0 | JLM110: 0 | JLN110: 0 | JLO110: 0 | JLP110: 0 | JLQ110: 0 | JLR110: 0 | JLS110: 0 | JLT110: 0 | JLU110: 0 | JLV110: 0 | JLW110: 0 | JLX110: 0 | JLY110: 0 | JLZ110: 0 | JMA110: 0 | JMB110: 0 | JMC110: 0 | JMD110: 0 | JME110: 0 | JMF110: 0 | JMG110: 0 | JMH110: 0 | JMI110: 0 | JMJ110: 0 | JMK110: 0 | JML110: 0 | JMM110: 0 | JMN110: 0 | JMO110: 0 | JMP110: 0 | JMQ110: 0 | JMR110: 0 | JMS110: =JMS5 -> 0 | JMT110: 0 | JMU110: 0 | JMV110: 0 | JMW110: 0 | JMX110: 0 | JMY110: 0 | JMZ110: 0 | JNA110: 0 | JNB110: 0 | JNC110: 0 | JND110: 0 | JNE110: 0 | JNF110: 0 | JNG110: 0 | JNH110: 0 | JNI110: 0 | JNJ110: 0 | JNK110: 0 | JNL110: 0 | JNM110: 0 | JNN110: 0 | JNO110: 0 | JNP110: 0 | JNQ110: 0 | JNR110: 0 | JNS110: 0 | JNT110: 0 | JNU110: 0 | JNV110: 0 | JNW110: 0 | JNX110: 0 | JNY110: 0 | JNZ110: 0 | JOA110: 0 | JOB110: 0 | JOC110: 0 | JOD110: 0 | JOE110: 0 | JOF110: 0 | JOG110: 0 | JOH110: 0 | JOI110: 0 | JOJ110: 0 | JOK110: 0 | JOL110: 0 | JOM110: 0 | JON110: 0 | JOO110: 0 | JOP110: 0 | JOQ110: 0 | JOR110: 0 | JOS110: 0 | JOT110: 0 | JOU110: 0 | JOV110: 0 | JOW110: 0 | JOX110: 0 | JOY110: 0 | JOZ110: 0 | JPA110: 0 | JPB110: 0 | JPC110: 0 | JPD110: 0 | JPE110: =JPE5 -> 0 | JPF110: 0 | JPG110: 0 | JPH110: 0 | JPI110: 0 | JPJ110: 0 | JPK110: 0 | JPL110: 0 | JPM110: 0 | JPN110: 0 | JPO110: 0 | JPP110: 0 | JPQ110: 0 | JPR110: 0 | JPS110: 0 | JPT110: 0 | JPU110: 0 | JPV110: 0 | JPW110: 0 | JPX110: 0 | JPY110: 0 | JPZ110: 0 | JQA110: 0 | JQB110: 0 | JQC110: 0 | JQD110: 0 | JQE110: 0 | JQF110: 0 | JQG110: 0 | JQH110: 0 | JQI110: 0 | JQJ110: 0 | JQK110: 0 | JQL110: 0 | JQM110: 0 | JQN110: 0 | JQO110: 0 | JQP110: 0 | JQQ110: 0 | JQR110: 0 | JQS110: 0 | JQT110: 0 | JQU110: 0 | JQV110: 0 | JQW110: 0 | JQX110: 0 | JQY110: 0 | JQZ110: 0 | JRA110: 0 | JRB110: 0 | JRC110: 0 | JRD110: 0 | JRE110: 0 | JRF110: 0 | JRG110: 0 | JRH110: 0 | JRI110: 0 | JRJ110: 0 | JRK110: 0 | JRL110: 0 | JRM110: 0 | JRN110: 0 | JRO110: 0 | JRP110: 0 | JRQ110: =JRQ5 -> 0 | JRR110: 0 | JRS110: 0 | JRT110: 0 | JRU110: 0 | JRV110: 0 | JRW110: 0 | JRX110: 0 | JRY110: 0 | JRZ110: 0 | JSA110: 0 | JSB110: 0 | JSC110: 0 | JSD110: 0 | JSE110: 0 | JSF110: 0 | JSG110: 0 | JSH110: 0 | JSI110: 0 | JSJ110: 0 | JSK110: 0 | JSL110: 0 | JSM110: 0 | JSN110: 0 | JSO110: 0 | JSP110: 0 | JSQ110: 0 | JSR110: 0 | JSS110: 0 | JST110: 0 | JSU110: 0 | JSV110: 0 | JSW110: 0 | JSX110: 0 | JSY110: 0 | JSZ110: 0 | JTA110: 0 | JTB110: 0 | JTC110: 0 | JTD110: 0 | JTE110: 0 | JTF110: 0 | JTG110: 0 | JTH110: 0 | JTI110: 0 | JTJ110: 0 | JTK110: 0 | JTL110: 0 | JTM110: 0 | JTN110: 0 | JTO110: 0 | JTP110: 0 | JTQ110: 0 | JTR110: 0 | JTS110: 0 | JTT110: 0 | JTU110: 0 | JTV110: 0 | JTW110: 0 | JTX110: 0 | JTY110: 0 | JTZ110: 0 | JUA110: 0 | JUB110: 0 | JUC110: =JUC5 -> 0 | JUD110: 0 | JUE110: 0 | JUF110: 0 | JUG110: 0 | JUH110: 0 | JUI110: 0 | JUJ110: 0 | JUK110: 0 | JUL110: 0 | JUM110: 0 | JUN110: 0 | JUO110: 0 | JUP110: 0 | JUQ110: 0 | JUR110: 0 | JUS110: 0 | JUT110: 0 | JUU110: 0 | JUV110: 0 | JUW110: 0 | JUX110: 0 | JUY110: 0 | JUZ110: 0 | JVA110: 0 | JVB110: 0 | JVC110: 0 | JVD110: 0 | JVE110: 0 | JVF110: 0 | JVG110: 0 | JVH110: 0 | JVI110: 0 | JVJ110: 0 | JVK110: 0 | JVL110: 0 | JVM110: 0 | JVN110: 0 | JVO110: 0 | JVP110: 0 | JVQ110: 0 | JVR110: 0 | JVS110: 0 | JVT110: 0 | JVU110: 0 | JVV110: 0 | JVW110: 0 | JVX110: 0 | JVY110: 0 | JVZ110: 0 | JWA110: 0 | JWB110: 0 | JWC110: 0 | JWD110: 0 | JWE110: 0 | JWF110: 0 | JWG110: 0 | JWH110: 0 | JWI110: 0 | JWJ110: 0 | JWK110: 0 | JWL110: 0 | JWM110: 0 | JWN110: 0 | JWO110: =JWO5 -> 0 | JWP110: 0 | JWQ110: 0 | JWR110: 0 | JWS110: 0 | JWT110: 0 | JWU110: 0 | JWV110: 0 | JWW110: 0 | JWX110: 0 | JWY110: 0 | JWZ110: 0 | JXA110: 0 | JXB110: 0 | JXC110: 0 | JXD110: 0 | JXE110: 0 | JXF110: 0 | JXG110: 0 | JXH110: 0 | JXI110: 0 | JXJ110: 0 | JXK110: 0 | JXL110: 0 | JXM110: 0 | JXN110: 0 | JXO110: 0 | JXP110: 0 | JXQ110: 0 | JXR110: 0 | JXS110: 0 | JXT110: 0 | JXU110: 0 | JXV110: 0 | JXW110: 0 | JXX110: 0 | JXY110: 0 | JXZ110: 0 | JYA110: 0 | JYB110: 0 | JYC110: 0 | JYD110: 0 | JYE110: 0 | JYF110: 0 | JYG110: 0 | JYH110: 0 | JYI110: 0 | JYJ110: 0 | JYK110: 0 | JYL110: 0 | JYM110: 0 | JYN110: 0 | JYO110: 0 | JYP110: 0 | JYQ110: 0 | JYR110: 0 | JYS110: 0 | JYT110: 0 | JYU110: 0 | JYV110: 0 | JYW110: 0 | JYX110: 0 | JYY110: 0 | JYZ110: 0 | JZA110: =JZA5 -> 0 | JZB110: 0 | JZC110: 0 | JZD110: 0 | JZE110: 0 | JZF110: 0 | JZG110: 0 | JZH110: 0 | JZI110: 0 | JZJ110: 0 | JZK110: 0 | JZL110: 0 | JZM110: 0 | JZN110: 0 | JZO110: 0 | JZP110: 0 | JZQ110: 0 | JZR110: 0 | JZS110: 0 | JZT110: 0 | JZU110: 0 | JZV110: 0 | JZW110: 0 | JZX110: 0 | JZY110: 0 | JZZ110: 0 | KAA110: 0 | KAB110: 0 | KAC110: 0 | KAD110: 0 | KAE110: 0 | KAF110: 0 | KAG110: 0 | KAH110: 0 | KAI110: 0 | KAJ110: 0 | KAK110: 0 | KAL110: 0 | KAM110: 0 | KAN110: 0 | KAO110: 0 | KAP110: 0 | KAQ110: 0 | KAR110: 0 | KAS110: 0 | KAT110: 0 | KAU110: 0 | KAV110: 0 | KAW110: 0 | KAX110: 0 | KAY110: 0 | KAZ110: 0 | KBA110: 0 | KBB110: 0 | KBC110: 0 | KBD110: 0 | KBE110: 0 | KBF110: 0 | KBG110: 0 | KBH110: 0 | KBI110: 0 | KBJ110: 0 | KBK110: 0 | KBL110: 0 | KBM110: =KBM5 -> 0 | KBN110: 0 | KBO110: 0 | KBP110: 0 | KBQ110: 0 | KBR110: 0 | KBS110: 0 | KBT110: 0 | KBU110: 0 | KBV110: 0 | KBW110: 0 | KBX110: 0 | KBY110: 0 | KBZ110: 0 | KCA110: 0 | KCB110: 0 | KCC110: 0 | KCD110: 0 | KCE110: 0 | KCF110: 0 | KCG110: 0 | KCH110: 0 | KCI110: 0 | KCJ110: 0 | KCK110: 0 | KCL110: 0 | KCM110: 0 | KCN110: 0 | KCO110: 0 | KCP110: 0 | KCQ110: 0 | KCR110: 0 | KCS110: 0 | KCT110: 0 | KCU110: 0 | KCV110: 0 | KCW110: 0 | KCX110: 0 | KCY110: 0 | KCZ110: 0 | KDA110: 0 | KDB110: 0 | KDC110: 0 | KDD110: 0 | KDE110: 0 | KDF110: 0 | KDG110: 0 | KDH110: 0 | KDI110: 0 | KDJ110: 0 | KDK110: 0 | KDL110: 0 | KDM110: 0 | KDN110: 0 | KDO110: 0 | KDP110: 0 | KDQ110: 0 | KDR110: 0 | KDS110: 0 | KDT110: 0 | KDU110: 0 | KDV110: 0 | KDW110: 0 | KDX110: 0 | KDY110: =KDY5 -> 0 | KDZ110: 0 | KEA110: 0 | KEB110: 0 | KEC110: 0 | KED110: 0 | KEE110: 0 | KEF110: 0 | KEG110: 0 | KEH110: 0 | KEI110: 0 | KEJ110: 0 | KEK110: 0 | KEL110: 0 | KEM110: 0 | KEN110: 0 | KEO110: 0 | KEP110: 0 | KEQ110: 0 | KER110: 0 | KES110: 0 | KET110: 0 | KEU110: 0 | KEV110: 0 | KEW110: 0 | KEX110: 0 | KEY110: 0 | KEZ110: 0 | KFA110: 0 | KFB110: 0 | KFC110: 0 | KFD110: 0 | KFE110: 0 | KFF110: 0 | KFG110: 0 | KFH110: 0 | KFI110: 0 | KFJ110: 0 | KFK110: 0 | KFL110: 0 | KFM110: 0 | KFN110: 0 | KFO110: 0 | KFP110: 0 | KFQ110: 0 | KFR110: 0 | KFS110: 0 | KFT110: 0 | KFU110: 0 | KFV110: 0 | KFW110: 0 | KFX110: 0 | KFY110: 0 | KFZ110: 0 | KGA110: 0 | KGB110: 0 | KGC110: 0 | KGD110: 0 | KGE110: 0 | KGF110: 0 | KGG110: 0 | KGH110: 0 | KGI110: 0 | KGJ110: 0 | KGK110: =KGK5 -> 0 | KGL110: 0 | KGM110: 0 | KGN110: 0 | KGO110: 0 | KGP110: 0 | KGQ110: 0 | KGR110: 0 | KGS110: 0 | KGT110: 0 | KGU110: 0 | KGV110: 0 | KGW110: 0 | KGX110: 0 | KGY110: 0 | KGZ110: 0 | KHA110: 0 | KHB110: 0 | KHC110: 0 | KHD110: 0 | KHE110: 0 | KHF110: 0 | KHG110: 0 | KHH110: 0 | KHI110: 0 | KHJ110: 0 | KHK110: 0 | KHL110: 0 | KHM110: 0 | KHN110: 0 | KHO110: 0 | KHP110: 0 | KHQ110: 0 | KHR110: 0 | KHS110: 0 | KHT110: 0 | KHU110: 0 | KHV110: 0 | KHW110: 0 | KHX110: 0 | KHY110: 0 | KHZ110: 0 | KIA110: 0 | KIB110: 0 | KIC110: 0 | KID110: 0 | KIE110: 0 | KIF110: 0 | KIG110: 0 | KIH110: 0 | KII110: 0 | KIJ110: 0 | KIK110: 0 | KIL110: 0 | KIM110: 0 | KIN110: 0 | KIO110: 0 | KIP110: 0 | KIQ110: 0 | KIR110: 0 | KIS110: 0 | KIT110: 0 | KIU110: 0 | KIV110: 0 | KIW110: =KIW5 -> 0 | KIX110: 0 | KIY110: 0 | KIZ110: 0 | KJA110: 0 | KJB110: 0 | KJC110: 0 | KJD110: 0 | KJE110: 0 | KJF110: 0 | KJG110: 0 | KJH110: 0 | KJI110: 0 | KJJ110: 0 | KJK110: 0 | KJL110: 0 | KJM110: 0 | KJN110: 0 | KJO110: 0 | KJP110: 0 | KJQ110: 0 | KJR110: 0 | KJS110: 0 | KJT110: 0 | KJU110: 0 | KJV110: 0 | KJW110: 0 | KJX110: 0 | KJY110: 0 | KJZ110: 0 | KKA110: 0 | KKB110: 0 | KKC110: 0 | KKD110: 0 | KKE110: 0 | KKF110: 0 | KKG110: 0 | KKH110: 0 | KKI110: 0 | KKJ110: 0 | KKK110: 0 | KKL110: 0 | KKM110: 0 | KKN110: 0 | KKO110: 0 | KKP110: 0 | KKQ110: 0 | KKR110: 0 | KKS110: 0 | KKT110: 0 | KKU110: 0 | KKV110: 0 | KKW110: 0 | KKX110: 0 | KKY110: 0 | KKZ110: 0 | KLA110: 0 | KLB110: 0 | KLC110: 0 | KLD110: 0 | KLE110: 0 | KLF110: 0 | KLG110: 0 | KLH110: 0 | KLI110: =KLI5 -> 0 | KLJ110: 0 | KLK110: 0 | KLL110: 0 | KLM110: 0 | KLN110: 0 | KLO110: 0 | KLP110: 0 | KLQ110: 0 | KLR110: 0 | KLS110: 0 | KLT110: 0 | KLU110: 0 | KLV110: 0 | KLW110: 0 | KLX110: 0 | KLY110: 0 | KLZ110: 0 | KMA110: 0 | KMB110: 0 | KMC110: 0 | KMD110: 0 | KME110: 0 | KMF110: 0 | KMG110: 0 | KMH110: 0 | KMI110: 0 | KMJ110: 0 | KMK110: 0 | KML110: 0 | KMM110: 0 | KMN110: 0 | KMO110: 0 | KMP110: 0 | KMQ110: 0 | KMR110: 0 | KMS110: 0 | KMT110: 0 | KMU110: 0 | KMV110: 0 | KMW110: 0 | KMX110: 0 | KMY110: 0 | KMZ110: 0 | KNA110: 0 | KNB110: 0 | KNC110: 0 | KND110: 0 | KNE110: 0 | KNF110: 0 | KNG110: 0 | KNH110: 0 | KNI110: 0 | KNJ110: 0 | KNK110: 0 | KNL110: 0 | KNM110: 0 | KNN110: 0 | KNO110: 0 | KNP110: 0 | KNQ110: 0 | KNR110: 0 | KNS110: 0 | KNT110: 0 | KNU110: =KNU5 -> 0 | KNV110: 0 | KNW110: 0 | KNX110: 0 | KNY110: 0 | KNZ110: 0 | KOA110: 0 | KOB110: 0 | KOC110: 0 | KOD110: 0 | KOE110: 0 | KOF110: 0 | KOG110: 0 | KOH110: 0 | KOI110: 0 | KOJ110: 0 | KOK110: 0 | KOL110: 0 | KOM110: 0 | KON110: 0 | KOO110: 0 | KOP110: 0 | KOQ110: 0 | KOR110: 0 | KOS110: 0 | KOT110: 0 | KOU110: 0 | KOV110: 0 | KOW110: 0 | KOX110: 0 | KOY110: 0 | KOZ110: 0 | KPA110: 0 | KPB110: 0 | KPC110: 0 | KPD110: 0 | KPE110: 0 | KPF110: 0 | KPG110: 0 | KPH110: 0 | KPI110: 0 | KPJ110: 0 | KPK110: 0 | KPL110: 0 | KPM110: 0 | KPN110: 0 | KPO110: 0 | KPP110: 0 | KPQ110: 0 | KPR110: 0 | KPS110: 0 | KPT110: 0 | KPU110: 0 | KPV110: 0 | KPW110: 0 | KPX110: 0 | KPY110: 0 | KPZ110: 0 | KQA110: 0 | KQB110: 0 | KQC110: 0 | KQD110: 0 | KQE110: 0 | KQF110: 0 | KQG110: =KQG5 -> 0 | KQH110: 0 | KQI110: 0 | KQJ110: 0 | KQK110: 0 | KQL110: 0 | KQM110: 0 | KQN110: 0 | KQO110: 0 | KQP110: 0 | KQQ110: 0 | KQR110: 0 | KQS110: 0 | KQT110: 0 | KQU110: 0 | KQV110: 0 | KQW110: 0 | KQX110: 0 | KQY110: 0 | KQZ110: 0 | KRA110: 0 | KRB110: 0 | KRC110: 0 | KRD110: 0 | KRE110: 0 | KRF110: 0 | KRG110: 0 | KRH110: 0 | KRI110: 0 | KRJ110: 0 | KRK110: 0 | KRL110: 0 | KRM110: 0 | KRN110: 0 | KRO110: 0 | KRP110: 0 | KRQ110: 0 | KRR110: 0 | KRS110: 0 | KRT110: 0 | KRU110: 0 | KRV110: 0 | KRW110: 0 | KRX110: 0 | KRY110: 0 | KRZ110: 0 | KSA110: 0 | KSB110: 0 | KSC110: 0 | KSD110: 0 | KSE110: 0 | KSF110: 0 | KSG110: 0 | KSH110: 0 | KSI110: 0 | KSJ110: 0 | KSK110: 0 | KSL110: 0 | KSM110: 0 | KSN110: 0 | KSO110: 0 | KSP110: 0 | KSQ110: 0 | KSR110: 0 | KSS110: =KSS5 -> 0 | KST110: 0 | KSU110: 0 | KSV110: 0 | KSW110: 0 | KSX110: 0 | KSY110: 0 | KSZ110: 0 | KTA110: 0 | KTB110: 0 | KTC110: 0 | KTD110: 0 | KTE110: 0 | KTF110: 0 | KTG110: 0 | KTH110: 0 | KTI110: 0 | KTJ110: 0 | KTK110: 0 | KTL110: 0 | KTM110: 0 | KTN110: 0 | KTO110: 0 | KTP110: 0 | KTQ110: 0 | KTR110: 0 | KTS110: 0 | KTT110: 0 | KTU110: 0 | KTV110: 0 | KTW110: 0 | KTX110: 0 | KTY110: 0 | KTZ110: 0 | KUA110: 0 | KUB110: 0 | KUC110: 0 | KUD110: 0 | KUE110: 0 | KUF110: 0 | KUG110: 0 | KUH110: 0 | KUI110: 0 | KUJ110: 0 | KUK110: 0 | KUL110: 0 | KUM110: 0 | KUN110: 0 | KUO110: 0 | KUP110: 0 | KUQ110: 0 | KUR110: 0 | KUS110: 0 | KUT110: 0 | KUU110: 0 | KUV110: 0 | KUW110: 0 | KUX110: 0 | KUY110: 0 | KUZ110: 0 | KVA110: 0 | KVB110: 0 | KVC110: 0 | KVD110: 0 | KVE110: =KVE5 -> 0 | KVF110: 0 | KVG110: 0 | KVH110: 0 | KVI110: 0 | KVJ110: 0 | KVK110: 0 | KVL110: 0 | KVM110: 0 | KVN110: 0 | KVO110: 0 | KVP110: 0 | KVQ110: 0 | KVR110: 0 | KVS110: 0 | KVT110: 0 | KVU110: 0 | KVV110: 0 | KVW110: 0 | KVX110: 0 | KVY110: 0 | KVZ110: 0 | KWA110: 0 | KWB110: 0 | KWC110: 0 | KWD110: 0 | KWE110: 0 | KWF110: 0 | KWG110: 0 | KWH110: 0 | KWI110: 0 | KWJ110: 0 | KWK110: 0 | KWL110: 0 | KWM110: 0 | KWN110: 0 | KWO110: 0 | KWP110: 0 | KWQ110: 0 | KWR110: 0 | KWS110: 0 | KWT110: 0 | KWU110: 0 | KWV110: 0 | KWW110: 0 | KWX110: 0 | KWY110: 0 | KWZ110: 0 | KXA110: 0 | KXB110: 0 | KXC110: 0 | KXD110: 0 | KXE110: 0 | KXF110: 0 | KXG110: 0 | KXH110: 0 | KXI110: 0 | KXJ110: 0 | KXK110: 0 | KXL110: 0 | KXM110: 0 | KXN110: 0 | KXO110: 0 | KXP110: 0 | KXQ110: =KXQ5 -> 0 | KXR110: 0 | KXS110: 0 | KXT110: 0 | KXU110: 0 | KXV110: 0 | KXW110: 0 | KXX110: 0 | KXY110: 0 | KXZ110: 0 | KYA110: 0 | KYB110: 0 | KYC110: 0 | KYD110: 0 | KYE110: 0 | KYF110: 0 | KYG110: 0 | KYH110: 0 | KYI110: 0 | KYJ110: 0 | KYK110: 0 | KYL110: 0 | KYM110: 0 | KYN110: 0 | KYO110: 0 | KYP110: 0 | KYQ110: 0 | KYR110: 0 | KYS110: 0 | KYT110: 0 | KYU110: 0 | KYV110: 0 | KYW110: 0 | KYX110: 0 | KYY110: 0 | KYZ110: 0 | KZA110: 0 | KZB110: 0 | KZC110: 0 | KZD110: 0 | KZE110: 0 | KZF110: 0 | KZG110: 0 | KZH110: 0 | KZI110: 0 | KZJ110: 0 | KZK110: 0 | KZL110: 0 | KZM110: 0 | KZN110: 0 | KZO110: 0 | KZP110: 0 | KZQ110: 0 | KZR110: 0 | KZS110: 0 | KZT110: 0 | KZU110: 0 | KZV110: 0 | KZW110: 0 | KZX110: 0 | KZY110: 0 | KZZ110: 0 | LAA110: 0 | LAB110: 0 | LAC110: =LAC5 -> 0 | LAD110: 0 | LAE110: 0 | LAF110: 0 | LAG110: 0 | LAH110: 0 | LAI110: 0 | LAJ110: 0 | LAK110: 0 | LAL110: 0 | LAM110: 0 | LAN110: 0 | LAO110: 0 | LAP110: 0 | LAQ110: 0 | LAR110: 0 | LAS110: 0 | LAT110: 0 | LAU110: 0 | LAV110: 0 | LAW110: 0 | LAX110: 0 | LAY110: 0 | LAZ110: 0 | LBA110: 0 | LBB110: 0 | LBC110: 0 | LBD110: 0 | LBE110: 0 | LBF110: 0 | LBG110: 0 | LBH110: 0 | LBI110: 0 | LBJ110: 0 | LBK110: 0 | LBL110: 0 | LBM110: 0 | LBN110: 0 | LBO110: 0 | LBP110: 0 | LBQ110: 0 | LBR110: 0 | LBS110: 0 | LBT110: 0 | LBU110: 0 | LBV110: 0 | LBW110: 0 | LBX110: 0 | LBY110: 0 | LBZ110: 0 | LCA110: 0 | LCB110: 0 | LCC110: 0 | LCD110: 0 | LCE110: 0 | LCF110: 0 | LCG110: 0 | LCH110: 0 | LCI110: 0 | LCJ110: 0 | LCK110: 0 | LCL110: 0 | LCM110: 0 | LCN110: 0 | LCO110: =LCO5 -> 0 | LCP110: 0 | LCQ110: 0 | LCR110: 0 | LCS110: 0 | LCT110: 0 | LCU110: 0 | LCV110: 0 | LCW110: 0 | LCX110: 0 | LCY110: 0 | LCZ110: 0 | LDA110: 0 | LDB110: 0 | LDC110: 0 | LDD110: 0 | LDE110: 0 | LDF110: 0 | LDG110: 0 | LDH110: 0 | LDI110: 0 | LDJ110: 0 | LDK110: 0 | LDL110: 0 | LDM110: 0 | LDN110: 0 | LDO110: 0 | LDP110: 0 | LDQ110: 0 | LDR110: 0 | LDS110: 0 | LDT110: 0 | LDU110: 0 | LDV110: 0 | LDW110: 0 | LDX110: 0 | LDY110: 0 | LDZ110: 0 | LEA110: 0 | LEB110: 0 | LEC110: 0 | LED110: 0 | LEE110: 0 | LEF110: 0 | LEG110: 0 | LEH110: 0 | LEI110: 0 | LEJ110: 0 | LEK110: 0 | LEL110: 0 | LEM110: 0 | LEN110: 0 | LEO110: 0 | LEP110: 0 | LEQ110: 0 | LER110: 0 | LES110: 0 | LET110: 0 | LEU110: 0 | LEV110: 0 | LEW110: 0 | LEX110: 0 | LEY110: 0 | LEZ110: 0 | LFA110: =LFA5 -> 0 | LFB110: 0 | LFC110: 0 | LFD110: 0 | LFE110: 0 | LFF110: 0 | LFG110: 0 | LFH110: 0 | LFI110: 0 | LFJ110: 0 | LFK110: 0 | LFL110: 0 | LFM110: 0 | LFN110: 0 | LFO110: 0 | LFP110: 0 | LFQ110: 0 | LFR110: 0 | LFS110: 0 | LFT110: 0 | LFU110: 0 | LFV110: 0 | LFW110: 0 | LFX110: 0 | LFY110: 0 | LFZ110: 0 | LGA110: 0 | LGB110: 0 | LGC110: 0 | LGD110: 0 | LGE110: 0 | LGF110: 0 | LGG110: 0 | LGH110: 0 | LGI110: 0 | LGJ110: 0 | LGK110: 0 | LGL110: 0 | LGM110: 0 | LGN110: 0 | LGO110: 0 | LGP110: 0 | LGQ110: 0 | LGR110: 0 | LGS110: 0 | LGT110: 0 | LGU110: 0 | LGV110: 0 | LGW110: 0 | LGX110: 0 | LGY110: 0 | LGZ110: 0 | LHA110: 0 | LHB110: 0 | LHC110: 0 | LHD110: 0 | LHE110: 0 | LHF110: 0 | LHG110: 0 | LHH110: 0 | LHI110: 0 | LHJ110: 0 | LHK110: 0 | LHL110: 0 | LHM110: =LHM5 -> 0 | LHN110: 0 | LHO110: 0 | LHP110: 0 | LHQ110: 0 | LHR110: 0 | LHS110: 0 | LHT110: 0 | LHU110: 0 | LHV110: 0 | LHW110: 0 | LHX110: 0 | LHY110: 0 | LHZ110: 0 | LIA110: 0 | LIB110: 0 | LIC110: 0 | LID110: 0 | LIE110: 0 | LIF110: 0 | LIG110: 0 | LIH110: 0 | LII110: 0 | LIJ110: 0 | LIK110: 0 | LIL110: 0 | LIM110: 0 | LIN110: 0 | LIO110: 0 | LIP110: 0 | LIQ110: 0 | LIR110: 0 | LIS110: 0 | LIT110: 0 | LIU110: 0 | LIV110: 0 | LIW110: 0 | LIX110: 0 | LIY110: 0 | LIZ110: 0 | LJA110: 0 | LJB110: 0 | LJC110: 0 | LJD110: 0 | LJE110: 0 | LJF110: 0 | LJG110: 0 | LJH110: 0 | LJI110: 0 | LJJ110: 0 | LJK110: 0 | LJL110: 0 | LJM110: 0 | LJN110: 0 | LJO110: 0 | LJP110: 0 | LJQ110: 0 | LJR110: 0 | LJS110: 0 | LJT110: 0 | LJU110: 0 | LJV110: 0 | LJW110: 0 | LJX110: 0 | LJY110: =LJY5 -> 0 | LJZ110: 0 | LKA110: 0 | LKB110: 0 | LKC110: 0 | LKD110: 0 | LKE110: 0 | LKF110: 0 | LKG110: 0 | LKH110: 0 | LKI110: 0 | LKJ110: 0 | LKK110: 0 | LKL110: 0 | LKM110: 0 | LKN110: 0 | LKO110: 0 | LKP110: 0 | LKQ110: 0 | LKR110: 0 | LKS110: 0 | LKT110: 0 | LKU110: 0 | LKV110: 0 | LKW110: 0 | LKX110: 0 | LKY110: 0 | LKZ110: 0 | LLA110: 0 | LLB110: 0 | LLC110: 0 | LLD110: 0 | LLE110: 0 | LLF110: 0 | LLG110: 0 | LLH110: 0 | LLI110: 0 | LLJ110: 0 | LLK110: 0 | LLL110: 0 | LLM110: 0 | LLN110: 0 | LLO110: 0 | LLP110: 0 | LLQ110: 0 | LLR110: 0 | LLS110: 0 | LLT110: 0 | LLU110: 0 | LLV110: 0 | LLW110: 0 | LLX110: 0 | LLY110: 0 | LLZ110: 0 | LMA110: 0 | LMB110: 0 | LMC110: 0 | LMD110: 0 | LME110: 0 | LMF110: 0 | LMG110: 0 | LMH110: 0 | LMI110: 0 | LMJ110: 0 | LMK110: =LMK5 -> 0 | LML110: 0 | LMM110: 0 | LMN110: 0 | LMO110: 0 | LMP110: 0 | LMQ110: 0 | LMR110: 0 | LMS110: 0 | LMT110: 0 | LMU110: 0 | LMV110: 0 | LMW110: 0 | LMX110: 0 | LMY110: 0 | LMZ110: 0 | LNA110: 0 | LNB110: 0 | LNC110: 0 | LND110: 0 | LNE110: 0 | LNF110: 0 | LNG110: 0 | LNH110: 0 | LNI110: 0 | LNJ110: 0 | LNK110: 0 | LNL110: 0 | LNM110: 0 | LNN110: 0 | LNO110: 0 | LNP110: 0 | LNQ110: 0 | LNR110: 0 | LNS110: 0 | LNT110: 0 | LNU110: 0 | LNV110: 0 | LNW110: 0 | LNX110: 0 | LNY110: 0 | LNZ110: 0 | LOA110: 0 | LOB110: 0 | LOC110: 0 | LOD110: 0 | LOE110: 0 | LOF110: 0 | LOG110: 0 | LOH110: 0 | LOI110: 0 | LOJ110: 0 | LOK110: 0 | LOL110: 0 | LOM110: 0 | LON110: 0 | LOO110: 0 | LOP110: 0 | LOQ110: 0 | LOR110: 0 | LOS110: 0 | LOT110: 0 | LOU110: 0 | LOV110: 0 | LOW110: =LOW5 -> 0 | LOX110: 0 | LOY110: 0 | LOZ110: 0 | LPA110: 0 | LPB110: 0 | LPC110: 0 | LPD110: 0 | LPE110: 0 | LPF110: 0 | LPG110: 0 | LPH110: 0 | LPI110: 0 | LPJ110: 0 | LPK110: 0 | LPL110: 0 | LPM110: 0 | LPN110: 0 | LPO110: 0 | LPP110: 0 | LPQ110: 0 | LPR110: 0 | LPS110: 0 | LPT110: 0 | LPU110: 0 | LPV110: 0 | LPW110: 0 | LPX110: 0 | LPY110: 0 | LPZ110: 0 | LQA110: 0 | LQB110: 0 | LQC110: 0 | LQD110: 0 | LQE110: 0 | LQF110: 0 | LQG110: 0 | LQH110: 0 | LQI110: 0 | LQJ110: 0 | LQK110: 0 | LQL110: 0 | LQM110: 0 | LQN110: 0 | LQO110: 0 | LQP110: 0 | LQQ110: 0 | LQR110: 0 | LQS110: 0 | LQT110: 0 | LQU110: 0 | LQV110: 0 | LQW110: 0 | LQX110: 0 | LQY110: 0 | LQZ110: 0 | LRA110: 0 | LRB110: 0 | LRC110: 0 | LRD110: 0 | LRE110: 0 | LRF110: 0 | LRG110: 0 | LRH110: 0 | LRI110: =LRI5 -> 0 | LRJ110: 0 | LRK110: 0 | LRL110: 0 | LRM110: 0 | LRN110: 0 | LRO110: 0 | LRP110: 0 | LRQ110: 0 | LRR110: 0 | LRS110: 0 | LRT110: 0 | LRU110: 0 | LRV110: 0 | LRW110: 0 | LRX110: 0 | LRY110: 0 | LRZ110: 0 | LSA110: 0 | LSB110: 0 | LSC110: 0 | LSD110: 0 | LSE110: 0 | LSF110: 0 | LSG110: 0 | LSH110: 0 | LSI110: 0 | LSJ110: 0 | LSK110: 0 | LSL110: 0 | LSM110: 0 | LSN110: 0 | LSO110: 0 | LSP110: 0 | LSQ110: 0 | LSR110: 0 | LSS110: 0 | LST110: 0 | LSU110: 0 | LSV110: 0 | LSW110: 0 | LSX110: 0 | LSY110: 0 | LSZ110: 0 | LTA110: 0 | LTB110: 0 | LTC110: 0 | LTD110: 0 | LTE110: 0 | LTF110: 0 | LTG110: 0 | LTH110: 0 | LTI110: 0 | LTJ110: 0 | LTK110: 0 | LTL110: 0 | LTM110: 0 | LTN110: 0 | LTO110: 0 | LTP110: 0 | LTQ110: 0 | LTR110: 0 | LTS110: 0 | LTT110: 0 | LTU110: =LTU5 -> 0 | LTV110: 0 | LTW110: 0 | LTX110: 0 | LTY110: 0 | LTZ110: 0 | LUA110: 0 | LUB110: 0 | LUC110: 0 | LUD110: 0 | LUE110: 0 | LUF110: 0 | LUG110: 0 | LUH110: 0 | LUI110: 0 | LUJ110: 0 | LUK110: 0 | LUL110: 0 | LUM110: 0 | LUN110: 0 | LUO110: 0 | LUP110: 0 | LUQ110: 0 | LUR110: 0 | LUS110: 0 | LUT110: 0 | LUU110: 0 | LUV110: 0 | LUW110: 0 | LUX110: 0 | LUY110: 0 | LUZ110: 0 | LVA110: 0 | LVB110: 0 | LVC110: 0 | LVD110: 0 | LVE110: 0 | LVF110: 0 | LVG110: 0 | LVH110: 0 | LVI110: 0 | LVJ110: 0 | LVK110: 0 | LVL110: 0 | LVM110: 0 | LVN110: 0 | LVO110: 0 | LVP110: 0 | LVQ110: 0 | LVR110: 0 | LVS110: 0 | LVT110: 0 | LVU110: 0 | LVV110: 0 | LVW110: 0 | LVX110: 0 | LVY110: 0 | LVZ110: 0 | LWA110: 0 | LWB110: 0 | LWC110: 0 | LWD110: 0 | LWE110: 0 | LWF110: 0 | LWG110: =LWG5 -> 0 | LWH110: 0 | LWI110: 0 | LWJ110: 0 | LWK110: 0 | LWL110: 0 | LWM110: 0 | LWN110: 0 | LWO110: 0 | LWP110: 0 | LWQ110: 0 | LWR110: 0 | LWS110: 0 | LWT110: 0 | LWU110: 0 | LWV110: 0 | LWW110: 0 | LWX110: 0 | LWY110: 0 | LWZ110: 0 | LXA110: 0 | LXB110: 0 | LXC110: 0 | LXD110: 0 | LXE110: 0 | LXF110: 0 | LXG110: 0 | LXH110: 0 | LXI110: 0 | LXJ110: 0 | LXK110: 0 | LXL110: 0 | LXM110: 0 | LXN110: 0 | LXO110: 0 | LXP110: 0 | LXQ110: 0 | LXR110: 0 | LXS110: 0 | LXT110: 0 | LXU110: 0 | LXV110: 0 | LXW110: 0 | LXX110: 0 | LXY110: 0 | LXZ110: 0 | LYA110: 0 | LYB110: 0 | LYC110: 0 | LYD110: 0 | LYE110: 0 | LYF110: 0 | LYG110: 0 | LYH110: 0 | LYI110: 0 | LYJ110: 0 | LYK110: 0 | LYL110: 0 | LYM110: 0 | LYN110: 0 | LYO110: 0 | LYP110: 0 | LYQ110: 0 | LYR110: 0 | LYS110: =LYS5 -> 0 | LYT110: 0 | LYU110: 0 | LYV110: 0 | LYW110: 0 | LYX110: 0 | LYY110: 0 | LYZ110: 0 | LZA110: 0 | LZB110: 0 | LZC110: 0 | LZD110: 0 | LZE110: 0 | LZF110: 0 | LZG110: 0 | LZH110: 0 | LZI110: 0 | LZJ110: 0 | LZK110: 0 | LZL110: 0 | LZM110: 0 | LZN110: 0 | LZO110: 0 | LZP110: 0 | LZQ110: 0 | LZR110: 0 | LZS110: 0 | LZT110: 0 | LZU110: 0 | LZV110: 0 | LZW110: 0 | LZX110: 0 | LZY110: 0 | LZZ110: 0 | MAA110: 0 | MAB110: 0 | MAC110: 0 | MAD110: 0 | MAE110: 0 | MAF110: 0 | MAG110: 0 | MAH110: 0 | MAI110: 0 | MAJ110: 0 | MAK110: 0 | MAL110: 0 | MAM110: 0 | MAN110: 0 | MAO110: 0 | MAP110: 0 | MAQ110: 0 | MAR110: 0 | MAS110: 0 | MAT110: 0 | MAU110: 0 | MAV110: 0 | MAW110: 0 | MAX110: 0 | MAY110: 0 | MAZ110: 0 | MBA110: 0 | MBB110: 0 | MBC110: 0 | MBD110: 0 | MBE110: =MBE5 -> 0 | MBF110: 0 | MBG110: 0 | MBH110: 0 | MBI110: 0 | MBJ110: 0 | MBK110: 0 | MBL110: 0 | MBM110: 0 | MBN110: 0 | MBO110: 0 | MBP110: 0 | MBQ110: 0 | MBR110: 0 | MBS110: 0 | MBT110: 0 | MBU110: 0 | MBV110: 0 | MBW110: 0 | MBX110: 0 | MBY110: 0 | MBZ110: 0 | MCA110: 0 | MCB110: 0 | MCC110: 0 | MCD110: 0 | MCE110: 0 | MCF110: 0 | MCG110: 0 | MCH110: 0 | MCI110: 0 | MCJ110: 0 | MCK110: 0 | MCL110: 0 | MCM110: 0 | MCN110: 0 | MCO110: 0 | MCP110: 0 | MCQ110: 0 | MCR110: 0 | MCS110: 0 | MCT110: 0 | MCU110: 0 | MCV110: 0 | MCW110: 0 | MCX110: 0 | MCY110: 0 | MCZ110: 0 | MDA110: 0 | MDB110: 0 | MDC110: 0 | MDD110: 0 | MDE110: 0 | MDF110: 0 | MDG110: 0 | MDH110: 0 | MDI110: 0 | MDJ110: 0 | MDK110: 0 | MDL110: 0 | MDM110: 0 | MDN110: 0 | MDO110: 0 | MDP110: 0 | MDQ110: =MDQ5 -> 0 | MDR110: 0 | MDS110: 0 | MDT110: 0 | MDU110: 0 | MDV110: 0 | MDW110: 0 | MDX110: 0 | MDY110: 0 | MDZ110: 0 | MEA110: 0 | MEB110: 0 | MEC110: 0 | MED110: 0 | MEE110: 0 | MEF110: 0 | MEG110: 0 | MEH110: 0 | MEI110: 0 | MEJ110: 0 | MEK110: 0 | MEL110: 0 | MEM110: 0 | MEN110: 0 | MEO110: 0 | MEP110: 0 | MEQ110: 0 | MER110: 0 | MES110: 0 | MET110: 0 | MEU110: 0 | MEV110: 0 | MEW110: 0 | MEX110: 0 | MEY110: 0 | MEZ110: 0 | MFA110: 0 | MFB110: 0 | MFC110: 0 | MFD110: 0 | MFE110: 0 | MFF110: 0 | MFG110: 0 | MFH110: 0 | MFI110: 0 | MFJ110: 0 | MFK110: 0 | MFL110: 0 | MFM110: 0 | MFN110: 0 | MFO110: 0 | MFP110: 0 | MFQ110: 0 | MFR110: 0 | MFS110: 0 | MFT110: 0 | MFU110: 0 | MFV110: 0 | MFW110: 0 | MFX110: 0 | MFY110: 0 | MFZ110: 0 | MGA110: 0 | MGB110: 0 | MGC110: =MGC5 -> 0 | MGD110: 0 | MGE110: 0 | MGF110: 0 | MGG110: 0 | MGH110: 0 | MGI110: 0 | MGJ110: 0 | MGK110: 0 | MGL110: 0 | MGM110: 0 | MGN110: 0 | MGO110: 0 | MGP110: 0 | MGQ110: 0 | MGR110: 0 | MGS110: 0 | MGT110: 0 | MGU110: 0 | MGV110: 0 | MGW110: 0 | MGX110: 0 | MGY110: 0 | MGZ110: 0 | MHA110: 0 | MHB110: 0 | MHC110: 0 | MHD110: 0 | MHE110: 0 | MHF110: 0 | MHG110: 0 | MHH110: 0 | MHI110: 0 | MHJ110: 0 | MHK110: 0 | MHL110: 0 | MHM110: 0 | MHN110: 0 | MHO110: 0 | MHP110: 0 | MHQ110: 0 | MHR110: 0 | MHS110: 0 | MHT110: 0 | MHU110: 0 | MHV110: 0 | MHW110: 0 | MHX110: 0 | MHY110: 0 | MHZ110: 0 | MIA110: 0 | MIB110: 0 | MIC110: 0 | MID110: 0 | MIE110: 0 | MIF110: 0 | MIG110: 0 | MIH110: 0 | MII110: 0 | MIJ110: 0 | MIK110: 0 | MIL110: 0 | MIM110: 0 | MIN110: 0 | MIO110: =MIO5 -> 0 | MIP110: 0 | MIQ110: 0 | MIR110: 0 | MIS110: 0 | MIT110: 0 | MIU110: 0 | MIV110: 0 | MIW110: 0 | MIX110: 0 | MIY110: 0 | MIZ110: 0 | MJA110: 0 | MJB110: 0 | MJC110: 0 | MJD110: 0 | MJE110: 0 | MJF110: 0 | MJG110: 0 | MJH110: 0 | MJI110: 0 | MJJ110: 0 | MJK110: 0 | MJL110: 0 | MJM110: 0 | MJN110: 0 | MJO110: 0 | MJP110: 0 | MJQ110: 0 | MJR110: 0 | MJS110: 0 | MJT110: 0 | MJU110: 0 | MJV110: 0 | MJW110: 0 | MJX110: 0 | MJY110: 0 | MJZ110: 0 | MKA110: 0 | MKB110: 0 | MKC110: 0 | MKD110: 0 | MKE110: 0 | MKF110: 0 | MKG110: 0 | MKH110: 0 | MKI110: 0 | MKJ110: 0 | MKK110: 0 | MKL110: 0 | MKM110: 0 | MKN110: 0 | MKO110: 0 | MKP110: 0 | MKQ110: 0 | MKR110: 0 | MKS110: 0 | MKT110: 0 | MKU110: 0 | MKV110: 0 | MKW110: 0 | MKX110: 0 | MKY110: 0 | MKZ110: 0 | MLA110: =MLA5 -> 0 | MLB110: 0 | MLC110: 0 | MLD110: 0 | MLE110: 0 | MLF110: 0 | MLG110: 0 | MLH110: 0 | MLI110: 0 | MLJ110: 0 | MLK110: 0 | MLL110: 0 | MLM110: 0 | MLN110: 0 | MLO110: 0 | MLP110: 0 | MLQ110: 0 | MLR110: 0 | MLS110: 0 | MLT110: 0 | MLU110: 0 | MLV110: 0 | MLW110: 0 | MLX110: 0 | MLY110: 0 | MLZ110: 0 | MMA110: 0 | MMB110: 0 | MMC110: 0 | MMD110: 0 | MME110: 0 | MMF110: 0 | MMG110: 0 | MMH110: 0 | MMI110: 0 | MMJ110: 0 | MMK110: 0 | MML110: 0 | MMM110: 0 | MMN110: 0 | MMO110: 0 | MMP110: 0 | MMQ110: 0 | MMR110: 0 | MMS110: 0 | MMT110: 0 | MMU110: 0 | MMV110: 0 | MMW110: 0 | MMX110: 0 | MMY110: 0 | MMZ110: 0 | MNA110: 0 | MNB110: 0 | MNC110: 0 | MND110: 0 | MNE110: 0 | MNF110: 0 | MNG110: 0 | MNH110: 0 | MNI110: 0 | MNJ110: 0 | MNK110: 0 | MNL110: 0 | MNM110: =MNM5 -> 0 | MNN110: 0 | MNO110: 0 | MNP110: 0 | MNQ110: 0 | MNR110: 0 | MNS110: 0 | MNT110: 0 | MNU110: 0 | MNV110: 0 | MNW110: 0 | MNX110: 0 | MNY110: 0 | MNZ110: 0 | MOA110: 0 | MOB110: 0 | MOC110: 0 | MOD110: 0 | MOE110: 0 | MOF110: 0 | MOG110: 0 | MOH110: 0 | MOI110: 0 | MOJ110: 0 | MOK110: 0 | MOL110: 0 | MOM110: 0 | MON110: 0 | MOO110: 0 | MOP110: 0 | MOQ110: 0 | MOR110: 0 | MOS110: 0 | MOT110: 0 | MOU110: 0 | MOV110: 0 | MOW110: 0 | MOX110: 0 | MOY110: 0 | MOZ110: 0 | MPA110: 0 | MPB110: 0 | MPC110: 0 | MPD110: 0 | MPE110: 0 | MPF110: 0 | MPG110: 0 | MPH110: 0 | MPI110: 0 | MPJ110: 0 | MPK110: 0 | MPL110: 0 | MPM110: 0 | MPN110: 0 | MPO110: 0 | MPP110: 0 | MPQ110: 0 | MPR110: 0 | MPS110: 0 | MPT110: 0 | MPU110: 0 | MPV110: 0 | MPW110: 0 | MPX110: 0 | MPY110: =MPY5 -> 0 | MPZ110: 0 | MQA110: 0 | MQB110: 0 | MQC110: 0 | MQD110: 0 | MQE110: 0 | MQF110: 0 | MQG110: 0 | MQH110: 0 | MQI110: 0 | MQJ110: 0 | MQK110: 0 | MQL110: 0 | MQM110: 0 | MQN110: 0 | MQO110: 0 | MQP110: 0 | MQQ110: 0 | MQR110: 0 | MQS110: 0 | MQT110: 0 | MQU110: 0 | MQV110: 0 | MQW110: 0 | MQX110: 0 | MQY110: 0 | MQZ110: 0 | MRA110: 0 | MRB110: 0 | MRC110: 0 | MRD110: 0 | MRE110: 0 | MRF110: 0 | MRG110: 0 | MRH110: 0 | MRI110: 0 | MRJ110: 0 | MRK110: 0 | MRL110: 0 | MRM110: 0 | MRN110: 0 | MRO110: 0 | MRP110: 0 | MRQ110: 0 | MRR110: 0 | MRS110: 0 | MRT110: 0 | MRU110: 0 | MRV110: 0 | MRW110: 0 | MRX110: 0 | MRY110: 0 | MRZ110: 0 | MSA110: 0 | MSB110: 0 | MSC110: 0 | MSD110: 0 | MSE110: 0 | MSF110: 0 | MSG110: 0 | MSH110: 0 | MSI110: 0 | MSJ110: 0 | MSK110: =MSK5 -> 0 | MSL110: 0 | MSM110: 0 | MSN110: 0 | MSO110: 0 | MSP110: 0 | MSQ110: 0 | MSR110: 0 | MSS110: 0 | MST110: 0 | MSU110: 0 | MSV110: 0 | MSW110: 0 | MSX110: 0 | MSY110: 0 | MSZ110: 0 | MTA110: 0 | MTB110: 0 | MTC110: 0 | MTD110: 0 | MTE110: 0 | MTF110: 0 | MTG110: 0 | MTH110: 0 | MTI110: 0 | MTJ110: 0 | MTK110: 0 | MTL110: 0 | MTM110: 0 | MTN110: 0 | MTO110: 0 | MTP110: 0 | MTQ110: 0 | MTR110: 0 | MTS110: 0 | MTT110: 0 | MTU110: 0 | MTV110: 0 | MTW110: 0 | MTX110: 0 | MTY110: 0 | MTZ110: 0 | MUA110: 0 | MUB110: 0 | MUC110: 0 | MUD110: 0 | MUE110: 0 | MUF110: 0 | MUG110: 0 | MUH110: 0 | MUI110: 0 | MUJ110: 0 | MUK110: 0 | MUL110: 0 | MUM110: 0 | MUN110: 0 | MUO110: 0 | MUP110: 0 | MUQ110: 0 | MUR110: 0 | MUS110: 0 | MUT110: 0 | MUU110: 0 | MUV110: 0 | MUW110: =MUW5 -> 0 | MUX110: 0 | MUY110: 0 | MUZ110: 0 | MVA110: 0 | MVB110: 0 | MVC110: 0 | MVD110: 0 | MVE110: 0 | MVF110: 0 | MVG110: 0 | MVH110: 0 | MVI110: 0 | MVJ110: 0 | MVK110: 0 | MVL110: 0 | MVM110: 0 | MVN110: 0 | MVO110: 0 | MVP110: 0 | MVQ110: 0 | MVR110: 0 | MVS110: 0 | MVT110: 0 | MVU110: 0 | MVV110: 0 | MVW110: 0 | MVX110: 0 | MVY110: 0 | MVZ110: 0 | MWA110: 0 | MWB110: 0 | MWC110: 0 | MWD110: 0 | MWE110: 0 | MWF110: 0 | MWG110: 0 | MWH110: 0 | MWI110: 0 | MWJ110: 0 | MWK110: 0 | MWL110: 0 | MWM110: 0 | MWN110: 0 | MWO110: 0 | MWP110: 0 | MWQ110: 0 | MWR110: 0 | MWS110: 0 | MWT110: 0 | MWU110: 0 | MWV110: 0 | MWW110: 0 | MWX110: 0 | MWY110: 0 | MWZ110: 0 | MXA110: 0 | MXB110: 0 | MXC110: 0 | MXD110: 0 | MXE110: 0 | MXF110: 0 | MXG110: 0 | MXH110: 0 | MXI110: =MXI5 -> 0 | MXJ110: 0 | MXK110: 0 | MXL110: 0 | MXM110: 0 | MXN110: 0 | MXO110: 0 | MXP110: 0 | MXQ110: 0 | MXR110: 0 | MXS110: 0 | MXT110: 0 | MXU110: 0 | MXV110: 0 | MXW110: 0 | MXX110: 0 | MXY110: 0 | MXZ110: 0 | MYA110: 0 | MYB110: 0 | MYC110: 0 | MYD110: 0 | MYE110: 0 | MYF110: 0 | MYG110: 0 | MYH110: 0 | MYI110: 0 | MYJ110: 0 | MYK110: 0 | MYL110: 0 | MYM110: 0 | MYN110: 0 | MYO110: 0 | MYP110: 0 | MYQ110: 0 | MYR110: 0 | MYS110: 0 | MYT110: 0 | MYU110: 0 | MYV110: 0 | MYW110: 0 | MYX110: 0 | MYY110: 0 | MYZ110: 0 | MZA110: 0 | MZB110: 0 | MZC110: 0 | MZD110: 0 | MZE110: 0 | MZF110: 0 | MZG110: 0 | MZH110: 0 | MZI110: 0 | MZJ110: 0 | MZK110: 0 | MZL110: 0 | MZM110: 0 | MZN110: 0 | MZO110: 0 | MZP110: 0 | MZQ110: 0 | MZR110: 0 | MZS110: 0 | MZT110: 0 | MZU110: =MZU5 -> 0 | MZV110: 0 | MZW110: 0 | MZX110: 0 | MZY110: 0 | MZZ110: 0 | NAA110: 0 | NAB110: 0 | NAC110: 0 | NAD110: 0 | NAE110: 0 | NAF110: 0 | NAG110: 0 | NAH110: 0 | NAI110: 0 | NAJ110: 0 | NAK110: 0 | NAL110: 0 | NAM110: 0 | NAN110: 0 | NAO110: 0 | NAP110: 0 | NAQ110: 0 | NAR110: 0 | NAS110: 0 | NAT110: 0 | NAU110: 0 | NAV110: 0 | NAW110: 0 | NAX110: 0 | NAY110: 0 | NAZ110: 0 | NBA110: 0 | NBB110: 0 | NBC110: 0 | NBD110: 0 | NBE110: 0 | NBF110: 0 | NBG110: 0 | NBH110: 0 | NBI110: 0 | NBJ110: 0 | NBK110: 0 | NBL110: 0 | NBM110: 0 | NBN110: 0 | NBO110: 0 | NBP110: 0 | NBQ110: 0 | NBR110: 0 | NBS110: 0 | NBT110: 0 | NBU110: 0 | NBV110: 0 | NBW110: 0 | NBX110: 0 | NBY110: 0 | NBZ110: 0 | NCA110: 0 | NCB110: 0 | NCC110: 0 | NCD110: 0 | NCE110: 0 | NCF110: 0 | NCG110: =NCG5 -> 0 | NCH110: 0 | NCI110: 0 | NCJ110: 0 | NCK110: 0 | NCL110: 0 | NCM110: 0 | NCN110: 0 | NCO110: 0 | NCP110: 0 | NCQ110: 0 | NCR110: 0 | NCS110: 0 | NCT110: 0 | NCU110: 0 | NCV110: 0 | NCW110: 0 | NCX110: 0 | NCY110: 0 | NCZ110: 0 | NDA110: 0 | NDB110: 0 | NDC110: 0 | NDD110: 0 | NDE110: 0 | NDF110: 0 | NDG110: 0 | NDH110: 0 | NDI110: 0 | NDJ110: 0 | NDK110: 0 | NDL110: 0 | NDM110: 0 | NDN110: 0 | NDO110: 0 | NDP110: 0 | NDQ110: 0 | NDR110: 0 | NDS110: 0 | NDT110: 0 | NDU110: 0 | NDV110: 0 | NDW110: 0 | NDX110: 0 | NDY110: 0 | NDZ110: 0 | NEA110: 0 | NEB110: 0 | NEC110: 0 | NED110: 0 | NEE110: 0 | NEF110: 0 | NEG110: 0 | NEH110: 0 | NEI110: 0 | NEJ110: 0 | NEK110: 0 | NEL110: 0 | NEM110: 0 | NEN110: 0 | NEO110: 0 | NEP110: 0 | NEQ110: 0 | NER110: 0 | NES110: =NES5 -> 0 | NET110: 0 | NEU110: 0 | NEV110: 0 | NEW110: 0 | NEX110: 0 | NEY110: 0 | NEZ110: 0 | NFA110: 0 | NFB110: 0 | NFC110: 0 | NFD110: 0 | NFE110: 0 | NFF110: 0 | NFG110: 0 | NFH110: 0 | NFI110: 0 | NFJ110: 0 | NFK110: 0 | NFL110: 0 | NFM110: 0 | NFN110: 0 | NFO110: 0 | NFP110: 0 | NFQ110: 0 | NFR110: 0 | NFS110: 0 | NFT110: 0 | NFU110: 0 | NFV110: 0 | NFW110: 0 | NFX110: 0 | NFY110: 0 | NFZ110: 0 | NGA110: 0 | NGB110: 0 | NGC110: 0 | NGD110: 0 | NGE110: 0 | NGF110: 0 | NGG110: 0 | NGH110: 0 | NGI110: 0 | NGJ110: 0 | NGK110: 0 | NGL110: 0 | NGM110: 0 | NGN110: 0 | NGO110: 0 | NGP110: 0 | NGQ110: 0 | NGR110: 0 | NGS110: 0 | NGT110: 0 | NGU110: 0 | NGV110: 0 | NGW110: 0 | NGX110: 0 | NGY110: 0 | NGZ110: 0 | NHA110: 0 | NHB110: 0 | NHC110: 0 | NHD110: 0 | NHE110: =NHE5 -> 0 | NHF110: 0 | NHG110: 0 | NHH110: 0 | NHI110: 0 | NHJ110: 0 | NHK110: 0 | NHL110: 0 | NHM110: 0 | NHN110: 0 | NHO110: 0 | NHP110: 0 | NHQ110: 0 | NHR110: 0 | NHS110: 0 | NHT110: 0 | NHU110: 0 | NHV110: 0 | NHW110: 0 | NHX110: 0 | NHY110: 0 | NHZ110: 0 | NIA110: 0 | NIB110: 0 | NIC110: 0 | NID110: 0 | NIE110: 0 | NIF110: 0 | NIG110: 0 | NIH110: 0 | NII110: 0 | NIJ110: 0 | NIK110: 0 | NIL110: 0 | NIM110: 0 | NIN110: 0 | NIO110: 0 | NIP110: 0 | NIQ110: 0 | NIR110: 0 | NIS110: 0 | NIT110: 0 | NIU110: 0 | NIV110: 0 | NIW110: 0 | NIX110: 0 | NIY110: 0 | NIZ110: 0 | NJA110: 0 | NJB110: 0 | NJC110: 0 | NJD110: 0 | NJE110: 0 | NJF110: 0 | NJG110: 0 | NJH110: 0 | NJI110: 0 | NJJ110: 0 | NJK110: 0 | NJL110: 0 | NJM110: 0 | NJN110: 0 | NJO110: 0 | NJP110: 0 | NJQ110: =NJQ5 -> 0 | NJR110: 0 | NJS110: 0 | NJT110: 0 | NJU110: 0 | NJV110: 0 | NJW110: 0 | NJX110: 0 | NJY110: 0 | NJZ110: 0 | NKA110: 0 | NKB110: 0 | NKC110: 0 | NKD110: 0 | NKE110: 0 | NKF110: 0 | NKG110: 0 | NKH110: 0 | NKI110: 0 | NKJ110: 0 | NKK110: 0 | NKL110: 0 | NKM110: 0 | NKN110: 0 | NKO110: 0 | NKP110: 0 | NKQ110: 0 | NKR110: 0 | NKS110: 0 | NKT110: 0 | NKU110: 0 | NKV110: 0 | NKW110: 0 | NKX110: 0 | NKY110: 0 | NKZ110: 0 | NLA110: 0 | NLB110: 0 | NLC110: 0 | NLD110: 0 | NLE110: 0 | NLF110: 0 | NLG110: 0 | NLH110: 0 | NLI110: 0 | NLJ110: 0 | NLK110: 0 | NLL110: 0 | NLM110: 0 | NLN110: 0 | NLO110: 0 | NLP110: 0 | NLQ110: 0 | NLR110: 0 | NLS110: 0 | NLT110: 0 | NLU110: 0 | NLV110: 0 | NLW110: 0 | NLX110: 0 | NLY110: 0 | NLZ110: 0 | NMA110: 0 | NMB110: 0 | NMC110: =NMC5 -> 0 | NMD110: 0 | NME110: 0 | NMF110: 0 | NMG110: 0 | NMH110: 0 | NMI110: 0 | NMJ110: 0 | NMK110: 0 | NML110: 0 | NMM110: 0 | NMN110: 0 | NMO110: 0 | NMP110: 0 | NMQ110: 0 | NMR110: 0 | NMS110: 0 | NMT110: 0 | NMU110: 0 | NMV110: 0 | NMW110: 0 | NMX110: 0 | NMY110: 0 | NMZ110: 0 | NNA110: 0 | NNB110: 0 | NNC110: 0 | NND110: 0 | NNE110: 0 | NNF110: 0 | NNG110: 0 | NNH110: 0 | NNI110: 0 | NNJ110: 0 | NNK110: 0 | NNL110: 0 | NNM110: 0 | NNN110: 0 | NNO110: 0 | NNP110: 0 | NNQ110: 0 | NNR110: 0 | NNS110: 0 | NNT110: 0 | NNU110: 0 | NNV110: 0 | NNW110: 0 | NNX110: 0 | NNY110: 0 | NNZ110: 0 | NOA110: 0 | NOB110: 0 | NOC110: 0 | NOD110: 0 | NOE110: 0 | NOF110: 0 | NOG110: 0 | NOH110: 0 | NOI110: 0 | NOJ110: 0 | NOK110: 0 | NOL110: 0 | NOM110: 0 | NON110: 0 | NOO110: =NOO5 -> 0 | NOP110: 0 | NOQ110: 0 | NOR110: 0 | NOS110: 0 | NOT110: 0 | NOU110: 0 | NOV110: 0 | NOW110: 0 | NOX110: 0 | NOY110: 0 | NOZ110: 0 | NPA110: 0 | NPB110: 0 | NPC110: 0 | NPD110: 0 | NPE110: 0 | NPF110: 0 | NPG110: 0 | NPH110: 0 | NPI110: 0 | NPJ110: 0 | NPK110: 0 | NPL110: 0 | NPM110: 0 | NPN110: 0 | NPO110: 0 | NPP110: 0 | NPQ110: 0 | NPR110: 0 | NPS110: 0 | NPT110: 0 | NPU110: 0 | NPV110: 0 | NPW110: 0 | NPX110: 0 | NPY110: 0 | NPZ110: 0 | NQA110: 0 | NQB110: 0 | NQC110: 0 | NQD110: 0 | NQE110: 0 | NQF110: 0 | NQG110: 0 | NQH110: 0 | NQI110: 0 | NQJ110: 0 | NQK110: 0 | NQL110: 0 | NQM110: 0 | NQN110: 0 | NQO110: 0 | NQP110: 0 | NQQ110: 0 | NQR110: 0 | NQS110: 0 | NQT110: 0 | NQU110: 0 | NQV110: 0 | NQW110: 0 | NQX110: 0 | NQY110: 0 | NQZ110: 0 | NRA110: =NRA5 -> 0 | NRB110: 0 | NRC110: 0 | NRD110: 0 | NRE110: 0 | NRF110: 0 | NRG110: 0 | NRH110: 0 | NRI110: 0 | NRJ110: 0 | NRK110: 0 | NRL110: 0 | NRM110: 0 | NRN110: 0 | NRO110: 0 | NRP110: 0 | NRQ110: 0 | NRR110: 0 | NRS110: 0 | NRT110: 0 | NRU110: 0 | NRV110: 0 | NRW110: 0 | NRX110: 0 | NRY110: 0 | NRZ110: 0 | NSA110: 0 | NSB110: 0 | NSC110: 0 | NSD110: 0 | NSE110: 0 | NSF110: 0 | NSG110: 0 | NSH110: 0 | NSI110: 0 | NSJ110: 0 | NSK110: 0 | NSL110: 0 | NSM110: 0 | NSN110: 0 | NSO110: 0 | NSP110: 0 | NSQ110: 0 | NSR110: 0 | NSS110: 0 | NST110: 0 | NSU110: 0 | NSV110: 0 | NSW110: 0 | NSX110: 0 | NSY110: 0 | NSZ110: 0 | NTA110: 0 | NTB110: 0 | NTC110: 0 | NTD110: 0 | NTE110: 0 | NTF110: 0 | NTG110: 0 | NTH110: 0 | NTI110: 0 | NTJ110: 0 | NTK110: 0 | NTL110: 0 | NTM110: =NTM5 -> 0 | NTN110: 0 | NTO110: 0 | NTP110: 0 | NTQ110: 0 | NTR110: 0 | NTS110: 0 | NTT110: 0 | NTU110: 0 | NTV110: 0 | NTW110: 0 | NTX110: 0 | NTY110: 0 | NTZ110: 0 | NUA110: 0 | NUB110: 0 | NUC110: 0 | NUD110: 0 | NUE110: 0 | NUF110: 0 | NUG110: 0 | NUH110: 0 | NUI110: 0 | NUJ110: 0 | NUK110: 0 | NUL110: 0 | NUM110: 0 | NUN110: 0 | NUO110: 0 | NUP110: 0 | NUQ110: 0 | NUR110: 0 | NUS110: 0 | NUT110: 0 | NUU110: 0 | NUV110: 0 | NUW110: 0 | NUX110: 0 | NUY110: 0 | NUZ110: 0 | NVA110: 0 | NVB110: 0 | NVC110: 0 | NVD110: 0 | NVE110: 0 | NVF110: 0 | NVG110: 0 | NVH110: 0 | NVI110: 0 | NVJ110: 0 | NVK110: 0 | NVL110: 0 | NVM110: 0 | NVN110: 0 | NVO110: 0 | NVP110: 0 | NVQ110: 0 | NVR110: 0 | NVS110: 0 | NVT110: 0 | NVU110: 0 | NVV110: 0 | NVW110: 0 | NVX110: 0 | NVY110: =NVY5 -> 0 | NVZ110: 0 | NWA110: 0 | NWB110: 0 | NWC110: 0 | NWD110: 0 | NWE110: 0 | NWF110: 0 | NWG110: 0 | NWH110: 0 | NWI110: 0 | NWJ110: 0 | NWK110: 0 | NWL110: 0 | NWM110: 0 | NWN110: 0 | NWO110: 0 | NWP110: 0 | NWQ110: 0 | NWR110: 0 | NWS110: 0 | NWT110: 0 | NWU110: 0 | NWV110: 0 | NWW110: 0 | NWX110: 0 | NWY110: 0 | NWZ110: 0 | NXA110: 0 | NXB110: 0 | NXC110: 0 | NXD110: 0 | NXE110: 0 | NXF110: 0 | NXG110: 0 | NXH110: 0 | NXI110: 0 | NXJ110: 0 | NXK110: 0 | NXL110: 0 | NXM110: 0 | NXN110: 0 | NXO110: 0 | NXP110: 0 | NXQ110: 0 | NXR110: 0 | NXS110: 0 | NXT110: 0 | NXU110: 0 | NXV110: 0 | NXW110: 0 | NXX110: 0 | NXY110: 0 | NXZ110: 0 | NYA110: 0 | NYB110: 0 | NYC110: 0 | NYD110: 0 | NYE110: 0 | NYF110: 0 | NYG110: 0 | NYH110: 0 | NYI110: 0 | NYJ110: 0 | NYK110: =NYK5 -> 0 | NYL110: 0 | NYM110: 0 | NYN110: 0 | NYO110: 0 | NYP110: 0 | NYQ110: 0 | NYR110: 0 | NYS110: 0 | NYT110: 0 | NYU110: 0 | NYV110: 0 | NYW110: 0 | NYX110: 0 | NYY110: 0 | NYZ110: 0 | NZA110: 0 | NZB110: 0 | NZC110: 0 | NZD110: 0 | NZE110: 0 | NZF110: 0 | NZG110: 0 | NZH110: 0 | NZI110: 0 | NZJ110: 0 | NZK110: 0 | NZL110: 0 | NZM110: 0 | NZN110: 0 | NZO110: 0 | NZP110: 0 | NZQ110: 0 | NZR110: 0 | NZS110: 0 | NZT110: 0 | NZU110: 0 | NZV110: 0 | NZW110: 0 | NZX110: 0 | NZY110: 0 | NZZ110: 0 | OAA110: 0 | OAB110: 0 | OAC110: 0 | OAD110: 0 | OAE110: 0 | OAF110: 0 | OAG110: 0 | OAH110: 0 | OAI110: 0 | OAJ110: 0 | OAK110: 0 | OAL110: 0 | OAM110: 0 | OAN110: 0 | OAO110: 0 | OAP110: 0 | OAQ110: 0 | OAR110: 0 | OAS110: 0 | OAT110: 0 | OAU110: 0 | OAV110: 0 | OAW110: =OAW5 -> 0 | OAX110: 0 | OAY110: 0 | OAZ110: 0 | OBA110: 0 | OBB110: 0 | OBC110: 0 | OBD110: 0 | OBE110: 0 | OBF110: 0 | OBG110: 0 | OBH110: 0 | OBI110: 0 | OBJ110: 0 | OBK110: 0 | OBL110: 0 | OBM110: 0 | OBN110: 0 | OBO110: 0 | OBP110: 0 | OBQ110: 0 | OBR110: 0 | OBS110: 0 | OBT110: 0 | OBU110: 0 | OBV110: 0 | OBW110: 0 | OBX110: 0 | OBY110: 0 | OBZ110: 0 | OCA110: 0 | OCB110: 0 | OCC110: 0 | OCD110: 0 | OCE110: 0 | OCF110: 0 | OCG110: 0 | OCH110: 0 | OCI110: 0 | OCJ110: 0 | OCK110: 0 | OCL110: 0 | OCM110: 0 | OCN110: 0 | OCO110: 0 | OCP110: 0 | OCQ110: 0 | OCR110: 0 | OCS110: 0 | OCT110: 0 | OCU110: 0 | OCV110: 0 | OCW110: 0 | OCX110: 0 | OCY110: 0 | OCZ110: 0 | ODA110: 0 | ODB110: 0 | ODC110: 0 | ODD110: 0 | ODE110: 0 | ODF110: 0 | ODG110: 0 | ODH110: 0 | ODI110: =ODI5 -> 0 | ODJ110: 0 | ODK110: 0 | ODL110: 0 | ODM110: 0 | ODN110: 0 | ODO110: 0 | ODP110: 0 | ODQ110: 0 | ODR110: 0 | ODS110: 0 | ODT110: 0 | ODU110: 0 | ODV110: 0 | ODW110: 0 | ODX110: 0 | ODY110: 0 | ODZ110: 0 | OEA110: 0 | OEB110: 0 | OEC110: 0 | OED110: 0 | OEE110: 0 | OEF110: 0 | OEG110: 0 | OEH110: 0 | OEI110: 0 | OEJ110: 0 | OEK110: 0 | OEL110: 0 | OEM110: 0 | OEN110: 0 | OEO110: 0 | OEP110: 0 | OEQ110: 0 | OER110: 0 | OES110: 0 | OET110: 0 | OEU110: 0 | OEV110: 0 | OEW110: 0 | OEX110: 0 | OEY110: 0 | OEZ110: 0 | OFA110: 0 | OFB110: 0 | OFC110: 0 | OFD110: 0 | OFE110: 0 | OFF110: 0 | OFG110: 0 | OFH110: 0 | OFI110: 0 | OFJ110: 0 | OFK110: 0 | OFL110: 0 | OFM110: 0 | OFN110: 0 | OFO110: 0 | OFP110: 0 | OFQ110: 0 | OFR110: 0 | OFS110: 0 | OFT110: 0 | OFU110: =OFU5 -> 0 | OFV110: 0 | OFW110: 0 | OFX110: 0 | OFY110: 0 | OFZ110: 0 | OGA110: 0 | OGB110: 0 | OGC110: 0 | OGD110: 0 | OGE110: 0 | OGF110: 0 | OGG110: 0 | OGH110: 0 | OGI110: 0 | OGJ110: 0 | OGK110: 0 | OGL110: 0 | OGM110: 0 | OGN110: 0 | OGO110: 0 | OGP110: 0 | OGQ110: 0 | OGR110: 0 | OGS110: 0 | OGT110: 0 | OGU110: 0 | OGV110: 0 | OGW110: 0 | OGX110: 0 | OGY110: 0 | OGZ110: 0 | OHA110: 0 | OHB110: 0 | OHC110: 0 | OHD110: 0 | OHE110: 0 | OHF110: 0 | OHG110: 0 | OHH110: 0 | OHI110: 0 | OHJ110: 0 | OHK110: 0 | OHL110: 0 | OHM110: 0 | OHN110: 0 | OHO110: 0 | OHP110: 0 | OHQ110: 0 | OHR110: 0 | OHS110: 0 | OHT110: 0 | OHU110: 0 | OHV110: 0 | OHW110: 0 | OHX110: 0 | OHY110: 0 | OHZ110: 0 | OIA110: 0 | OIB110: 0 | OIC110: 0 | OID110: 0 | OIE110: 0 | OIF110: 0 | OIG110: =OIG5 -> 0 | OIH110: 0 | OII110: 0 | OIJ110: 0 | OIK110: 0 | OIL110: 0 | OIM110: 0 | OIN110: 0 | OIO110: 0 | OIP110: 0 | OIQ110: 0 | OIR110: 0 | OIS110: 0 | OIT110: 0 | OIU110: 0 | OIV110: 0 | OIW110: 0 | OIX110: 0 | OIY110: 0 | OIZ110: 0 | OJA110: 0 | OJB110: 0 | OJC110: 0 | OJD110: 0 | OJE110: 0 | OJF110: 0 | OJG110: 0 | OJH110: 0 | OJI110: 0 | OJJ110: 0 | OJK110: 0 | OJL110: 0 | OJM110: 0 | OJN110: 0 | OJO110: 0 | OJP110: 0 | OJQ110: 0 | OJR110: 0 | OJS110: 0 | OJT110: 0 | OJU110: 0 | OJV110: 0 | OJW110: 0 | OJX110: 0 | OJY110: 0 | OJZ110: 0 | OKA110: 0 | OKB110: 0 | OKC110: 0 | OKD110: 0 | OKE110: 0 | OKF110: 0 | OKG110: 0 | OKH110: 0 | OKI110: 0 | OKJ110: 0 | OKK110: 0 | OKL110: 0 | OKM110: 0 | OKN110: 0 | OKO110: 0 | OKP110: 0 | OKQ110: 0 | OKR110: 0 | OKS110: =OKS5 -> 0 | OKT110: 0 | OKU110: 0 | OKV110: 0 | OKW110: 0 | OKX110: 0 | OKY110: 0 | OKZ110: 0 | OLA110: 0 | OLB110: 0 | OLC110: 0 | OLD110: 0 | OLE110: 0 | OLF110: 0 | OLG110: 0 | OLH110: 0 | OLI110: 0 | OLJ110: 0 | OLK110: 0 | OLL110: 0 | OLM110: 0 | OLN110: 0 | OLO110: 0 | OLP110: 0 | OLQ110: 0 | OLR110: 0 | OLS110: 0 | OLT110: 0 | OLU110: 0 | OLV110: 0 | OLW110: 0 | OLX110: 0 | OLY110: 0 | OLZ110: 0 | OMA110: 0 | OMB110: 0 | OMC110: 0 | OMD110: 0 | OME110: 0 | OMF110: 0 | OMG110: 0 | OMH110: 0 | OMI110: 0 | OMJ110: 0 | OMK110: 0 | OML110: 0 | OMM110: 0 | OMN110: 0 | OMO110: 0 | OMP110: 0 | OMQ110: 0 | OMR110: 0 | OMS110: 0 | OMT110: 0 | OMU110: 0 | OMV110: 0 | OMW110: 0 | OMX110: 0 | OMY110: 0 | OMZ110: 0 | ONA110: 0 | ONB110: 0 | ONC110: 0 | OND110: 0 | ONE110: =ONE5 -> 0 | ONF110: 0 | ONG110: 0 | ONH110: 0 | ONI110: 0 | ONJ110: 0 | ONK110: 0 | ONL110: 0 | ONM110: 0 | ONN110: 0 | ONO110: 0 | ONP110: 0 | ONQ110: 0 | ONR110: 0 | ONS110: 0 | ONT110: 0 | ONU110: 0 | ONV110: 0 | ONW110: 0 | ONX110: 0 | ONY110: 0 | ONZ110: 0 | OOA110: 0 | OOB110: 0 | OOC110: 0 | OOD110: 0 | OOE110: 0 | OOF110: 0 | OOG110: 0 | OOH110: 0 | OOI110: 0 | OOJ110: 0 | OOK110: 0 | OOL110: 0 | OOM110: 0 | OON110: 0 | OOO110: 0 | OOP110: 0 | OOQ110: 0 | OOR110: 0 | OOS110: 0 | OOT110: 0 | OOU110: 0 | OOV110: 0 | OOW110: 0 | OOX110: 0 | OOY110: 0 | OOZ110: 0 | OPA110: 0 | OPB110: 0 | OPC110: 0 | OPD110: 0 | OPE110: 0 | OPF110: 0 | OPG110: 0 | OPH110: 0 | OPI110: 0 | OPJ110: 0 | OPK110: 0 | OPL110: 0 | OPM110: 0 | OPN110: 0 | OPO110: 0 | OPP110: 0 | OPQ110: =OPQ5 -> 0 | OPR110: 0 | OPS110: 0 | OPT110: 0 | OPU110: 0 | OPV110: 0 | OPW110: 0 | OPX110: 0 | OPY110: 0 | OPZ110: 0 | OQA110: 0 | OQB110: 0 | OQC110: 0 | OQD110: 0 | OQE110: 0 | OQF110: 0 | OQG110: 0 | OQH110: 0 | OQI110: 0 | OQJ110: 0 | OQK110: 0 | OQL110: 0 | OQM110: 0 | OQN110: 0 | OQO110: 0 | OQP110: 0 | OQQ110: 0 | OQR110: 0 | OQS110: 0 | OQT110: 0 | OQU110: 0 | OQV110: 0 | OQW110: 0 | OQX110: 0 | OQY110: 0 | OQZ110: 0 | ORA110: 0 | ORB110: 0 | ORC110: 0 | ORD110: 0 | ORE110: 0 | ORF110: 0 | ORG110: 0 | ORH110: 0 | ORI110: 0 | ORJ110: 0 | ORK110: 0 | ORL110: 0 | ORM110: 0 | ORN110: 0 | ORO110: 0 | ORP110: 0 | ORQ110: 0 | ORR110: 0 | ORS110: 0 | ORT110: 0 | ORU110: 0 | ORV110: 0 | ORW110: 0 | ORX110: 0 | ORY110: 0 | ORZ110: 0 | OSA110: 0 | OSB110: 0 | OSC110: =OSC5 -> 0 | OSD110: 0 | OSE110: 0 | OSF110: 0 | OSG110: 0 | OSH110: 0 | OSI110: 0 | OSJ110: 0 | OSK110: 0 | OSL110: 0 | OSM110: 0 | OSN110: 0 | OSO110: 0 | OSP110: 0 | OSQ110: 0 | OSR110: 0 | OSS110: 0 | OST110: 0 | OSU110: 0 | OSV110: 0 | OSW110: 0 | OSX110: 0 | OSY110: 0 | OSZ110: 0 | OTA110: 0 | OTB110: 0 | OTC110: 0 | OTD110: 0 | OTE110: 0 | OTF110: 0 | OTG110: 0 | OTH110: 0 | OTI110: 0 | OTJ110: 0 | OTK110: 0 | OTL110: 0 | OTM110: 0 | OTN110: 0 | OTO110: 0 | OTP110: 0 | OTQ110: 0 | OTR110: 0 | OTS110: 0 | OTT110: 0 | OTU110: 0 | OTV110: 0 | OTW110: 0 | OTX110: 0 | OTY110: 0 | OTZ110: 0 | OUA110: 0 | OUB110: 0 | OUC110: 0 | OUD110: 0 | OUE110: 0 | OUF110: 0 | OUG110: 0 | OUH110: 0 | OUI110: 0 | OUJ110: 0 | OUK110: 0 | OUL110: 0 | OUM110: 0 | OUN110: 0 | OUO110: =OUO5 -> 0 | OUP110: 0 | OUQ110: 0 | OUR110: 0 | OUS110: 0 | OUT110: 0 | OUU110: 0 | OUV110: 0 | OUW110: 0 | OUX110: 0 | OUY110: 0 | OUZ110: 0 | OVA110: 0 | OVB110: 0 | OVC110: 0 | OVD110: 0 | OVE110: 0 | OVF110: 0 | OVG110: 0 | OVH110: 0 | OVI110: 0 | OVJ110: 0 | OVK110: 0 | OVL110: 0 | OVM110: 0 | OVN110: 0 | OVO110: 0 | OVP110: 0 | OVQ110: 0 | OVR110: 0 | OVS110: 0 | OVT110: 0 | OVU110: 0 | OVV110: 0 | OVW110: 0 | OVX110: 0 | OVY110: 0 | OVZ110: 0 | OWA110: 0 | OWB110: 0 | OWC110: 0 | OWD110: 0 | OWE110: 0 | OWF110: 0 | OWG110: 0 | OWH110: 0 | OWI110: 0 | OWJ110: 0 | OWK110: 0 | OWL110: 0 | OWM110: 0 | OWN110: 0 | OWO110: 0 | OWP110: 0 | OWQ110: 0 | OWR110: 0 | OWS110: 0 | OWT110: 0 | OWU110: 0 | OWV110: 0 | OWW110: 0 | OWX110: 0 | OWY110: 0 | OWZ110: 0 | OXA110: =OXA5 -> 0 | OXB110: 0 | OXC110: 0 | OXD110: 0 | OXE110: 0 | OXF110: 0 | OXG110: 0 | OXH110: 0 | OXI110: 0 | OXJ110: 0 | OXK110: 0 | OXL110: 0 | OXM110: 0 | OXN110: 0 | OXO110: 0 | OXP110: 0 | OXQ110: 0 | OXR110: 0 | OXS110: 0 | OXT110: 0 | OXU110: 0 | OXV110: 0 | OXW110: 0 | OXX110: 0 | OXY110: 0 | OXZ110: 0 | OYA110: 0 | OYB110: 0 | OYC110: 0 | OYD110: 0 | OYE110: 0 | OYF110: 0 | OYG110: 0 | OYH110: 0 | OYI110: 0 | OYJ110: 0 | OYK110: 0 | OYL110: 0 | OYM110: 0 | OYN110: 0 | OYO110: 0 | OYP110: 0 | OYQ110: 0 | OYR110: 0 | OYS110: 0 | OYT110: 0 | OYU110: 0 | OYV110: 0 | OYW110: 0 | OYX110: 0 | OYY110: 0 | OYZ110: 0 | OZA110: 0 | OZB110: 0 | OZC110: 0 | OZD110: 0 | OZE110: 0 | OZF110: 0 | OZG110: 0 | OZH110: 0 | OZI110: 0 | OZJ110: 0 | OZK110: 0 | OZL110: 0 | OZM110: =OZM5 -> 0 | OZN110: 0 | OZO110: 0 | OZP110: 0 | OZQ110: 0 | OZR110: 0 | OZS110: 0 | OZT110: 0 | OZU110: 0 | OZV110: 0 | OZW110: 0 | OZX110: 0 | OZY110: 0 | OZZ110: 0 | PAA110: 0 | PAB110: 0 | PAC110: 0 | PAD110: 0 | PAE110: 0 | PAF110: 0 | PAG110: 0 | PAH110: 0 | PAI110: 0 | PAJ110: 0 | PAK110: 0 | PAL110: 0 | PAM110: 0 | PAN110: 0 | PAO110: 0 | PAP110: 0 | PAQ110: 0 | PAR110: 0 | PAS110: 0 | PAT110: 0 | PAU110: 0 | PAV110: 0 | PAW110: 0 | PAX110: 0 | PAY110: 0 | PAZ110: 0 | PBA110: 0 | PBB110: 0 | PBC110: 0 | PBD110: 0 | PBE110: 0 | PBF110: 0 | PBG110: 0 | PBH110: 0 | PBI110: 0 | PBJ110: 0 | PBK110: 0 | PBL110: 0 | PBM110: 0 | PBN110: 0 | PBO110: 0 | PBP110: 0 | PBQ110: 0 | PBR110: 0 | PBS110: 0 | PBT110: 0 | PBU110: 0 | PBV110: 0 | PBW110: 0 | PBX110: 0 | PBY110: =PBY5 -> 0 | PBZ110: 0 | PCA110: 0 | PCB110: 0 | PCC110: 0 | PCD110: 0 | PCE110: 0 | PCF110: 0 | PCG110: 0 | PCH110: 0 | PCI110: 0 | PCJ110: 0 | PCK110: 0 | PCL110: 0 | PCM110: 0 | PCN110: 0 | PCO110: 0 | PCP110: 0 | PCQ110: 0 | PCR110: 0 | PCS110: 0 | PCT110: 0 | PCU110: 0 | PCV110: 0 | PCW110: 0 | PCX110: 0 | PCY110: 0 | PCZ110: 0 | PDA110: 0 | PDB110: 0 | PDC110: 0 | PDD110: 0 | PDE110: 0 | PDF110: 0 | PDG110: 0 | PDH110: 0 | PDI110: 0 | PDJ110: 0 | PDK110: 0 | PDL110: 0 | PDM110: 0 | PDN110: 0 | PDO110: 0 | PDP110: 0 | PDQ110: 0 | PDR110: 0 | PDS110: 0 | PDT110: 0 | PDU110: 0 | PDV110: 0 | PDW110: 0 | PDX110: 0 | PDY110: 0 | PDZ110: 0 | PEA110: 0 | PEB110: 0 | PEC110: 0 | PED110: 0 | PEE110: 0 | PEF110: 0 | PEG110: 0 | PEH110: 0 | PEI110: 0 | PEJ110: 0 | PEK110: =PEK5 -> 0 | PEL110: 0 | PEM110: 0 | PEN110: 0 | PEO110: 0 | PEP110: 0 | PEQ110: 0 | PER110: 0 | PES110: 0 | PET110: 0 | PEU110: 0 | PEV110: 0 | PEW110: 0 | PEX110: 0 | PEY110: 0 | PEZ110: 0 | PFA110: 0 | PFB110: 0 | PFC110: 0 | PFD110: 0 | PFE110: 0 | PFF110: 0 | PFG110: 0 | PFH110: 0 | PFI110: 0 | PFJ110: 0 | PFK110: 0 | PFL110: 0 | PFM110: 0 | PFN110: 0 | PFO110: 0 | PFP110: 0 | PFQ110: 0 | PFR110: 0 | PFS110: 0 | PFT110: 0 | PFU110: 0 | PFV110: 0 | PFW110: 0 | PFX110: 0 | PFY110: 0 | PFZ110: 0 | PGA110: 0 | PGB110: 0 | PGC110: 0 | PGD110: 0 | PGE110: 0 | PGF110: 0 | PGG110: 0 | PGH110: 0 | PGI110: 0 | PGJ110: 0 | PGK110: 0 | PGL110: 0 | PGM110: 0 | PGN110: 0 | PGO110: 0 | PGP110: 0 | PGQ110: 0 | PGR110: 0 | PGS110: 0 | PGT110: 0 | PGU110: 0 | PGV110: 0 | PGW110: =PGW5 -> 0 | PGX110: 0 | PGY110: 0 | PGZ110: 0 | PHA110: 0 | PHB110: 0 | PHC110: 0 | PHD110: 0 | PHE110: 0 | PHF110: 0 | PHG110: 0 | PHH110: 0 | PHI110: 0 | PHJ110: 0 | PHK110: 0 | PHL110: 0 | PHM110: 0 | PHN110: 0 | PHO110: 0 | PHP110: 0 | PHQ110: 0 | PHR110: 0 | PHS110: 0 | PHT110: 0 | PHU110: 0 | PHV110: 0 | PHW110: 0 | PHX110: 0 | PHY110: 0 | PHZ110: 0 | PIA110: 0 | PIB110: 0 | PIC110: 0 | PID110: 0 | PIE110: 0 | PIF110: 0 | PIG110: 0 | PIH110: 0 | PII110: 0 | PIJ110: 0 | PIK110: 0 | PIL110: 0 | PIM110: 0 | PIN110: 0 | PIO110: 0 | PIP110: 0 | PIQ110: 0 | PIR110: 0 | PIS110: 0 | PIT110: 0 | PIU110: 0 | PIV110: 0 | PIW110: 0 | PIX110: 0 | PIY110: 0 | PIZ110: 0 | PJA110: 0 | PJB110: 0 | PJC110: 0 | PJD110: 0 | PJE110: 0 | PJF110: 0 | PJG110: 0 | PJH110: 0 | PJI110: =PJI5 -> 0 | PJJ110: 0 | PJK110: 0 | PJL110: 0 | PJM110: 0 | PJN110: 0 | PJO110: 0 | PJP110: 0 | PJQ110: 0 | PJR110: 0 | PJS110: 0 | PJT110: 0 | PJU110: 0 | PJV110: 0 | PJW110: 0 | PJX110: 0 | PJY110: 0 | PJZ110: 0 | PKA110: 0 | PKB110: 0 | PKC110: 0 | PKD110: 0 | PKE110: 0 | PKF110: 0 | PKG110: 0 | PKH110: 0 | PKI110: 0 | PKJ110: 0 | PKK110: 0 | PKL110: 0 | PKM110: 0 | PKN110: 0 | PKO110: 0 | PKP110: 0 | PKQ110: 0 | PKR110: 0 | PKS110: 0 | PKT110: 0 | PKU110: 0 | PKV110: 0 | PKW110: 0 | PKX110: 0 | PKY110: 0 | PKZ110: 0 | PLA110: 0 | PLB110: 0 | PLC110: 0 | PLD110: 0 | PLE110: 0 | PLF110: 0 | PLG110: 0 | PLH110: 0 | PLI110: 0 | PLJ110: 0 | PLK110: 0 | PLL110: 0 | PLM110: 0 | PLN110: 0 | PLO110: 0 | PLP110: 0 | PLQ110: 0 | PLR110: 0 | PLS110: 0 | PLT110: 0 | PLU110: =PLU5 -> 0 | PLV110: 0 | PLW110: 0 | PLX110: 0 | PLY110: 0 | PLZ110: 0 | PMA110: 0 | PMB110: 0 | PMC110: 0 | PMD110: 0 | PME110: 0 | PMF110: 0 | PMG110: 0 | PMH110: 0 | PMI110: 0 | PMJ110: 0 | PMK110: 0 | PML110: 0 | PMM110: 0 | PMN110: 0 | PMO110: 0 | PMP110: 0 | PMQ110: 0 | PMR110: 0 | PMS110: 0 | PMT110: 0 | PMU110: 0 | PMV110: 0 | PMW110: 0 | PMX110: 0 | PMY110: 0 | PMZ110: 0 | PNA110: 0 | PNB110: 0 | PNC110: 0 | PND110: 0 | PNE110: 0 | PNF110: 0 | PNG110: 0 | PNH110: 0 | PNI110: 0 | PNJ110: 0 | PNK110: 0 | PNL110: 0 | PNM110: 0 | PNN110: 0 | PNO110: 0 | PNP110: 0 | PNQ110: 0 | PNR110: 0 | PNS110: 0 | PNT110: 0 | PNU110: 0 | PNV110: 0 | PNW110: 0 | PNX110: 0 | PNY110: 0 | PNZ110: 0 | POA110: 0 | POB110: 0 | POC110: 0 | POD110: 0 | POE110: 0 | POF110: 0 | POG110: =POG5 -> 0 | POH110: 0 | POI110: 0 | POJ110: 0 | POK110: 0 | POL110: 0 | POM110: 0 | PON110: 0 | POO110: 0 | POP110: 0 | POQ110: 0 | POR110: 0 | POS110: 0 | POT110: 0 | POU110: 0 | POV110: 0 | POW110: 0 | POX110: 0 | POY110: 0 | POZ110: 0 | PPA110: 0 | PPB110: 0 | PPC110: 0 | PPD110: 0 | PPE110: 0 | PPF110: 0 | PPG110: 0 | PPH110: 0 | PPI110: 0 | PPJ110: 0 | PPK110: 0 | PPL110: 0 | PPM110: 0 | PPN110: 0 | PPO110: 0 | PPP110: 0 | PPQ110: 0 | PPR110: 0 | PPS110: 0 | PPT110: 0 | PPU110: 0 | PPV110: 0 | PPW110: 0 | PPX110: 0 | PPY110: 0 | PPZ110: 0 | PQA110: 0 | PQB110: 0 | PQC110: 0 | PQD110: 0 | PQE110: 0 | PQF110: 0 | PQG110: 0 | PQH110: 0 | PQI110: 0 | PQJ110: 0 | PQK110: 0 | PQL110: 0 | PQM110: 0 | PQN110: 0 | PQO110: 0 | PQP110: 0 | PQQ110: 0 | PQR110: 0 | PQS110: =PQS5 -> 0 | PQT110: 0 | PQU110: 0 | PQV110: 0 | PQW110: 0 | PQX110: 0 | PQY110: 0 | PQZ110: 0 | PRA110: 0 | PRB110: 0 | PRC110: 0 | PRD110: 0 | PRE110: 0 | PRF110: 0 | PRG110: 0 | PRH110: 0 | PRI110: 0 | PRJ110: 0 | PRK110: 0 | PRL110: 0 | PRM110: 0 | PRN110: 0 | PRO110: 0 | PRP110: 0 | PRQ110: 0 | PRR110: 0 | PRS110: 0 | PRT110: 0 | PRU110: 0 | PRV110: 0 | PRW110: 0 | PRX110: 0 | PRY110: 0 | PRZ110: 0 | PSA110: 0 | PSB110: 0 | PSC110: 0 | PSD110: 0 | PSE110: 0 | PSF110: 0 | PSG110: 0 | PSH110: 0 | PSI110: 0 | PSJ110: 0 | PSK110: 0 | PSL110: 0 | PSM110: 0 | PSN110: 0 | PSO110: 0 | PSP110: 0 | PSQ110: 0 | PSR110: 0 | PSS110: 0 | PST110: 0 | PSU110: 0 | PSV110: 0 | PSW110: 0 | PSX110: 0 | PSY110: 0 | PSZ110: 0 | PTA110: 0 | PTB110: 0 | PTC110: 0 | PTD110: 0 | PTE110: =PTE5 -> 0 | PTF110: 0 | PTG110: 0 | PTH110: 0 | PTI110: 0 | PTJ110: 0 | PTK110: 0 | PTL110: 0 | PTM110: 0 | PTN110: 0 | PTO110: 0 | PTP110: 0 | PTQ110: 0 | PTR110: 0 | PTS110: 0 | PTT110: 0 | PTU110: 0 | PTV110: 0 | PTW110: 0 | PTX110: 0 | PTY110: 0 | PTZ110: 0 | PUA110: 0 | PUB110: 0 | PUC110: 0 | PUD110: 0 | PUE110: 0 | PUF110: 0 | PUG110: 0 | PUH110: 0 | PUI110: 0 | PUJ110: 0 | PUK110: 0 | PUL110: 0 | PUM110: 0 | PUN110: 0 | PUO110: 0 | PUP110: 0 | PUQ110: 0 | PUR110: 0 | PUS110: 0 | PUT110: 0 | PUU110: 0 | PUV110: 0 | PUW110: 0 | PUX110: 0 | PUY110: 0 | PUZ110: 0 | PVA110: 0 | PVB110: 0 | PVC110: 0 | PVD110: 0 | PVE110: 0 | PVF110: 0 | PVG110: 0 | PVH110: 0 | PVI110: 0 | PVJ110: 0 | PVK110: 0 | PVL110: 0 | PVM110: 0 | PVN110: 0 | PVO110: 0 | PVP110: 0 | PVQ110: =PVQ5 -> 0 | PVR110: 0 | PVS110: 0 | PVT110: 0 | PVU110: 0 | PVV110: 0 | PVW110: 0 | PVX110: 0 | PVY110: 0 | PVZ110: 0 | PWA110: 0 | PWB110: 0 | PWC110: 0 | PWD110: 0 | PWE110: 0 | PWF110: 0 | PWG110: 0 | PWH110: 0 | PWI110: 0 | PWJ110: 0 | PWK110: 0 | PWL110: 0 | PWM110: 0 | PWN110: 0 | PWO110: 0 | PWP110: 0 | PWQ110: 0 | PWR110: 0 | PWS110: 0 | PWT110: 0 | PWU110: 0 | PWV110: 0 | PWW110: 0 | PWX110: 0 | PWY110: 0 | PWZ110: 0 | PXA110: 0 | PXB110: 0 | PXC110: 0 | PXD110: 0 | PXE110: 0 | PXF110: 0 | PXG110: 0 | PXH110: 0 | PXI110: 0 | PXJ110: 0 | PXK110: 0 | PXL110: 0 | PXM110: 0 | PXN110: 0 | PXO110: 0 | PXP110: 0 | PXQ110: 0 | PXR110: 0 | PXS110: 0 | PXT110: 0 | PXU110: 0 | PXV110: 0 | PXW110: 0 | PXX110: 0 | PXY110: 0 | PXZ110: 0 | PYA110: 0 | PYB110: 0 | PYC110: =PYC5 -> 0 | PYD110: 0 | PYE110: 0 | PYF110: 0 | PYG110: 0 | PYH110: 0 | PYI110: 0 | PYJ110: 0 | PYK110: 0 | PYL110: 0 | PYM110: 0 | PYN110: 0 | PYO110: 0 | PYP110: 0 | PYQ110: 0 | PYR110: 0 | PYS110: 0 | PYT110: 0 | PYU110: 0 | PYV110: 0 | PYW110: 0 | PYX110: 0 | PYY110: 0 | PYZ110: 0 | PZA110: 0 | PZB110: 0 | PZC110: 0 | PZD110: 0 | PZE110: 0 | PZF110: 0 | PZG110: 0 | PZH110: 0 | PZI110: 0 | PZJ110: 0 | PZK110: 0 | PZL110: 0 | PZM110: 0 | PZN110: 0 | PZO110: 0 | PZP110: 0 | PZQ110: 0 | PZR110: 0 | PZS110: 0 | PZT110: 0 | PZU110: 0 | PZV110: 0 | PZW110: 0 | PZX110: 0 | PZY110: 0 | PZZ110: 0 | QAA110: 0 | QAB110: 0 | QAC110: 0 | QAD110: 0 | QAE110: 0 | QAF110: 0 | QAG110: 0 | QAH110: 0 | QAI110: 0 | QAJ110: 0 | QAK110: 0 | QAL110: 0 | QAM110: 0 | QAN110: 0 | QAO110: =QAO5 -> 0 | QAP110: 0 | QAQ110: 0 | QAR110: 0 | QAS110: 0 | QAT110: 0 | QAU110: 0 | QAV110: 0 | QAW110: 0 | QAX110: 0 | QAY110: 0 | QAZ110: 0 | QBA110: 0 | QBB110: 0 | QBC110: 0 | QBD110: 0 | QBE110: 0 | QBF110: 0 | QBG110: 0 | QBH110: 0 | QBI110: 0 | QBJ110: 0 | QBK110: 0 | QBL110: 0 | QBM110: 0 | QBN110: 0 | QBO110: 0 | QBP110: 0 | QBQ110: 0 | QBR110: 0 | QBS110: 0 | QBT110: 0 | QBU110: 0 | QBV110: 0 | QBW110: 0 | QBX110: 0 | QBY110: 0 | QBZ110: 0 | QCA110: 0 | QCB110: 0 | QCC110: 0 | QCD110: 0 | QCE110: 0 | QCF110: 0 | QCG110: 0 | QCH110: 0 | QCI110: 0 | QCJ110: 0 | QCK110: 0 | QCL110: 0 | QCM110: 0 | QCN110: 0 | QCO110: 0 | QCP110: 0 | QCQ110: 0 | QCR110: 0 | QCS110: 0 | QCT110: 0 | QCU110: 0 | QCV110: 0 | QCW110: 0 | QCX110: 0 | QCY110: 0 | QCZ110: 0 | QDA110: =QDA5 -> 0 | QDB110: 0 | QDC110: 0 | QDD110: 0 | QDE110: 0 | QDF110: 0 | QDG110: 0 | QDH110: 0 | QDI110: 0 | QDJ110: 0 | QDK110: 0 | QDL110: 0 | QDM110: 0 | QDN110: 0 | QDO110: 0 | QDP110: 0 | QDQ110: 0 | QDR110: 0 | QDS110: 0 | QDT110: 0 | QDU110: 0 | QDV110: 0 | QDW110: 0 | QDX110: 0 | QDY110: 0 | QDZ110: 0 | QEA110: 0 | QEB110: 0 | QEC110: 0 | QED110: 0 | QEE110: 0 | QEF110: 0 | QEG110: 0 | QEH110: 0 | QEI110: 0 | QEJ110: 0 | QEK110: 0 | QEL110: 0 | QEM110: 0 | QEN110: 0 | QEO110: 0 | QEP110: 0 | QEQ110: 0 | QER110: 0 | QES110: 0 | QET110: 0 | QEU110: 0 | QEV110: 0 | QEW110: 0 | QEX110: 0 | QEY110: 0 | QEZ110: 0 | QFA110: 0 | QFB110: 0 | QFC110: 0 | QFD110: 0 | QFE110: 0 | QFF110: 0 | QFG110: 0 | QFH110: 0 | QFI110: 0 | QFJ110: 0 | QFK110: 0 | QFL110: 0 | QFM110: =QFM5 -> 0 | QFN110: 0 | QFO110: 0 | QFP110: 0 | QFQ110: 0 | QFR110: 0 | QFS110: 0 | QFT110: 0 | QFU110: 0 | QFV110: 0 | QFW110: 0 | QFX110: 0 | QFY110: 0 | QFZ110: 0 | QGA110: 0 | QGB110: 0 | QGC110: 0 | QGD110: 0 | QGE110: 0 | QGF110: 0 | QGG110: 0 | QGH110: 0 | QGI110: 0 | QGJ110: 0 | QGK110: 0 | QGL110: 0 | QGM110: 0 | QGN110: 0 | QGO110: 0 | QGP110: 0 | QGQ110: 0 | QGR110: 0 | QGS110: 0 | QGT110: 0 | QGU110: 0 | QGV110: 0 | QGW110: 0 | QGX110: 0 | QGY110: 0 | QGZ110: 0 | QHA110: 0 | QHB110: 0 | QHC110: 0 | QHD110: 0 | QHE110: 0 | QHF110: 0 | QHG110: 0 | QHH110: 0 | QHI110: 0 | QHJ110: 0 | QHK110: 0 | QHL110: 0 | QHM110: 0 | QHN110: 0 | QHO110: 0 | QHP110: 0 | QHQ110: 0 | QHR110: 0 | QHS110: 0 | QHT110: 0 | QHU110: 0 | QHV110: 0 | QHW110: 0 | QHX110: 0 | QHY110: =QHY5 -> 0 | QHZ110: 0 | QIA110: 0 | QIB110: 0 | QIC110: 0 | QID110: 0 | QIE110: 0 | QIF110: 0 | QIG110: 0 | QIH110: 0 | QII110: 0 | QIJ110: 0 | QIK110: 0 | QIL110: 0 | QIM110: 0 | QIN110: 0 | QIO110: 0 | QIP110: 0 | QIQ110: 0 | QIR110: 0 | QIS110: 0 | QIT110: 0 | QIU110: 0 | QIV110: 0 | QIW110: 0 | QIX110: 0 | QIY110: 0 | QIZ110: 0 | QJA110: 0 | QJB110: 0 | QJC110: 0 | QJD110: 0 | QJE110: 0 | QJF110: 0 | QJG110: 0 | QJH110: 0 | QJI110: 0 | QJJ110: 0 | QJK110: 0 | QJL110: 0 | QJM110: 0 | QJN110: 0 | QJO110: 0 | QJP110: 0 | QJQ110: 0 | QJR110: 0 | QJS110: 0 | QJT110: 0 | QJU110: 0 | QJV110: 0 | QJW110: 0 | QJX110: 0 | QJY110: 0 | QJZ110: 0 | QKA110: 0 | QKB110: 0 | QKC110: 0 | QKD110: 0 | QKE110: 0 | QKF110: 0 | QKG110: 0 | QKH110: 0 | QKI110: 0 | QKJ110: 0 | QKK110: =QKK5 -> 0 | QKL110: 0 | QKM110: 0 | QKN110: 0 | QKO110: 0 | QKP110: 0 | QKQ110: 0 | QKR110: 0 | QKS110: 0 | QKT110: 0 | QKU110: 0 | QKV110: 0 | QKW110: 0 | QKX110: 0 | QKY110: 0 | QKZ110: 0 | QLA110: 0 | QLB110: 0 | QLC110: 0 | QLD110: 0 | QLE110: 0 | QLF110: 0 | QLG110: 0 | QLH110: 0 | QLI110: 0 | QLJ110: 0 | QLK110: 0 | QLL110: 0 | QLM110: 0 | QLN110: 0 | QLO110: 0 | QLP110: 0 | QLQ110: 0 | QLR110: 0 | QLS110: 0 | QLT110: 0 | QLU110: 0 | QLV110: 0 | QLW110: 0 | QLX110: 0 | QLY110: 0 | QLZ110: 0 | QMA110: 0 | QMB110: 0 | QMC110: 0 | QMD110: 0 | QME110: 0 | QMF110: 0 | QMG110: 0 | QMH110: 0 | QMI110: 0 | QMJ110: 0 | QMK110: 0 | QML110: 0 | QMM110: 0 | QMN110: 0 | QMO110: 0 | QMP110: 0 | QMQ110: 0 | QMR110: 0 | QMS110: 0 | QMT110: 0 | QMU110: 0 | QMV110: 0 | QMW110: =QMW5 -> 0 | QMX110: 0 | QMY110: 0 | QMZ110: 0 | QNA110: 0 | QNB110: 0 | QNC110: 0 | QND110: 0 | QNE110: 0 | QNF110: 0 | QNG110: 0 | QNH110: 0 | QNI110: 0 | QNJ110: 0 | QNK110: 0 | QNL110: 0 | QNM110: 0 | QNN110: 0 | QNO110: 0 | QNP110: 0 | QNQ110: 0 | QNR110: 0 | QNS110: 0 | QNT110: 0 | QNU110: 0 | QNV110: 0 | QNW110: 0 | QNX110: 0 | QNY110: 0 | QNZ110: 0 | QOA110: 0 | QOB110: 0 | QOC110: 0 | QOD110: 0 | QOE110: 0 | QOF110: 0 | QOG110: 0 | QOH110: 0 | QOI110: 0 | QOJ110: 0 | QOK110: 0 | QOL110: 0 | QOM110: 0 | QON110: 0 | QOO110: 0 | QOP110: 0 | QOQ110: 0 | QOR110: 0 | QOS110: 0 | QOT110: 0 | QOU110: 0 | QOV110: 0 | QOW110: 0 | QOX110: 0 | QOY110: 0 | QOZ110: 0 | QPA110: 0 | QPB110: 0 | QPC110: 0 | QPD110: 0 | QPE110: 0 | QPF110: 0 | QPG110: 0 | QPH110: 0 | QPI110: =QPI5 -> 0 | QPJ110: 0 | QPK110: 0 | QPL110: 0 | QPM110: 0 | QPN110: 0 | QPO110: 0 | QPP110: 0 | QPQ110: 0 | QPR110: 0 | QPS110: 0 | QPT110: 0 | QPU110: 0 | QPV110: 0 | QPW110: 0 | QPX110: 0 | QPY110: 0 | QPZ110: 0 | QQA110: 0 | QQB110: 0 | QQC110: 0 | QQD110: 0 | QQE110: 0 | QQF110: 0 | QQG110: 0 | QQH110: 0 | QQI110: 0 | QQJ110: 0 | QQK110: 0 | QQL110: 0 | QQM110: 0 | QQN110: 0 | QQO110: 0 | QQP110: 0 | QQQ110: 0 | QQR110: 0 | QQS110: 0 | QQT110: 0 | QQU110: 0 | QQV110: 0 | QQW110: 0 | QQX110: 0 | QQY110: 0 | QQZ110: 0 | QRA110: 0 | QRB110: 0 | QRC110: 0 | QRD110: 0 | QRE110: 0 | QRF110: 0 | QRG110: 0 | QRH110: 0 | QRI110: 0 | QRJ110: 0 | QRK110: 0 | QRL110: 0 | QRM110: 0 | QRN110: 0 | QRO110: 0 | QRP110: 0 | QRQ110: 0 | QRR110: 0 | QRS110: 0 | QRT110: 0 | QRU110: =QRU5 -> 0 | QRV110: 0 | QRW110: 0 | QRX110: 0 | QRY110: 0 | QRZ110: 0 | QSA110: 0 | QSB110: 0 | QSC110: 0 | QSD110: 0 | QSE110: 0 | QSF110: 0 | QSG110: 0 | QSH110: 0 | QSI110: 0 | QSJ110: 0 | QSK110: 0 | QSL110: 0 | QSM110: 0 | QSN110: 0 | QSO110: 0 | QSP110: 0 | QSQ110: 0 | QSR110: 0 | QSS110: 0 | QST110: 0 | QSU110: 0 | QSV110: 0 | QSW110: 0 | QSX110: 0 | QSY110: 0 | QSZ110: 0 | QTA110: 0 | QTB110: 0 | QTC110: 0 | QTD110: 0 | QTE110: 0 | QTF110: 0 | QTG110: 0 | QTH110: 0 | QTI110: 0 | QTJ110: 0 | QTK110: 0 | QTL110: 0 | QTM110: 0 | QTN110: 0 | QTO110: 0 | QTP110: 0 | QTQ110: 0 | QTR110: 0 | QTS110: 0 | QTT110: 0 | QTU110: 0 | QTV110: 0 | QTW110: 0 | QTX110: 0 | QTY110: 0 | QTZ110: 0 | QUA110: 0 | QUB110: 0 | QUC110: 0 | QUD110: 0 | QUE110: 0 | QUF110: 0 | QUG110: =QUG5 -> 0 | QUH110: 0 | QUI110: 0 | QUJ110: 0 | QUK110: 0 | QUL110: 0 | QUM110: 0 | QUN110: 0 | QUO110: 0 | QUP110: 0 | QUQ110: 0 | QUR110: 0 | QUS110: 0 | QUT110: 0 | QUU110: 0 | QUV110: 0 | QUW110: 0 | QUX110: 0 | QUY110: 0 | QUZ110: 0 | QVA110: 0 | QVB110: 0 | QVC110: 0 | QVD110: 0 | QVE110: 0 | QVF110: 0 | QVG110: 0 | QVH110: 0 | QVI110: 0 | QVJ110: 0 | QVK110: 0 | QVL110: 0 | QVM110: 0 | QVN110: 0 | QVO110: 0 | QVP110: 0 | QVQ110: 0 | QVR110: 0 | QVS110: 0 | QVT110: 0 | QVU110: 0 | QVV110: 0 | QVW110: 0 | QVX110: 0 | QVY110: 0 | QVZ110: 0 | QWA110: 0 | QWB110: 0 | QWC110: 0 | QWD110: 0 | QWE110: 0 | QWF110: 0 | QWG110: 0 | QWH110: 0 | QWI110: 0 | QWJ110: 0 | QWK110: 0 | QWL110: 0 | QWM110: 0 | QWN110: 0 | QWO110: 0 | QWP110: 0 | QWQ110: 0 | QWR110: 0 | QWS110: =QWS5 -> 0 | QWT110: 0 | QWU110: 0 | QWV110: 0 | QWW110: 0 | QWX110: 0 | QWY110: 0 | QWZ110: 0 | QXA110: 0 | QXB110: 0 | QXC110: 0 | QXD110: 0 | QXE110: 0 | QXF110: 0 | QXG110: 0 | QXH110: 0 | QXI110: 0 | QXJ110: 0 | QXK110: 0 | QXL110: 0 | QXM110: 0 | QXN110: 0 | QXO110: 0 | QXP110: 0 | QXQ110: 0 | QXR110: 0 | QXS110: 0 | QXT110: 0 | QXU110: 0 | QXV110: 0 | QXW110: 0 | QXX110: 0 | QXY110: 0 | QXZ110: 0 | QYA110: 0 | QYB110: 0 | QYC110: 0 | QYD110: 0 | QYE110: 0 | QYF110: 0 | QYG110: 0 | QYH110: 0 | QYI110: 0 | QYJ110: 0 | QYK110: 0 | QYL110: 0 | QYM110: 0 | QYN110: 0 | QYO110: 0 | QYP110: 0 | QYQ110: 0 | QYR110: 0 | QYS110: 0 | QYT110: 0 | QYU110: 0 | QYV110: 0 | QYW110: 0 | QYX110: 0 | QYY110: 0 | QYZ110: 0 | QZA110: 0 | QZB110: 0 | QZC110: 0 | QZD110: 0 | QZE110: =QZE5 -> 0 | QZF110: 0 | QZG110: 0 | QZH110: 0 | QZI110: 0 | QZJ110: 0 | QZK110: 0 | QZL110: 0 | QZM110: 0 | QZN110: 0 | QZO110: 0 | QZP110: 0 | QZQ110: 0 | QZR110: 0 | QZS110: 0 | QZT110: 0 | QZU110: 0 | QZV110: 0 | QZW110: 0 | QZX110: 0 | QZY110: 0 | QZZ110: 0 | RAA110: 0 | RAB110: 0 | RAC110: 0 | RAD110: 0 | RAE110: 0 | RAF110: 0 | RAG110: 0 | RAH110: 0 | RAI110: 0 | RAJ110: 0 | RAK110: 0 | RAL110: 0 | RAM110: 0 | RAN110: 0 | RAO110: 0 | RAP110: 0 | RAQ110: 0 | RAR110: 0 | RAS110: 0 | RAT110: 0 | RAU110: 0 | RAV110: 0 | RAW110: 0 | RAX110: 0 | RAY110: 0 | RAZ110: 0 | RBA110: 0 | RBB110: 0 | RBC110: 0 | RBD110: 0 | RBE110: 0 | RBF110: 0 | RBG110: 0 | RBH110: 0 | RBI110: 0 | RBJ110: 0 | RBK110: 0 | RBL110: 0 | RBM110: 0 | RBN110: 0 | RBO110: 0 | RBP110: 0 | RBQ110: =RBQ5 -> 0 | RBR110: 0 | RBS110: 0 | RBT110: 0 | RBU110: 0 | RBV110: 0 | RBW110: 0 | RBX110: 0 | RBY110: 0 | RBZ110: 0 | RCA110: 0 | RCB110: 0 | RCC110: 0 | RCD110: 0 | RCE110: 0 | RCF110: 0 | RCG110: 0 | RCH110: 0 | RCI110: 0 | RCJ110: 0 | RCK110: 0 | RCL110: 0 | RCM110: 0 | RCN110: 0 | RCO110: 0 | RCP110: 0 | RCQ110: 0 | RCR110: 0 | RCS110: 0 | RCT110: 0 | RCU110: 0 | RCV110: 0 | RCW110: 0 | RCX110: 0 | RCY110: 0 | RCZ110: 0 | RDA110: 0 | RDB110: 0 | RDC110: 0 | RDD110: 0 | RDE110: 0 | RDF110: 0 | RDG110: 0 | RDH110: 0 | RDI110: 0 | RDJ110: 0 | RDK110: 0 | RDL110: 0 | RDM110: 0 | RDN110: 0 | RDO110: 0 | RDP110: 0 | RDQ110: 0 | RDR110: 0 | RDS110: 0 | RDT110: 0 | RDU110: 0 | RDV110: 0 | RDW110: 0 | RDX110: 0 | RDY110: 0 | RDZ110: 0 | REA110: 0 | REB110: 0 | REC110: =REC5 -> 0 | RED110: 0 | REE110: 0 | REF110: 0 | REG110: 0 | REH110: 0 | REI110: 0 | REJ110: 0 | REK110: 0 | REL110: 0 | REM110: 0 | REN110: 0 | REO110: 0 | REP110: 0 | REQ110: 0 | RER110: 0 | RES110: 0 | RET110: 0 | REU110: 0 | REV110: 0 | REW110: 0 | REX110: 0 | REY110: 0 | REZ110: 0 | RFA110: 0 | RFB110: 0 | RFC110: 0 | RFD110: 0 | RFE110: 0 | RFF110: 0 | RFG110: 0 | RFH110: 0 | RFI110: 0 | RFJ110: 0 | RFK110: 0 | RFL110: 0 | RFM110: 0 | RFN110: 0 | RFO110: 0 | RFP110: 0 | RFQ110: 0 | RFR110: 0 | RFS110: 0 | RFT110: 0 | RFU110: 0 | RFV110: 0 | RFW110: 0 | RFX110: 0 | RFY110: 0 | RFZ110: 0 | RGA110: 0 | RGB110: 0 | RGC110: 0 | RGD110: 0 | RGE110: 0 | RGF110: 0 | RGG110: 0 | RGH110: 0 | RGI110: 0 | RGJ110: 0 | RGK110: 0 | RGL110: 0 | RGM110: 0 | RGN110: 0 | RGO110: =RGO5 -> 0 | RGP110: 0 | RGQ110: 0 | RGR110: 0 | RGS110: 0 | RGT110: 0 | RGU110: 0 | RGV110: 0 | RGW110: 0 | RGX110: 0 | RGY110: 0 | RGZ110: 0 | RHA110: 0 | RHB110: 0 | RHC110: 0 | RHD110: 0 | RHE110: 0 | RHF110: 0 | RHG110: 0 | RHH110: 0 | RHI110: 0 | RHJ110: 0 | RHK110: 0 | RHL110: 0 | RHM110: 0 | RHN110: 0 | RHO110: 0 | RHP110: 0 | RHQ110: 0 | RHR110: 0 | RHS110: 0 | RHT110: 0 | RHU110: 0 | RHV110: 0 | RHW110: 0 | RHX110: 0 | RHY110: 0 | RHZ110: 0 | RIA110: 0 | RIB110: 0 | RIC110: 0 | RID110: 0 | RIE110: 0 | RIF110: 0 | RIG110: 0 | RIH110: 0 | RII110: 0 | RIJ110: 0 | RIK110: 0 | RIL110: 0 | RIM110: 0 | RIN110: 0 | RIO110: 0 | RIP110: 0 | RIQ110: 0 | RIR110: 0 | RIS110: 0 | RIT110: 0 | RIU110: 0 | RIV110: 0 | RIW110: 0 | RIX110: 0 | RIY110: 0 | RIZ110: 0 | RJA110: =RJA5 -> 0 | RJB110: 0 | RJC110: 0 | RJD110: 0 | RJE110: 0 | RJF110: 0 | RJG110: 0 | RJH110: 0 | RJI110: 0 | RJJ110: 0 | RJK110: 0 | RJL110: 0 | RJM110: 0 | RJN110: 0 | RJO110: 0 | RJP110: 0 | RJQ110: 0 | RJR110: 0 | RJS110: 0 | RJT110: 0 | RJU110: 0 | RJV110: 0 | RJW110: 0 | RJX110: 0 | RJY110: 0 | RJZ110: 0 | RKA110: 0 | RKB110: 0 | RKC110: 0 | RKD110: 0 | RKE110: 0 | RKF110: 0 | RKG110: 0 | RKH110: 0 | RKI110: 0 | RKJ110: 0 | RKK110: 0 | RKL110: 0 | RKM110: 0 | RKN110: 0 | RKO110: 0 | RKP110: 0 | RKQ110: 0 | RKR110: 0 | RKS110: 0 | RKT110: 0 | RKU110: 0 | RKV110: 0 | RKW110: 0 | RKX110: 0 | RKY110: 0 | RKZ110: 0 | RLA110: 0 | RLB110: 0 | RLC110: 0 | RLD110: 0 | RLE110: 0 | RLF110: 0 | RLG110: 0 | RLH110: 0 | RLI110: 0 | RLJ110: 0 | RLK110: 0 | RLL110: 0 | RLM110: =RLM5 -> 0 | RLN110: 0 | RLO110: 0 | RLP110: 0 | RLQ110: 0 | RLR110: 0 | RLS110: 0 | RLT110: 0 | RLU110: 0 | RLV110: 0 | RLW110: 0 | RLX110: 0 | RLY110: 0 | RLZ110: 0 | RMA110: 0 | RMB110: 0 | RMC110: 0 | RMD110: 0 | RME110: 0 | RMF110: 0 | RMG110: 0 | RMH110: 0 | RMI110: 0 | RMJ110: 0 | RMK110: 0 | RML110: 0 | RMM110: 0 | RMN110: 0 | RMO110: 0 | RMP110: 0 | RMQ110: 0 | RMR110: 0 | RMS110: 0 | RMT110: 0 | RMU110: 0 | RMV110: 0 | RMW110: 0 | RMX110: 0 | RMY110: 0 | RMZ110: 0 | RNA110: 0 | RNB110: 0 | RNC110: 0 | RND110: 0 | RNE110: 0 | RNF110: 0 | RNG110: 0 | RNH110: 0 | RNI110: 0 | RNJ110: 0 | RNK110: 0 | RNL110: 0 | RNM110: 0 | RNN110: 0 | RNO110: 0 | RNP110: 0 | RNQ110: 0 | RNR110: 0 | RNS110: 0 | RNT110: 0 | RNU110: 0 | RNV110: 0 | RNW110: 0 | RNX110: 0 | RNY110: =RNY5 -> 0 | RNZ110: 0 | ROA110: 0 | ROB110: 0 | ROC110: 0 | ROD110: 0 | ROE110: 0 | ROF110: 0 | ROG110: 0 | ROH110: 0 | ROI110: 0 | ROJ110: 0 | ROK110: 0 | ROL110: 0 | ROM110: 0 | RON110: 0 | ROO110: 0 | ROP110: 0 | ROQ110: 0 | ROR110: 0 | ROS110: 0 | ROT110: 0 | ROU110: 0 | ROV110: 0 | ROW110: 0 | ROX110: 0 | ROY110: 0 | ROZ110: 0 | RPA110: 0 | RPB110: 0 | RPC110: 0 | RPD110: 0 | RPE110: 0 | RPF110: 0 | RPG110: 0 | RPH110: 0 | RPI110: 0 | RPJ110: 0 | RPK110: 0 | RPL110: 0 | RPM110: 0 | RPN110: 0 | RPO110: 0 | RPP110: 0 | RPQ110: 0 | RPR110: 0 | RPS110: 0 | RPT110: 0 | RPU110: 0 | RPV110: 0 | RPW110: 0 | RPX110: 0 | RPY110: 0 | RPZ110: 0 | RQA110: 0 | RQB110: 0 | RQC110: 0 | RQD110: 0 | RQE110: 0 | RQF110: 0 | RQG110: 0 | RQH110: 0 | RQI110: 0 | RQJ110: 0 | RQK110: =RQK5 -> 0 | RQL110: 0 | RQM110: 0 | RQN110: 0 | RQO110: 0 | RQP110: 0 | RQQ110: 0 | RQR110: 0 | RQS110: 0 | RQT110: 0 | RQU110: 0 | RQV110: 0 | RQW110: 0 | RQX110: 0 | RQY110: 0 | RQZ110: 0 | RRA110: 0 | RRB110: 0 | RRC110: 0 | RRD110: 0 | RRE110: 0 | RRF110: 0 | RRG110: 0 | RRH110: 0 | RRI110: 0 | RRJ110: 0 | RRK110: 0 | RRL110: 0 | RRM110: 0 | RRN110: 0 | RRO110: 0 | RRP110: 0 | RRQ110: 0 | RRR110: 0 | RRS110: 0 | RRT110: 0 | RRU110: 0 | RRV110: 0 | RRW110: 0 | RRX110: 0 | RRY110: 0 | RRZ110: 0 | RSA110: 0 | RSB110: 0 | RSC110: 0 | RSD110: 0 | RSE110: 0 | RSF110: 0 | RSG110: 0 | RSH110: 0 | RSI110: 0 | RSJ110: 0 | RSK110: 0 | RSL110: 0 | RSM110: 0 | RSN110: 0 | RSO110: 0 | RSP110: 0 | RSQ110: 0 | RSR110: 0 | RSS110: 0 | RST110: 0 | RSU110: 0 | RSV110: 0 | RSW110: =RSW5 -> 0 | RSX110: 0 | RSY110: 0 | RSZ110: 0 | RTA110: 0 | RTB110: 0 | RTC110: 0 | RTD110: 0 | RTE110: 0 | RTF110: 0 | RTG110: 0 | RTH110: 0 | RTI110: 0 | RTJ110: 0 | RTK110: 0 | RTL110: 0 | RTM110: 0 | RTN110: 0 | RTO110: 0 | RTP110: 0 | RTQ110: 0 | RTR110: 0 | RTS110: 0 | RTT110: 0 | RTU110: 0 | RTV110: 0 | RTW110: 0 | RTX110: 0 | RTY110: 0 | RTZ110: 0 | RUA110: 0 | RUB110: 0 | RUC110: 0 | RUD110: 0 | RUE110: 0 | RUF110: 0 | RUG110: 0 | RUH110: 0 | RUI110: 0 | RUJ110: 0 | RUK110: 0 | RUL110: 0 | RUM110: 0 | RUN110: 0 | RUO110: 0 | RUP110: 0 | RUQ110: 0 | RUR110: 0 | RUS110: 0 | RUT110: 0 | RUU110: 0 | RUV110: 0 | RUW110: 0 | RUX110: 0 | RUY110: 0 | RUZ110: 0 | RVA110: 0 | RVB110: 0 | RVC110: 0 | RVD110: 0 | RVE110: 0 | RVF110: 0 | RVG110: 0 | RVH110: 0 | RVI110: =RVI5 -> 0 | RVJ110: 0 | RVK110: 0 | RVL110: 0 | RVM110: 0 | RVN110: 0 | RVO110: 0 | RVP110: 0 | RVQ110: 0 | RVR110: 0 | RVS110: 0 | RVT110: 0 | RVU110: 0 | RVV110: 0 | RVW110: 0 | RVX110: 0 | RVY110: 0 | RVZ110: 0 | RWA110: 0 | RWB110: 0 | RWC110: 0 | RWD110: 0 | RWE110: 0 | RWF110: 0 | RWG110: 0 | RWH110: 0 | RWI110: 0 | RWJ110: 0 | RWK110: 0 | RWL110: 0 | RWM110: 0 | RWN110: 0 | RWO110: 0 | RWP110: 0 | RWQ110: 0 | RWR110: 0 | RWS110: 0 | RWT110: 0 | RWU110: 0 | RWV110: 0 | RWW110: 0 | RWX110: 0 | RWY110: 0 | RWZ110: 0 | RXA110: 0 | RXB110: 0 | RXC110: 0 | RXD110: 0 | RXE110: 0 | RXF110: 0 | RXG110: 0 | RXH110: 0 | RXI110: 0 | RXJ110: 0 | RXK110: 0 | RXL110: 0 | RXM110: 0 | RXN110: 0 | RXO110: 0 | RXP110: 0 | RXQ110: 0 | RXR110: 0 | RXS110: 0 | RXT110: 0 | RXU110: =RXU5 -> 0 | RXV110: 0 | RXW110: 0 | RXX110: 0 | RXY110: 0 | RXZ110: 0 | RYA110: 0 | RYB110: 0 | RYC110: 0 | RYD110: 0 | RYE110: 0 | RYF110: 0 | RYG110: 0 | RYH110: 0 | RYI110: 0 | RYJ110: 0 | RYK110: 0 | RYL110: 0 | RYM110: 0 | RYN110: 0 | RYO110: 0 | RYP110: 0 | RYQ110: 0 | RYR110: 0 | RYS110: 0 | RYT110: 0 | RYU110: 0 | RYV110: 0 | RYW110: 0 | RYX110: 0 | RYY110: 0 | RYZ110: 0 | RZA110: 0 | RZB110: 0 | RZC110: 0 | RZD110: 0 | RZE110: 0 | RZF110: 0 | RZG110: 0 | RZH110: 0 | RZI110: 0 | RZJ110: 0 | RZK110: 0 | RZL110: 0 | RZM110: 0 | RZN110: 0 | RZO110: 0 | RZP110: 0 | RZQ110: 0 | RZR110: 0 | RZS110: 0 | RZT110: 0 | RZU110: 0 | RZV110: 0 | RZW110: 0 | RZX110: 0 | RZY110: 0 | RZZ110: 0 | SAA110: 0 | SAB110: 0 | SAC110: 0 | SAD110: 0 | SAE110: 0 | SAF110: 0 | SAG110: =SAG5 -> 0 | SAH110: 0 | SAI110: 0 | SAJ110: 0 | SAK110: 0 | SAL110: 0 | SAM110: 0 | SAN110: 0 | SAO110: 0 | SAP110: 0 | SAQ110: 0 | SAR110: 0 | SAS110: 0 | SAT110: 0 | SAU110: 0 | SAV110: 0 | SAW110: 0 | SAX110: 0 | SAY110: 0 | SAZ110: 0 | SBA110: 0 | SBB110: 0 | SBC110: 0 | SBD110: 0 | SBE110: 0 | SBF110: 0 | SBG110: 0 | SBH110: 0 | SBI110: 0 | SBJ110: 0 | SBK110: 0 | SBL110: 0 | SBM110: 0 | SBN110: 0 | SBO110: 0 | SBP110: 0 | SBQ110: 0 | SBR110: 0 | SBS110: 0 | SBT110: 0 | SBU110: 0 | SBV110: 0 | SBW110: 0 | SBX110: 0 | SBY110: 0 | SBZ110: 0 | SCA110: 0 | SCB110: 0 | SCC110: 0 | SCD110: 0 | SCE110: 0 | SCF110: 0 | SCG110: 0 | SCH110: 0 | SCI110: 0 | SCJ110: 0 | SCK110: 0 | SCL110: 0 | SCM110: 0 | SCN110: 0 | SCO110: 0 | SCP110: 0 | SCQ110: 0 | SCR110: 0 | SCS110: =SCS5 -> 0 | SCT110: 0 | SCU110: 0 | SCV110: 0 | SCW110: 0 | SCX110: 0 | SCY110: 0 | SCZ110: 0 | SDA110: 0 | SDB110: 0 | SDC110: 0 | SDD110: 0 | SDE110: 0 | SDF110: 0 | SDG110: 0 | SDH110: 0 | SDI110: 0 | SDJ110: 0 | SDK110: 0 | SDL110: 0 | SDM110: 0 | SDN110: 0 | SDO110: 0 | SDP110: 0 | SDQ110: 0 | SDR110: 0 | SDS110: 0 | SDT110: 0 | SDU110: 0 | SDV110: 0 | SDW110: 0 | SDX110: 0 | SDY110: 0 | SDZ110: 0 | SEA110: 0 | SEB110: 0 | SEC110: 0 | SED110: 0 | SEE110: 0 | SEF110: 0 | SEG110: 0 | SEH110: 0 | SEI110: 0 | SEJ110: 0 | SEK110: 0 | SEL110: 0 | SEM110: 0 | SEN110: 0 | SEO110: 0 | SEP110: 0 | SEQ110: 0 | SER110: 0 | SES110: 0 | SET110: 0 | SEU110: 0 | SEV110: 0 | SEW110: 0 | SEX110: 0 | SEY110: 0 | SEZ110: 0 | SFA110: 0 | SFB110: 0 | SFC110: 0 | SFD110: 0 | SFE110: =SFE5 -> 0 | SFF110: 0 | SFG110: 0 | SFH110: 0 | SFI110: 0 | SFJ110: 0 | SFK110: 0 | SFL110: 0 | SFM110: 0 | SFN110: 0 | SFO110: 0 | SFP110: 0 | SFQ110: 0 | SFR110: 0 | SFS110: 0 | SFT110: 0 | SFU110: 0 | SFV110: 0 | SFW110: 0 | SFX110: 0 | SFY110: 0 | SFZ110: 0 | SGA110: 0 | SGB110: 0 | SGC110: 0 | SGD110: 0 | SGE110: 0 | SGF110: 0 | SGG110: 0 | SGH110: 0 | SGI110: 0 | SGJ110: 0 | SGK110: 0 | SGL110: 0 | SGM110: 0 | SGN110: 0 | SGO110: 0 | SGP110: 0 | SGQ110: 0 | SGR110: 0 | SGS110: 0 | SGT110: 0 | SGU110: 0 | SGV110: 0 | SGW110: 0 | SGX110: 0 | SGY110: 0 | SGZ110: 0 | SHA110: 0 | SHB110: 0 | SHC110: 0 | SHD110: 0 | SHE110: 0 | SHF110: 0 | SHG110: 0 | SHH110: 0 | SHI110: 0 | SHJ110: 0 | SHK110: 0 | SHL110: 0 | SHM110: 0 | SHN110: 0 | SHO110: 0 | SHP110: 0 | SHQ110: =SHQ5 -> 0 | SHR110: 0 | SHS110: 0 | SHT110: 0 | SHU110: 0 | SHV110: 0 | SHW110: 0 | SHX110: 0 | SHY110: 0 | SHZ110: 0 | SIA110: 0 | SIB110: 0 | SIC110: 0 | SID110: 0 | SIE110: 0 | SIF110: 0 | SIG110: 0 | SIH110: 0 | SII110: 0 | SIJ110: 0 | SIK110: 0 | SIL110: 0 | SIM110: 0 | SIN110: 0 | SIO110: 0 | SIP110: 0 | SIQ110: 0 | SIR110: 0 | SIS110: 0 | SIT110: 0 | SIU110: 0 | SIV110: 0 | SIW110: 0 | SIX110: 0 | SIY110: 0 | SIZ110: 0 | SJA110: 0 | SJB110: 0 | SJC110: 0 | SJD110: 0 | SJE110: 0 | SJF110: 0 | SJG110: 0 | SJH110: 0 | SJI110: 0 | SJJ110: 0 | SJK110: 0 | SJL110: 0 | SJM110: 0 | SJN110: 0 | SJO110: 0 | SJP110: 0 | SJQ110: 0 | SJR110: 0 | SJS110: 0 | SJT110: 0 | SJU110: 0 | SJV110: 0 | SJW110: 0 | SJX110: 0 | SJY110: 0 | SJZ110: 0 | SKA110: 0 | SKB110: 0 | SKC110: =SKC5 -> 0 | SKD110: 0 | SKE110: 0 | SKF110: 0 | SKG110: 0 | SKH110: 0 | SKI110: 0 | SKJ110: 0 | SKK110: 0 | SKL110: 0 | SKM110: 0 | SKN110: 0 | SKO110: 0 | SKP110: 0 | SKQ110: 0 | SKR110: 0 | SKS110: 0 | SKT110: 0 | SKU110: 0 | SKV110: 0 | SKW110: 0 | SKX110: 0 | SKY110: 0 | SKZ110: 0 | SLA110: 0 | SLB110: 0 | SLC110: 0 | SLD110: 0 | SLE110: 0 | SLF110: 0 | SLG110: 0 | SLH110: 0 | SLI110: 0 | SLJ110: 0 | SLK110: 0 | SLL110: 0 | SLM110: 0 | SLN110: 0 | SLO110: 0 | SLP110: 0 | SLQ110: 0 | SLR110: 0 | SLS110: 0 | SLT110: 0 | SLU110: 0 | SLV110: 0 | SLW110: 0 | SLX110: 0 | SLY110: 0 | SLZ110: 0 | SMA110: 0 | SMB110: 0 | SMC110: 0 | SMD110: 0 | SME110: 0 | SMF110: 0 | SMG110: 0 | SMH110: 0 | SMI110: 0 | SMJ110: 0 | SMK110: 0 | SML110: 0 | SMM110: 0 | SMN110: 0 | SMO110: =SMO5 -> 0 | SMP110: 0 | SMQ110: 0 | SMR110: 0 | SMS110: 0 | SMT110: 0 | SMU110: 0 | SMV110: 0 | SMW110: 0 | SMX110: 0 | SMY110: 0 | SMZ110: 0 | SNA110: 0 | SNB110: 0 | SNC110: 0 | SND110: 0 | SNE110: 0 | SNF110: 0 | SNG110: 0 | SNH110: 0 | SNI110: 0 | SNJ110: 0 | SNK110: 0 | SNL110: 0 | SNM110: 0 | SNN110: 0 | SNO110: 0 | SNP110: 0 | SNQ110: 0 | SNR110: 0 | SNS110: 0 | SNT110: 0 | SNU110: 0 | SNV110: 0 | SNW110: 0 | SNX110: 0 | SNY110: 0 | SNZ110: 0 | SOA110: 0 | SOB110: 0 | SOC110: 0 | SOD110: 0 | SOE110: 0 | SOF110: 0 | SOG110: 0 | SOH110: 0 | SOI110: 0 | SOJ110: 0 | SOK110: 0 | SOL110: 0 | SOM110: 0 | SON110: 0 | SOO110: 0 | SOP110: 0 | SOQ110: 0 | SOR110: 0 | SOS110: 0 | SOT110: 0 | SOU110: 0 | SOV110: 0 | SOW110: 0 | SOX110: 0 | SOY110: 0 | SOZ110: 0 | SPA110: =SPA5 -> 0 | SPB110: 0 | SPC110: 0 | SPD110: 0 | SPE110: 0 | SPF110: 0 | SPG110: 0 | SPH110: 0 | SPI110: 0 | SPJ110: 0 | SPK110: 0 | SPL110: 0 | SPM110: 0 | SPN110: 0 | SPO110: 0 | SPP110: 0 | SPQ110: 0 | SPR110: 0 | SPS110: 0 | SPT110: 0 | SPU110: 0 | SPV110: 0 | SPW110: 0 | SPX110: 0 | SPY110: 0 | SPZ110: 0 | SQA110: 0 | SQB110: 0 | SQC110: 0 | SQD110: 0 | SQE110: 0 | SQF110: 0 | SQG110: 0 | SQH110: 0 | SQI110: 0 | SQJ110: 0 | SQK110: 0 | SQL110: 0 | SQM110: 0 | SQN110: 0 | SQO110: 0 | SQP110: 0 | SQQ110: 0 | SQR110: 0 | SQS110: 0 | SQT110: 0 | SQU110: 0 | SQV110: 0 | SQW110: 0 | SQX110: 0 | SQY110: 0 | SQZ110: 0 | SRA110: 0 | SRB110: 0 | SRC110: 0 | SRD110: 0 | SRE110: 0 | SRF110: 0 | SRG110: 0 | SRH110: 0 | SRI110: 0 | SRJ110: 0 | SRK110: 0 | SRL110: 0 | SRM110: =SRM5 -> 0 | SRN110: 0 | SRO110: 0 | SRP110: 0 | SRQ110: 0 | SRR110: 0 | SRS110: 0 | SRT110: 0 | SRU110: 0 | SRV110: 0 | SRW110: 0 | SRX110: 0 | SRY110: 0 | SRZ110: 0 | SSA110: 0 | SSB110: 0 | SSC110: 0 | SSD110: 0 | SSE110: 0 | SSF110: 0 | SSG110: 0 | SSH110: 0 | SSI110: 0 | SSJ110: 0 | SSK110: 0 | SSL110: 0 | SSM110: 0 | SSN110: 0 | SSO110: 0 | SSP110: 0 | SSQ110: 0 | SSR110: 0 | SSS110: 0 | SST110: 0 | SSU110: 0 | SSV110: 0 | SSW110: 0 | SSX110: 0 | SSY110: 0 | SSZ110: 0 | STA110: 0 | STB110: 0 | STC110: 0 | STD110: 0 | STE110: 0 | STF110: 0 | STG110: 0 | STH110: 0 | STI110: 0 | STJ110: 0 | STK110: 0 | STL110: 0 | STM110: 0 | STN110: 0 | STO110: 0 | STP110: 0 | STQ110: 0 | STR110: 0 | STS110: 0 | STT110: 0 | STU110: 0 | STV110: 0 | STW110: 0 | STX110: 0 | STY110: =STY5 -> 0 | STZ110: 0 | SUA110: 0 | SUB110: 0 | SUC110: 0 | SUD110: 0 | SUE110: 0 | SUF110: 0 | SUG110: 0 | SUH110: 0 | SUI110: 0 | SUJ110: 0 | SUK110: 0 | SUL110: 0 | SUM110: 0 | SUN110: 0 | SUO110: 0 | SUP110: 0 | SUQ110: 0 | SUR110: 0 | SUS110: 0 | SUT110: 0 | SUU110: 0 | SUV110: 0 | SUW110: 0 | SUX110: 0 | SUY110: 0 | SUZ110: 0 | SVA110: 0 | SVB110: 0 | SVC110: 0 | SVD110: 0 | SVE110: 0 | SVF110: 0 | SVG110: 0 | SVH110: 0 | SVI110: 0 | SVJ110: 0 | SVK110: 0 | SVL110: 0 | SVM110: 0 | SVN110: 0 | SVO110: 0 | SVP110: 0 | SVQ110: 0 | SVR110: 0 | SVS110: 0 | SVT110: 0 | SVU110: 0 | SVV110: 0 | SVW110: 0 | SVX110: 0 | SVY110: 0 | SVZ110: 0 | SWA110: 0 | SWB110: 0 | SWC110: 0 | SWD110: 0 | SWE110: 0 | SWF110: 0 | SWG110: 0 | SWH110: 0 | SWI110: 0 | SWJ110: 0 | SWK110: =SWK5 -> 0 | SWL110: 0 | SWM110: 0 | SWN110: 0 | SWO110: 0 | SWP110: 0 | SWQ110: 0 | SWR110: 0 | SWS110: 0 | SWT110: 0 | SWU110: 0 | SWV110: 0 | SWW110: 0 | SWX110: 0 | SWY110: 0 | SWZ110: 0 | SXA110: 0 | SXB110: 0 | SXC110: 0 | SXD110: 0 | SXE110: 0 | SXF110: 0 | SXG110: 0 | SXH110: 0 | SXI110: 0 | SXJ110: 0 | SXK110: 0 | SXL110: 0 | SXM110: 0 | SXN110: 0 | SXO110: 0 | SXP110: 0 | SXQ110: 0 | SXR110: 0 | SXS110: 0 | SXT110: 0 | SXU110: 0 | SXV110: 0 | SXW110: 0 | SXX110: 0 | SXY110: 0 | SXZ110: 0 | SYA110: 0 | SYB110: 0 | SYC110: 0 | SYD110: 0 | SYE110: 0 | SYF110: 0 | SYG110: 0 | SYH110: 0 | SYI110: 0 | SYJ110: 0 | SYK110: 0 | SYL110: 0 | SYM110: 0 | SYN110: 0 | SYO110: 0 | SYP110: 0 | SYQ110: 0 | SYR110: 0 | SYS110: 0 | SYT110: 0 | SYU110: 0 | SYV110: 0 | SYW110: =SYW5 -> 0 | SYX110: 0 | SYY110: 0 | SYZ110: 0 | SZA110: 0 | SZB110: 0 | SZC110: 0 | SZD110: 0 | SZE110: 0 | SZF110: 0 | SZG110: 0 | SZH110: 0 | SZI110: 0 | SZJ110: 0 | SZK110: 0 | SZL110: 0 | SZM110: 0 | SZN110: 0 | SZO110: 0 | SZP110: 0 | SZQ110: 0 | SZR110: 0 | SZS110: 0 | SZT110: 0 | SZU110: 0 | SZV110: 0 | SZW110: 0 | SZX110: 0 | SZY110: 0 | SZZ110: 0 | TAA110: 0 | TAB110: 0 | TAC110: 0 | TAD110: 0 | TAE110: 0 | TAF110: 0 | TAG110: 0 | TAH110: 0 | TAI110: 0 | TAJ110: 0 | TAK110: 0 | TAL110: 0 | TAM110: 0 | TAN110: 0 | TAO110: 0 | TAP110: 0 | TAQ110: 0 | TAR110: 0 | TAS110: 0 | TAT110: 0 | TAU110: 0 | TAV110: 0 | TAW110: 0 | TAX110: 0 | TAY110: 0 | TAZ110: 0 | TBA110: 0 | TBB110: 0 | TBC110: 0 | TBD110: 0 | TBE110: 0 | TBF110: 0 | TBG110: 0 | TBH110: 0 | TBI110: =TBI5 -> 0 | TBJ110: 0 | TBK110: 0 | TBL110: 0 | TBM110: 0 | TBN110: 0 | TBO110: 0 | TBP110: 0 | TBQ110: 0 | TBR110: 0 | TBS110: 0 | TBT110: 0 | TBU110: 0 | TBV110: 0 | TBW110: 0 | TBX110: 0 | TBY110: 0 | TBZ110: 0 | TCA110: 0 | TCB110: 0 | TCC110: 0 | TCD110: 0 | TCE110: 0 | TCF110: 0 | TCG110: 0 | TCH110: 0 | TCI110: 0 | TCJ110: 0 | TCK110: 0 | TCL110: 0 | TCM110: 0 | TCN110: 0 | TCO110: 0 | TCP110: 0 | TCQ110: 0 | TCR110: 0 | TCS110: 0 | TCT110: 0 | TCU110: 0 | TCV110: 0 | TCW110: 0 | TCX110: 0 | TCY110: 0 | TCZ110: 0 | TDA110: 0 | TDB110: 0 | TDC110: 0 | TDD110: 0 | TDE110: 0 | TDF110: 0 | TDG110: 0 | TDH110: 0 | TDI110: 0 | TDJ110: 0 | TDK110: 0 | TDL110: 0 | TDM110: 0 | TDN110: 0 | TDO110: 0 | TDP110: 0 | TDQ110: 0 | TDR110: 0 | TDS110: 0 | TDT110: 0 | TDU110: =TDU5 -> 0 | TDV110: 0 | TDW110: 0 | TDX110: 0 | TDY110: 0 | TDZ110: 0 | TEA110: 0 | TEB110: 0 | TEC110: 0 | TED110: 0 | TEE110: 0 | TEF110: 0 | TEG110: 0 | TEH110: 0 | TEI110: 0 | TEJ110: 0 | TEK110: 0 | TEL110: 0 | TEM110: 0 | TEN110: 0 | TEO110: 0 | TEP110: 0 | TEQ110: 0 | TER110: 0 | TES110: 0 | TET110: 0 | TEU110: 0 | TEV110: 0 | TEW110: 0 | TEX110: 0 | TEY110: 0 | TEZ110: 0 | TFA110: 0 | TFB110: 0 | TFC110: 0 | TFD110: 0 | TFE110: 0 | TFF110: 0 | TFG110: 0 | TFH110: 0 | TFI110: 0 | TFJ110: 0 | TFK110: 0 | TFL110: 0 | TFM110: 0 | TFN110: 0 | TFO110: 0 | TFP110: 0 | TFQ110: 0 | TFR110: 0 | TFS110: 0 | TFT110: 0 | TFU110: 0 | TFV110: 0 | TFW110: 0 | TFX110: 0 | TFY110: 0 | TFZ110: 0 | TGA110: 0 | TGB110: 0 | TGC110: 0 | TGD110: 0 | TGE110: 0 | TGF110: 0 | TGG110: =TGG5 -> 0 | TGH110: 0 | TGI110: 0 | TGJ110: 0 | TGK110: 0 | TGL110: 0 | TGM110: 0 | TGN110: 0 | TGO110: 0 | TGP110: 0 | TGQ110: 0 | TGR110: 0 | TGS110: 0 | TGT110: 0 | TGU110: 0 | TGV110: 0 | TGW110: 0 | TGX110: 0 | TGY110: 0 | TGZ110: 0 | THA110: 0 | THB110: 0 | THC110: 0 | THD110: 0 | THE110: 0 | THF110: 0 | THG110: 0 | THH110: 0 | THI110: 0 | THJ110: 0 | THK110: 0 | THL110: 0 | THM110: 0 | THN110: 0 | THO110: 0 | THP110: 0 | THQ110: 0 | THR110: 0 | THS110: 0 | THT110: 0 | THU110: 0 | THV110: 0 | THW110: 0 | THX110: 0 | THY110: 0 | THZ110: 0 | TIA110: 0 | TIB110: 0 | TIC110: 0 | TID110: 0 | TIE110: 0 | TIF110: 0 | TIG110: 0 | TIH110: 0 | TII110: 0 | TIJ110: 0 | TIK110: 0 | TIL110: 0 | TIM110: 0 | TIN110: 0 | TIO110: 0 | TIP110: 0 | TIQ110: 0 | TIR110: 0 | TIS110: =TIS5 -> 0 | TIT110: 0 | TIU110: 0 | TIV110: 0 | TIW110: 0 | TIX110: 0 | TIY110: 0 | TIZ110: 0 | TJA110: 0 | TJB110: 0 | TJC110: 0 | TJD110: 0 | TJE110: 0 | TJF110: 0 | TJG110: 0 | TJH110: 0 | TJI110: 0 | TJJ110: 0 | TJK110: 0 | TJL110: 0 | TJM110: 0 | TJN110: 0 | TJO110: 0 | TJP110: 0 | TJQ110: 0 | TJR110: 0 | TJS110: 0 | TJT110: 0 | TJU110: 0 | TJV110: 0 | TJW110: 0 | TJX110: 0 | TJY110: 0 | TJZ110: 0 | TKA110: 0 | TKB110: 0 | TKC110: 0 | TKD110: 0 | TKE110: 0 | TKF110: 0 | TKG110: 0 | TKH110: 0 | TKI110: 0 | TKJ110: 0 | TKK110: 0 | TKL110: 0 | TKM110: 0 | TKN110: 0 | TKO110: 0 | TKP110: 0 | TKQ110: 0 | TKR110: 0 | TKS110: 0 | TKT110: 0 | TKU110: 0 | TKV110: 0 | TKW110: 0 | TKX110: 0 | TKY110: 0 | TKZ110: 0 | TLA110: 0 | TLB110: 0 | TLC110: 0 | TLD110: 0 | TLE110: =TLE5 -> 0 | TLF110: 0 | TLG110: 0 | TLH110: 0 | TLI110: 0 | TLJ110: 0 | TLK110: 0 | TLL110: 0 | TLM110: 0 | TLN110: 0 | TLO110: 0 | TLP110: 0 | TLQ110: 0 | TLR110: 0 | TLS110: 0 | TLT110: 0 | TLU110: 0 | TLV110: 0 | TLW110: 0 | TLX110: 0 | TLY110: 0 | TLZ110: 0 | TMA110: 0 | TMB110: 0 | TMC110: 0 | TMD110: 0 | TME110: 0 | TMF110: 0 | TMG110: 0 | TMH110: 0 | TMI110: 0 | TMJ110: 0 | TMK110: 0 | TML110: 0 | TMM110: 0 | TMN110: 0 | TMO110: 0 | TMP110: 0 | TMQ110: 0 | TMR110: 0 | TMS110: 0 | TMT110: 0 | TMU110: 0 | TMV110: 0 | TMW110: 0 | TMX110: 0 | TMY110: 0 | TMZ110: 0 | TNA110: 0 | TNB110: 0 | TNC110: 0 | TND110: 0 | TNE110: 0 | TNF110: 0 | TNG110: 0 | TNH110: 0 | TNI110: 0 | TNJ110: 0 | TNK110: 0 | TNL110: 0 | TNM110: 0 | TNN110: 0 | TNO110: 0 | TNP110: 0 | TNQ110: =TNQ5 -> 0 | TNR110: 0 | TNS110: 0 | TNT110: 0 | TNU110: 0 | TNV110: 0 | TNW110: 0 | TNX110: 0 | TNY110: 0 | TNZ110: 0 | TOA110: 0 | TOB110: 0 | TOC110: 0 | TOD110: 0 | TOE110: 0 | TOF110: 0 | TOG110: 0 | TOH110: 0 | TOI110: 0 | TOJ110: 0 | TOK110: 0 | TOL110: 0 | TOM110: 0 | TON110: 0 | TOO110: 0 | TOP110: 0 | TOQ110: 0 | TOR110: 0 | TOS110: 0 | TOT110: 0 | TOU110: 0 | TOV110: 0 | TOW110: 0 | TOX110: 0 | TOY110: 0 | TOZ110: 0 | TPA110: 0 | TPB110: 0 | TPC110: 0 | TPD110: 0 | TPE110: 0 | TPF110: 0 | TPG110: 0 | TPH110: 0 | TPI110: 0 | TPJ110: 0 | TPK110: 0 | TPL110: 0 | TPM110: 0 | TPN110: 0 | TPO110: 0 | TPP110: 0 | TPQ110: 0 | TPR110: 0 | TPS110: 0 | TPT110: 0 | TPU110: 0 | TPV110: 0 | TPW110: 0 | TPX110: 0 | TPY110: 0 | TPZ110: 0 | TQA110: 0 | TQB110: 0 | TQC110: =TQC5 -> 0 | TQD110: 0 | TQE110: 0 | TQF110: 0 | TQG110: 0 | TQH110: 0 | TQI110: 0 | TQJ110: 0 | TQK110: 0 | TQL110: 0 | TQM110: 0 | TQN110: 0 | TQO110: 0 | TQP110: 0 | TQQ110: 0 | TQR110: 0 | TQS110: 0 | TQT110: 0 | TQU110: 0 | TQV110: 0 | TQW110: 0 | TQX110: 0 | TQY110: 0 | TQZ110: 0 | TRA110: 0 | TRB110: 0 | TRC110: 0 | TRD110: 0 | TRE110: 0 | TRF110: 0 | TRG110: 0 | TRH110: 0 | TRI110: 0 | TRJ110: 0 | TRK110: 0 | TRL110: 0 | TRM110: 0 | TRN110: 0 | TRO110: 0 | TRP110: 0 | TRQ110: 0 | TRR110: 0 | TRS110: 0 | TRT110: 0 | TRU110: 0 | TRV110: 0 | TRW110: 0 | TRX110: 0 | TRY110: 0 | TRZ110: 0 | TSA110: 0 | TSB110: 0 | TSC110: 0 | TSD110: 0 | TSE110: 0 | TSF110: 0 | TSG110: 0 | TSH110: 0 | TSI110: 0 | TSJ110: 0 | TSK110: 0 | TSL110: 0 | TSM110: 0 | TSN110: 0 | TSO110: =TSO5 -> 0 | TSP110: 0 | TSQ110: 0 | TSR110: 0 | TSS110: 0 | TST110: 0 | TSU110: 0 | TSV110: 0 | TSW110: 0 | TSX110: 0 | TSY110: 0 | TSZ110: 0 | TTA110: 0 | TTB110: 0 | TTC110: 0 | TTD110: 0 | TTE110: 0 | TTF110: 0 | TTG110: 0 | TTH110: 0 | TTI110: 0 | TTJ110: 0 | TTK110: 0 | TTL110: 0 | TTM110: 0 | TTN110: 0 | TTO110: 0 | TTP110: 0 | TTQ110: 0 | TTR110: 0 | TTS110: 0 | TTT110: 0 | TTU110: 0 | TTV110: 0 | TTW110: 0 | TTX110: 0 | TTY110: 0 | TTZ110: 0 | TUA110: 0 | TUB110: 0 | TUC110: 0 | TUD110: 0 | TUE110: 0 | TUF110: 0 | TUG110: 0 | TUH110: 0 | TUI110: 0 | TUJ110: 0 | TUK110: 0 | TUL110: 0 | TUM110: 0 | TUN110: 0 | TUO110: 0 | TUP110: 0 | TUQ110: 0 | TUR110: 0 | TUS110: 0 | TUT110: 0 | TUU110: 0 | TUV110: 0 | TUW110: 0 | TUX110: 0 | TUY110: 0 | TUZ110: 0 | TVA110: =TVA5 -> 0 | TVB110: 0 | TVC110: 0 | TVD110: 0 | TVE110: 0 | TVF110: 0 | TVG110: 0 | TVH110: 0 | TVI110: 0 | TVJ110: 0 | TVK110: 0 | TVL110: 0 | TVM110: 0 | TVN110: 0 | TVO110: 0 | TVP110: 0 | TVQ110: 0 | TVR110: 0 | TVS110: 0 | TVT110: 0 | TVU110: 0 | TVV110: 0 | TVW110: 0 | TVX110: 0 | TVY110: 0 | TVZ110: 0 | TWA110: 0 | TWB110: 0 | TWC110: 0 | TWD110: 0 | TWE110: 0 | TWF110: 0 | TWG110: 0 | TWH110: 0 | TWI110: 0 | TWJ110: 0 | TWK110: 0 | TWL110: 0 | TWM110: 0 | TWN110: 0 | TWO110: 0 | TWP110: 0 | TWQ110: 0 | TWR110: 0 | TWS110: 0 | TWT110: 0 | TWU110: 0 | TWV110: 0 | TWW110: 0 | TWX110: 0 | TWY110: 0 | TWZ110: 0 | TXA110: 0 | TXB110: 0 | TXC110: 0 | TXD110: 0 | TXE110: 0 | TXF110: 0 | TXG110: 0 | TXH110: 0 | TXI110: 0 | TXJ110: 0 | TXK110: 0 | TXL110: 0 | TXM110: =TXM5 -> 0 | TXN110: 0 | TXO110: 0 | TXP110: 0 | TXQ110: 0 | TXR110: 0 | TXS110: 0 | TXT110: 0 | TXU110: 0 | TXV110: 0 | TXW110: 0 | TXX110: 0 | TXY110: 0 | TXZ110: 0 | TYA110: 0 | TYB110: 0 | TYC110: 0 | TYD110: 0 | TYE110: 0 | TYF110: 0 | TYG110: 0 | TYH110: 0 | TYI110: 0 | TYJ110: 0 | TYK110: 0 | TYL110: 0 | TYM110: 0 | TYN110: 0 | TYO110: 0 | TYP110: 0 | TYQ110: 0 | TYR110: 0 | TYS110: 0 | TYT110: 0 | TYU110: 0 | TYV110: 0 | TYW110: 0 | TYX110: 0 | TYY110: 0 | TYZ110: 0 | TZA110: 0 | TZB110: 0 | TZC110: 0 | TZD110: 0 | TZE110: 0 | TZF110: 0 | TZG110: 0 | TZH110: 0 | TZI110: 0 | TZJ110: 0 | TZK110: 0 | TZL110: 0 | TZM110: 0 | TZN110: 0 | TZO110: 0 | TZP110: 0 | TZQ110: 0 | TZR110: 0 | TZS110: 0 | TZT110: 0 | TZU110: 0 | TZV110: 0 | TZW110: 0 | TZX110: 0 | TZY110: =TZY5 -> 0 | TZZ110: 0 | UAA110: 0 | UAB110: 0 | UAC110: 0 | UAD110: 0 | UAE110: 0 | UAF110: 0 | UAG110: 0 | UAH110: 0 | UAI110: 0 | UAJ110: 0 | UAK110: 0 | UAL110: 0 | UAM110: 0 | UAN110: 0 | UAO110: 0 | UAP110: 0 | UAQ110: 0 | UAR110: 0 | UAS110: 0 | UAT110: 0 | UAU110: 0 | UAV110: 0 | UAW110: 0 | UAX110: 0 | UAY110: 0 | UAZ110: 0 | UBA110: 0 | UBB110: 0 | UBC110: 0 | UBD110: 0 | UBE110: 0 | UBF110: 0 | UBG110: 0 | UBH110: 0 | UBI110: 0 | UBJ110: 0 | UBK110: 0 | UBL110: 0 | UBM110: 0 | UBN110: 0 | UBO110: 0 | UBP110: 0 | UBQ110: 0 | UBR110: 0 | UBS110: 0 | UBT110: 0 | UBU110: 0 | UBV110: 0 | UBW110: 0 | UBX110: 0 | UBY110: 0 | UBZ110: 0 | UCA110: 0 | UCB110: 0 | UCC110: 0 | UCD110: 0 | UCE110: 0 | UCF110: 0 | UCG110: 0 | UCH110: 0 | UCI110: 0 | UCJ110: 0 | UCK110: =UCK5 -> 0 | UCL110: 0 | UCM110: 0 | UCN110: 0 | UCO110: 0 | UCP110: 0 | UCQ110: 0 | UCR110: 0 | UCS110: 0 | UCT110: 0 | UCU110: 0 | UCV110: 0 | UCW110: 0 | UCX110: 0 | UCY110: 0 | UCZ110: 0 | UDA110: 0 | UDB110: 0 | UDC110: 0 | UDD110: 0 | UDE110: 0 | UDF110: 0 | UDG110: 0 | UDH110: 0 | UDI110: 0 | UDJ110: 0 | UDK110: 0 | UDL110: 0 | UDM110: 0 | UDN110: 0 | UDO110: 0 | UDP110: 0 | UDQ110: 0 | UDR110: 0 | UDS110: 0 | UDT110: 0 | UDU110: 0 | UDV110: 0 | UDW110: 0 | UDX110: 0 | UDY110: 0 | UDZ110: 0 | UEA110: 0 | UEB110: 0 | UEC110: 0 | UED110: 0 | UEE110: 0 | UEF110: 0 | UEG110: 0 | UEH110: 0 | UEI110: 0 | UEJ110: 0 | UEK110: 0 | UEL110: 0 | UEM110: 0 | UEN110: 0 | UEO110: 0 | UEP110: 0 | UEQ110: 0 | UER110: 0 | UES110: 0 | UET110: 0 | UEU110: 0 | UEV110: 0 | UEW110: =UEW5 -> 0 | UEX110: 0 | UEY110: 0 | UEZ110: 0 | UFA110: 0 | UFB110: 0 | UFC110: 0 | UFD110: 0 | UFE110: 0 | UFF110: 0 | UFG110: 0 | UFH110: 0 | UFI110: 0 | UFJ110: 0 | UFK110: 0 | UFL110: 0 | UFM110: 0 | UFN110: 0 | UFO110: 0 | UFP110: 0 | UFQ110: 0 | UFR110: 0 | UFS110: 0 | UFT110: 0 | UFU110: 0 | UFV110: 0 | UFW110: 0 | UFX110: 0 | UFY110: 0 | UFZ110: 0 | UGA110: 0 | UGB110: 0 | UGC110: 0 | UGD110: 0 | UGE110: 0 | UGF110: 0 | UGG110: 0 | UGH110: 0 | UGI110: 0 | UGJ110: 0 | UGK110: 0 | UGL110: 0 | UGM110: 0 | UGN110: 0 | UGO110: 0 | UGP110: 0 | UGQ110: 0 | UGR110: 0 | UGS110: 0 | UGT110: 0 | UGU110: 0 | UGV110: 0 | UGW110: 0 | UGX110: 0 | UGY110: 0 | UGZ110: 0 | UHA110: 0 | UHB110: 0 | UHC110: 0 | UHD110: 0 | UHE110: 0 | UHF110: 0 | UHG110: 0 | UHH110: 0 | UHI110: =UHI5 -> 0 | UHJ110: 0 | UHK110: 0 | UHL110: 0 | UHM110: 0 | UHN110: 0 | UHO110: 0 | UHP110: 0 | UHQ110: 0 | UHR110: 0 | UHS110: 0 | UHT110: 0 | UHU110: 0 | UHV110: 0 | UHW110: 0 | UHX110: 0 | UHY110: 0 | UHZ110: 0 | UIA110: 0 | UIB110: 0 | UIC110: 0 | UID110: 0 | UIE110: 0 | UIF110: 0 | UIG110: 0 | UIH110: 0 | UII110: 0 | UIJ110: 0 | UIK110: 0 | UIL110: 0 | UIM110: 0 | UIN110: 0 | UIO110: 0 | UIP110: 0 | UIQ110: 0 | UIR110: 0 | UIS110: 0 | UIT110: 0 | UIU110: 0 | UIV110: 0 | UIW110: 0 | UIX110: 0 | UIY110: 0 | UIZ110: 0 | UJA110: 0 | UJB110: 0 | UJC110: 0 | UJD110: 0 | UJE110: 0 | UJF110: 0 | UJG110: 0 | UJH110: 0 | UJI110: 0 | UJJ110: 0 | UJK110: 0 | UJL110: 0 | UJM110: 0 | UJN110: 0 | UJO110: 0 | UJP110: 0 | UJQ110: 0 | UJR110: 0 | UJS110: 0 | UJT110: 0 | UJU110: =UJU5 -> 0 | UJV110: 0 | UJW110: 0 | UJX110: 0 | UJY110: 0 | UJZ110: 0 | UKA110: 0 | UKB110: 0 | UKC110: 0 | UKD110: 0 | UKE110: 0 | UKF110: 0 | UKG110: 0 | UKH110: 0 | UKI110: 0 | UKJ110: 0 | UKK110: 0 | UKL110: 0 | UKM110: 0 | UKN110: 0 | UKO110: 0 | UKP110: 0 | UKQ110: 0 | UKR110: 0 | UKS110: 0 | UKT110: 0 | UKU110: 0 | UKV110: 0 | UKW110: 0 | UKX110: 0 | UKY110: 0 | UKZ110: 0 | ULA110: 0 | ULB110: 0 | ULC110: 0 | ULD110: 0 | ULE110: 0 | ULF110: 0 | ULG110: 0 | ULH110: 0 | ULI110: 0 | ULJ110: 0 | ULK110: 0 | ULL110: 0 | ULM110: 0 | ULN110: 0 | ULO110: 0 | ULP110: 0 | ULQ110: 0 | ULR110: 0 | ULS110: 0 | ULT110: 0 | ULU110: 0 | ULV110: 0 | ULW110: 0 | ULX110: 0 | ULY110: 0 | ULZ110: 0 | UMA110: 0 | UMB110: 0 | UMC110: 0 | UMD110: 0 | UME110: 0 | UMF110: 0 | UMG110: =UMG5 -> 0 | UMH110: 0 | UMI110: 0 | UMJ110: 0 | UMK110: 0 | UML110: 0 | UMM110: 0 | UMN110: 0 | UMO110: 0 | UMP110: 0 | UMQ110: 0 | UMR110: 0 | UMS110: 0 | UMT110: 0 | UMU110: 0 | UMV110: 0 | UMW110: 0 | UMX110: 0 | UMY110: 0 | UMZ110: 0 | UNA110: 0 | UNB110: 0 | UNC110: 0 | UND110: 0 | UNE110: 0 | UNF110: 0 | UNG110: 0 | UNH110: 0 | UNI110: 0 | UNJ110: 0 | UNK110: 0 | UNL110: 0 | UNM110: 0 | UNN110: 0 | UNO110: 0 | UNP110: 0 | UNQ110: 0 | UNR110: 0 | UNS110: 0 | UNT110: 0 | UNU110: 0 | UNV110: 0 | UNW110: 0 | UNX110: 0 | UNY110: 0 | UNZ110: 0 | UOA110: 0 | UOB110: 0 | UOC110: 0 | UOD110: 0 | UOE110: 0 | UOF110: 0 | UOG110: 0 | UOH110: 0 | UOI110: 0 | UOJ110: 0 | UOK110: 0 | UOL110: 0 | UOM110: 0 | UON110: 0 | UOO110: 0 | UOP110: 0 | UOQ110: 0 | UOR110: 0 | UOS110: =UOS5 -> 0 | UOT110: 0 | UOU110: 0 | UOV110: 0 | UOW110: 0 | UOX110: 0 | UOY110: 0 | UOZ110: 0 | UPA110: 0 | UPB110: 0 | UPC110: 0 | UPD110: 0 | UPE110: 0 | UPF110: 0 | UPG110: 0 | UPH110: 0 | UPI110: 0 | UPJ110: 0 | UPK110: 0 | UPL110: 0 | UPM110: 0 | UPN110: 0 | UPO110: 0 | UPP110: 0 | UPQ110: 0 | UPR110: 0 | UPS110: 0 | UPT110: 0 | UPU110: 0 | UPV110: 0 | UPW110: 0 | UPX110: 0 | UPY110: 0 | UPZ110: 0 | UQA110: 0 | UQB110: 0 | UQC110: 0 | UQD110: 0 | UQE110: 0 | UQF110: 0 | UQG110: 0 | UQH110: 0 | UQI110: 0 | UQJ110: 0 | UQK110: 0 | UQL110: 0 | UQM110: 0 | UQN110: 0 | UQO110: 0 | UQP110: 0 | UQQ110: 0 | UQR110: 0 | UQS110: 0 | UQT110: 0 | UQU110: 0 | UQV110: 0 | UQW110: 0 | UQX110: 0 | UQY110: 0 | UQZ110: 0 | URA110: 0 | URB110: 0 | URC110: 0 | URD110: 0 | URE110: =URE5 -> 0 | URF110: 0 | URG110: 0 | URH110: 0 | URI110: 0 | URJ110: 0 | URK110: 0 | URL110: 0 | URM110: 0 | URN110: 0 | URO110: 0 | URP110: 0 | URQ110: 0 | URR110: 0 | URS110: 0 | URT110: 0 | URU110: 0 | URV110: 0 | URW110: 0 | URX110: 0 | URY110: 0 | URZ110: 0 | USA110: 0 | USB110: 0 | USC110: 0 | USD110: 0 | USE110: 0 | USF110: 0 | USG110: 0 | USH110: 0 | USI110: 0 | USJ110: 0 | USK110: 0 | USL110: 0 | USM110: 0 | USN110: 0 | USO110: 0 | USP110: 0 | USQ110: 0 | USR110: 0 | USS110: 0 | UST110: 0 | USU110: 0 | USV110: 0 | USW110: 0 | USX110: 0 | USY110: 0 | USZ110: 0 | UTA110: 0 | UTB110: 0 | UTC110: 0 | UTD110: 0 | UTE110: 0 | UTF110: 0 | UTG110: 0 | UTH110: 0 | UTI110: 0 | UTJ110: 0 | UTK110: 0 | UTL110: 0 | UTM110: 0 | UTN110: 0 | UTO110: 0 | UTP110: 0 | UTQ110: =UTQ5 -> 0 | UTR110: 0 | UTS110: 0 | UTT110: 0 | UTU110: 0 | UTV110: 0 | UTW110: 0 | UTX110: 0 | UTY110: 0 | UTZ110: 0 | UUA110: 0 | UUB110: 0 | UUC110: 0 | UUD110: 0 | UUE110: 0 | UUF110: 0 | UUG110: 0 | UUH110: 0 | UUI110: 0 | UUJ110: 0 | UUK110: 0 | UUL110: 0 | UUM110: 0 | UUN110: 0 | UUO110: 0 | UUP110: 0 | UUQ110: 0 | UUR110: 0 | UUS110: 0 | UUT110: 0 | UUU110: 0 | UUV110: 0 | UUW110: 0 | UUX110: 0 | UUY110: 0 | UUZ110: 0 | UVA110: 0 | UVB110: 0 | UVC110: 0 | UVD110: 0 | UVE110: 0 | UVF110: 0 | UVG110: 0 | UVH110: 0 | UVI110: 0 | UVJ110: 0 | UVK110: 0 | UVL110: 0 | UVM110: 0 | UVN110: 0 | UVO110: 0 | UVP110: 0 | UVQ110: 0 | UVR110: 0 | UVS110: 0 | UVT110: 0 | UVU110: 0 | UVV110: 0 | UVW110: 0 | UVX110: 0 | UVY110: 0 | UVZ110: 0 | UWA110: 0 | UWB110: 0 | UWC110: =UWC5 -> 0 | UWD110: 0 | UWE110: 0 | UWF110: 0 | UWG110: 0 | UWH110: 0 | UWI110: 0 | UWJ110: 0 | UWK110: 0 | UWL110: 0 | UWM110: 0 | UWN110: 0 | UWO110: 0 | UWP110: 0 | UWQ110: 0 | UWR110: 0 | UWS110: 0 | UWT110: 0 | UWU110: 0 | UWV110: 0 | UWW110: 0 | UWX110: 0 | UWY110: 0 | UWZ110: 0 | UXA110: 0 | UXB110: 0 | UXC110: 0 | UXD110: 0 | UXE110: 0 | UXF110: 0 | UXG110: 0 | UXH110: 0 | UXI110: 0 | UXJ110: 0 | UXK110: 0 | UXL110: 0 | UXM110: 0 | UXN110: 0 | UXO110: 0 | UXP110: 0 | UXQ110: 0 | UXR110: 0 | UXS110: 0 | UXT110: 0 | UXU110: 0 | UXV110: 0 | UXW110: 0 | UXX110: 0 | UXY110: 0 | UXZ110: 0 | UYA110: 0 | UYB110: 0 | UYC110: 0 | UYD110: 0 | UYE110: 0 | UYF110: 0 | UYG110: 0 | UYH110: 0 | UYI110: 0 | UYJ110: 0 | UYK110: 0 | UYL110: 0 | UYM110: 0 | UYN110: 0 | UYO110: =UYO5 -> 0 | UYP110: 0 | UYQ110: 0 | UYR110: 0 | UYS110: 0 | UYT110: 0 | UYU110: 0 | UYV110: 0 | UYW110: 0 | UYX110: 0 | UYY110: 0 | UYZ110: 0 | UZA110: 0 | UZB110: 0 | UZC110: 0 | UZD110: 0 | UZE110: 0 | UZF110: 0 | UZG110: 0 | UZH110: 0 | UZI110: 0 | UZJ110: 0 | UZK110: 0 | UZL110: 0 | UZM110: 0 | UZN110: 0 | UZO110: 0 | UZP110: 0 | UZQ110: 0 | UZR110: 0 | UZS110: 0 | UZT110: 0 | UZU110: 0 | UZV110: 0 | UZW110: 0 | UZX110: 0 | UZY110: 0 | UZZ110: 0 | VAA110: 0 | VAB110: 0 | VAC110: 0 | VAD110: 0 | VAE110: 0 | VAF110: 0 | VAG110: 0 | VAH110: 0 | VAI110: 0 | VAJ110: 0 | VAK110: 0 | VAL110: 0 | VAM110: 0 | VAN110: 0 | VAO110: 0 | VAP110: 0 | VAQ110: 0 | VAR110: 0 | VAS110: 0 | VAT110: 0 | VAU110: 0 | VAV110: 0 | VAW110: 0 | VAX110: 0 | VAY110: 0 | VAZ110: 0 | VBA110: =VBA5 -> 0 | VBB110: 0 | VBC110: 0 | VBD110: 0 | VBE110: 0 | VBF110: 0 | VBG110: 0 | VBH110: 0 | VBI110: 0 | VBJ110: 0 | VBK110: 0 | VBL110: 0 | VBM110: 0 | VBN110: 0 | VBO110: 0 | VBP110: 0 | VBQ110: 0 | VBR110: 0 | VBS110: 0 | VBT110: 0 | VBU110: 0 | VBV110: 0 | VBW110: 0 | VBX110: 0 | VBY110: 0 | VBZ110: 0 | VCA110: 0 | VCB110: 0 | VCC110: 0 | VCD110: 0 | VCE110: 0 | VCF110: 0 | VCG110: 0 | VCH110: 0 | VCI110: 0 | VCJ110: 0 | VCK110: 0 | VCL110: 0 | VCM110: 0 | VCN110: 0 | VCO110: 0 | VCP110: 0 | VCQ110: 0 | VCR110: 0 | VCS110: 0 | VCT110: 0 | VCU110: 0 | VCV110: 0 | VCW110: 0 | VCX110: 0 | VCY110: 0 | VCZ110: 0 | VDA110: 0 | VDB110: 0 | VDC110: 0 | VDD110: 0 | VDE110: 0 | VDF110: 0 | VDG110: 0 | VDH110: 0 | VDI110: 0 | VDJ110: 0 | VDK110: 0 | VDL110: 0 | VDM110: =VDM5 -> 0 | VDN110: 0 | VDO110: 0 | VDP110: 0 | VDQ110: 0 | VDR110: 0 | VDS110: 0 | VDT110: 0 | VDU110: 0 | VDV110: 0 | VDW110: 0 | VDX110: 0 | VDY110: 0 | VDZ110: 0 | VEA110: 0 | VEB110: 0 | VEC110: 0 | VED110: 0 | VEE110: 0 | VEF110: 0 | VEG110: 0 | VEH110: 0 | VEI110: 0 | VEJ110: 0 | VEK110: 0 | VEL110: 0 | VEM110: 0 | VEN110: 0 | VEO110: 0 | VEP110: 0 | VEQ110: 0 | VER110: 0 | VES110: 0 | VET110: 0 | VEU110: 0 | VEV110: 0 | VEW110: 0 | VEX110: 0 | VEY110: 0 | VEZ110: 0 | VFA110: 0 | VFB110: 0 | VFC110: 0 | VFD110: 0 | VFE110: 0 | VFF110: 0 | VFG110: 0 | VFH110: 0 | VFI110: 0 | VFJ110: 0 | VFK110: 0 | VFL110: 0 | VFM110: 0 | VFN110: 0 | VFO110: 0 | VFP110: 0 | VFQ110: 0 | VFR110: 0 | VFS110: 0 | VFT110: 0 | VFU110: 0 | VFV110: 0 | VFW110: 0 | VFX110: 0 | VFY110: =VFY5 -> 0 | VFZ110: 0 | VGA110: 0 | VGB110: 0 | VGC110: 0 | VGD110: 0 | VGE110: 0 | VGF110: 0 | VGG110: 0 | VGH110: 0 | VGI110: 0 | VGJ110: 0 | VGK110: 0 | VGL110: 0 | VGM110: 0 | VGN110: 0 | VGO110: 0 | VGP110: 0 | VGQ110: 0 | VGR110: 0 | VGS110: 0 | VGT110: 0 | VGU110: 0 | VGV110: 0 | VGW110: 0 | VGX110: 0 | VGY110: 0 | VGZ110: 0 | VHA110: 0 | VHB110: 0 | VHC110: 0 | VHD110: 0 | VHE110: 0 | VHF110: 0 | VHG110: 0 | VHH110: 0 | VHI110: 0 | VHJ110: 0 | VHK110: 0 | VHL110: 0 | VHM110: 0 | VHN110: 0 | VHO110: 0 | VHP110: 0 | VHQ110: 0 | VHR110: 0 | VHS110: 0 | VHT110: 0 | VHU110: 0 | VHV110: 0 | VHW110: 0 | VHX110: 0 | VHY110: 0 | VHZ110: 0 | VIA110: 0 | VIB110: 0 | VIC110: 0 | VID110: 0 | VIE110: 0 | VIF110: 0 | VIG110: 0 | VIH110: 0 | VII110: 0 | VIJ110: 0 | VIK110: =VIK5 -> 0 | VIL110: 0 | VIM110: 0 | VIN110: 0 | VIO110: 0 | VIP110: 0 | VIQ110: 0 | VIR110: 0 | VIS110: 0 | VIT110: 0 | VIU110: 0 | VIV110: 0 | VIW110: 0 | VIX110: 0 | VIY110: 0 | VIZ110: 0 | VJA110: 0 | VJB110: 0 | VJC110: 0 | VJD110: 0 | VJE110: 0 | VJF110: 0 | VJG110: 0 | VJH110: 0 | VJI110: 0 | VJJ110: 0 | VJK110: 0 | VJL110: 0 | VJM110: 0 | VJN110: 0 | VJO110: 0 | VJP110: 0 | VJQ110: 0 | VJR110: 0 | VJS110: 0 | VJT110: 0 | VJU110: 0 | VJV110: 0 | VJW110: 0 | VJX110: 0 | VJY110: 0 | VJZ110: 0 | VKA110: 0 | VKB110: 0 | VKC110: 0 | VKD110: 0 | VKE110: 0 | VKF110: 0 | VKG110: 0 | VKH110: 0 | VKI110: 0 | VKJ110: 0 | VKK110: 0 | VKL110: 0 | VKM110: 0 | VKN110: 0 | VKO110: 0 | VKP110: 0 | VKQ110: 0 | VKR110: 0 | VKS110: 0 | VKT110: 0 | VKU110: 0 | VKV110: 0 | VKW110: =VKW5 -> 0 | VKX110: 0 | VKY110: 0 | VKZ110: 0 | VLA110: 0 | VLB110: 0 | VLC110: 0 | VLD110: 0 | VLE110: 0 | VLF110: 0 | VLG110: 0 | VLH110: 0 | VLI110: 0 | VLJ110: 0 | VLK110: 0 | VLL110: 0 | VLM110: 0 | VLN110: 0 | VLO110: 0 | VLP110: 0 | VLQ110: 0 | VLR110: 0 | VLS110: 0 | VLT110: 0 | VLU110: 0 | VLV110: 0 | VLW110: 0 | VLX110: 0 | VLY110: 0 | VLZ110: 0 | VMA110: 0 | VMB110: 0 | VMC110: 0 | VMD110: 0 | VME110: 0 | VMF110: 0 | VMG110: 0 | VMH110: 0 | VMI110: 0 | VMJ110: 0 | VMK110: 0 | VML110: 0 | VMM110: 0 | VMN110: 0 | VMO110: 0 | VMP110: 0 | VMQ110: 0 | VMR110: 0 | VMS110: 0 | VMT110: 0 | VMU110: 0 | VMV110: 0 | VMW110: 0 | VMX110: 0 | VMY110: 0 | VMZ110: 0 | VNA110: 0 | VNB110: 0 | VNC110: 0 | VND110: 0 | VNE110: 0 | VNF110: 0 | VNG110: 0 | VNH110: 0 | VNI110: =VNI5 -> 0 | VNJ110: 0 | VNK110: 0 | VNL110: 0 | VNM110: 0 | VNN110: 0 | VNO110: 0 | VNP110: 0 | VNQ110: 0 | VNR110: 0 | VNS110: 0 | VNT110: 0 | VNU110: 0 | VNV110: 0 | VNW110: 0 | VNX110: 0 | VNY110: 0 | VNZ110: 0 | VOA110: 0 | VOB110: 0 | VOC110: 0 | VOD110: 0 | VOE110: 0 | VOF110: 0 | VOG110: 0 | VOH110: 0 | VOI110: 0 | VOJ110: 0 | VOK110: 0 | VOL110: 0 | VOM110: 0 | VON110: 0 | VOO110: 0 | VOP110: 0 | VOQ110: 0 | VOR110: 0 | VOS110: 0 | VOT110: 0 | VOU110: 0 | VOV110: 0 | VOW110: 0 | VOX110: 0 | VOY110: 0 | VOZ110: 0 | VPA110: 0 | VPB110: 0 | VPC110: 0 | VPD110: 0 | VPE110: 0 | VPF110: 0 | VPG110: 0 | VPH110: 0 | VPI110: 0 | VPJ110: 0 | VPK110: 0 | VPL110: 0 | VPM110: 0 | VPN110: 0 | VPO110: 0 | VPP110: 0 | VPQ110: 0 | VPR110: 0 | VPS110: 0 | VPT110: 0 | VPU110: =VPU5 -> 0 | VPV110: 0 | VPW110: 0 | VPX110: 0 | VPY110: 0 | VPZ110: 0 | VQA110: 0 | VQB110: 0 | VQC110: 0 | VQD110: 0 | VQE110: 0 | VQF110: 0 | VQG110: 0 | VQH110: 0 | VQI110: 0 | VQJ110: 0 | VQK110: 0 | VQL110: 0 | VQM110: 0 | VQN110: 0 | VQO110: 0 | VQP110: 0 | VQQ110: 0 | VQR110: 0 | VQS110: 0 | VQT110: 0 | VQU110: 0 | VQV110: 0 | VQW110: 0 | VQX110: 0 | VQY110: 0 | VQZ110: 0 | VRA110: 0 | VRB110: 0 | VRC110: 0 | VRD110: 0 | VRE110: 0 | VRF110: 0 | VRG110: 0 | VRH110: 0 | VRI110: 0 | VRJ110: 0 | VRK110: 0 | VRL110: 0 | VRM110: 0 | VRN110: 0 | VRO110: 0 | VRP110: 0 | VRQ110: 0 | VRR110: 0 | VRS110: 0 | VRT110: 0 | VRU110: 0 | VRV110: 0 | VRW110: 0 | VRX110: 0 | VRY110: 0 | VRZ110: 0 | VSA110: 0 | VSB110: 0 | VSC110: 0 | VSD110: 0 | VSE110: 0 | VSF110: 0 | VSG110: =VSG5 -> 0 | VSH110: 0 | VSI110: 0 | VSJ110: 0 | VSK110: 0 | VSL110: 0 | VSM110: 0 | VSN110: 0 | VSO110: 0 | VSP110: 0 | VSQ110: 0 | VSR110: 0 | VSS110: 0 | VST110: 0 | VSU110: 0 | VSV110: 0 | VSW110: 0 | VSX110: 0 | VSY110: 0 | VSZ110: 0 | VTA110: 0 | VTB110: 0 | VTC110: 0 | VTD110: 0 | VTE110: 0 | VTF110: 0 | VTG110: 0 | VTH110: 0 | VTI110: 0 | VTJ110: 0 | VTK110: 0 | VTL110: 0 | VTM110: 0 | VTN110: 0 | VTO110: 0 | VTP110: 0 | VTQ110: 0 | VTR110: 0 | VTS110: 0 | VTT110: 0 | VTU110: 0 | VTV110: 0 | VTW110: 0 | VTX110: 0 | VTY110: 0 | VTZ110: 0 | VUA110: 0 | VUB110: 0 | VUC110: 0 | VUD110: 0 | VUE110: 0 | VUF110: 0 | VUG110: 0 | VUH110: 0 | VUI110: 0 | VUJ110: 0 | VUK110: 0 | VUL110: 0 | VUM110: 0 | VUN110: 0 | VUO110: 0 | VUP110: 0 | VUQ110: 0 | VUR110: 0 | VUS110: =VUS5 -> 0 | VUT110: 0 | VUU110: 0 | VUV110: 0 | VUW110: 0 | VUX110: 0 | VUY110: 0 | VUZ110: 0 | VVA110: 0 | VVB110: 0 | VVC110: 0 | VVD110: 0 | VVE110: 0 | VVF110: 0 | VVG110: 0 | VVH110: 0 | VVI110: 0 | VVJ110: 0 | VVK110: 0 | VVL110: 0 | VVM110: 0 | VVN110: 0 | VVO110: 0 | VVP110: 0 | VVQ110: 0 | VVR110: 0 | VVS110: 0 | VVT110: 0 | VVU110: 0 | VVV110: 0 | VVW110: 0 | VVX110: 0 | VVY110: 0 | VVZ110: 0 | VWA110: 0 | VWB110: 0 | VWC110: 0 | VWD110: 0 | VWE110: 0 | VWF110: 0 | VWG110: 0 | VWH110: 0 | VWI110: 0 | VWJ110: 0 | VWK110: 0 | VWL110: 0 | VWM110: 0 | VWN110: 0 | VWO110: 0 | VWP110: 0 | VWQ110: 0 | VWR110: 0 | VWS110: 0 | VWT110: 0 | VWU110: 0 | VWV110: 0 | VWW110: 0 | VWX110: 0 | VWY110: 0 | VWZ110: 0 | VXA110: 0 | VXB110: 0 | VXC110: 0 | VXD110: 0 | VXE110: =VXE5 -> 0 | VXF110: 0 | VXG110: 0 | VXH110: 0 | VXI110: 0 | VXJ110: 0 | VXK110: 0 | VXL110: 0 | VXM110: 0 | VXN110: 0 | VXO110: 0 | VXP110: 0 | VXQ110: 0 | VXR110: 0 | VXS110: 0 | VXT110: 0 | VXU110: 0 | VXV110: 0 | VXW110: 0 | VXX110: 0 | VXY110: 0 | VXZ110: 0 | VYA110: 0 | VYB110: 0 | VYC110: 0 | VYD110: 0 | VYE110: 0 | VYF110: 0 | VYG110: 0 | VYH110: 0 | VYI110: 0 | VYJ110: 0 | VYK110: 0 | VYL110: 0 | VYM110: 0 | VYN110: 0 | VYO110: 0 | VYP110: 0 | VYQ110: 0 | VYR110: 0 | VYS110: 0 | VYT110: 0 | VYU110: 0 | VYV110: 0 | VYW110: 0 | VYX110: 0 | VYY110: 0 | VYZ110: 0 | VZA110: 0 | VZB110: 0 | VZC110: 0 | VZD110: 0 | VZE110: 0 | VZF110: 0 | VZG110: 0 | VZH110: 0 | VZI110: 0 | VZJ110: 0 | VZK110: 0 | VZL110: 0 | VZM110: 0 | VZN110: 0 | VZO110: 0 | VZP110: 0 | VZQ110: =VZQ5 -> 0 | VZR110: 0 | VZS110: 0 | VZT110: 0 | VZU110: 0 | VZV110: 0 | VZW110: 0 | VZX110: 0 | VZY110: 0 | VZZ110: 0 | WAA110: 0 | WAB110: 0 | WAC110: 0 | WAD110: 0 | WAE110: 0 | WAF110: 0 | WAG110: 0 | WAH110: 0 | WAI110: 0 | WAJ110: 0 | WAK110: 0 | WAL110: 0 | WAM110: 0 | WAN110: 0 | WAO110: 0 | WAP110: 0 | WAQ110: 0 | WAR110: 0 | WAS110: 0 | WAT110: 0 | WAU110: 0 | WAV110: 0 | WAW110: 0 | WAX110: 0 | WAY110: 0 | WAZ110: 0 | WBA110: 0 | WBB110: 0 | WBC110: 0 | WBD110: 0 | WBE110: 0 | WBF110: 0 | WBG110: 0 | WBH110: 0 | WBI110: 0 | WBJ110: 0 | WBK110: 0 | WBL110: 0 | WBM110: 0 | WBN110: 0 | WBO110: 0 | WBP110: 0 | WBQ110: 0 | WBR110: 0 | WBS110: 0 | WBT110: 0 | WBU110: 0 | WBV110: 0 | WBW110: 0 | WBX110: 0 | WBY110: 0 | WBZ110: 0 | WCA110: 0 | WCB110: 0 | WCC110: =WCC5 -> 0 | WCD110: 0 | WCE110: 0 | WCF110: 0 | WCG110: 0 | WCH110: 0 | WCI110: 0 | WCJ110: 0 | WCK110: 0 | WCL110: 0 | WCM110: 0 | WCN110: 0 | WCO110: 0 | WCP110: 0 | WCQ110: 0 | WCR110: 0 | WCS110: 0 | WCT110: 0 | WCU110: 0 | WCV110: 0 | WCW110: 0 | WCX110: 0 | WCY110: 0 | WCZ110: 0 | WDA110: 0 | WDB110: 0 | WDC110: 0 | WDD110: 0 | WDE110: 0 | WDF110: 0 | WDG110: 0 | WDH110: 0 | WDI110: 0 | WDJ110: 0 | WDK110: 0 | WDL110: 0 | WDM110: 0 | WDN110: 0 | WDO110: 0 | WDP110: 0 | WDQ110: 0 | WDR110: 0 | WDS110: 0 | WDT110: 0 | WDU110: 0 | WDV110: 0 | WDW110: 0 | WDX110: 0 | WDY110: 0 | WDZ110: 0 | WEA110: 0 | WEB110: 0 | WEC110: 0 | WED110: 0 | WEE110: 0 | WEF110: 0 | WEG110: 0 | WEH110: 0 | WEI110: 0 | WEJ110: 0 | WEK110: 0 | WEL110: 0 | WEM110: 0 | WEN110: 0 | WEO110: =WEO5 -> 0 | WEP110: 0 | WEQ110: 0 | WER110: 0 | WES110: 0 | WET110: 0 | WEU110: 0 | WEV110: 0 | WEW110: 0 | WEX110: 0 | WEY110: 0 | WEZ110: 0 | WFA110: 0 | WFB110: 0 | WFC110: 0 | WFD110: 0 | WFE110: 0 | WFF110: 0 | WFG110: 0 | WFH110: 0 | WFI110: 0 | WFJ110: 0 | WFK110: 0 | WFL110: 0 | WFM110: 0 | WFN110: 0 | WFO110: 0 | WFP110: 0 | WFQ110: 0 | WFR110: 0 | WFS110: 0 | WFT110: 0 | WFU110: 0 | WFV110: 0 | WFW110: 0 | WFX110: 0 | WFY110: 0 | WFZ110: 0 | WGA110: 0 | WGB110: 0 | WGC110: 0 | WGD110: 0 | WGE110: 0 | WGF110: 0 | WGG110: 0 | WGH110: 0 | WGI110: 0 | WGJ110: 0 | WGK110: 0 | WGL110: 0 | WGM110: 0 | WGN110: 0 | WGO110: 0 | WGP110: 0 | WGQ110: 0 | WGR110: 0 | WGS110: 0 | WGT110: 0 | WGU110: 0 | WGV110: 0 | WGW110: 0 | WGX110: 0 | WGY110: 0 | WGZ110: 0 | WHA110: =WHA5 -> 0 | WHB110: 0 | WHC110: 0 | WHD110: 0 | WHE110: 0 | WHF110: 0 | WHG110: 0 | WHH110: 0 | WHI110: 0 | WHJ110: 0 | WHK110: 0 | WHL110: 0 | WHM110: 0 | WHN110: 0 | WHO110: 0 | WHP110: 0 | WHQ110: 0 | WHR110: 0 | WHS110: 0 | WHT110: 0 | WHU110: 0 | WHV110: 0 | WHW110: 0 | WHX110: 0 | WHY110: 0 | WHZ110: 0 | WIA110: 0 | WIB110: 0 | WIC110: 0 | WID110: 0 | WIE110: 0 | WIF110: 0 | WIG110: 0 | WIH110: 0 | WII110: 0 | WIJ110: 0 | WIK110: 0 | WIL110: 0 | WIM110: 0 | WIN110: 0 | WIO110: 0 | WIP110: 0 | WIQ110: 0 | WIR110: 0 | WIS110: 0 | WIT110: 0 | WIU110: 0 | WIV110: 0 | WIW110: 0 | WIX110: 0 | WIY110: 0 | WIZ110: 0 | WJA110: 0 | WJB110: 0 | WJC110: 0 | WJD110: 0 | WJE110: 0 | WJF110: 0 | WJG110: 0 | WJH110: 0 | WJI110: 0 | WJJ110: 0 | WJK110: 0 | WJL110: 0 | WJM110: =WJM5 -> 0 | WJN110: 0 | WJO110: 0 | WJP110: 0 | WJQ110: 0 | WJR110: 0 | WJS110: 0 | WJT110: 0 | WJU110: 0 | WJV110: 0 | WJW110: 0 | WJX110: 0 | WJY110: 0 | WJZ110: 0 | WKA110: 0 | WKB110: 0 | WKC110: 0 | WKD110: 0 | WKE110: 0 | WKF110: 0 | WKG110: 0 | WKH110: 0 | WKI110: 0 | WKJ110: 0 | WKK110: 0 | WKL110: 0 | WKM110: 0 | WKN110: 0 | WKO110: 0 | WKP110: 0 | WKQ110: 0 | WKR110: 0 | WKS110: 0 | WKT110: 0 | WKU110: 0 | WKV110: 0 | WKW110: 0 | WKX110: 0 | WKY110: 0 | WKZ110: 0 | WLA110: 0 | WLB110: 0 | WLC110: 0 | WLD110: 0 | WLE110: 0 | WLF110: 0 | WLG110: 0 | WLH110: 0 | WLI110: 0 | WLJ110: 0 | WLK110: 0 | WLL110: 0 | WLM110: 0 | WLN110: 0 | WLO110: 0 | WLP110: 0 | WLQ110: 0 | WLR110: 0 | WLS110: 0 | WLT110: 0 | WLU110: 0 | WLV110: 0 | WLW110: 0 | WLX110: 0 | WLY110: =WLY5 -> 0 | WLZ110: 0 | WMA110: 0 | WMB110: 0 | WMC110: 0 | WMD110: 0 | WME110: 0 | WMF110: 0 | WMG110: 0 | WMH110: 0 | WMI110: 0 | WMJ110: 0 | WMK110: 0 | WML110: 0 | WMM110: 0 | WMN110: 0 | WMO110: 0 | WMP110: 0 | WMQ110: 0 | WMR110: 0 | WMS110: 0 | WMT110: 0 | WMU110: 0 | WMV110: 0 | WMW110: 0 | WMX110: 0 | WMY110: 0 | WMZ110: 0 | WNA110: 0 | WNB110: 0 | WNC110: 0 | WND110: 0 | WNE110: 0 | WNF110: 0 | WNG110: 0 | WNH110: 0 | WNI110: 0 | WNJ110: 0 | WNK110: 0 | WNL110: 0 | WNM110: 0 | WNN110: 0 | WNO110: 0 | WNP110: 0 | WNQ110: 0 | WNR110: 0 | WNS110: 0 | WNT110: 0 | WNU110: 0 | WNV110: 0 | WNW110: 0 | WNX110: 0 | WNY110: 0 | WNZ110: 0 | WOA110: 0 | WOB110: 0 | WOC110: 0 | WOD110: 0 | WOE110: 0 | WOF110: 0 | WOG110: 0 | WOH110: 0 | WOI110: 0 | WOJ110: 0 | WOK110: =WOK5 -> 0 | WOL110: 0 | WOM110: 0 | WON110: 0 | WOO110: 0 | WOP110: 0 | WOQ110: 0 | WOR110: 0 | WOS110: 0 | WOT110: 0 | WOU110: 0 | WOV110: 0 | WOW110: 0 | WOX110: 0 | WOY110: 0 | WOZ110: 0 | WPA110: 0 | WPB110: 0 | WPC110: 0 | WPD110: 0 | WPE110: 0 | WPF110: 0 | WPG110: 0 | WPH110: 0 | WPI110: 0 | WPJ110: 0 | WPK110: 0 | WPL110: 0 | WPM110: 0 | WPN110: 0 | WPO110: 0 | WPP110: 0 | WPQ110: 0 | WPR110: 0 | WPS110: 0 | WPT110: 0 | WPU110: 0 | WPV110: 0 | WPW110: 0 | WPX110: 0 | WPY110: 0 | WPZ110: 0 | WQA110: 0 | WQB110: 0 | WQC110: 0 | WQD110: 0 | WQE110: 0 | WQF110: 0 | WQG110: 0 | WQH110: 0 | WQI110: 0 | WQJ110: 0 | WQK110: 0 | WQL110: 0 | WQM110: 0 | WQN110: 0 | WQO110: 0 | WQP110: 0 | WQQ110: 0 | WQR110: 0 | WQS110: 0 | WQT110: 0 | WQU110: 0 | WQV110: 0 | WQW110: =WQW5 -> 0 | WQX110: 0 | WQY110: 0 | WQZ110: 0 | WRA110: 0 | WRB110: 0 | WRC110: 0 | WRD110: 0 | WRE110: 0 | WRF110: 0 | WRG110: 0 | WRH110: 0 | WRI110: 0 | WRJ110: 0 | WRK110: 0 | WRL110: 0 | WRM110: 0 | WRN110: 0 | WRO110: 0 | WRP110: 0 | WRQ110: 0 | WRR110: 0 | WRS110: 0 | WRT110: 0 | WRU110: 0 | WRV110: 0 | WRW110: 0 | WRX110: 0 | WRY110: 0 | WRZ110: 0 | WSA110: 0 | WSB110: 0 | WSC110: 0 | WSD110: 0 | WSE110: 0 | WSF110: 0 | WSG110: 0 | WSH110: 0 | WSI110: 0 | WSJ110: 0 | WSK110: 0 | WSL110: 0 | WSM110: 0 | WSN110: 0 | WSO110: 0 | WSP110: 0 | WSQ110: 0 | WSR110: 0 | WSS110: 0 | WST110: 0 | WSU110: 0 | WSV110: 0 | WSW110: 0 | WSX110: 0 | WSY110: 0 | WSZ110: 0 | WTA110: 0 | WTB110: 0 | WTC110: 0 | WTD110: 0 | WTE110: 0 | WTF110: 0 | WTG110: 0 | WTH110: 0 | WTI110: =WTI5 -> 0 | WTJ110: 0 | WTK110: 0 | WTL110: 0 | WTM110: 0 | WTN110: 0 | WTO110: 0 | WTP110: 0 | WTQ110: 0 | WTR110: 0 | WTS110: 0 | WTT110: 0 | WTU110: 0 | WTV110: 0 | WTW110: 0 | WTX110: 0 | WTY110: 0 | WTZ110: 0 | WUA110: 0 | WUB110: 0 | WUC110: 0 | WUD110: 0 | WUE110: 0 | WUF110: 0 | WUG110: 0 | WUH110: 0 | WUI110: 0 | WUJ110: 0 | WUK110: 0 | WUL110: 0 | WUM110: 0 | WUN110: 0 | WUO110: 0 | WUP110: 0 | WUQ110: 0 | WUR110: 0 | WUS110: 0 | WUT110: 0 | WUU110: 0 | WUV110: 0 | WUW110: 0 | WUX110: 0 | WUY110: 0 | WUZ110: 0 | WVA110: 0 | WVB110: 0 | WVC110: 0 | WVD110: 0 | WVE110: 0 | WVF110: 0 | WVG110: 0 | WVH110: 0 | WVI110: 0 | WVJ110: 0 | WVK110: 0 | WVL110: 0 | WVM110: 0 | WVN110: 0 | WVO110: 0 | WVP110: 0 | WVQ110: 0 | WVR110: 0 | WVS110: 0 | WVT110: 0 | WVU110: =WVU5 -> 0 | WVV110: 0 | WVW110: 0 | WVX110: 0 | WVY110: 0 | WVZ110: 0 | WWA110: 0 | WWB110: 0 | WWC110: 0 | WWD110: 0 | WWE110: 0 | WWF110: 0 | WWG110: 0 | WWH110: 0 | WWI110: 0 | WWJ110: 0 | WWK110: 0 | WWL110: 0 | WWM110: 0 | WWN110: 0 | WWO110: 0 | WWP110: 0 | WWQ110: 0 | WWR110: 0 | WWS110: 0 | WWT110: 0 | WWU110: 0 | WWV110: 0 | WWW110: 0 | WWX110: 0 | WWY110: 0 | WWZ110: 0 | WXA110: 0 | WXB110: 0 | WXC110: 0 | WXD110: 0 | WXE110: 0 | WXF110: 0 | WXG110: 0 | WXH110: 0 | WXI110: 0 | WXJ110: 0 | WXK110: 0 | WXL110: 0 | WXM110: 0 | WXN110: 0 | WXO110: 0 | WXP110: 0 | WXQ110: 0 | WXR110: 0 | WXS110: 0 | WXT110: 0 | WXU110: 0 | WXV110: 0 | WXW110: 0 | WXX110: 0 | WXY110: 0 | WXZ110: 0 | WYA110: 0 | WYB110: 0 | WYC110: 0 | WYD110: 0 | WYE110: 0 | WYF110: 0 | WYG110: =WYG5 -> 0 | WYH110: 0 | WYI110: 0 | WYJ110: 0 | WYK110: 0 | WYL110: 0 | WYM110: 0 | WYN110: 0 | WYO110: 0 | WYP110: 0 | WYQ110: 0 | WYR110: 0 | WYS110: 0 | WYT110: 0 | WYU110: 0 | WYV110: 0 | WYW110: 0 | WYX110: 0 | WYY110: 0 | WYZ110: 0 | WZA110: 0 | WZB110: 0 | WZC110: 0 | WZD110: 0 | WZE110: 0 | WZF110: 0 | WZG110: 0 | WZH110: 0 | WZI110: 0 | WZJ110: 0 | WZK110: 0 | WZL110: 0 | WZM110: 0 | WZN110: 0 | WZO110: 0 | WZP110: 0 | WZQ110: 0 | WZR110: 0 | WZS110: 0 | WZT110: 0 | WZU110: 0 | WZV110: 0 | WZW110: 0 | WZX110: 0 | WZY110: 0 | WZZ110: 0 | XAA110: 0 | XAB110: 0 | XAC110: 0 | XAD110: 0 | XAE110: 0 | XAF110: 0 | XAG110: 0 | XAH110: 0 | XAI110: 0 | XAJ110: 0 | XAK110: 0 | XAL110: 0 | XAM110: 0 | XAN110: 0 | XAO110: 0 | XAP110: 0 | XAQ110: 0 | XAR110: 0 | XAS110: =XAS5 -> 0 | XAT110: 0 | XAU110: 0 | XAV110: 0 | XAW110: 0 | XAX110: 0 | XAY110: 0 | XAZ110: 0 | XBA110: 0 | XBB110: 0 | XBC110: 0 | XBD110: 0 | XBE110: 0 | XBF110: 0 | XBG110: 0 | XBH110: 0 | XBI110: 0 | XBJ110: 0 | XBK110: 0 | XBL110: 0 | XBM110: 0 | XBN110: 0 | XBO110: 0 | XBP110: 0 | XBQ110: 0 | XBR110: 0 | XBS110: 0 | XBT110: 0 | XBU110: 0 | XBV110: 0 | XBW110: 0 | XBX110: 0 | XBY110: 0 | XBZ110: 0 | XCA110: 0 | XCB110: 0 | XCC110: 0 | XCD110: 0 | XCE110: 0 | XCF110: 0 | XCG110: 0 | XCH110: 0 | XCI110: 0 | XCJ110: 0 | XCK110: 0 | XCL110: 0 | XCM110: 0 | XCN110: 0 | XCO110: 0 | XCP110: 0 | XCQ110: 0 | XCR110: 0 | XCS110: 0 | XCT110: 0 | XCU110: 0 | XCV110: 0 | XCW110: 0 | XCX110: 0 | XCY110: 0 | XCZ110: 0 | XDA110: 0 | XDB110: 0 | XDC110: 0 | XDD110: 0 | XDE110: =XDE5 -> 0 | XDF110: 0 | XDG110: 0 | XDH110: 0 | XDI110: 0 | XDJ110: 0 | XDK110: 0 | XDL110: 0 | XDM110: 0 | XDN110: 0 | XDO110: 0 | XDP110: 0 | XDQ110: 0 | XDR110: 0 | XDS110: 0 | XDT110: 0 | XDU110: 0 | XDV110: 0 | XDW110: 0 | XDX110: 0 | XDY110: 0 | XDZ110: 0 | XEA110: 0 | XEB110: 0 | XEC110: 0 | XED110: 0 | XEE110: 0 | XEF110: 0 | XEG110: 0 | XEH110: 0 | XEI110: 0 | XEJ110: 0 | XEK110: 0 | XEL110: 0 | XEM110: 0 | XEN110: 0 | XEO110: 0 | XEP110: 0 | XEQ110: 0 | XER110: 0 | XES110: 0 | XET110: 0 | XEU110: 0 | XEV110: 0 | XEW110: 0 | XEX110: 0 | XEY110: 0 | XEZ110: 0 | XFA110: 0 | XFB110: 0 | XFC110: 0 | XFD110: 0
K111: =site1 -> Warragul | M111: 0 | N111: 1 | O111: 1 | P111: 1 | Q111: 1 | R111: 1 | S111: 1 | T111: 1 | U111: 1 | V111: 1 | W111: 1 | X111: 1 | Y111: 1 | Z111: 1 | AA111: 1 | AB111: 1 | AC111: 1 | AD111: 1 | AE111: 1 | AF111: 1 | AG111: 1 | AH111: 1 | AI111: 1 | AJ111: 1 | AK111: 1 | AL111: 1 | AM111: 1 | AN111: 1 | AO111: 1 | AP111: 1 | AQ111: 1 | AR111: 1 | AS111: 1 | AT111: 1 | AU111: 1 | AV111: 1 | AW111: 1 | AX111: 1 | AY111: 1 | AZ111: 1 | BA111: 1
K112: =site2 -> Beaconsfield | M112: 0 | N112: 1 | O112: 1 | P112: 1 | Q112: 1 | R112: 1 | S112: 1 | T112: 1 | U112: 1 | V112: 1 | W112: 1 | X112: 1 | Y112: 1 | Z112: 1 | AA112: 1 | AB112: 1 | AC112: 1 | AD112: 1 | AE112: 1 | AF112: 1 | AG112: 1 | AH112: 1 | AI112: 1 | AJ112: 1 | AK112: 1 | AL112: 1 | AM112: 1 | AN112: 1 | AO112: 1 | AP112: 1 | AQ112: 1 | AR112: 1 | AS112: 1 | AT112: 1 | AU112: 1 | AV112: 1 | AW112: 1 | AX112: 1 | AY112: 1 | AZ112: 1 | BA112: 1
K113: =site3 -> Pakenham | M113: 0 | N113: 1 | O113: 1 | P113: 1 | Q113: 1 | R113: 1 | S113: 1 | T113: 1 | U113: 1 | V113: 1 | W113: 1 | X113: 1 | Y113: 1 | Z113: 1 | AA113: 1 | AB113: 1 | AC113: 1 | AD113: 1 | AE113: 1 | AF113: 1 | AG113: 1 | AH113: 1 | AI113: 1 | AJ113: 1 | AK113: 1 | AL113: 1 | AM113: 1 | AN113: 1 | AO113: 1 | AP113: 1 | AQ113: 1 | AR113: 1 | AS113: 1 | AT113: 1 | AU113: 1 | AV113: 1 | AW113: 1 | AX113: 1 | AY113: 1 | AZ113: 1 | BA113: 1
K114: =site4 -> Traralgon | M114: 0 | N114: 1 | O114: 1 | P114: 1 | Q114: 1 | R114: 1 | S114: 1 | T114: 1 | U114: 1 | V114: 1 | W114: 1 | X114: 1 | Y114: 1 | Z114: 1 | AA114: 1 | AB114: 1 | AC114: 1 | AD114: 1 | AE114: 1 | AF114: 1 | AG114: 1 | AH114: 1 | AI114: 1 | AJ114: 1 | AK114: 1 | AL114: 1 | AM114: 1 | AN114: 1 | AO114: 1 | AP114: 1 | AQ114: 1 | AR114: 1 | AS114: 1 | AT114: 1 | AU114: 1 | AV114: 1 | AW114: 1 | AX114: 1 | AY114: 1 | AZ114: 1 | BA114: 1
K115: =site5 -> Benalla | M115: 0 | N115: 0 | O115: 0 | P115: 1 | Q115: 1 | R115: 1 | S115: 1 | T115: 1 | U115: 1 | V115: 1 | W115: 1 | X115: 1 | Y115: 1 | Z115: 1 | AA115: 1 | AB115: 1 | AC115: 1 | AD115: 1 | AE115: 1 | AF115: 1 | AG115: 1 | AH115: 1 | AI115: 1 | AJ115: 1 | AK115: 1 | AL115: 1 | AM115: 1 | AN115: 1 | AO115: 1 | AP115: 1 | AQ115: 1 | AR115: 1 | AS115: 1 | AT115: 1 | AU115: 1 | AV115: 1 | AW115: 1 | AX115: 1 | AY115: 1 | AZ115: 1 | BA115: 1
K116: =site6 -> Seymour | M116: 0 | N116: 0 | O116: 0 | P116: 0 | Q116: 1 | R116: 1 | S116: 1 | T116: 1 | U116: 1 | V116: 1 | W116: 1 | X116: 1 | Y116: 1 | Z116: 1 | AA116: 1 | AB116: 1 | AC116: 1 | AD116: 1 | AE116: 1 | AF116: 1 | AG116: 1 | AH116: 1 | AI116: 1 | AJ116: 1 | AK116: 1 | AL116: 1 | AM116: 1 | AN116: 1 | AO116: 1 | AP116: 1 | AQ116: 1 | AR116: 1 | AS116: 1 | AT116: 1 | AU116: 1 | AV116: 1 | AW116: 1 | AX116: 1 | AY116: 1 | AZ116: 1 | BA116: 1
B119: =MAX($B$1:B118)+1 -> 8 | C119: Land growth rates
G120: Growth rate
E121: Low | F121: list | G121: 0.015 | H121: Assumed land growth rates - user to change if required
E122: Central | F122: list | G122: 0.03 | H122: Assumed land growth rates - user to change if required
E123: High | F123: list | G123: 0.055 | H123: Assumed land growth rates - user to change if required
H124: Active growth rate
E125: Active Land growth rate | G125: Central | H125: =INDEX($G$121:$G$123,MATCH($G125,$E$121:$E$123,0)) -> 0.03 | I125: Cells G125 is a drop down list to select the chosen growth rate
B127: =MAX($B$1:B126)+1 -> 9 | C127: Cost contingencies
E130: Low | F130: list | G130: 1 | H130: Cells G35:G137 is a drop down list to select the rate to be applied on costs
E131: Central | F131: list | G131: 1.1 | H131: Cells G35:G137 is a drop down list to select the rate to be applied on costs
E132: High | F132: list | G132: 1.2
E134: Active cost contingency | G134: Central | H134: =INDEX($G$130:$G$132,MATCH($G$134,$E$130:$E$132,0)) -> 1.1
A137: End of sheet

Sheet Inputs>>>

Sheet CPI Indexing
B1: Index Numbers ; All groups CPI ; Australia ;
A2: Unit | B2: Index Numbers
A3: Series Type | B3: Original
A4: Data Type | B4: INDEX
A5: Frequency | B5: Quarter
A6: Collection Month | B6: 3
A7: Series Start | B7: 1948-09-01
A8: Series End | B8: 2024-09-01
A9: No. Obs | B9: 305
A10: Series ID | B10: A2325846C
A11: 1948-09-01 | B11: 3.7
A12: 1948-12-01 | B12: 3.8
A13: 1949-03-01 | B13: 3.9
A14: 1949-06-01 | B14: 4
A15: 1949-09-01 | B15: 4.1
A16: 1949-12-01 | B16: 4.1
A17: 1950-03-01 | B17: 4.2
A18: 1950-06-01 | B18: 4.3
A19: 1950-09-01 | B19: 4.4
A20: 1950-12-01 | B20: 4.6
A21: 1951-03-01 | B21: 4.8
A22: 1951-06-01 | B22: 5.1
A23: 1951-09-01 | B23: 5.3
A24: 1951-12-01 | B24: 5.7
A25: 1952-03-01 | B25: 5.9
A26: 1952-06-01 | B26: 6.1
A27: 1952-09-01 | B27: 6.2
A28: 1952-12-01 | B28: 6.3
A29: 1953-03-01 | B29: 6.3
A30: 1953-06-01 | B30: 6.4
A31: 1953-09-01 | B31: 6.5
A32: 1953-12-01 | B32: 6.4
A33: 1954-03-01 | B33: 6.5
A34: 1954-06-01 | B34: 6.5
A35: 1954-09-01 | B35: 6.5
A36: 1954-12-01 | B36: 6.5
A37: 1955-03-01 | B37: 6.5
A38: 1955-06-01 | B38: 6.6
A39: 1955-09-01 | B39: 6.6
A40: 1955-12-01 | B40: 6.7
A41: 1956-03-01 | B41: 6.7
A42: 1956-06-01 | B42: 7
A43: 1956-09-01 | B43: 7.1
A44: 1956-12-01 | B44: 7.1
A45: 1957-03-01 | B45: 7.1
A46: 1957-06-01 | B46: 7.2
A47: 1957-09-01 | B47: 7.2
A48: 1957-12-01 | B48: 7.2
A49: 1958-03-01 | B49: 7.2
A50: 1958-06-01 | B50: 7.2
A51: 1958-09-01 | B51: 7.2
A52: 1958-12-01 | B52: 7.3
A53: 1959-03-01 | B53: 7.3
A54: 1959-06-01 | B54: 7.3
A55: 1959-09-01 | B55: 7.4
A56: 1959-12-01 | B56: 7.5
A57: 1960-03-01 | B57: 7.5
A58: 1960-06-01 | B58: 7.6
A59: 1960-09-01 | B59: 7.7
A60: 1960-12-01 | B60: 7.8
A61: 1961-03-01 | B61: 7.8
A62: 1961-06-01 | B62: 7.9
A63: 1961-09-01 | B63: 7.8
A64: 1961-12-01 | B64: 7.8
A65: 1962-03-01 | B65: 7.8
A66: 1962-06-01 | B66: 7.8
A67: 1962-09-01 | B67: 7.8
A68: 1962-12-01 | B68: 7.8
A69: 1963-03-01 | B69: 7.8
A70: 1963-06-01 | B70: 7.8
A71: 1963-09-01 | B71: 7.9
A72: 1963-12-01 | B72: 7.9
A73: 1964-03-01 | B73: 8
A74: 1964-06-01 | B74: 8
A75: 1964-09-01 | B75: 8.1
A76: 1964-12-01 | B76: 8.2
A77: 1965-03-01 | B77: 8.2
A78: 1965-06-01 | B78: 8.3
A79: 1965-09-01 | B79: 8.4
A80: 1965-12-01 | B80: 8.5
A81: 1966-03-01 | B81: 8.6
A82: 1966-06-01 | B82: 8.6
A83: 1966-09-01 | B83: 8.6
A84: 1966-12-01 | B84: 8.7
A85: 1967-03-01 | B85: 8.8
A86: 1967-06-01 | B86: 8.9
A87: 1967-09-01 | B87: 9
A88: 1967-12-01 | B88: 9
A89: 1968-03-01 | B89: 9.1
A90: 1968-06-01 | B90: 9.1
A91: 1968-09-01 | B91: 9.2
A92: 1968-12-01 | B92: 9.2
A93: 1969-03-01 | B93: 9.4
A94: 1969-06-01 | B94: 9.4
A95: 1969-09-01 | B95: 9.5
A96: 1969-12-01 | B96: 9.5
A97: 1970-03-01 | B97: 9.6
A98: 1970-06-01 | B98: 9.7
A99: 1970-09-01 | B99: 9.8
A100: 1970-12-01 | B100: 10
A101: 1971-03-01 | B101: 10.1
A102: 1971-06-01 | B102: 10.2
A103: 1971-09-01 | B103: 10.5
A104: 1971-12-01 | B104: 10.7
A105: 1972-03-01 | B105: 10.8
A106: 1972-06-01 | B106: 10.9
A107: 1972-09-01 | B107: 11.1
A108: 1972-12-01 | B108: 11.2
A109: 1973-03-01 | B109: 11.4
A110: 1973-06-01 | B110: 11.8
A111: 1973-09-01 | B111: 12.2
A112: 1973-12-01 | B112: 12.6
A113: 1974-03-01 | B113: 13
A114: 1974-06-01 | B114: 13.5
A115: 1974-09-01 | B115: 14.2
A116: 1974-12-01 | B116: 14.7
A117: 1975-03-01 | B117: 15.3
A118: 1975-06-01 | B118: 15.8
A119: 1975-09-01 | B119: 15.9
A120: 1975-12-01 | B120: 16.8
A121: 1976-03-01 | B121: 17.3
A122: 1976-06-01 | B122: 17.7
A123: 1976-09-01 | B123: 18.1
A124: 1976-12-01 | B124: 19.2
A125: 1977-03-01 | B125: 19.6
A126: 1977-06-01 | B126: 20.1
A127: 1977-09-01 | B127: 20.5
A128: 1977-12-01 | B128: 21
A129: 1978-03-01 | B129: 21.3
A130: 1978-06-01 | B130: 21.7
A131: 1978-09-01 | B131: 22.1
A132: 1978-12-01 | B132: 22.6
A133: 1979-03-01 | B133: 23
A134: 1979-06-01 | B134: 23.6
A135: 1979-09-01 | B135: 24.2
A136: 1979-12-01 | B136: 24.9
A137: 1980-03-01 | B137: 25.4
A138: 1980-06-01 | B138: 26.2
A139: 1980-09-01 | B139: 26.6
A140: 1980-12-01 | B140: 27.2
A141: 1981-03-01 | B141: 27.8
A142: 1981-06-01 | B142: 28.4
A143: 1981-09-01 | B143: 29
A144: 1981-12-01 | B144: 30.2
A145: 1982-03-01 | B145: 30.8
A146: 1982-06-01 | B146: 31.5
A147: 1982-09-01 | B147: 32.6
A148: 1982-12-01 | B148: 33.6
A149: 1983-03-01 | B149: 34.3
A150: 1983-06-01 | B150: 35
A151: 1983-09-01 | B151: 35.6
A152: 1983-12-01 | B152: 36.5
A153: 1984-03-01 | B153: 36.3
A154: 1984-06-01 | B154: 36.4
A155: 1984-09-01 | B155: 36.9
A156: 1984-12-01 | B156: 37.4
A157: 1985-03-01 | B157: 37.9
A158: 1985-06-01 | B158: 38.8
A159: 1985-09-01 | B159: 39.7
A160: 1985-12-01 | B160: 40.5
A161: 1986-03-01 | B161: 41.4
A162: 1986-06-01 | B162: 42.1
A163: 1986-09-01 | B163: 43.2
A164: 1986-12-01 | B164: 44.4
A165: 1987-03-01 | B165: 45.3
A166: 1987-06-01 | B166: 46
A167: 1987-09-01 | B167: 46.8
A168: 1987-12-01 | B168: 47.6
A169: 1988-03-01 | B169: 48.4
A170: 1988-06-01 | B170: 49.3
A171: 1988-09-01 | B171: 50.2
A172: 1988-12-01 | B172: 51.2
A173: 1989-03-01 | B173: 51.7
A174: 1989-06-01 | B174: 53
A175: 1989-09-01 | B175: 54.2
A176: 1989-12-01 | B176: 55.2
A177: 1990-03-01 | B177: 56.2
A178: 1990-06-01 | B178: 57.1
A179: 1990-09-01 | B179: 57.5
A180: 1990-12-01 | B180: 59
A181: 1991-03-01 | B181: 58.9
A182: 1991-06-01 | B182: 59
A183: 1991-09-01 | B183: 59.3
A184: 1991-12-01 | B184: 59.9
A185: 1992-03-01 | B185: 59.9
A186: 1992-06-01 | B186: 59.7
A187: 1992-09-01 | B187: 59.8
A188: 1992-12-01 | B188: 60.1
A189: 1993-03-01 | B189: 60.6
A190: 1993-06-01 | B190: 60.8
A191: 1993-09-01 | B191: 61.1
A192: 1993-12-01 | B192: 61.2
A193: 1994-03-01 | B193: 61.5
A194: 1994-06-01 | B194: 61.9
A195: 1994-09-01 | B195: 62.3
A196: 1994-12-01 | B196: 62.8
A197: 1995-03-01 | B197: 63.8
A198: 1995-06-01 | B198: 64.7
A199: 1995-09-01 | B199: 65.5
A200: 1995-12-01 | B200: 66
... 126 more rows

Sheet I | Common inputs
A1: =MID(CELL("filename",A1),FIND("]",CELL("filename",A1))+1,256) -> I | Common inputs
A2: =Name_Project&" | "&Name_Model -> AusNet Property (Depot) Investment Strategy - Phase 1 | CBA Model
A3: ="Version "&Model_Version -> Version 1.0
B7: =MAX($B$1:B6)+1 -> 1 | C7: Site movement - labour cost savings
C9: =MAX($B$1:C8)+0.01 -> 1.01 | D9: Site movements
E11: Vehicles per site | F11: number | G11: 30 | H11: User can adjust inputs
E12: Round trip per vehicle per day | F12: number | G12: 1 | H12: User can adjust inputs
E13: Round trips per day | F13: number | G13: =G11*G12 -> 30
E14: Total trips per day | F14: number | G14: =G13*2 -> 60
E16: Staff per vehicle | F16: number | G16: 2 | H16: User can adjust inputs
C19: =MAX($B$1:C18)+0.01 -> 1.02 | D19: Travel time savings | G19: Time Reduction In Hours | H19: Staff time saving per trip | I19: staff time saving per day | J19: Labour costs saved per day | K19: Labour costs saved per year
G20: hours - per trip | H20: hours - single trip | I20: hours - round trip | J20: $ - round trip - per day | K20: $/year
E21: Beaconsfield | G21: =INDEX('Control Panel'!$G$93:$G$97,MATCH($E21,'Control Panel'!$E$93:$E$97,0)) -> 0.08333333333 | H21: =G21*$G$16 -> 0.1666666667 | I21: =H21*$G$14 -> 10 | J21: =I21*'Control Panel'!$G$72 -> 650.764717 | K21: =J21*$G$95 -> 161389.6498
E22: Benalla | G22: =INDEX('Control Panel'!$G$93:$G$97,MATCH($E22,'Control Panel'!$E$93:$E$97,0)) -> 0.08333333333 | H22: 0.1666666667 | I22: 10 | J22: =I22*'Control Panel'!$G$72 -> 650.764717 | K22: =J22*$G$95 -> 161389.6498
E23: Seymour | G23: =INDEX('Control Panel'!$G$93:$G$97,MATCH($E23,'Control Panel'!$E$93:$E$97,0)) -> 0.08333333333 | H23: 0.1666666667 | I23: 10 | J23: =I23*'Control Panel'!$G$72 -> 650.764717 | K23: =J23*$G$95 -> 161389.6498
E24: Traralgon | G24: =INDEX('Control Panel'!$G$93:$G$97,MATCH($E24,'Control Panel'!$E$93:$E$97,0)) -> 0.08333333333 | H24: 0.1666666667 | I24: 10 | J24: =I24*'Control Panel'!$G$72 -> 650.764717 | K24: =J24*$G$95 -> 161389.6498
E25: Warragul | G25: =INDEX('Control Panel'!$G$93:$G$97,MATCH($E25,'Control Panel'!$E$93:$E$97,0)) -> 0.08333333333 | H25: 0.1666666667 | I25: 10 | J25: =I25*'Control Panel'!$G$72 -> 650.764717 | K25: =J25*$G$95 -> 161389.6498
C28: =MAX($B$1:C27)+0.01 -> 1.03 | D28: Site layout savings | G28: Time Reduction In Hours | H28: Staff time saving per trip | I28: staff time saving per day | J28: Labour costs saved per day | K28: Labour costs saved per year
G29: hours - per departure | H29: hours - per departure | I29: hours - per departure | J29: $ - departures - per day | K29: $/year
E30: Beaconsfield | G30: =INDEX('Control Panel'!$I$84:$I$88,MATCH($E30,'Control Panel'!$E$93:$E$97,0))/60 -> 0.08333333333 | H30: =G30*$G$16 -> 0.1666666667 | I30: =H30*$G$13 -> 5 | J30: =I30*'Control Panel'!$G$72 -> 325.3823585 | K30: =J30*$G$95 -> 80694.82491
E31: Benalla | G31: =INDEX('Control Panel'!$I$84:$I$88,MATCH($E31,'Control Panel'!$E$93:$E$97,0))/60 -> 0.08333333333 | H31: 0.1666666667 | I31: 5 | J31: =I31*'Control Panel'!$G$72 -> 325.3823585 | K31: =J31*$G$95 -> 80694.82491
E32: Seymour | G32: =INDEX('Control Panel'!$I$84:$I$88,MATCH($E32,'Control Panel'!$E$93:$E$97,0))/60 -> 0.08333333333 | H32: 0.1666666667 | I32: 5 | J32: =I32*'Control Panel'!$G$72 -> 325.3823585 | K32: =J32*$G$95 -> 80694.82491
E33: Traralgon | G33: =INDEX('Control Panel'!$I$84:$I$88,MATCH($E33,'Control Panel'!$E$93:$E$97,0))/60 -> 0.08333333333 | H33: 0.1666666667 | I33: 5 | J33: =I33*'Control Panel'!$G$72 -> 325.3823585 | K33: =J33*$G$95 -> 80694.82491
E34: Warragul | G34: =INDEX('Control Panel'!$I$84:$I$88,MATCH($E34,'Control Panel'!$E$93:$E$97,0))/60 -> 0.08333333333 | H34: 0.1666666667 | I34: 5 | J34: =I34*'Control Panel'!$G$72 -> 325.3823585 | K34: =J34*$G$95 -> 80694.82491
C37: =MAX($B$1:C26)+0.01 -> 1.03 | D37: For output | G37: =Scen3 -> Option 3: Strategic Depot reset
E38: Warragul | G38: =IFERROR(INDEX($K$21:$K$25,MATCH(E38,$E$21:$E$25,0))+INDEX($K$30:$K$34,MATCH(E38,$E$30:$E$34,0)),0) -> 242084.4747
E39: Beaconsfield | G39: 242084.4747
E40: Pakenham | G40: 0
E41: Traralgon | G41: 242084.4747
E42: Benalla | G42: 242084.4747
E43: Seymour | G43: 242084.4747
B45: =MAX($B$1:B44)+1 -> 2 | C45: Second site consolidation
C47: =MAX($B$1:C46)+0.01 -> 2.01 | D47: Applicable depots
G49: Second site flag | H49: Main site sold | I49: Year when benefits start
E50: Warragul | G50: 1 | H50: 2026 | I50: =H50+1 -> 2027
E51: Beaconsfield | G51: 1 | H51: 2026 | I51: =H51+1 -> 2027
E52: Pakenham | G52: 0 | H52: 0 | I52: 0
E53: Traralgon | G53: 1 | H53: 2027 | I53: =H53+1 -> 2028
E54: Benalla | G54: 0 | H54: 0 | I54: 0
E55: Seymour | G55: 0 | H55: 0 | I55: 0
C57: =MAX($B$1:C56)+0.01 -> 2.02 | D57: Second site lease/management cost | G57: Lease cost of second site
E58: Warragul | F58: $FY25 | G58: 10000
E59: Traralgon | F59: $FY25 | G59: 35000
E60: Beaconsfield | F60: $FY25 | G60: 75000
E61: Pakenham | F61: $FY25 | G61: 0
E62: Benalla | F62: $FY25 | G62: 0
E63: Seymour | F63: $FY25 | G63: 0
C65: =MAX($B$1:C64)+0.01 -> 2.03 | D65: Conversion factors
E67: Decrease Additional Machinery Hire Cost
E68: Monthly deliveries | F68: pa | G68: 12
E69: Specialist machinery cost | F69: $/day | G69: 1000
E71: Per second site cost per year | F71: $/year | G71: =G68*G69 -> 12000 | H71: machinerycost | I71: defined name used in model - do not change
E73: Labour Cost of deliveries
E74: Average travel time - one way | F74: minutes | G74: 30
E75: Average travel time - round trip | F75: hour | G75: =(G74*2)/60 -> 1
E76: Hours spent on second site | F76: hour | G76: 4
E77: Total hours | F77: hours | G77: =G76+G75 -> 5
E79: Staff travelling | F79: number | G79: 4
E80: Wage per hour | F80: $/hour | G80: ='Control Panel'!G72 -> 65.0764717
E82: Labour cost per month | F82: $/month | G82: =G80*G79*G77 -> 1301.529434
E83: Labour cost per year | F83: $/year | G83: =G82*G68 -> 15618.35321 | H83: deliverylabourcost | I83: defined name used in model - do not change
E85: Labour costs of normal trips
E86: Average travel time - one way | F86: minutes | G86: 30 | H86: User can adjust inputs
E87: Average travel time - round trip | F87: hour | G87: =(G86*2)/60 -> 1
E88: Hours spent unloading at main site | F88: hour | G88: 1
E89: Hours spent loading at second site | F89: hour | G89: 1
E90: Total hours | F90: hours | G90: =G88+G92 -> 3
E92: Staff travelling | F92: number | G92: 2
E93: Wage per hour | F93: $/hour | G93: ='Control Panel'!G72 -> 65.0764717
E95: Working days a year | F95: factor | G95: 248
E96: Labour cost per year | F96: $/year | G96: =G90*G93*G92*G95 -> 96833.78989 | H96: regularlabourcost | I96: defined name used in model - do not change
B99: =MAX($B$1:B98)+1 -> 3 | C99: Second site movement - Avoided Vehicle Operating Cost
C101: =MAX($B$1:C100)+0.01 -> 3.01 | D101: Free-flow model including fuel consumption | G101: Co | H101: C1 | I101: C2 | J101: V | K101: V-squared
G102: coefficient | H102: coefficient | I102: coefficient | J102: km/h | K102: speed-squared
E103: Courier Van-Utility | G103: 38.492 | H103: -0.184 | I103: 0.0014 | J103: 60 | K103: =J103^2 -> 3600 | L103: Source: Table 35 https://www.atap.gov.au/parameter-values/road-transport/5-vehicle-operating-cost-voc-models
E104: 4WD Mid-Size Petrol | G104: 40.558 | H104: -0.154 | I104: 0.0013 | J104: 60 | K104: =J104^2 -> 3600 | L104: Source: Table 35 https://www.atap.gov.au/parameter-values/road-transport/5-vehicle-operating-cost-voc-models
E105: Light Rigid | G105: 51.5092 | H105: -0.2481 | I105: 0.0025 | J105: 60 | K105: =J105^2 -> 3600 | L105: Source: Table 35 https://www.atap.gov.au/parameter-values/road-transport/5-vehicle-operating-cost-voc-models
E106: Medium Rigid | G106: 62.9793 | H106: -0.3002 | I106: 0.0026 | J106: 60 | K106: =J106^2 -> 3600 | L106: Source: Table 35 https://www.atap.gov.au/parameter-values/road-transport/5-vehicle-operating-cost-voc-models
E107: Heavy Rigid | G107: 82.29 | H107: -0.5525 | I107: 0.0053 | J107: 60 | K107: =J107^2 -> 3600 | L107: Source: Table 35 https://www.atap.gov.au/parameter-values/road-transport/5-vehicle-operating-cost-voc-models
G109: VOC per VKT
E110: Courier Van-Utility | F110: c/km | G110: =(G103+(H103*J103)+(I103*K103))/100 -> 0.32492
E111: 4WD Mid-Size Petrol | F111: c/km | G111: =(G104+(H104*J104)+(I104*K104))/100 -> 0.35998
E112: Light Rigid | F112: c/km | G112: =(G105+(H105*J105)+(I105*K105))/100 -> 0.456232
E113: Medium Rigid | F113: c/km | G113: =(G106+(H106*J106)+(I106*K106))/100 -> 0.543273
E114: Heavy Rigid | F114: c/km | G114: =(G107+(H107*J107)+(I107*K107))/100 -> 0.6822
E116: Fuel price data by jurisdiction and local area | F116: Inner Melbourne, market price of ULP
F117: c/L | G117: 144.8 | H117: 2013-06-01 | I117: Source: Appendix A - Table 38 https://www.atap.gov.au/parameter-values/road-transport/5-vehicle-operating-cost-voc-models
G120: VOC | H120: year | I120: year | J120: index | K120: adjustment value | L120: 2024$
E121: Courier Van-Utility | F121: $/km | G121: =($G$117/100)*$G110 -> 0.47048416 | H121: 2013-06-01 | I121: 2024-09-01 | J121: CPI all groups | K121: ='CPI Indexing'!$BJ$321 -> 1.35311284 | L121: =K121*G121 -> 0.6366181581
E122: 4WD Mid-Size Petrol | F122: $/km | G122: =($G$117/100)*$G111 -> 0.52125104 | H122: 2013-06-01 | I122: 2024-09-01 | J122: CPI all groups | K122: ='CPI Indexing'!$BJ$321 -> 1.35311284 | L122: =K122*G122 -> 0.7053114753
E123: Light Rigid | F123: $/km | G123: =($G$117/100)*$G112 -> 0.660623936 | H123: 2013-06-01 | I123: 2024-09-01 | J123: CPI all groups | K123: ='CPI Indexing'!$BJ$321 -> 1.35311284 | L123: =K123*G123 -> 0.8938987305
E124: Medium Rigid | F124: $/km | G124: =($G$117/100)*$G113 -> 0.786659304 | H124: 2013-06-01 | I124: 2024-09-01 | J124: CPI all groups | K124: ='CPI Indexing'!$BJ$321 -> 1.35311284 | L124: =K124*G124 -> 1.064438805
E125: Heavy Rigid | F125: $/km | G125: =($G$117/100)*$G114 -> 0.9878256 | H125: 2013-06-01 | I125: 2024-09-01 | J125: CPI all groups | K125: ='CPI Indexing'!$BJ$321 -> 1.35311284 | L125: =K125*G125 -> 1.336639504
C127: =MAX($B$1:C125)+0.01 -> 3.02 | D127: Coinversion factors
G128: Hours travelled | H128: Frequency per year
G129: hour - per round trip | H129: number
E130: Normal Travel | G130: =G87 -> 1 | H130: =248*G130 -> 248
E131: Delivery related travel | G131: =G88 -> 1 | H131: =12*G131 -> 12
E133: Hours travelled to second site per year | F133: hour | G133: =SUM(H130:H131) -> 260
E134: Speed conversion | F134: km/hour | G134: 60
E135: distance | F135: km | G135: =G134*G133 -> 15600
C137: =MAX($B$1:C134)+0.01 -> 3.03 | D137: Reduction in travel time
E139: Current Depot Site | G139: Distance saved per year for second sites
G140: kms/year
D141: =IFERROR(INDEX($G$50:$G$55,MATCH($E141,$E$50:$E$55,0)),0) -> 1 | E141: Beaconsfield | G141: =IF(D141=1,$G$135,0) -> 15600
D142: 0 | E142: Benalla | G142: 0
D143: 0 | E143: Seymour | G143: 0
D144: 1 | E144: Traralgon | G144: 15600
D145: 1 | E145: Warragul | G145: 15600
D146: 0 | E146: Pakenham | G146: 0
B148: =MAX($B$1:B97)+1 -> 3 | C148: Feeder Faults
C151: =MAX($B$1:C150)+0.01 -> 3.04 | D151: Occurrence of events
E152: Faults per feeder per year | F152: pa/depot | G152: 1 | H152: User to adjust number of feeder faults per year if required
C154: =MAX($B$1:C153)+0.01 -> 3.05 | D154: Avoided additional feeder fault response time due to traffic
G157: Time response saving
E158: Beaconsfield | F158: minute | G158: =INDEX('Control Panel'!$J$84:$J$88,MATCH($E158,'Control Panel'!$E$84:$E$88,0)) -> 10
E159: Benalla | F159: minute | G159: =INDEX('Control Panel'!$J$84:$J$88,MATCH($E159,'Control Panel'!$E$84:$E$88,0)) -> 10
E160: Seymour | F160: minute | G160: =INDEX('Control Panel'!$J$84:$J$88,MATCH($E160,'Control Panel'!$E$84:$E$88,0)) -> 10
E161: Traralgon | F161: minute | G161: =INDEX('Control Panel'!$J$84:$J$88,MATCH($E161,'Control Panel'!$E$84:$E$88,0)) -> 10
E162: Warragul | F162: minute | G162: =INDEX('Control Panel'!$J$84:$J$88,MATCH($E162,'Control Panel'!$E$84:$E$88,0)) -> 10
C164: =MAX($B$1:C163)+0.01 -> 3.06 | D164: VCR of response time reduction
G165: Annual VCR per minute per depot | H165: VCR of repsonse time saving
E166: Beaconsfield | F166: $FY25 | G166: =37392.3443880796*G152 -> 37392.34439 | H166: =IFERROR(G166*INDEX($G$158:$G$162,MATCH($E166,$E$158:$E$162,0)),0) -> 373923.4439
E167: Benalla | F167: $FY25 | G167: =12541.7939868732*G152 -> 12541.79399 | H167: 125417.9399
E168: Seymour | F168: $FY25 | G168: =13546.770753854*G152 -> 13546.77075 | H168: 135467.7075
E169: Traralgon | F169: $FY25 | G169: =15110.476425117*G152 -> 15110.47643 | H169: 151104.7643
E170: Warragul | F170: $FY25 | G170: =21136.5596962574*G152 -> 21136.5597 | H170: 211365.597
C172: =MAX($B$1:C171)+0.01 -> 3.07 | D172: For output
G173: =Scen3 -> Option 3: Strategic Depot reset
E174: Warragul | G174: =IFERROR(INDEX($H$166:$H$170,MATCH($E174,$E$166:$E$170,0)),0) -> 211365.597
E175: Beaconsfield | G175: 373923.4439
E176: Pakenham | G176: 0
E177: Traralgon | G177: 151104.7643
E178: Benalla | G178: 125417.9399
E179: Seymour | G179: 135467.7075
B181: =MAX($B$1:B180)+1 -> 4 | C181: Improved public safety
C183: =MAX($B$1:C182)+0.01 -> 4.01 | D183: Value of injury/deaths | G183: 2023$ | H183: index | I183: 2024$
E184: Death Accident Cost | G184: =5.3 * 10^6 -> 5300000 | H184: ='CPI Indexing'!$R$332 -> 1.029818362 | I184: =G184*H184 -> 5458037.319
E185: Injury Accident cost | G185: =218762 -> 218762 | H185: ='CPI Indexing'!$R$332 -> 1.029818362 | I185: =G185*H185 -> 225285.1245
E186: Incident cost (general) | G186: 10000 | H186: ='CPI Indexing'!$R$332 -> 1.029818362 | I186: 10298.18362
C188: =MAX($B$1:C187)+0.01 -> 4.02 | D188: Disproportionality factor
E190: Single Fatality | F190: list | G190: ='Control Panel'!G106 -> Central
E191: Single serious injury | F191: list | G191: ='Control Panel'!G107 -> Central
E193: Single Fatality | F193: factor | G193: =INDEX('Control Panel'!$G$103:$H$104,MATCH($E193,'Control Panel'!$E$103:$E$104,0),MATCH($G190,'Control Panel'!$G$102:$H$102,0)) -> 6
E194: Single serious injury | F194: factor | G194: =INDEX('Control Panel'!$G$103:$H$104,MATCH($E194,'Control Panel'!$E$103:$E$104,0),MATCH($G191,'Control Panel'!$G$102:$H$102,0)) -> 3
C196: =MAX($B$1:C195)+0.01 -> 4.03 | D196: Value of injury/deaths - factor applied
E198: Death Accident Cost | F198: value | G198: =I184*G193 -> 32748223.92
E199: Injury Accident cost | F199: value | G199: =I185*G194 -> 675855.3736
E200: Incident cost (general) | F200: value | G200: =I186 -> 10298.18362
C202: =MAX($B$1:C201)+0.01 -> 4.04 | D202: Percentage reduction of deaths and accidents (public)
E203: Beaconsfield | G203: Decrease in accidents per year | H203: Decrease in deaths per year | I203: Decrease in injuries per year | J203: Probability of accidents by Ausnet
E204: Benalla | F204: percent | G204: 67.60124611 | H204: 78.33333333 | I204: 71.28076063 | J204: 0.5
E205: Seymour | F205: percent | G205: 77.19298246 | H205: 63.88888889 | I205: 76.99115044 | J205: 0.5
E206: Traralgon | F206: percent | G206: 55.04885993 | H206: 63.63636364 | I206: 51.64556962 | J206: 0.5
E207: Warragul | F207: percent | G207: 91.49855908 | H207: 78.26086957 | I207: 90.50847458 | J207: 0.5
F208: percent | G208: 77.12962963 | H208: 100 | I208: 78.65466102 | J208: 0.5
E210: Beaconsfield | F210: % | G210: =(G204/100) -> 0.6760124611 | H210: =(H204/100) -> 0.7833333333 | I210: 0.7128076063 | J210: =(J204/100) -> 0.005
E211: Benalla | F211: % | G211: =(G205/100) -> 0.7719298246 | H211: 0.6388888889 | I211: 0.7699115044 | J211: =(J205/100) -> 0.005
E212: Seymour | F212: % | G212: =(G206/100) -> 0.5504885993 | H212: 0.6363636364 | I212: 0.5164556962 | J212: =(J206/100) -> 0.005
E213: Traralgon | F213: % | G213: =(G207/100) -> 0.9149855908 | H213: 0.7826086957 | I213: 0.9050847458 | J213: =(J207/100) -> 0.005
E214: Warragul | F214: % | G214: =(G208/100) -> 0.7712962963 | H214: 1 | I214: 0.7865466102 | J214: =(J208/100) -> 0.005
C216: =MAX($B$1:C215)+0.01 -> 4.05 | D216: Risk cost avoided per year (public)
G217: Accident reduction value | H217: Death reduction value | I217: injury reduction value | J217: Total reduction value
E218: Beaconsfield | F218: $FY25/year | G218: =$I$186*J210*(1-G210) -> 16.68241583 | H218: =$G$198*(1-H210)*J210 -> 35477.24258 | I218: =$G$199*(1-$I210)*J210 -> 970.5026127 | J218: =SUM(G218:I218) -> 36464.42761
E219: Benalla | F219: $FY25/year | G219: =$I$186*J211*(1-G211) -> 11.74354272 | H219: =$G$198*(1-H211)*J211 -> 59128.73763 | I219: =$G$199*(1-$I211)*J211 -> 777.5327308 | J219: =SUM(G219:I219) -> 59918.0139
E220: Seymour | F220: $FY25/year | G220: 23.14575472 | H220: 59542.2253 | I220: 1634.030081 | J220: 61199.40113
E221: Traralgon | F221: $FY25/year | G221: 4.377469982 | H221: 35595.89555 | I221: 320.744923 | J221: 35921.01795
E222: Warragul | F222: $FY25/year | G222: 11.77616368 | H222: =$G$198*(1-H214)*J214 -> 0 | I222: 721.3181026 | J222: 733.0942663
E223: Pakenham | F223: $FY25/year | G223: 0 | H223: 0 | I223: 0 | J223: 0
E224: Lilydale | F224: $FY25/year | G224: 0 | H224: 0 | I224: 0 | J224: 0
C225: remove sites not in use | E225: Sale | F225: $FY25/year | G225: 0 | H225: 0 | I225: 0 | J225: 0
E226: Mansfield | F226: $FY25/year | G226: 0 | H226: 0 | I226: 0 | J226: 0
E227: Ouyen | F227: $FY25/year | G227: 0 | H227: 0 | I227: 0 | J227: 0
E228: Myrtleford | F228: $FY25/year | G228: 0 | H228: 0 | I228: 0 | J228: 0
E229: Wodonga | F229: $FY25/year | G229: 0 | H229: 0 | I229: 0 | J229: 0
E230: Bairnsdale | F230: $FY25/year | G230: 0 | H230: 0 | I230: 0 | J230: 0
E231: Wangaratta | F231: $FY25/year | G231: 0 | H231: 0 | I231: 0 | J231: 0
E232: Leongatha | F232: $FY25/year | G232: 0 | H232: 0 | I232: 0 | J232: 0
C234: =MAX($B$1:C233)+0.01 -> 4.06 | D234: Flag for application
E236: =Scen3 -> Option 3: Strategic Depot reset | F236: Flag | G236: 0 | H236: Change cell G236 to 1 to include this benefit
C238: =MAX($B$1:C237)+0.01 -> 4.07 | D238: For output | G238: =Scen3 -> Option 3: Strategic Depot reset
E239: Warragul | F239: $FY25 | G239: =IF($G$236=1,INDEX($J$218:$J$232,MATCH($E239,$E$218:$E$232,0)),0) -> 0
E240: Beaconsfield | F240: $FY25 | G240: 0
E241: Pakenham | F241: $FY25 | G241: 0
E242: Traralgon | F242: $FY25 | G242: 0
E243: Benalla | F243: $FY25 | G243: 0
E244: Seymour | F244: $FY25 | G244: 0
B247: =MAX($B$1:B246)+1 -> 5 | C247: Avoided environmental effect costs
C249: =MAX($B$1:C248)+0.01 -> 5.01 | D249: Environmental effects cost
E251: Impact of improving storage methods | F251: % | G251: 0.5 | H251: Assumption of a 50% decrease in spillage if improvements in storage methods
E253: Environmental effects cost | G253: Cost | H253: Probability
E254: PCB-Free oil | G254: 30000 | H254: 0.025
E255: PCB contaminated oil | G255: 100000 | H255: 0.01
C257: =MAX($B$1:C256)+0.01 -> 5.02 | D257: Environmental effects cost
E258: Current system costs
E259: PCB-Free oil | F259: per depot per yr | G259: =G254*H254 -> 750
E260: PCB contaminated oil | F260: per depot per yr | G260: =G255*H255 -> 1000
E262: Improved system costs
E263: PCB-Free oil | F263: per depot per yr | G263: =(H254*(1-$G$251))*G254 -> 375
E264: PCB contaminated oil | F264: per depot per yr | G264: =(H255*(1-$G$251))*G255 -> 500
... 159 more rows

Sheet I | Traralgon
A1: I | Traralgon
A2: AusNet Property (Depot) Investment Strategy - Phase 1 | CBA Model | K2: Period | L2: 1 | M2: 2 | N2: 3 | O2: 4 | P2: 5 | Q2: 6 | R2: 7 | S2: 8 | T2: 9 | U2: 10 | V2: 11 | W2: 12 | X2: 13 | Y2: 14 | Z2: 15 | AA2: 16 | AB2: 17 | AC2: 18 | AD2: 19 | AE2: 20 | AF2: 21 | AG2: 22 | AH2: 23 | AI2: 24 | AJ2: 25 | AK2: 26 | AL2: 27 | AM2: 28 | AN2: 29 | AO2: 30 | AP2: 31 | AQ2: 32 | AR2: 33 | AS2: 34 | AT2: 35 | AU2: 36 | AV2: 37 | AW2: 38 | AX2: 39 | AY2: 40 | AZ2: 41
A3: Version 1.0 | K3: Start date | L3: 2025-07-01 | M3: 2026-07-01 | N3: 2027-07-01 | O3: 2028-07-01 | P3: 2029-07-01 | Q3: 2030-07-01 | R3: 2031-07-01 | S3: 2032-07-01 | T3: 2033-07-01 | U3: 2034-07-01 | V3: 2035-07-01 | W3: 2036-07-01 | X3: 2037-07-01 | Y3: 2038-07-01 | Z3: 2039-07-01 | AA3: 2040-07-01 | AB3: 2041-07-01 | AC3: 2042-07-01 | AD3: 2043-07-01 | AE3: 2044-07-01 | AF3: 2045-07-01 | AG3: 2046-07-01 | AH3: 2047-07-01 | AI3: 2048-07-01 | AJ3: 2049-07-01 | AK3: 2050-07-01 | AL3: 2051-07-01 | AM3: 2052-07-01 | AN3: 2053-07-01 | AO3: 2054-07-01 | AP3: 2055-07-01 | AQ3: 2056-07-01 | AR3: 2057-07-01 | AS3: 2058-07-01 | AT3: 2059-07-01 | AU3: 2060-07-01 | AV3: 2061-07-01 | AW3: 2062-07-01 | AX3: 2063-07-01 | AY3: 2064-07-01 | AZ3: 2065-07-01
A4: Site | B4: Traralgon | K4: End date | L4: 2026-06-30 | M4: 2027-06-30 | N4: 2028-06-30 | O4: 2029-06-30 | P4: 2030-06-30 | Q4: 2031-06-30 | R4: 2032-06-30 | S4: 2033-06-30 | T4: 2034-06-30 | U4: 2035-06-30 | V4: 2036-06-30 | W4: 2037-06-30 | X4: 2038-06-30 | Y4: 2039-06-30 | Z4: 2040-06-30 | AA4: 2041-06-30 | AB4: 2042-06-30 | AC4: 2043-06-30 | AD4: 2044-06-30 | AE4: 2045-06-30 | AF4: 2046-06-30 | AG4: 2047-06-30 | AH4: 2048-06-30 | AI4: 2049-06-30 | AJ4: 2050-06-30 | AK4: 2051-06-30 | AL4: 2052-06-30 | AM4: 2053-06-30 | AN4: 2054-06-30 | AO4: 2055-06-30 | AP4: 2056-06-30 | AQ4: 2057-06-30 | AR4: 2058-06-30 | AS4: 2059-06-30 | AT4: 2060-06-30 | AU4: 2061-06-30 | AV4: 2062-06-30 | AW4: 2063-06-30 | AX4: 2064-06-30 | AY4: 2065-06-30 | AZ4: 2066-06-30
A5: Undiscounted cash flows | K5: Financial Year | L5: 2026 | M5: 2027 | N5: 2028 | O5: 2029 | P5: 2030 | Q5: 2031 | R5: 2032 | S5: 2033 | T5: 2034 | U5: 2035 | V5: 2036 | W5: 2037 | X5: 2038 | Y5: 2039 | Z5: 2040 | AA5: 2041 | AB5: 2042 | AC5: 2043 | AD5: 2044 | AE5: 2045 | AF5: 2046 | AG5: 2047 | AH5: 2048 | AI5: 2049 | AJ5: 2050 | AK5: 2051 | AL5: 2052 | AM5: 2053 | AN5: 2054 | AO5: 2055 | AP5: 2056 | AQ5: 2057 | AR5: 2058 | AS5: 2059 | AT5: 2060 | AU5: 2061 | AV5: 2062 | AW5: 2063 | AX5: 2064 | AY5: 2065 | AZ5: 2066
A6: Active Flag | L6: 1 | M6: 1 | N6: 1 | O6: 1 | P6: 1 | Q6: 1 | R6: 1 | S6: 1 | T6: 1 | U6: 1 | V6: 1 | W6: 1 | X6: 1 | Y6: 1 | Z6: 1 | AA6: 1 | AB6: 1 | AC6: 1 | AD6: 1 | AE6: 1 | AF6: 1 | AG6: 1 | AH6: 1 | AI6: 1 | AJ6: 1 | AK6: 1 | AL6: 1 | AM6: 1 | AN6: 1 | AO6: 1 | AP6: 0 | AQ6: 0 | AR6: 0 | AS6: 0 | AT6: 0 | AU6: 0 | AV6: 0 | AW6: 0 | AX6: 0 | AY6: 0 | AZ6: 0
... 7 more rows

Sheet I | Warragul
A1: I | Warragul
A2: AusNet Property (Depot) Investment Strategy - Phase 1 | CBA Model | K2: Period | L2: 1 | M2: 2 | N2: 3 | O2: 4 | P2: 5 | Q2: 6 | R2: 7 | S2: 8 | T2: 9 | U2: 10 | V2: 11 | W2: 12 | X2: 13 | Y2: 14 | Z2: 15 | AA2: 16 | AB2: 17 | AC2: 18 | AD2: 19 | AE2: 20 | AF2: 21 | AG2: 22 | AH2: 23 | AI2: 24 | AJ2: 25 | AK2: 26 | AL2: 27 | AM2: 28 | AN2: 29 | AO2: 30 | AP2: 31 | AQ2: 32 | AR2: 33 | AS2: 34 | AT2: 35 | AU2: 36 | AV2: 37 | AW2: 38 | AX2: 39 | AY2: 40 | AZ2: 41
A3: Version 1.0 | K3: Start date | L3: 2025-07-01 | M3: 2026-07-01 | N3: 2027-07-01 | O3: 2028-07-01 | P3: 2029-07-01 | Q3: 2030-07-01 | R3: 2031-07-01 | S3: 2032-07-01 | T3: 2033-07-01 | U3: 2034-07-01 | V3: 2035-07-01 | W3: 2036-07-01 | X3: 2037-07-01 | Y3: 2038-07-01 | Z3: 2039-07-01 | AA3: 2040-07-01 | AB3: 2041-07-01 | AC3: 2042-07-01 | AD3: 2043-07-01 | AE3: 2044-07-01 | AF3: 2045-07-01 | AG3: 2046-07-01 | AH3: 2047-07-01 | AI3: 2048-07-01 | AJ3: 2049-07-01 | AK3: 2050-07-01 | AL3: 2051-07-01 | AM3: 2052-07-01 | AN3: 2053-07-01 | AO3: 2054-07-01 | AP3: 2055-07-01 | AQ3: 2056-07-01 | AR3: 2057-07-01 | AS3: 2058-07-01 | AT3: 2059-07-01 | AU3: 2060-07-01 | AV3: 2061-07-01 | AW3: 2062-07-01 | AX3: 2063-07-01 | AY3: 2064-07-01 | AZ3: 2065-07-01
A4: Site | B4: Warragul | K4: End date | L4: 2026-06-30 | M4: 2027-06-30 | N4: 2028-06-30 | O4: 2029-06-30 | P4: 2030-06-30 | Q4: 2031-06-30 | R4: 2032-06-30 | S4: 2033-06-30 | T4: 2034-06-30 | U4: 2035-06-30 | V4: 2036-06-30 | W4: 2037-06-30 | X4: 2038-06-30 | Y4: 2039-06-30 | Z4: 2040-06-30 | AA4: 2041-06-30 | AB4: 2042-06-30 | AC4: 2043-06-30 | AD4: 2044-06-30 | AE4: 2045-06-30 | AF4: 2046-06-30 | AG4: 2047-06-30 | AH4: 2048-06-30 | AI4: 2049-06-30 | AJ4: 2050-06-30 | AK4: 2051-06-30 | AL4: 2052-06-30 | AM4: 2053-06-30 | AN4: 2054-06-30 | AO4: 2055-06-30 | AP4: 2056-06-30 | AQ4: 2057-06-30 | AR4: 2058-06-30 | AS4: 2059-06-30 | AT4: 2060-06-30 | AU4: 2061-06-30 | AV4: 2062-06-30 | AW4: 2063-06-30 | AX4: 2064-06-30 | AY4: 2065-06-30 | AZ4: 2066-06-30
A5: Undiscounted cash flows | K5: Financial Year | L5: 2026 | M5: 2027 | N5: 2028 | O5: 2029 | P5: 2030 | Q5: 2031 | R5: 2032 | S5: 2033 | T5: 2034 | U5: 2035 | V5: 2036 | W5: 2037 | X5: 2038 | Y5: 2039 | Z5: 2040 | AA5: 2041 | AB5: 2042 | AC5: 2043 | AD5: 2044 | AE5: 2045 | AF5: 2046 | AG5: 2047 | AH5: 2048 | AI5: 2049 | AJ5: 2050 | AK5: 2051 | AL5: 2052 | AM5: 2053 | AN5: 2054 | AO5: 2055 | AP5: 2056 | AQ5: 2057 | AR5: 2058 | AS5: 2059 | AT5: 2060 | AU5: 2061 | AV5: 2062 | AW5: 2063 | AX5: 2064 | AY5: 2065 | AZ5: 2066
A6: Active Flag | L6: 1 | M6: 1 | N6: 1 | O6: 1 | P6: 1 | Q6: 1 | R6: 1 | S6: 1 | T6: 1 | U6: 1 | V6: 1 | W6: 1 | X6: 1 | Y6: 1 | Z6: 1 | AA6: 1 | AB6: 1 | AC6: 1 | AD6: 1 | AE6: 1 | AF6: 1 | AG6: 1 | AH6: 1 | AI6: 1 | AJ6: 1 | AK6: 1 | AL6: 1 | AM6: 1 | AN6: 1 | AO6: 1 | AP6: 0 | AQ6: 0 | AR6: 0 | AS6: 0 | AT6: 0 | AU6: 0 | AV6: 0 | AW6: 0 | AX6: 0 | AY6: 0 | AZ6: 0
... 6 more rows

Sheet I | Beaconsfield
A1: I | Beaconsfield
A2: AusNet Property (Depot) Investment Strategy - Phase 1 | CBA Model | K2: Period | L2: 1 | M2: 2 | N2: 3 | O2: 4 | P2: 5 | Q2: 6 | R2: 7 | S2: 8 | T2: 9 | U2: 10 | V2: 11 | W2: 12 | X2: 13 | Y2: 14 | Z2: 15 | AA2: 16 | AB2: 17 | AC2: 18 | AD2: 19 | AE2: 20 | AF2: 21 | AG2: 22 | AH2: 23 | AI2: 24 | AJ2: 25 | AK2: 26 | AL2: 27 | AM2: 28 | AN2: 29 | AO2: 30 | AP2: 31 | AQ2: 32 | AR2: 33 | AS2: 34 | AT2: 35 | AU2: 36 | AV2: 37 | AW2: 38 | AX2: 39 | AY2: 40 | AZ2: 41
A3: Version 1.0 | K3: Start date | L3: 2025-07-01 | M3: 2026-07-01 | N3: 2027-07-01 | O3: 2028-07-01 | P3: 2029-07-01 | Q3: 2030-07-01 | R3: 2031-07-01 | S3: 2032-07-01 | T3: 2033-07-01 | U3: 2034-07-01 | V3: 2035-07-01 | W3: 2036-07-01 | X3: 2037-07-01 | Y3: 2038-07-01 | Z3: 2039-07-01 | AA3: 2040-07-01 | AB3: 2041-07-01 | AC3: 2042-07-01 | AD3: 2043-07-01 | AE3: 2044-07-01 | AF3: 2045-07-01 | AG3: 2046-07-01 | AH3: 2047-07-01 | AI3: 2048-07-01 | AJ3: 2049-07-01 | AK3: 2050-07-01 | AL3: 2051-07-01 | AM3: 2052-07-01 | AN3: 2053-07-01 | AO3: 2054-07-01 | AP3: 2055-07-01 | AQ3: 2056-07-01 | AR3: 2057-07-01 | AS3: 2058-07-01 | AT3: 2059-07-01 | AU3: 2060-07-01 | AV3: 2061-07-01 | AW3: 2062-07-01 | AX3: 2063-07-01 | AY3: 2064-07-01 | AZ3: 2065-07-01
A4: Site | B4: Beaconsfield | K4: End date | L4: 2026-06-30 | M4: 2027-06-30 | N4: 2028-06-30 | O4: 2029-06-30 | P4: 2030-06-30 | Q4: 2031-06-30 | R4: 2032-06-30 | S4: 2033-06-30 | T4: 2034-06-30 | U4: 2035-06-30 | V4: 2036-06-30 | W4: 2037-06-30 | X4: 2038-06-30 | Y4: 2039-06-30 | Z4: 2040-06-30 | AA4: 2041-06-30 | AB4: 2042-06-30 | AC4: 2043-06-30 | AD4: 2044-06-30 | AE4: 2045-06-30 | AF4: 2046-06-30 | AG4: 2047-06-30 | AH4: 2048-06-30 | AI4: 2049-06-30 | AJ4: 2050-06-30 | AK4: 2051-06-30 | AL4: 2052-06-30 | AM4: 2053-06-30 | AN4: 2054-06-30 | AO4: 2055-06-30 | AP4: 2056-06-30 | AQ4: 2057-06-30 | AR4: 2058-06-30 | AS4: 2059-06-30 | AT4: 2060-06-30 | AU4: 2061-06-30 | AV4: 2062-06-30 | AW4: 2063-06-30 | AX4: 2064-06-30 | AY4: 2065-06-30 | AZ4: 2066-06-30
A5: Undiscounted cash flows | K5: Financial Year | L5: 2026 | M5: 2027 | N5: 2028 | O5: 2029 | P5: 2030 | Q5: 2031 | R5: 2032 | S5: 2033 | T5: 2034 | U5: 2035 | V5: 2036 | W5: 2037 | X5: 2038 | Y5: 2039 | Z5: 2040 | AA5: 2041 | AB5: 2042 | AC5: 2043 | AD5: 2044 | AE5: 2045 | AF5: 2046 | AG5: 2047 | AH5: 2048 | AI5: 2049 | AJ5: 2050 | AK5: 2051 | AL5: 2052 | AM5: 2053 | AN5: 2054 | AO5: 2055 | AP5: 2056 | AQ5: 2057 | AR5: 2058 | AS5: 2059 | AT5: 2060 | AU5: 2061 | AV5: 2062 | AW5: 2063 | AX5: 2064 | AY5: 2065 | AZ5: 2066
A6: Active Flag | L6: 1 | M6: 1 | N6: 1 | O6: 1 | P6: 1 | Q6: 1 | R6: 1 | S6: 1 | T6: 1 | U6: 1 | V6: 1 | W6: 1 | X6: 1 | Y6: 1 | Z6: 1 | AA6: 1 | AB6: 1 | AC6: 1 | AD6: 1 | AE6: 1 | AF6: 1 | AG6: 1 | AH6: 1 | AI6: 1 | AJ6: 1 | AK6: 1 | AL6: 1 | AM6: 1 | AN6: 1 | AO6: 1 | AP6: 0 | AQ6: 0 | AR6: 0 | AS6: 0 | AT6: 0 | AU6: 0 | AV6: 0 | AW6: 0 | AX6: 0 | AY6: 0 | AZ6: 0
B8: 1 | C8: Costs
C10: 1.01 | D10: Base Case
J11: 30 year undiscounted total
E12: Capital Costs
E13: Works | J13: [CIC] | L13: [CIC] | M13: [CIC] | N13: [CIC] | O13: [CIC] | P13: [CIC] | Q13: [CIC] | R13: [CIC] | S13: [CIC] | T13: [CIC] | U13: [CIC] | V13: [CIC] | W13: [CIC] | X13: [CIC] | Y13: [CIC] | Z13: [CIC] | AA13: [CIC] | AB13: [CIC] | AC13: [CIC] | AD13: [CIC] | AE13: [CIC] | AF13: [CIC] | AG13: [CIC] | AH13: [CIC] | AI13: [CIC] | AJ13: [CIC] | AK13: [CIC] | AL13: [CIC] | AM13: [CIC] | AN13: [CIC] | AO13: [CIC]
E14: Land and building lease cost | J14: [CIC] | L14: [CIC] | M14: [CIC] | N14: [CIC] | O14: [CIC] | P14: [CIC] | Q14: [CIC] | R14: [CIC] | S14: [CIC] | T14: [CIC] | U14: [CIC] | V14: [CIC] | W14: [CIC] | X14: [CIC] | Y14: [CIC] | Z14: [CIC] | AA14: [CIC] | AB14: [CIC] | AC14: [CIC] | AD14: [CIC] | AE14: [CIC] | AF14: [CIC] | AG14: [CIC] | AH14: [CIC] | AI14: [CIC] | AJ14: [CIC] | AK14: [CIC] | AL14: [CIC] | AM14: [CIC] | AN14: [CIC] | AO14: [CIC]
A15: reacive | E15: Reactive maintenance costs | J15: [CIC] | L15: [CIC] | M15: [CIC] | N15: [CIC] | O15: [CIC] | P15: [CIC] | Q15: [CIC] | R15: [CIC] | S15: [CIC] | T15: [CIC] | U15: [CIC] | V15: [CIC] | W15: [CIC] | X15: [CIC] | Y15: [CIC] | Z15: [CIC] | AA15: [CIC] | AB15: [CIC] | AC15: [CIC] | AD15: [CIC] | AE15: [CIC] | AF15: [CIC] | AG15: [CIC] | AH15: [CIC] | AI15: [CIC] | AJ15: [CIC] | AK15: [CIC] | AL15: [CIC] | AM15: [CIC] | AN15: [CIC] | AO15: [CIC]
A16: maintenance | E16: Preventative Costs | J16: [CIC] | L16: [CIC] | M16: [CIC] | N16: [CIC] | O16: [CIC] | P16: [CIC] | Q16: [CIC] | R16: [CIC] | S16: [CIC] | T16: [CIC] | U16: [CIC] | V16: [CIC] | W16: [CIC] | X16: [CIC] | Y16: [CIC] | Z16: [CIC] | AA16: [CIC] | AB16: [CIC] | AC16: [CIC] | AD16: [CIC] | AE16: [CIC] | AF16: [CIC] | AG16: [CIC] | AH16: [CIC] | AI16: [CIC] | AJ16: [CIC] | AK16: [CIC] | AL16: [CIC] | AM16: [CIC] | AN16: [CIC] | AO16: [CIC]
D17: 1 | E17: Second site | L17: [CIC] | M17: [CIC] | N17: [CIC] | O17: [CIC] | P17: [CIC] | Q17: [CIC] | R17: [CIC] | S17: [CIC] | T17: [CIC] | U17: [CIC] | V17: [CIC] | W17: [CIC] | X17: [CIC] | Y17: [CIC] | Z17: [CIC] | AA17: [CIC] | AB17: [CIC] | AC17: [CIC] | AD17: [CIC] | AE17: [CIC] | AF17: [CIC] | AG17: [CIC] | AH17: [CIC] | AI17: [CIC] | AJ17: [CIC] | AK17: [CIC] | AL17: [CIC] | AM17: [CIC] | AN17: [CIC] | AO17: [CIC]
C19: 1.02 | D19: Option 2: Depot Refurbishment
E21: Capital Costs
